Workbook

Sheet Sample Report (hidden)
A2: Date
A3: Hen
A4: Program
A5: Start at 999999
A6: Sequence component 1 | B6: Time 1 | C6: Seqeunce Component 2 | D6: Time 2 | E6: Seqeunce Component 3 | F6: Time 3 | G6: Correct 0 = No 1=Yes | J6: Seqeunce | K6: Time
A7: 12 | B7: 7 | C7: 12 | D7: 42 | E7: 13 | F7: 18 | G7: if 77 new line, if 31 or 41 = yes new line on 77, | J7: =string of Seqeunce compponent 1, 2 & 3 | K7: =time 3
A8: This continues until ther is a 1 on its own to indicate start of summary data
J9: 10-19 =1
A10: Summary Data | J10: 20-29 =2
A11: Correct | B11: Incorrect | C11: Rft | D11: total | E11: Av Correct | F11: Av Incorrect | G11: Percent correct | H11: Time | J11: in this example the seqeunce would be 111
A12: 40 | B12: 33 | C12: 40 | D12: 73 | E12: 23.95 | F12: 15 | G12: 54 | H12: 806

Sheet Summary
A2: Day | B2: Date | C2: Average Response Rate | D2: Target % | E2: RF for non correct sequence | F2: U Value | K2: Block 1 | L2: Block 2 | M2: Block 3 | N2: Block 4 | O2: Block 5 | P2: Block 6
A3: 1 | B3: ='!M423940.183'!B2:C2 -> <date> | C3: =('!M423940.183'!F183/60)/'!M423940.183'!Q3 -> 2.233333333 | D3: ='!M423940.183'!N20/'!M423940.183'!Q3 -> 0 | E3: =SUM('!M423940.183'!L20:Q20)/'!M423940.183'!Q3 -> 0.9550561798 | F3: ='!M423940.183'!Q16 -> 0.209541573 | J3: Average Response Rate | K3: =AVERAGE(C3:C7) -> 3.525529783 | L3: =AVERAGE(C8:C12) -> 2.72510089 | M3: =AVERAGE(C13:C17) -> 1.870655106 | N3: =AVERAGE(C18:C22) -> 1.887908425 | O3: =AVERAGE(C23:C27) -> 1.996103768 | P3: =AVERAGE(C28:C32) -> 1.964205128
A4: 2 | B4: ='!M424950.183'!B2:C2 -> <date> | C4: =('!M424950.183'!F79/60)/'!M424950.183'!Q3 -> 4.672747748 | D4: ='!M424950.183'!N20/'!M424950.183'!Q3 -> 0 | E4: =SUM('!M424950.183'!L20:Q20)/'!M424950.183'!Q3 -> 1.837837838 | F4: ='!M424950.183'!Q16 -> 0.2640644937 | J4: Target % | K4: =AVERAGE(D3:D7) -> 0.02121647823 | L4: =AVERAGE(D8:D12) -> 0.2720156526 | M4: =AVERAGE(D13:D17) -> 0.765100188 | N4: =AVERAGE(D18:D22) -> 0.6692662039 | O4: =AVERAGE(D23:D27) -> 0.6394053455 | P4: =AVERAGE(D28:D32) -> 0.7644372294
A5: 3 | B5: ='!M425950.183'!B2:C2 -> <date> | C5: =('!M425950.183'!F122/60)/'!M425950.183'!Q3 -> 3.382905983 | D5: ='!M425950.183'!N20/'!M425950.183'!Q3 -> 0.05128205128 | E5: =SUM('!M425950.183'!L20:Q20)/'!M425950.183'!Q3 -> 1.427350427 | F5: ='!M425950.183'!Q16 -> 0.3008339076 | J5: CCRF | K5: =AVERAGE(E3:E7) -> 1.398866221 | L5: =AVERAGE(E8:E12) -> 2.066420598 | M5: =AVERAGE(E13:E17) -> 5.195835507 | N5: =AVERAGE(E18:E22) -> 3.519655691 | O5: =AVERAGE(E23:E27) -> 4.241827148 | P5: =AVERAGE(E28:E32) -> 4.875835831
A6: 4 | B6: ='!M426900.183'!B2:C2 -> <date> | C6: =('!M426900.183'!F113/60)/'!M426900.183'!Q3 -> 3.717601246 | D6: ='!M426900.183'!N20/'!M426900.183'!Q3 -> 0.009345794393 | E6: =SUM('!M426900.183'!L20:Q20)/'!M426900.183'!Q3 -> 1.38317757 | F6: ='!M426900.183'!Q16 -> 0.1014860166 | J6: U Value | K6: =AVERAGE(F3:F7) -> 0.2418105811 | L6: =AVERAGE(F8:F12) -> 0.312213477 | M6: =AVERAGE(F13:F17) -> 0.1673883793 | N6: =AVERAGE(F18:F22) -> 0.1656021823 | O6: =AVERAGE(F23:F27) -> 0.252995621 | P6: =AVERAGE(F28:F32) -> 0.1692594583
A7: 5 | B7: ='!M427A00.183'!B2:C2 -> <date> | C7: =('!M427A00.183'!F116/60)/'!M427A00.183'!Q3 -> 3.621060606 | D7: ='!M427A00.183'!N20/'!M427A00.183'!Q3 -> 0.04545454545 | E7: =SUM('!M427A00.183'!L20:Q20)/'!M427A00.183'!Q3 -> 1.390909091 | F7: ='!M427A00.183'!Q16 -> 0.3331269144
A8: 6 | B8: ='!M428850.183'!B2:C2 -> <date> | C8: =('!M428850.183'!F122/60)/'!M428850.183'!Q3 -> 3.392450142 | D8: ='!M428850.183'!N20/'!M428850.183'!Q3 -> 0.05128205128 | E8: =SUM('!M428850.183'!L20:Q20)/'!M428850.183'!Q3 -> 1.341880342 | F8: ='!M428850.183'!Q16 -> 0.2889845205
A9: 7 | B9: ='!M429840.183'!B2:C2 -> <date> | C9: =('!M429840.183'!F145/60)/'!M429840.183'!Q3 -> 2.870263789 | D9: ='!M429840.183'!N20/'!M429840.183'!Q3 -> 0.1007194245 | E9: =SUM('!M429840.183'!L20:Q20)/'!M429840.183'!Q3 -> 1.237410072 | F9: ='!M429840.183'!Q16 -> 0.3170512888
A10: 8 | B10: ='!M430850.183'!B2:C2 -> <date> | C10: =('!M430850.183'!F143/60)/'!M430850.183'!Q3 -> 2.908272506 | D10: ='!M430850.183'!N20/'!M430850.183'!Q3 -> 0.2335766423 | E10: =SUM('!M430850.183'!L20:Q20)/'!M430850.183'!Q3 -> 1.459854015 | F10: ='!M430850.183'!Q16 -> 0.3791583723
A11: 9 | B11: ='!M501800.183'!B2:C2 -> <date> | C11: =('!M501800.183'!F125/60)/'!M501800.183'!Q3 -> 2.519747899 | D11: ='!M501800.183'!N20/'!M501800.183'!Q3 -> 0.3193277311 | E11: =SUM('!M501800.183'!L20:Q20)/'!M501800.183'!Q3 -> 1.672268908 | F11: ='!M501800.183'!Q16 -> 0.332391171
A12: 10 | B12: ='!M502C40.183'!B2:C2 -> <date> | C12: =('!M502C40.183'!F64/60)/'!M502C40.183'!Q3 -> 1.934770115 | D12: ='!M502C40.183'!N20/'!M502C40.183'!Q3 -> 0.6551724138 | E12: =SUM('!M502C40.183'!L20:Q20)/'!M502C40.183'!Q3 -> 4.620689655 | F12: ='!M502C40.183'!Q16 -> 0.2434820324
A13: 11 | B13: ='!M503900.183'!B2:C2 -> <date> | C13: =('!M503900.183'!F68/60)/'!M503900.183'!Q3 -> 1.929569892 | D13: ='!M503900.183'!N20/'!M503900.183'!Q3 -> 0.6290322581 | E13: =SUM('!M503900.183'!L20:Q20)/'!M503900.183'!Q3 -> 4.370967742 | F13: ='!M503900.183'!Q16 -> 0.2762238254
A14: 12 | B14: ='!M504630.183'!B2:C2 -> <date> | C14: =('!M504630.183'!F54/60)/'!M504630.183'!Q3 -> 1.852083333 | D14: ='!M504630.183'!N20/'!M504630.183'!Q3 -> 0.8125 | E14: =SUM('!M504630.183'!L20:Q20)/'!M504630.183'!Q3 -> 5.541666667 | F14: ='!M504630.183'!Q16 -> 0.1577749666
A15: 13 | B15: ='!M505940.183'!B2:C2 -> <date> | C15: =('!M505940.183'!F59/60)/'!M505940.183'!Q3 -> 1.845283019 | D15: ='!M505940.183'!N20/'!M505940.183'!Q3 -> 0.7547169811 | E15: =SUM('!M505940.183'!L20:Q20)/'!M505940.183'!Q3 -> 5.075471698 | F15: ='!M505940.183'!Q16 -> 0.1403154828
A16: 14 | B16: ='!M506810.183'!B2:C2 -> <date> | C16: =('!M506810.183'!F55/60)/'!M506810.183'!Q3 -> 1.919047619 | D16: ='!M506810.183'!N20/'!M506810.183'!Q3 -> 0.7959183673 | E16: =SUM('!M506810.183'!L20:Q20)/'!M506810.183'!Q3 -> 5.428571429 | F16: ='!M506810.183'!Q16 -> 0.1300185852
A17: 15 | B17: ='!M507930.183'!B2:C2 -> <date> | C17: =('!M507930.183'!F54/60)/'!M507930.183'!Q3 -> 1.807291667 | D17: ='!M507930.183'!N20/'!M507930.183'!Q3 -> 0.8333333333 | E17: =SUM('!M507930.183'!L20:Q20)/'!M507930.183'!Q3 -> 5.5625 | F17: ='!M507930.183'!Q16 -> 0.1326090364
A18: 16 | B18: ='!M508800.183'!B2:C2 -> <date> | C18: =('!M508800.183'!F54/60)/'!M508800.183'!Q3 -> 1.889236111 | D18: ='!M508800.183'!N20/'!M508800.183'!Q3 -> 0.8125 | E18: =SUM('!M508800.183'!L20:Q20)/'!M508800.183'!Q3 -> 3.458333333 | F18: ='!M508800.183'!Q16 -> 0.1657640886
A19: 17 | B19: ='!M509A20.183'!B2:C2 -> <date> | C19: =('!M509A20.183'!F68/60)/'!M509A20.183'!Q3 -> 1.982258065 | D19: ='!M509A20.183'!N20/'!M509A20.183'!Q3 -> 0.6290322581 | E19: =SUM('!M509A20.183'!L20:Q20)/'!M509A20.183'!Q3 -> 2.758064516 | F19: ='!M509A20.183'!Q16 -> 0.1758640128
A20: 18 | B20: ='!M510910.183'!B2:C2 -> <date> | C20: =('!M510910.183'!F91/60)/'!M510910.183'!Q3 -> 1.882352941 | D20: ='!M510910.183'!N20/'!M510910.183'!Q3 -> 0.4705882353 | E20: =SUM('!M510910.183'!L20:Q20)/'!M510910.183'!Q3 -> 3.282352941 | F20: ='!M510910.183'!Q16 -> 0.1556314096
A21: 19 | B21: ='!M511920.183'!B2:C2 -> <date> | C21: =('!M511920.183'!F63/60)/'!M511920.183'!Q3 -> 1.892105263 | D21: ='!M511920.183'!N20/'!M511920.183'!Q3 -> 0.6842105263 | E21: =SUM('!M511920.183'!L20:Q20)/'!M511920.183'!Q3 -> 2.964912281 | F21: ='!M511920.183'!Q16 -> 0.1542535101
A22: 20 | B22: ='!M512A00.183'!B2:C2 -> <date> | C22: =('!M512A00.183'!F58/60)/'!M512A00.183'!Q3 -> 1.793589744 | D22: ='!M512A00.183'!N20/'!M512A00.183'!Q3 -> 0.75 | E22: =SUM('!M512A00.183'!L20:Q20)/'!M512A00.183'!Q3 -> 5.134615385 | F22: ='!M512A00.183'!Q16 -> 0.1764978903
A23: 21 | B23: ='!M513B20.183'!B2:C2 -> <date> | C23: =('!M513B20.183'!F69/60)/'!M513B20.183'!Q3 -> 1.907407407 | D23: ='!M513B20.183'!N20/'!M513B20.183'!Q3 -> 0.5873015873 | E23: =SUM('!M513B20.183'!L20:Q20)/'!M513B20.183'!Q3 -> 4.26984127 | F23: ='!M513B20.183'!Q16 -> 0.2875172691
A24: 22 | B24: ='!M515850.183'!B2:C2 -> <date> | C24: =('!M515850.183'!F62/60)/'!M515850.183'!Q3 -> 1.949107143 | D24: ='!M515850.183'!N20/'!M515850.183'!Q3 -> 0.6964285714 | E24: =SUM('!M515850.183'!L20:Q20)/'!M515850.183'!Q3 -> 4.803571429 | F24: ='!M515850.183'!Q16 -> 0.2247981274
A25: 23 | B25: ='!M516950.183'!B2:C2 -> <date> | C25: =('!M516950.183'!F74/60)/'!M516950.183'!Q3 -> 1.933088235 | D25: ='!M516950.183'!N20/'!M516950.183'!Q3 -> 0.5588235294 | E25: =SUM('!M516950.183'!L20:Q20)/'!M516950.183'!Q3 -> 2.529411765 | F25: ='!M516950.183'!Q16 -> 0.2597109166
A26: 24 | B26: ='!M517940.103'!B2:C2 -> <date> | C26: =('!M517940.103'!F57/60)/'!M517940.103'!Q3 -> 1.924509804 | D26: ='!M517940.103'!N20/'!M517940.103'!Q3 -> 0.7450980392 | E26: =SUM('!M517940.103'!L20:Q20)/'!M517940.103'!Q3 -> 5.215686275 | F26: ='!M517940.103'!Q16 -> 0.2207875547
A27: 25 | B27: ='!M518900.103'!B2:C2 -> <date> | C27: =('!M518900.103'!F70/60)/'!M518900.103'!Q3 -> 2.26640625 | D27: ='!M518900.103'!N20/'!M518900.103'!Q3 -> 0.609375 | E27: =SUM('!M518900.103'!L20:Q20)/'!M518900.103'!Q3 -> 4.390625 | F27: ='!M518900.103'!Q16 -> 0.2721642371
A28: 26 | B28: ='!M519820.103'!B2:C2 -> <date> | C28: =('!M519820.103'!F48/60)/'!M519820.103'!Q3 -> 1.933333333 | D28: ='!M519820.103'!N20/'!M519820.103'!Q3 -> 0.9523809524 | E28: =SUM('!M519820.103'!L20:Q20)/'!M519820.103'!Q3 -> 6.30952381 | F28: ='!M519820.103'!Q16 -> 0.05122017233
A29: 27 | B29: ='!M520910.103'!B2:C2 -> <date> | C29: =('!M520910.103'!F61/60)/'!M520910.103'!Q3 -> 2.063333333 | D29: ='!M520910.103'!N20/'!M520910.103'!Q3 -> 0.7090909091 | E29: =SUM('!M520910.103'!L20:Q20)/'!M520910.103'!Q3 -> 5.054545455 | F29: ='!M520910.103'!Q16 -> 0.2144591855
A30: 28 | B30: ='!M521900.103'!B2:C2 -> <date> | C30: =('!M521900.103'!F62/60)/'!M521900.103'!Q3 -> 1.891666667 | D30: ='!M521900.103'!N20/'!M521900.103'!Q3 -> 0.6964285714 | E30: =SUM('!M521900.103'!L20:Q20)/'!M521900.103'!Q3 -> 4.982142857 | F30: ='!M521900.103'!Q16 -> 0.1961128266
A31: 29 | B31: ='!M522820.103'!B2:C2 -> <date> | C31: =('!M522820.103'!F62/60)/'!M522820.103'!Q3 -> 2.016666667 | D31: ='!M522820.103'!N20/'!M522820.103'!Q3 -> 0.7142857143 | E31: =SUM('!M522820.103'!L20:Q20)/'!M522820.103'!Q3 -> 4.821428571 | F31: ='!M522820.103'!Q16 -> 0.1985177024
A32: 30 | B32: ='!M523850.103'!B2:C2 -> <date> | C32: =('!M523850.103'!F58/60)/'!M523850.103'!Q3 -> 1.916025641 | D32: ='!M523850.103'!N20/'!M523850.103'!Q3 -> 0.75 | E32: =SUM('!M523850.103'!L20:Q20)/'!M523850.103'!Q3 -> 3.211538462 | F32: ='!M523850.103'!Q16 -> 0.1859874045
B33: ='!M524820.103'!B2:C2 -> <date> | C33: =('!M524820.103'!F60/60)/'!M524820.103'!Q3 -> 2.071604938 | D33: ='!M524820.103'!N20/'!M524820.103'!Q3 -> 0.7037037037 | E33: =SUM('!M524820.103'!L20:Q20)/'!M524820.103'!Q3 -> 4.944444444 | F33: ='!M524820.103'!Q16 -> 0.251256817

Sheet Start
F1: Use Folder 51 | H1: Auto Clean Up | J1: Correct sequence
F2: FALSE | H2: TRUE | J2: 211
A4: Working with Folder | G4: Process All/Or Pick A number: ALL or an integer
A5: F:\Hen Chapter\Raw Data\103_183\phase 1 var\ | G5: ALL
A6: Filenames:
A7: !M507930.183 | G7: Paint Cells
A8: !M508800.183 | G8: FALSE
A9: !M509A20.183
A10: !M510910.183
A11: !M511920.183
A12: !M512A00.183
A13: !M513B20.183
A14: !M515850.183
A15: !M516950.183
A16: !M423940.183
A17: !M424950.183
A18: !M425950.183
A19: !M426900.183
A20: !M427A00.183
A21: !M428850.183
A22: !M429840.183
A23: !M430850.183
A24: !M501800.183
A25: !M502C40.183
A26: !M503900.183
A27: !M504630.183
A28: !M505940.183
A29: !M506810.183
A30: !M517940.103
A31: !M518900.103
A32: !M519820.103
A33: !M520910.103
A34: !M521900.103
A35: !M522820.103
A36: !M523850.103
A37: !M524820.103

Sheet !M423940.183
A1: Report for:!M423940.183
A2: Date: | B2: <date>
A3: Hen: | B3: <hen> | F3: Correct Sequence | G3: =Start!J2 -> 211 | P3: Total Sequences in Data | Q3: =4994-COUNTBLANK(L7:L5000) -> 178 | V3: Total Sequences in Block Data | W3: =COUNTA(L7:L36) -> 30 | AA3: Total Sequences in Block Data | AB3: =COUNTA(L37:L65) -> 29 | AF3: Total Sequences in Block Data | AG3: =COUNTA(L66:L95) -> 30 | AK3: Total Sequences in Block Data | AL3: =COUNTA(L96:L125) -> 30 | AP3: Total Sequences in Block Data | AQ3: =COUNTA(L126:L154) -> 29 | AU3: Total Sequences in Block Data | AV3: =COUNTA(L155:L184) -> 30
P4: Total Sequences in Summary | Q4: =SUM(O7:O14) -> 177 | V4: Total Sequences in Block Summary | W4: =SUM(U7:U14) -> 30 | AA4: Total Sequences in Block Summary | AB4: =SUM(Z7:Z14) -> 29 | AF4: Total Sequences in Block Summary | AG4: =SUM(AE7:AE14) -> 30 | AK4: Total Sequences in Block Summary | AL4: =SUM(AJ7:AJ14) -> 30 | AP4: Total Sequences in Block Summary | AQ4: =SUM(AO7:AO14) -> 29 | AU4: Total Sequences in Block Summary | AV4: =SUM(AT7:AT14) -> 29
T5: Block 1 | Y5: Block 2 | AD5: Block 3 | AI5: Block 4 | AN5: Block 5 | AS5: Block 6
A6: Sequence Component 1 | B6: Time 1 | C6: Sequence Component 2 | D6: Time 2 | E6: Sequence Component 3 | F6: Time 3 | G6: Sequence Component 4 | H6: Time 4 | I6: Sequence Component 5 | J6: Time 5 | K6: Correct? 0=No 1=Yes | L6: Sequence | N6: Frequency | P6: Relative Frequency | Q6: Variability | T6: Frequency | V6: Relative Frequency | W6: Variability | Y6: Frequency | AA6: Relative Frequency | AB6: Variability | AD6: Frequency | AF6: Relative Frequency | AG6: Variability | AI6: Frequency | AK6: Relative Frequency | AL6: Variability | AN6: Frequency | AP6: Relative Frequency | AQ6: Variability | AS6: Frequency | AU6: Relative Frequency | AV6: Variability
A7: 12 | B7: 9 | C7: 13 | D7: 10 | E7: 24 | F7: 22 | K7: 0 | L7: 112 | N7: 111 | O7: =COUNTIF($L$7:$L$500,N7) -> 7 | P7: =O7/$Q$4 -> 0.0395480226 | Q7: =IF(P7=0,0,(P7*((LOG(P7))/LOG(2)))) -> -0.1843036972 | T7: =N7 -> 111 | U7: =COUNTIF(L7:L36,T7) -> 1 | V7: =U7/(W4-U11) -> 0.03333333333 | W7: =IF(V7=0,0,(V7*((LOG(V7))/LOG(2)))) -> -0.1635630199 | Y7: =N7 -> 111 | Z7: =COUNTIF(L37:L65,Y7) -> 4 | AA7: =Z7/(AB4-Z11) -> 0.1379310345 | AB7: =IF(AA7=0,0,(AA7*((LOG(AA7))/LOG(2)))) -> -0.3942042752 | AD7: =N7 -> 111 | AE7: =COUNTIF(L66:L95,AD7) -> 1 | AF7: =AE7/(AG4-AE11) -> 0.03333333333 | AG7: =IF(AF7=0,0,(AF7*((LOG(AF7))/LOG(2)))) -> -0.1635630199 | AI7: =N7 -> 111 | AJ7: =COUNTIF(L96:L125,AI7) -> 1 | AK7: =AJ7/(AL4-AJ11) -> 0.03333333333 | AL7: =IF(AK7=0,0,(AK7*((LOG(AK7))/LOG(2)))) -> -0.1635630199 | AN7: =N7 -> 111 | AO7: =COUNTIF(L126:L154,AN7) -> 0 | AP7: =AO7/(AQ4-AO11) -> 0 | AQ7: =IF(AP7=0,0,(AP7*((LOG(AP7))/LOG(2)))) -> 0 | AS7: =N7 -> 111 | AT7: =COUNTIF(L155:L184,AS7) -> 0 | AU7: =AT7/(AV4-AT11) -> 0 | AV7: =IF(AU7=0,0,(AU7*((LOG(AU7))/LOG(2)))) -> 0
A8: 21 | B8: 126 | C8: 22 | D8: 141 | E8: 24 | F8: 152 | K8: 0 | L8: 222 | N8: 112 | O8: =COUNTIF($L$7:$L$500,N8) -> 30 | P8: =O8/$Q$4 -> 0.1694915254 | Q8: =IF(P8=0,0,(P8*((LOG(P8))/LOG(2)))) -> -0.4340194838 | T8: =N8 -> 112 | U8: =COUNTIF(L7:L36,T8) -> 9 | V8: =U8/(W4-U11) -> 0.3 | W8: =IF(V8=0,0,(V8*((LOG(V8))/LOG(2)))) -> -0.5210896782 | Y8: =N8 -> 112 | Z8: =COUNTIF(L37:L65,Y8) -> 4 | AA8: =Z8/(AB4-Z11) -> 0.1379310345 | AB8: =IF(AA8=0,0,(AA8*((LOG(AA8))/LOG(2)))) -> -0.3942042752 | AD8: =N8 -> 112 | AE8: =COUNTIF(L66:L95,AD8) -> 6 | AF8: =AE8/(AG4-AE11) -> 0.2 | AG8: =IF(AF8=0,0,(AF8*((LOG(AF8))/LOG(2)))) -> -0.464385619 | AI8: =N8 -> 112 | AJ8: =COUNTIF(L96:L125,AI8) -> 2 | AK8: =AJ8/(AL4-AJ11) -> 0.06666666667 | AL8: =IF(AK8=0,0,(AK8*((LOG(AK8))/LOG(2)))) -> -0.260459373 | AN8: =N8 -> 112 | AO8: =COUNTIF(L126:L154,AN8) -> 5 | AP8: =AO8/(AQ4-AO11) -> 0.1724137931 | AQ8: =IF(AP8=0,0,(AP8*((LOG(AP8))/LOG(2)))) -> -0.4372505 | AS8: =N8 -> 112 | AT8: =COUNTIF(L155:L184,AS8) -> 4 | AU8: =AT8/(AV4-AT11) -> 0.1379310345 | AV8: =IF(AU8=0,0,(AU8*((LOG(AU8))/LOG(2)))) -> -0.3942042752
A9: 12 | B9: 248 | C9: 24 | D9: 257 | E9: 24 | F9: 262 | K9: 0 | L9: 122 | N9: 121 | O9: =COUNTIF($L$7:$L$500,N9) -> 3 | P9: =O9/$Q$4 -> 0.01694915254 | Q9: =IF(P9=0,0,(P9*((LOG(P9))/LOG(2)))) -> -0.0997058144 | T9: =N9 -> 121 | U9: =COUNTIF(L7:L36,T9) -> 0 | V9: =U9/(W4-U11) -> 0 | W9: =IF(V9=0,0,(V9*((LOG(V9))/LOG(2)))) -> 0 | Y9: =N9 -> 121 | Z9: =COUNTIF(L37:L65,Y9) -> 0 | AA9: =Z9/(AB4-Z11) -> 0 | AB9: =IF(AA9=0,0,(AA9*((LOG(AA9))/LOG(2)))) -> 0 | AD9: =N9 -> 121 | AE9: =COUNTIF(L66:L95,AD9) -> 0 | AF9: =AE9/(AG4-AE11) -> 0 | AG9: =IF(AF9=0,0,(AF9*((LOG(AF9))/LOG(2)))) -> 0 | AI9: =N9 -> 121 | AJ9: =COUNTIF(L96:L125,AI9) -> 0 | AK9: =AJ9/(AL4-AJ11) -> 0 | AL9: =IF(AK9=0,0,(AK9*((LOG(AK9))/LOG(2)))) -> 0 | AN9: =N9 -> 121 | AO9: =COUNTIF(L126:L154,AN9) -> 0 | AP9: =AO9/(AQ4-AO11) -> 0 | AQ9: =IF(AP9=0,0,(AP9*((LOG(AP9))/LOG(2)))) -> 0 | AS9: =N9 -> 121 | AT9: =COUNTIF(L155:L184,AS9) -> 3 | AU9: =AT9/(AV4-AT11) -> 0.1034482759 | AV9: =IF(AU9=0,0,(AU9*((LOG(AU9))/LOG(2)))) -> -0.3385881201
A10: 12 | B10: 358 | C10: 24 | D10: 369 | E10: 24 | F10: 374 | K10: 0 | L10: 122 | N10: 122 | O10: =COUNTIF($L$7:$L$500,N10) -> 114 | P10: =O10/$Q$4 -> 0.6440677966 | Q10: =IF(P10=0,0,(P10*((LOG(P10))/LOG(2)))) -> -0.4087998367 | T10: =N10 -> 122 | U10: =COUNTIF(L7:L36,T10) -> 13 | V10: =U10/(W4-U11) -> 0.4333333333 | W10: =IF(V10=0,0,(V10*((LOG(V10))/LOG(2)))) -> -0.5227953802 | Y10: =N10 -> 122 | Z10: =COUNTIF(L37:L65,Y10) -> 16 | AA10: =Z10/(AB4-Z11) -> 0.5517241379 | AB10: =IF(AA10=0,0,(AA10*((LOG(AA10))/LOG(2)))) -> -0.4733688249 | AD10: =N10 -> 122 | AE10: =COUNTIF(L66:L95,AD10) -> 19 | AF10: =AE10/(AG4-AE11) -> 0.6333333333 | AG10: =IF(AF10=0,0,(AF10*((LOG(AF10))/LOG(2)))) -> -0.4173432854 | AI10: =N10 -> 122 | AJ10: =COUNTIF(L96:L125,AI10) -> 24 | AK10: =AJ10/(AL4-AJ11) -> 0.8 | AL10: =IF(AK10=0,0,(AK10*((LOG(AK10))/LOG(2)))) -> -0.2575424759 | AN10: =N10 -> 122 | AO10: =COUNTIF(L126:L154,AN10) -> 21 | AP10: =AO10/(AQ4-AO11) -> 0.724137931 | AQ10: =IF(AP10=0,0,(AP10*((LOG(AP10))/LOG(2)))) -> -0.3372046558 | AS10: =N10 -> 122 | AT10: =COUNTIF(L155:L184,AS10) -> 21 | AU10: =AT10/(AV4-AT11) -> 0.724137931 | AV10: =IF(AU10=0,0,(AU10*((LOG(AU10))/LOG(2)))) -> -0.3372046558
A11: 21 | B11: 478 | C11: 22 | D11: 482 | E11: 24 | F11: 500 | K11: 0 | L11: 222 | N11: 211 | O11: =COUNTIF($L$7:$L$500,N11) -> 0 | P11: =O11/$Q$4 -> 0 | Q11: =IF(P11=0,0,(P11*((LOG(P11))/LOG(2)))) -> 0 | T11: =N11 -> 211 | U11: =COUNTIF(L7:L36,T11) -> 0 | Y11: =N11 -> 211 | Z11: =COUNTIF(L37:L65,Y11) -> 0 | AD11: =N11 -> 211 | AE11: =COUNTIF(L66:L95,AD11) -> 0 | AI11: =N11 -> 211 | AJ11: =COUNTIF(L96:L125,AI11) -> 0 | AN11: =N11 -> 211 | AO11: =COUNTIF(L126:L154,AN11) -> 0 | AS11: =N11 -> 211 | AT11: =COUNTIF(L155:L184,AS11) -> 0
A12: 12 | B12: 595 | C12: 24 | D12: 606 | E12: 24 | F12: 610 | K12: 0 | L12: 122 | N12: 212 | O12: =COUNTIF($L$7:$L$500,N12) -> 2 | P12: =O12/$Q$4 -> 0.01129943503 | Q12: =IF(P12=0,0,(P12*((LOG(P12))/LOG(2)))) -> -0.0730802887 | T12: =N12 -> 212 | U12: =COUNTIF(L7:L36,T12) -> 0 | V12: =U12/(W4-U11) -> 0 | W12: =IF(V12=0,0,(V12*((LOG(V12))/LOG(2)))) -> 0 | Y12: =N12 -> 212 | Z12: =COUNTIF(L37:L65,Y12) -> 0 | AA12: =Z12/(AB4-Z11) -> 0 | AB12: =IF(AA12=0,0,(AA12*((LOG(AA12))/LOG(2)))) -> 0 | AD12: =N12 -> 212 | AE12: =COUNTIF(L66:L95,AD12) -> 1 | AF12: =AE12/(AG4-AE11) -> 0.03333333333 | AG12: =IF(AF12=0,0,(AF12*((LOG(AF12))/LOG(2)))) -> -0.1635630199 | AI12: =N12 -> 212 | AJ12: =COUNTIF(L96:L125,AI12) -> 1 | AK12: =AJ12/(AL4-AJ11) -> 0.03333333333 | AL12: =IF(AK12=0,0,(AK12*((LOG(AK12))/LOG(2)))) -> -0.1635630199 | AN12: =N12 -> 212 | AO12: =COUNTIF(L126:L154,AN12) -> 0 | AP12: =AO12/(AQ4-AO11) -> 0 | AQ12: =IF(AP12=0,0,(AP12*((LOG(AP12))/LOG(2)))) -> 0 | AS12: =N12 -> 212 | AT12: =COUNTIF(L155:L184,AS12) -> 0 | AU12: =AT12/(AV4-AT11) -> 0 | AV12: =IF(AU12=0,0,(AU12*((LOG(AU12))/LOG(2)))) -> 0
A13: 12 | B13: 710 | C13: 24 | D13: 721 | E13: 24 | F13: 725 | K13: 0 | L13: 122 | N13: 221 | O13: =COUNTIF($L$7:$L$500,N13) -> 0 | P13: =O13/$Q$4 -> 0 | Q13: =IF(P13=0,0,(P13*((LOG(P13))/LOG(2)))) -> 0 | T13: =N13 -> 221 | U13: =COUNTIF(L7:L36,T13) -> 0 | V13: =U13/(W4-U11) -> 0 | W13: =IF(V13=0,0,(V13*((LOG(V13))/LOG(2)))) -> 0 | Y13: =N13 -> 221 | Z13: =COUNTIF(L37:L65,Y13) -> 0 | AA13: =Z13/(AB4-Z11) -> 0 | AB13: =IF(AA13=0,0,(AA13*((LOG(AA13))/LOG(2)))) -> 0 | AD13: =N13 -> 221 | AE13: =COUNTIF(L66:L95,AD13) -> 0 | AF13: =AE13/(AG4-AE11) -> 0 | AG13: =IF(AF13=0,0,(AF13*((LOG(AF13))/LOG(2)))) -> 0 | AI13: =N13 -> 221 | AJ13: =COUNTIF(L96:L125,AI13) -> 0 | AK13: =AJ13/(AL4-AJ11) -> 0 | AL13: =IF(AK13=0,0,(AK13*((LOG(AK13))/LOG(2)))) -> 0 | AN13: =N13 -> 221 | AO13: =COUNTIF(L126:L154,AN13) -> 0 | AP13: =AO13/(AQ4-AO11) -> 0 | AQ13: =IF(AP13=0,0,(AP13*((LOG(AP13))/LOG(2)))) -> 0 | AS13: =N13 -> 221 | AT13: =COUNTIF(L155:L184,AS13) -> 0 | AU13: =AT13/(AV4-AT11) -> 0 | AV13: =IF(AU13=0,0,(AU13*((LOG(AU13))/LOG(2)))) -> 0
A14: 12 | B14: 843 | C14: 24 | D14: 852 | E14: 24 | F14: 856 | K14: 0 | L14: 122 | N14: 222 | O14: =COUNTIF($L$7:$L$500,N14) -> 21 | P14: =O14/$Q$4 -> 0.1186440678 | Q14: =IF(P14=0,0,(P14*((LOG(P14))/LOG(2)))) -> -0.3648646931 | T14: =N14 -> 222 | U14: =COUNTIF(L7:L36,T14) -> 7 | V14: =U14/(W4-U11) -> 0.2333333333 | W14: =IF(V14=0,0,(V14*((LOG(V14))/LOG(2)))) -> -0.4898916572 | Y14: =N14 -> 222 | Z14: =COUNTIF(L37:L65,Y14) -> 5 | AA14: =Z14/(AB4-Z11) -> 0.1724137931 | AB14: =IF(AA14=0,0,(AA14*((LOG(AA14))/LOG(2)))) -> -0.4372505 | AD14: =N14 -> 222 | AE14: =COUNTIF(L66:L95,AD14) -> 3 | AF14: =AE14/(AG4-AE11) -> 0.1 | AG14: =IF(AF14=0,0,(AF14*((LOG(AF14))/LOG(2)))) -> -0.3321928095 | AI14: =N14 -> 222 | AJ14: =COUNTIF(L96:L125,AI14) -> 2 | AK14: =AJ14/(AL4-AJ11) -> 0.06666666667 | AL14: =IF(AK14=0,0,(AK14*((LOG(AK14))/LOG(2)))) -> -0.260459373 | AN14: =N14 -> 222 | AO14: =COUNTIF(L126:L154,AN14) -> 3 | AP14: =AO14/(AQ4-AO11) -> 0.1034482759 | AQ14: =IF(AP14=0,0,(AP14*((LOG(AP14))/LOG(2)))) -> -0.3385881201 | AS14: =N14 -> 222 | AT14: =COUNTIF(L155:L184,AS14) -> 1 | AU14: =AT14/(AV4-AT11) -> 0.03448275862 | AV14: =IF(AU14=0,0,(AU14*((LOG(AU14))/LOG(2)))) -> -0.167516586
A15: 12 | B15: 958 | C15: 24 | D15: 969 | E15: 24 | F15: 973 | K15: 0 | L15: 122 | P15: =SUM(P7:P14) -> 1 | Q15: =-SUM(Q7:Q14) -> 1.564773814 | V15: =SUM(V7:V14) -> 1 | W15: =-SUM(W7:W14) -> 1.697339736 | AA15: =SUM(AA7:AA14) -> 1 | AB15: =-SUM(AB7:AB14) -> 1.699027875 | AF15: =SUM(AF7:AF14) -> 1 | AG15: =-SUM(AG7:AG14) -> 1.541047754 | AK15: =SUM(AK7:AK14) -> 1 | AL15: =-SUM(AL7:AL14) -> 1.105587262 | AP15: =SUM(AP7:AP14) -> 1 | AQ15: =-SUM(AQ7:AQ14) -> 1.113043276 | AU15: =SUM(AU7:AU14) -> 1 | AV15: =-SUM(AV7:AV14) -> 1.237513637
A16: 21 | B16: 1073 | C16: 22 | D16: 1086 | E16: 24 | F16: 1093 | K16: 0 | L16: 222 | P16: U= | Q16: =Q15/(LOG(Q4)/LOG(2)) -> 0.209541573 | V16: U1= | W16: =W15/(LOG(W4)/LOG(2)) -> 0.3459094313 | AA16: U2= | AB16: =AB15/(LOG(AB4)/LOG(2)) -> 0.3497395064 | AF16: U3= | AG16: =AG15/(LOG(AG4)/LOG(2)) -> 0.3140578995 | AK16: U4= | AL16: =AL15/(LOG(AL4)/LOG(2)) -> 0.2253132081 | AP16: U5= | AQ16: =AQ15/(LOG(AQ4)/LOG(2)) -> 0.2291164328 | AU16: U6= | AV16: =AV15/(LOG(AV4)/LOG(2)) -> 0.2547382623
A17: 12 | B17: 1188 | C17: 24 | D17: 1199 | E17: 24 | F17: 1204 | K17: 0 | L17: 122
A18: 12 | B18: 1305 | C18: 24 | D18: 1315 | E18: 24 | F18: 1320 | K18: 0 | L18: 122
A19: 12 | B19: 1417 | C19: 13 | D19: 1427 | E19: 24 | F19: 1438 | K19: 0 | L19: 112 | N19: Total Target Seq
A20: 12 | B20: 1537 | C20: 13 | D20: 1541 | E20: 13 | F20: 1547 | K20: 0 | L20: 111 | N20: =COUNTIF(L7:L184,G3) -> 0 | P20: 30 | Q20: 29 | R20: 30 | S20: 30 | T20: 29 | U20: 30
A21: 12 | B21: 1643 | C21: 13 | D21: 1654 | E21: 24 | F21: 1672 | K21: 0 | L21: 112 | P21: % of reinforcement given in 6 equal intervals based on number of trials
A22: 12 | B22: 1769 | C22: 13 | D22: 1779 | E22: 24 | F22: 1789 | K22: 0 | L22: 112 | P22: %_1 | Q22: %_2 | R22: %_3 | S22: %_4 | T22: %_5 | U22: %_6
A23: 12 | B23: 1889 | C23: 24 | D23: 1911 | E23: 24 | F23: 1916 | K23: 0 | L23: 122 | O23: target sequence | P23: =$G$3 -> 211 | Q23: =$G$3 -> 211 | R23: =$G$3 -> 211 | S23: =$G$3 -> 211 | T23: =$G$3 -> 211 | U23: =$G$3 -> 211
A24: 21 | B24: 2059 | C24: 22 | D24: 2068 | E24: 24 | F24: 2083 | K24: 0 | L24: 222 | O24: total reinforcement | P24: =U11 -> 0 | Q24: =Z11 -> 0 | R24: =AE11 -> 0 | S24: =AJ11 -> 0 | T24: =AO11 -> 0 | U24: =AT11 -> 0
A25: 21 | B25: 2189 | C25: 22 | D25: 2211 | E25: 24 | F25: 2218 | K25: 0 | L25: 222 | O25: % target
A26: 12 | B26: 2323 | C26: 24 | D26: 2334 | E26: 24 | F26: 2338 | K26: 0 | L26: 122 | O26: CCRF
A27: 21 | B27: 2445 | C27: 22 | D27: 2449 | E27: 24 | F27: 2455 | K27: 0 | L27: 222 | O27: % CCRf
A28: 21 | B28: 2569 | C28: 22 | D28: 2573 | E28: 24 | F28: 2580 | K28: 0 | L28: 222 | O28: average response rate | P28: =F36/P20 -> 118.3333333 | Q28: =(F65-F36)/Q20 -> 127.2758621 | R28: =(F95-F65)/R20 -> 125.3666667 | S28: =(F125-F95)/S20 -> 131.6333333 | T28: =(F154-F125)/T20 -> 146.6551724 | U28: =(F184-F154)/U20 -> -640.1333333
A29: 12 | B29: 2681 | C29: 13 | D29: 2690 | E29: 24 | F29: 2702 | K29: 0 | L29: 112
A30: 12 | B30: 2801 | C30: 13 | D30: 2816 | E30: 24 | F30: 2831 | K30: 0 | L30: 112
A31: 12 | B31: 2929 | C31: 24 | D31: 2940 | E31: 24 | F31: 2946 | K31: 0 | L31: 122
A32: 12 | B32: 3047 | C32: 24 | D32: 3058 | E32: 24 | F32: 3062 | K32: 0 | L32: 122
A33: 12 | B33: 3160 | C33: 13 | D33: 3170 | E33: 24 | F33: 3190 | K33: 0 | L33: 112
A34: 12 | B34: 3290 | C34: 24 | D34: 3298 | E34: 24 | F34: 3307 | K34: 0 | L34: 122
A35: 12 | B35: 3409 | C35: 13 | D35: 3413 | E35: 24 | F35: 3425 | K35: 0 | L35: 112
A36: 12 | B36: 3535 | C36: 13 | D36: 3539 | E36: 24 | F36: 3550 | K36: 0 | L36: 112
A37: 21 | B37: 3659 | C37: 22 | D37: 3667 | E37: 24 | F37: 3674 | K37: 0 | L37: 222
A38: 12 | B38: 3771 | C38: 13 | D38: 3779 | E38: 24 | F38: 3791 | K38: 0 | L38: 112
A39: 12 | B39: 3889 | C39: 13 | D39: 3893 | E39: 13 | F39: 3901 | K39: 0 | L39: 111
A40: 12 | B40: 4000 | C40: 13 | D40: 4004 | E40: 13 | F40: 4007 | K40: 0 | L40: 111
A41: 12 | B41: 4127 | C41: 24 | D41: 4138 | E41: 24 | F41: 4144 | K41: 0 | L41: 122
A42: 12 | B42: 4254 | C42: 24 | D42: 4265 | E42: 24 | F42: 4272 | K42: 0 | L42: 122
A43: 12 | B43: 4370 | C43: 13 | D43: 4375 | E43: 24 | F43: 4390 | K43: 0 | L43: 112
A44: 12 | B44: 4499 | C44: 24 | D44: 4514 | E44: 24 | F44: 4521 | K44: 0 | L44: 122
A45: 12 | B45: 4618 | C45: 24 | D45: 4635 | E45: 24 | F45: 4641 | K45: 0 | L45: 122
A46: 12 | B46: 4738 | C46: 13 | D46: 4763 | E46: 13 | F46: 4765 | K46: 0 | L46: 111
A47: 12 | B47: 4870 | C47: 24 | D47: 4891 | E47: 24 | F47: 4899 | K47: 0 | L47: 122
A48: 12 | B48: 4997 | C48: 13 | D48: 5001 | E48: 13 | F48: 5015 | K48: 0 | L48: 111
A49: 12 | B49: 5113 | C49: 24 | D49: 5135 | E49: 24 | F49: 5142 | K49: 0 | L49: 122
A50: 21 | B50: 5268 | C50: 22 | D50: 5275 | E50: 24 | F50: 5284 | K50: 0 | L50: 222
A51: 12 | B51: 5387 | C51: 24 | D51: 5426 | E51: 24 | F51: 5440 | K51: 0 | L51: 122
A52: 12 | B52: 5542 | C52: 24 | D52: 5559 | E52: 24 | F52: 5567 | K52: 0 | L52: 122
A53: 12 | B53: 5673 | C53: 24 | D53: 5693 | E53: 24 | F53: 5702 | K53: 0 | L53: 122
A54: 12 | B54: 5820 | C54: 24 | D54: 5829 | E54: 24 | F54: 5838 | K54: 0 | L54: 122
A55: 12 | B55: 5935 | C55: 13 | D55: 5947 | E55: 24 | F55: 5959 | K55: 0 | L55: 112
A56: 21 | B56: 6081 | C56: 22 | D56: 6086 | E56: 24 | F56: 6092 | K56: 0 | L56: 222
A57: 21 | B57: 6213 | C57: 22 | D57: 6221 | E57: 24 | F57: 6231 | K57: 0 | L57: 222
A58: 12 | B58: 6329 | C58: 24 | D58: 6339 | E58: 24 | F58: 6343 | K58: 0 | L58: 122
A59: 21 | B59: 6471 | C59: 22 | D59: 6496 | E59: 24 | F59: 6504 | K59: 0 | L59: 222
A60: 12 | B60: 6605 | C60: 24 | D60: 6622 | E60: 24 | F60: 6630 | K60: 0 | L60: 122
A61: 12 | B61: 6733 | C61: 24 | D61: 6744 | E61: 24 | F61: 6749 | K61: 0 | L61: 122
A62: 12 | B62: 6855 | C62: 13 | D62: 6865 | E62: 24 | F62: 6880 | K62: 0 | L62: 112
A63: 12 | B63: 6980 | C63: 24 | D63: 6998 | E63: 24 | F63: 7005 | K63: 0 | L63: 122
A64: 12 | B64: 7113 | C64: 24 | D64: 7124 | E64: 24 | F64: 7128 | K64: 0 | L64: 122
A65: 12 | B65: 7227 | C65: 24 | D65: 7237 | E65: 24 | F65: 7241 | K65: 0 | L65: 122
A66: 12 | B66: 7339 | C66: 24 | D66: 7353 | E66: 24 | F66: 7357 | K66: 0 | L66: 122
A67: 12 | B67: 7476 | C67: 24 | D67: 7488 | E67: 24 | F67: 7493 | K67: 0 | L67: 122
A68: 12 | B68: 7597 | C68: 24 | D68: 7610 | E68: 24 | F68: 7621 | K68: 0 | L68: 122
A69: 12 | B69: 7724 | C69: 13 | D69: 7740 | E69: 24 | F69: 7755 | K69: 0 | L69: 112
A70: 12 | B70: 7854 | C70: 13 | D70: 7858 | E70: 24 | F70: 7873 | K70: 0 | L70: 112
A71: 12 | B71: 7974 | C71: 13 | D71: 7979 | E71: 24 | F71: 7990 | K71: 0 | L71: 112
A72: 12 | B72: 8088 | C72: 24 | D72: 8099 | E72: 24 | F72: 8103 | K72: 0 | L72: 122
A73: 12 | B73: 8231 | C73: 24 | D73: 8242 | E73: 24 | F73: 8256 | K73: 0 | L73: 122
A74: 12 | B74: 8351 | C74: 24 | D74: 8361 | E74: 24 | F74: 8365 | K74: 0 | L74: 122
A75: 12 | B75: 8466 | C75: 13 | D75: 8470 | E75: 24 | F75: 8480 | K75: 0 | L75: 112
A76: 12 | B76: 8583 | C76: 13 | D76: 8592 | E76: 24 | F76: 8603 | K76: 0 | L76: 112
A77: 12 | B77: 8700 | C77: 24 | D77: 8711 | E77: 24 | F77: 8715 | K77: 0 | L77: 122
A78: 12 | B78: 8823 | C78: 24 | D78: 8834 | E78: 24 | F78: 8838 | K78: 0 | L78: 122
A79: 12 | B79: 8941 | C79: 13 | D79: 8950 | E79: 24 | F79: 8964 | K79: 0 | L79: 112
A80: 12 | B80: 9065 | C80: 24 | D80: 9077 | E80: 24 | F80: 9081 | K80: 0 | L80: 122
A81: 12 | B81: 9193 | C81: 24 | D81: 9203 | E81: 24 | F81: 9210 | K81: 0 | L81: 122
A82: 12 | B82: 9310 | C82: 24 | D82: 9320 | E82: 24 | F82: 9325 | K82: 0 | L82: 122
A83: 12 | B83: 9427 | C83: 24 | D83: 9438 | E83: 24 | F83: 9444 | K83: 0 | L83: 122
A84: 12 | B84: 9550 | C84: 24 | D84: 9558 | E84: 24 | F84: 9563 | K84: 0 | L84: 122
A85: 21 | B85: 9678 | C85: 22 | D85: 9705 | E85: 24 | F85: 9733 | K85: 0 | L85: 222
A86: 21 | B86: 9836 | C86: 22 | D86: 9858 | E86: 24 | F86: 9871 | K86: 0 | L86: 222
A87: 12 | B87: 9976 | C87: 24 | D87: 9992 | E87: 24 | F87: 10007 | K87: 0 | L87: 122
A88: 21 | B88: 10122 | C88: 22 | D88: 10136 | E88: 24 | F88: 10145 | K88: 0 | L88: 222
A89: 12 | B89: 10254 | C89: 24 | D89: 10269 | E89: 24 | F89: 10275 | K89: 0 | L89: 122
A90: 21 | B90: 10380 | C90: 11 | D90: 10401 | E90: 22 | F90: 10413 | K90: 0 | L90: 212
A91: 12 | B91: 10513 | C91: 24 | D91: 10526 | E91: 24 | F91: 10531 | K91: 0 | L91: 122
A92: 12 | B92: 10636 | C92: 24 | D92: 10646 | E92: 24 | F92: 10650 | K92: 0 | L92: 122
A93: 12 | B93: 10749 | C93: 13 | D93: 10753 | E93: 13 | F93: 10758 | K93: 0 | L93: 111
A94: 12 | B94: 10865 | C94: 24 | D94: 10878 | E94: 24 | F94: 10883 | K94: 0 | L94: 122
A95: 12 | B95: 10986 | C95: 24 | D95: 10998 | E95: 24 | F95: 11002 | K95: 0 | L95: 122
A96: 12 | B96: 11101 | C96: 24 | D96: 11115 | E96: 24 | F96: 11124 | K96: 0 | L96: 122
A97: 12 | B97: 11223 | C97: 13 | D97: 11230 | E97: 24 | F97: 11240 | K97: 0 | L97: 112
A98: 21 | B98: 11366 | C98: 22 | D98: 11377 | E98: 24 | F98: 11388 | K98: 0 | L98: 222
A99: 21 | B99: 11505 | C99: 11 | D99: 11518 | E99: 22 | F99: 11529 | K99: 0 | L99: 212
A100: 12 | B100: 11626 | C100: 13 | D100: 11632 | E100: 13 | F100: 11637 | K100: 0 | L100: 111
A101: 12 | B101: 11746 | C101: 24 | D101: 11762 | E101: 24 | F101: 11780 | K101: 0 | L101: 122
A102: 12 | B102: 11878 | C102: 24 | D102: 11901 | E102: 24 | F102: 11918 | K102: 0 | L102: 122
A103: 12 | B103: 12030 | C103: 24 | D103: 12052 | E103: 24 | F103: 12062 | K103: 0 | L103: 122
A104: 12 | B104: 12161 | C104: 24 | D104: 12172 | E104: 24 | F104: 12178 | K104: 0 | L104: 122
A105: 12 | B105: 12283 | C105: 24 | D105: 12294 | E105: 24 | F105: 12299 | K105: 0 | L105: 122
A106: 12 | B106: 12397 | C106: 13 | D106: 12408 | E106: 24 | F106: 12420 | K106: 0 | L106: 112
A107: 12 | B107: 12519 | C107: 24 | D107: 12531 | E107: 24 | F107: 12540 | K107: 0 | L107: 122
A108: 12 | B108: 12640 | C108: 24 | D108: 12652 | E108: 24 | F108: 12659 | K108: 0 | L108: 122
A109: 12 | B109: 12759 | C109: 24 | D109: 12780 | E109: 24 | F109: 12828 | K109: 0 | L109: 122
A110: 21 | B110: 12962 | C110: 22 | D110: 12969 | E110: 24 | F110: 12985 | K110: 0 | L110: 222
A111: 12 | B111: 13083 | C111: 24 | D111: 13095 | E111: 24 | F111: 13116 | K111: 0 | L111: 122
A112: 12 | B112: 13214 | C112: 24 | D112: 13229 | E112: 24 | F112: 13234 | K112: 0 | L112: 122
A113: 12 | B113: 13342 | C113: 24 | D113: 13353 | E113: 24 | F113: 13361 | K113: 0 | L113: 122
A114: 12 | B114: 13463 | C114: 24 | D114: 13480 | E114: 24 | F114: 13503 | K114: 0 | L114: 122
A115: 12 | B115: 13611 | C115: 24 | D115: 13624 | E115: 24 | F115: 13650 | K115: 0 | L115: 122
A116: 12 | B116: 13746 | C116: 24 | D116: 13765 | E116: 24 | F116: 13775 | K116: 0 | L116: 122
A117: 12 | B117: 13876 | C117: 24 | D117: 13886 | E117: 24 | F117: 13891 | K117: 0 | L117: 122
A118: 12 | B118: 14022 | C118: 24 | D118: 14031 | E118: 24 | F118: 14038 | K118: 0 | L118: 122
A119: 12 | B119: 14138 | C119: 24 | D119: 14154 | E119: 24 | F119: 14160 | K119: 0 | L119: 122
A120: 12 | B120: 14263 | C120: 24 | D120: 14281 | E120: 24 | F120: 14288 | K120: 0 | L120: 122
A121: 12 | B121: 14390 | C121: 24 | D121: 14404 | E121: 24 | F121: 14412 | K121: 0 | L121: 122
A122: 12 | B122: 14514 | C122: 24 | D122: 14523 | E122: 24 | F122: 14532 | K122: 0 | L122: 122
A123: 12 | B123: 14645 | C123: 24 | D123: 14657 | E123: 24 | F123: 14663 | K123: 0 | L123: 122
A124: 12 | B124: 14769 | C124: 24 | D124: 14820 | E124: 24 | F124: 14835 | K124: 0 | L124: 122
A125: 12 | B125: 14935 | C125: 24 | D125: 14946 | E125: 24 | F125: 14951 | K125: 0 | L125: 122
A126: 12 | B126: 15064 | C126: 24 | D126: 15075 | E126: 24 | F126: 15082 | K126: 0 | L126: 122
A127: 12 | B127: 15225 | C127: 24 | D127: 15235 | E127: 24 | F127: 15240 | K127: 0 | L127: 122
A128: 12 | B128: 15356 | C128: 24 | D128: 15372 | E128: 24 | F128: 15377 | K128: 0 | L128: 122
A129: 12 | B129: 15493 | C129: 24 | D129: 15508 | E129: 24 | F129: 15515 | K129: 0 | L129: 122
A130: 12 | B130: 15619 | C130: 24 | D130: 15629 | E130: 24 | F130: 15633 | K130: 0 | L130: 122
A131: 12 | B131: 15807 | C131: 24 | D131: 15834 | E131: 24 | F131: 15846 | K131: 0 | L131: 122
A132: 12 | B132: 15956 | C132: 24 | D132: 15970 | E132: 24 | F132: 16000 | K132: 0 | L132: 122
A133: 12 | B133: 16099 | C133: 24 | D133: 16127 | E133: 24 | F133: 16146 | K133: 0 | L133: 122
A134: 12 | B134: 16242 | C134: 24 | D134: 16260 | E134: 24 | F134: 16268 | K134: 0 | L134: 122
A135: 12 | B135: 16365 | C135: 24 | D135: 16375 | E135: 24 | F135: 16383 | K135: 0 | L135: 122
A136: 12 | B136: 16494 | C136: 24 | D136: 16515 | E136: 24 | F136: 16522 | K136: 0 | L136: 122
A137: 12 | B137: 16620 | C137: 13 | D137: 16639 | E137: 24 | F137: 16654 | K137: 0 | L137: 112
A138: 12 | B138: 16759 | C138: 24 | D138: 16772 | E138: 24 | F138: 16781 | K138: 0 | L138: 122
A139: 21 | B139: 16907 | C139: 22 | D139: 16928 | E139: 24 | F139: 16958 | K139: 0 | L139: 222
A140: 12 | B140: 17057 | C140: 13 | D140: 17059 | E140: 24 | F140: 17070 | K140: 0 | L140: 112
A141: 12 | B141: 17176 | C141: 24 | D141: 17186 | E141: 24 | F141: 17191 | K141: 0 | L141: 122
A142: 12 | B142: 17296 | C142: 24 | D142: 17306 | E142: 24 | F142: 17311 | K142: 0 | L142: 122
A143: 21 | B143: 17423 | C143: 22 | D143: 17438 | E143: 24 | F143: 17449 | K143: 0 | L143: 222
A144: 21 | B144: 17595 | C144: 22 | D144: 17605 | E144: 24 | F144: 17622 | K144: 0 | L144: 222
A145: 12 | B145: 17742 | C145: 24 | D145: 17758 | E145: 24 | F145: 17795 | K145: 0 | L145: 122
A146: 12 | B146: 17906 | C146: 24 | D146: 17928 | E146: 24 | F146: 17936 | K146: 0 | L146: 122
A147: 12 | B147: 18037 | C147: 24 | D147: 18050 | E147: 24 | F147: 18067 | K147: 0 | L147: 122
A148: 12 | B148: 18166 | C148: 24 | D148: 18177 | E148: 24 | F148: 18185 | K148: 0 | L148: 122
A149: 12 | B149: 18308 | C149: 24 | D149: 18351 | E149: 24 | F149: 18426 | K149: 0 | L149: 122
A150: 12 | B150: 18526 | C150: 24 | D150: 18545 | E150: 24 | F150: 18552 | K150: 0 | L150: 122
A151: 12 | B151: 18689 | C151: 13 | D151: 18693 | E151: 24 | F151: 18738 | K151: 0 | L151: 112
A152: 12 | B152: 18837 | C152: 13 | D152: 18839 | E152: 24 | F152: 18857 | K152: 0 | L152: 112
A153: 12 | B153: 18965 | C153: 13 | D153: 18967 | E153: 24 | F153: 19053 | K153: 0 | L153: 112
A154: 12 | B154: 19164 | C154: 24 | D154: 19180 | E154: 24 | F154: 19204 | K154: 0 | L154: 122
A155: 12 | B155: 19319 | C155: 24 | D155: 19365 | E155: 24 | F155: 19385 | K155: 0 | L155: 122
A156: 12 | B156: 19481 | C156: 13 | D156: 19490 | E156: 24 | F156: 19510 | K156: 0 | L156: 112
A157: 12 | B157: 19618 | C157: 24 | D157: 19638 | E157: 24 | F157: 19645 | K157: 0 | L157: 122
A158: 12 | B158: 19747 | C158: 24 | D158: 19758 | E158: 24 | F158: 19763 | K158: 0 | L158: 122
A159: 21 | B159: 19971 | C159: 22 | D159: 19982 | E159: 24 | F159: 19994 | K159: 0 | L159: 222
A160: 12 | B160: 20095 | C160: 24 | D160: 20106 | E160: 24 | F160: 20110 | K160: 0 | L160: 122
A161: 12 | B161: 20229 | C161: 24 | D161: 20251 | E161: 24 | F161: 20286 | K161: 0 | L161: 122
A162: 12 | B162: 20398 | C162: 24 | D162: 20421 | E162: 24 | F162: 20429 | K162: 0 | L162: 122
A163: 12 | B163: 20553 | C163: 24 | D163: 20564 | E163: 24 | F163: 20568 | K163: 0 | L163: 122
A164: 12 | B164: 20687 | C164: 24 | D164: 20708 | E164: 24 | F164: 20721 | K164: 0 | L164: 122
A165: 12 | B165: 20827 | C165: 24 | D165: 20845 | E165: 24 | F165: 20893 | K165: 0 | L165: 122
A166: 12 | B166: 20994 | C166: 24 | D166: 21013 | E166: 24 | F166: 21018 | K166: 0 | L166: 122
A167: 12 | B167: 21172 | C167: 24 | D167: 21184 | E167: 24 | F167: 21191 | K167: 0 | L167: 122
A168: 12 | B168: 21298 | C168: 24 | D168: 21310 | E168: 24 | F168: 21329 | K168: 0 | L168: 122
A169: 12 | B169: 21435 | C169: 24 | D169: 21469 | E169: 24 | F169: 21499 | K169: 0 | L169: 122
A170: 12 | B170: 21616 | C170: 24 | D170: 21640 | E170: 13 | F170: 21678 | K170: 0 | L170: 121
A171: 12 | B171: 21808 | C171: 24 | D171: 21842 | E171: 24 | F171: 21848 | K171: 0 | L171: 122
A172: 12 | B172: 21954 | C172: 24 | D172: 21969 | E172: 24 | F172: 21976 | K172: 0 | L172: 122
A173: 12 | B173: 22086 | C173: 24 | D173: 22110 | E173: 13 | F173: 22137 | K173: 0 | L173: 121
A174: 12 | B174: 22240 | C174: 24 | D174: 22270 | E174: 24 | F174: 22378 | K174: 0 | L174: 122
A175: 12 | B175: 22540 | C175: 24 | D175: 22563 | E175: 24 | F175: 22576 | K175: 0 | L175: 122
A176: 12 | B176: 22677 | C176: 13 | D176: 22708 | E176: 24 | F176: 22756 | K176: 0 | L176: 112
A177: 12 | B177: 22861 | C177: 24 | D177: 22876 | E177: 13 | F177: 22906 | K177: 0 | L177: 121
A178: 12 | B178: 23008 | C178: 13 | D178: 23077 | E178: 24 | F178: 23089 | K178: 0 | L178: 112
A179: 12 | B179: 23204 | C179: 24 | D179: 23245 | E179: 24 | F179: 23275 | K179: 0 | L179: 122
A180: 12 | B180: 23376 | C180: 13 | D180: 23389 | E180: 24 | F180: 23413 | K180: 0 | L180: 112
A181: 12 | B181: 23521 | C181: 24 | D181: 23538 | E181: 24 | F181: 23564 | K181: 0 | L181: 122
A182: 12 | B182: 23678 | C182: 24 | D182: 23710 | E182: 24 | F182: 23720 | K182: 0 | L182: 122
A183: 12 | B183: 23831 | C183: 24 | D183: 23847 | E183: 24 | F183: 23852 | K183: 0 | L183: 122
A184: 12 | B184: 23999 | L184: 1

Sheet !M424950.183
A1: Report for:!M424950.183
A2: Date: | B2: <date>
A3: Hen: | B3: <hen> | F3: Correct Sequence | G3: =Start!J2 -> 211 | P3: Total Sequences in Data | Q3: =4994-COUNTBLANK(L7:L5000) -> 74 | V3: Total Sequences in Block Data | W3: =COUNTA(L7:L18) -> 12 | AA3: Total Sequences in Block Data | AB3: =COUNTA(L19:L31) -> 13 | AF3: Total Sequences in Block Data | AG3: =COUNTA(L32:L43) -> 12 | AK3: Total Sequences in Block Data | AL3: =COUNTA(L44:L55) -> 12 | AP3: Total Sequences in Block Data | AQ3: =COUNTA(L56:L68) -> 13 | AU3: Total Sequences in Block Data | AV3: =COUNTA(L69:L80) -> 12
P4: Total Sequences in Summary | Q4: =SUM(O7:O14) -> 73 | V4: Total Sequences in Block Summary | W4: =SUM(U7:U14) -> 12 | AA4: Total Sequences in Block Summary | AB4: =SUM(Z7:Z14) -> 13 | AF4: Total Sequences in Block Summary | AG4: =SUM(AE7:AE14) -> 12 | AK4: Total Sequences in Block Summary | AL4: =SUM(AJ7:AJ14) -> 12 | AP4: Total Sequences in Block Summary | AQ4: =SUM(AO7:AO14) -> 13 | AU4: Total Sequences in Block Summary | AV4: =SUM(AT7:AT14) -> 11
T5: Block 1 | Y5: Block 2 | AD5: Block 3 | AI5: Block 4 | AN5: Block 5 | AS5: Block 6
A6: Sequence Component 1 | B6: Time 1 | C6: Sequence Component 2 | D6: Time 2 | E6: Sequence Component 3 | F6: Time 3 | G6: Sequence Component 4 | H6: Time 4 | I6: Sequence Component 5 | J6: Time 5 | K6: Correct? 0=No 1=Yes | L6: Sequence | N6: Frequency | P6: Relative Frequency | Q6: Variability | T6: Frequency | V6: Relative Frequency | W6: Variability | Y6: Frequency | AA6: Relative Frequency | AB6: Variability | AD6: Frequency | AF6: Relative Frequency | AG6: Variability | AI6: Frequency | AK6: Relative Frequency | AL6: Variability | AN6: Frequency | AP6: Relative Frequency | AQ6: Variability | AS6: Frequency | AU6: Relative Frequency | AV6: Variability
A7: 12 | B7: 56 | C7: 13 | D7: 103 | E7: 24 | F7: 129 | K7: 0 | L7: 112 | N7: 111 | O7: =COUNTIF($L$7:$L$500,N7) -> 38 | P7: =O7/$Q$4 -> 0.5205479452 | Q7: =IF(P7=0,0,(P7*((LOG(P7))/LOG(2)))) -> -0.4903025716 | T7: =N7 -> 111 | U7: =COUNTIF(L7:L18,T7) -> 4 | V7: =U7/(W4-U11) -> 0.3333333333 | W7: =IF(V7=0,0,(V7*((LOG(V7))/LOG(2)))) -> -0.5283208336 | Y7: =N7 -> 111 | Z7: =COUNTIF(L19:L31,Y7) -> 5 | AA7: =Z7/(AB4-Z11) -> 0.3846153846 | AB7: =IF(AA7=0,0,(AA7*((LOG(AA7))/LOG(2)))) -> -0.5301967782 | AD7: =N7 -> 111 | AE7: =COUNTIF(L32:L43,AD7) -> 6 | AF7: =AE7/(AG4-AE11) -> 0.5 | AG7: =IF(AF7=0,0,(AF7*((LOG(AF7))/LOG(2)))) -> -0.5 | AI7: =N7 -> 111 | AJ7: =COUNTIF(L44:L55,AI7) -> 8 | AK7: =AJ7/(AL4-AJ11) -> 0.6666666667 | AL7: =IF(AK7=0,0,(AK7*((LOG(AK7))/LOG(2)))) -> -0.3899750005 | AN7: =N7 -> 111 | AO7: =COUNTIF(L56:L68,AN7) -> 6 | AP7: =AO7/(AQ4-AO11) -> 0.4615384615 | AQ7: =IF(AP7=0,0,(AP7*((LOG(AP7))/LOG(2)))) -> -0.5148356388 | AS7: =N7 -> 111 | AT7: =COUNTIF(L69:L80,AS7) -> 9 | AU7: =AT7/(AV4-AT11) -> 0.8181818182 | AV7: =IF(AU7=0,0,(AU7*((LOG(AU7))/LOG(2)))) -> -0.2368690504
A8: 12 | B8: 235 | C8: 13 | D8: 254 | E8: 13 | F8: 256 | K8: 0 | L8: 111 | N8: 112 | O8: =COUNTIF($L$7:$L$500,N8) -> 18 | P8: =O8/$Q$4 -> 0.2465753425 | Q8: =IF(P8=0,0,(P8*((LOG(P8))/LOG(2)))) -> -0.4980574251 | T8: =N8 -> 112 | U8: =COUNTIF(L7:L18,T8) -> 3 | V8: =U8/(W4-U11) -> 0.25 | W8: =IF(V8=0,0,(V8*((LOG(V8))/LOG(2)))) -> -0.5 | Y8: =N8 -> 112 | Z8: =COUNTIF(L19:L31,Y8) -> 6 | AA8: =Z8/(AB4-Z11) -> 0.4615384615 | AB8: =IF(AA8=0,0,(AA8*((LOG(AA8))/LOG(2)))) -> -0.5148356388 | AD8: =N8 -> 112 | AE8: =COUNTIF(L32:L43,AD8) -> 2 | AF8: =AE8/(AG4-AE11) -> 0.1666666667 | AG8: =IF(AF8=0,0,(AF8*((LOG(AF8))/LOG(2)))) -> -0.4308270835 | AI8: =N8 -> 112 | AJ8: =COUNTIF(L44:L55,AI8) -> 4 | AK8: =AJ8/(AL4-AJ11) -> 0.3333333333 | AL8: =IF(AK8=0,0,(AK8*((LOG(AK8))/LOG(2)))) -> -0.5283208336 | AN8: =N8 -> 112 | AO8: =COUNTIF(L56:L68,AN8) -> 3 | AP8: =AO8/(AQ4-AO11) -> 0.2307692308 | AQ8: =IF(AP8=0,0,(AP8*((LOG(AP8))/LOG(2)))) -> -0.4881870502 | AS8: =N8 -> 112 | AT8: =COUNTIF(L69:L80,AS8) -> 0 | AU8: =AT8/(AV4-AT11) -> 0 | AV8: =IF(AU8=0,0,(AU8*((LOG(AU8))/LOG(2)))) -> 0
A9: 12 | B9: 359 | C9: 13 | D9: 383 | E9: 24 | F9: 394 | K9: 0 | L9: 112 | N9: 121 | O9: =COUNTIF($L$7:$L$500,N9) -> 14 | P9: =O9/$Q$4 -> 0.1917808219 | Q9: =IF(P9=0,0,(P9*((LOG(P9))/LOG(2)))) -> -0.4569119851 | T9: =N9 -> 121 | U9: =COUNTIF(L7:L18,T9) -> 4 | V9: =U9/(W4-U11) -> 0.3333333333 | W9: =IF(V9=0,0,(V9*((LOG(V9))/LOG(2)))) -> -0.5283208336 | Y9: =N9 -> 121 | Z9: =COUNTIF(L19:L31,Y9) -> 2 | AA9: =Z9/(AB4-Z11) -> 0.1538461538 | AB9: =IF(AA9=0,0,(AA9*((LOG(AA9))/LOG(2)))) -> -0.4154522643 | AD9: =N9 -> 121 | AE9: =COUNTIF(L32:L43,AD9) -> 2 | AF9: =AE9/(AG4-AE11) -> 0.1666666667 | AG9: =IF(AF9=0,0,(AF9*((LOG(AF9))/LOG(2)))) -> -0.4308270835 | AI9: =N9 -> 121 | AJ9: =COUNTIF(L44:L55,AI9) -> 0 | AK9: =AJ9/(AL4-AJ11) -> 0 | AL9: =IF(AK9=0,0,(AK9*((LOG(AK9))/LOG(2)))) -> 0 | AN9: =N9 -> 121 | AO9: =COUNTIF(L56:L68,AN9) -> 4 | AP9: =AO9/(AQ4-AO11) -> 0.3076923077 | AQ9: =IF(AP9=0,0,(AP9*((LOG(AP9))/LOG(2)))) -> -0.523212221 | AS9: =N9 -> 121 | AT9: =COUNTIF(L69:L80,AS9) -> 2 | AU9: =AT9/(AV4-AT11) -> 0.1818181818 | AV9: =IF(AU9=0,0,(AU9*((LOG(AU9))/LOG(2)))) -> -0.4471693852
A10: 12 | B10: 494 | C10: 24 | D10: 507 | E10: 13 | F10: 629 | K10: 0 | L10: 121 | N10: 122 | O10: =COUNTIF($L$7:$L$500,N10) -> 3 | P10: =O10/$Q$4 -> 0.04109589041 | Q10: =IF(P10=0,0,(P10*((LOG(P10))/LOG(2)))) -> -0.1892409065 | T10: =N10 -> 122 | U10: =COUNTIF(L7:L18,T10) -> 1 | V10: =U10/(W4-U11) -> 0.08333333333 | W10: =IF(V10=0,0,(V10*((LOG(V10))/LOG(2)))) -> -0.2987468751 | Y10: =N10 -> 122 | Z10: =COUNTIF(L19:L31,Y10) -> 0 | AA10: =Z10/(AB4-Z11) -> 0 | AB10: =IF(AA10=0,0,(AA10*((LOG(AA10))/LOG(2)))) -> 0 | AD10: =N10 -> 122 | AE10: =COUNTIF(L32:L43,AD10) -> 2 | AF10: =AE10/(AG4-AE11) -> 0.1666666667 | AG10: =IF(AF10=0,0,(AF10*((LOG(AF10))/LOG(2)))) -> -0.4308270835 | AI10: =N10 -> 122 | AJ10: =COUNTIF(L44:L55,AI10) -> 0 | AK10: =AJ10/(AL4-AJ11) -> 0 | AL10: =IF(AK10=0,0,(AK10*((LOG(AK10))/LOG(2)))) -> 0 | AN10: =N10 -> 122 | AO10: =COUNTIF(L56:L68,AN10) -> 0 | AP10: =AO10/(AQ4-AO11) -> 0 | AQ10: =IF(AP10=0,0,(AP10*((LOG(AP10))/LOG(2)))) -> 0 | AS10: =N10 -> 122 | AT10: =COUNTIF(L69:L80,AS10) -> 0 | AU10: =AT10/(AV4-AT11) -> 0 | AV10: =IF(AU10=0,0,(AU10*((LOG(AU10))/LOG(2)))) -> 0
A11: 12 | B11: 727 | C11: 24 | D11: 739 | E11: 13 | F11: 768 | K11: 0 | L11: 121 | N11: 211 | O11: =COUNTIF($L$7:$L$500,N11) -> 0 | P11: =O11/$Q$4 -> 0 | Q11: =IF(P11=0,0,(P11*((LOG(P11))/LOG(2)))) -> 0 | T11: =N11 -> 211 | U11: =COUNTIF(L7:L18,T11) -> 0 | Y11: =N11 -> 211 | Z11: =COUNTIF(L19:L31,Y11) -> 0 | AD11: =N11 -> 211 | AE11: =COUNTIF(L32:L43,AD11) -> 0 | AI11: =N11 -> 211 | AJ11: =COUNTIF(L44:L55,AI11) -> 0 | AN11: =N11 -> 211 | AO11: =COUNTIF(L56:L68,AN11) -> 0 | AS11: =N11 -> 211 | AT11: =COUNTIF(L69:L80,AS11) -> 0
A12: 12 | B12: 867 | C12: 24 | D12: 904 | E12: 13 | F12: 928 | K12: 0 | L12: 121 | N12: 212 | O12: =COUNTIF($L$7:$L$500,N12) -> 0 | P12: =O12/$Q$4 -> 0 | Q12: =IF(P12=0,0,(P12*((LOG(P12))/LOG(2)))) -> 0 | T12: =N12 -> 212 | U12: =COUNTIF(L7:L18,T12) -> 0 | V12: =U12/(W4-U11) -> 0 | W12: =IF(V12=0,0,(V12*((LOG(V12))/LOG(2)))) -> 0 | Y12: =N12 -> 212 | Z12: =COUNTIF(L19:L31,Y12) -> 0 | AA12: =Z12/(AB4-Z11) -> 0 | AB12: =IF(AA12=0,0,(AA12*((LOG(AA12))/LOG(2)))) -> 0 | AD12: =N12 -> 212 | AE12: =COUNTIF(L32:L43,AD12) -> 0 | AF12: =AE12/(AG4-AE11) -> 0 | AG12: =IF(AF12=0,0,(AF12*((LOG(AF12))/LOG(2)))) -> 0 | AI12: =N12 -> 212 | AJ12: =COUNTIF(L44:L55,AI12) -> 0 | AK12: =AJ12/(AL4-AJ11) -> 0 | AL12: =IF(AK12=0,0,(AK12*((LOG(AK12))/LOG(2)))) -> 0 | AN12: =N12 -> 212 | AO12: =COUNTIF(L56:L68,AN12) -> 0 | AP12: =AO12/(AQ4-AO11) -> 0 | AQ12: =IF(AP12=0,0,(AP12*((LOG(AP12))/LOG(2)))) -> 0 | AS12: =N12 -> 212 | AT12: =COUNTIF(L69:L80,AS12) -> 0 | AU12: =AT12/(AV4-AT11) -> 0 | AV12: =IF(AU12=0,0,(AU12*((LOG(AU12))/LOG(2)))) -> 0
A13: 12 | B13: 1037 | C13: 24 | D13: 1064 | E13: 13 | F13: 1088 | K13: 0 | L13: 121 | N13: 221 | O13: =COUNTIF($L$7:$L$500,N13) -> 0 | P13: =O13/$Q$4 -> 0 | Q13: =IF(P13=0,0,(P13*((LOG(P13))/LOG(2)))) -> 0 | T13: =N13 -> 221 | U13: =COUNTIF(L7:L18,T13) -> 0 | V13: =U13/(W4-U11) -> 0 | W13: =IF(V13=0,0,(V13*((LOG(V13))/LOG(2)))) -> 0 | Y13: =N13 -> 221 | Z13: =COUNTIF(L19:L31,Y13) -> 0 | AA13: =Z13/(AB4-Z11) -> 0 | AB13: =IF(AA13=0,0,(AA13*((LOG(AA13))/LOG(2)))) -> 0 | AD13: =N13 -> 221 | AE13: =COUNTIF(L32:L43,AD13) -> 0 | AF13: =AE13/(AG4-AE11) -> 0 | AG13: =IF(AF13=0,0,(AF13*((LOG(AF13))/LOG(2)))) -> 0 | AI13: =N13 -> 221 | AJ13: =COUNTIF(L44:L55,AI13) -> 0 | AK13: =AJ13/(AL4-AJ11) -> 0 | AL13: =IF(AK13=0,0,(AK13*((LOG(AK13))/LOG(2)))) -> 0 | AN13: =N13 -> 221 | AO13: =COUNTIF(L56:L68,AN13) -> 0 | AP13: =AO13/(AQ4-AO11) -> 0 | AQ13: =IF(AP13=0,0,(AP13*((LOG(AP13))/LOG(2)))) -> 0 | AS13: =N13 -> 221 | AT13: =COUNTIF(L69:L80,AS13) -> 0 | AU13: =AT13/(AV4-AT11) -> 0 | AV13: =IF(AU13=0,0,(AU13*((LOG(AU13))/LOG(2)))) -> 0
A14: 12 | B14: 1194 | C14: 13 | D14: 1232 | E14: 24 | F14: 1244 | K14: 0 | L14: 112 | N14: 222 | O14: =COUNTIF($L$7:$L$500,N14) -> 0 | P14: =O14/$Q$4 -> 0 | Q14: =IF(P14=0,0,(P14*((LOG(P14))/LOG(2)))) -> 0 | T14: =N14 -> 222 | U14: =COUNTIF(L7:L18,T14) -> 0 | V14: =U14/(W4-U11) -> 0 | W14: =IF(V14=0,0,(V14*((LOG(V14))/LOG(2)))) -> 0 | Y14: =N14 -> 222 | Z14: =COUNTIF(L19:L31,Y14) -> 0 | AA14: =Z14/(AB4-Z11) -> 0 | AB14: =IF(AA14=0,0,(AA14*((LOG(AA14))/LOG(2)))) -> 0 | AD14: =N14 -> 222 | AE14: =COUNTIF(L32:L43,AD14) -> 0 | AF14: =AE14/(AG4-AE11) -> 0 | AG14: =IF(AF14=0,0,(AF14*((LOG(AF14))/LOG(2)))) -> 0 | AI14: =N14 -> 222 | AJ14: =COUNTIF(L44:L55,AI14) -> 0 | AK14: =AJ14/(AL4-AJ11) -> 0 | AL14: =IF(AK14=0,0,(AK14*((LOG(AK14))/LOG(2)))) -> 0 | AN14: =N14 -> 222 | AO14: =COUNTIF(L56:L68,AN14) -> 0 | AP14: =AO14/(AQ4-AO11) -> 0 | AQ14: =IF(AP14=0,0,(AP14*((LOG(AP14))/LOG(2)))) -> 0 | AS14: =N14 -> 222 | AT14: =COUNTIF(L69:L80,AS14) -> 0 | AU14: =AT14/(AV4-AT11) -> 0 | AV14: =IF(AU14=0,0,(AU14*((LOG(AU14))/LOG(2)))) -> 0
A15: 12 | B15: 1362 | C15: 24 | D15: 1409 | E15: 24 | F15: 1415 | K15: 0 | L15: 122 | P15: =SUM(P7:P14) -> 1 | Q15: =-SUM(Q7:Q14) -> 1.634512888 | V15: =SUM(V7:V14) -> 1 | W15: =-SUM(W7:W14) -> 1.855388542 | AA15: =SUM(AA7:AA14) -> 1 | AB15: =-SUM(AB7:AB14) -> 1.460484681 | AF15: =SUM(AF7:AF14) -> 1 | AG15: =-SUM(AG7:AG14) -> 1.79248125 | AK15: =SUM(AK7:AK14) -> 1 | AL15: =-SUM(AL7:AL14) -> 0.9182958341 | AP15: =SUM(AP7:AP14) -> 1 | AQ15: =-SUM(AQ7:AQ14) -> 1.52623491 | AU15: =SUM(AU7:AU14) -> 1 | AV15: =-SUM(AV7:AV14) -> 0.6840384356
A16: 12 | B16: 1528 | C16: 13 | D16: 1558 | E16: 13 | F16: 1619 | K16: 0 | L16: 111 | P16: U= | Q16: =Q15/(LOG(Q4)/LOG(2)) -> 0.2640644937 | V16: U1= | W16: =W15/(LOG(W4)/LOG(2)) -> 0.5175475453 | AA16: U2= | AB16: =AB15/(LOG(AB4)/LOG(2)) -> 0.3946786848 | AF16: U3= | AG16: =AG15/(LOG(AG4)/LOG(2)) -> 0.5 | AK16: U4= | AL16: =AL15/(LOG(AL4)/LOG(2)) -> 0.2561521449 | AP16: U5= | AQ16: =AQ15/(LOG(AQ4)/LOG(2)) -> 0.4124469053 | AU16: U6= | AV16: =AV15/(LOG(AV4)/LOG(2)) -> 0.1977314516
A17: 12 | B17: 1722 | C17: 13 | D17: 1752 | E17: 13 | F17: 1789 | K17: 0 | L17: 111
A18: 12 | B18: 1899 | C18: 13 | D18: 1953 | E18: 13 | F18: 1977 | K18: 0 | L18: 111
A19: 12 | B19: 2081 | C19: 24 | D19: 2099 | E19: 13 | F19: 2124 | K19: 0 | L19: 121 | N19: Total Target Seq
A20: 12 | B20: 2227 | C20: 13 | D20: 2245 | E20: 13 | F20: 2296 | K20: 0 | L20: 111 | N20: =COUNTIF(L7:L80,G3) -> 0 | P20: 12 | Q20: 13 | R20: 12 | S20: 12 | T20: 13 | U20: 12
A21: 12 | B21: 2429 | C21: 24 | D21: 2472 | E21: 13 | F21: 2493 | K21: 0 | L21: 121 | P21: % of reinforcement given in 6 equal intervals based on number of trials
A22: 12 | B22: 2600 | C22: 13 | D22: 2610 | E22: 24 | F22: 2637 | K22: 0 | L22: 112 | P22: %_1 | Q22: %_2 | R22: %_3 | S22: %_4 | T22: %_5 | U22: %_6
A23: 12 | B23: 2739 | C23: 13 | D23: 2751 | E23: 24 | F23: 2769 | K23: 0 | L23: 112 | O23: target sequence | P23: =$G$3 -> 211 | Q23: =$G$3 -> 211 | R23: =$G$3 -> 211 | S23: =$G$3 -> 211 | T23: =$G$3 -> 211 | U23: =$G$3 -> 211
A24: 12 | B24: 2878 | C24: 13 | D24: 2893 | E24: 24 | F24: 2914 | K24: 0 | L24: 112 | O24: total reinforcement | P24: =U11 -> 0 | Q24: =Z11 -> 0 | R24: =AE11 -> 0 | S24: =AJ11 -> 0 | T24: =AO11 -> 0 | U24: =AT11 -> 0
A25: 12 | B25: 3037 | C25: 13 | D25: 3051 | E25: 24 | F25: 3064 | K25: 0 | L25: 112 | O25: % target
A26: 12 | B26: 3167 | C26: 13 | D26: 3177 | E26: 13 | F26: 3270 | K26: 0 | L26: 111 | O26: CCRF
A27: 12 | B27: 3387 | C27: 13 | D27: 3408 | E27: 24 | F27: 3461 | K27: 0 | L27: 112 | O27: % CCRf
A28: 12 | B28: 3564 | C28: 13 | D28: 3575 | E28: 13 | F28: 3634 | K28: 0 | L28: 111 | O28: average response rate | P28: =F18/P20 -> 164.75 | Q28: =(F31-F18)/Q20 -> 174 | R28: =(F43-F31)/R20 -> 259.75 | S28: =(F55-F43)/S20 -> 246.6666667 | T28: =(F68-F55)/T20 -> 296.3846154 | U28: =(F80-F68)/U20 -> -1180.75
A29: 12 | B29: 3794 | C29: 13 | D29: 3801 | E29: 24 | F29: 3847 | K29: 0 | L29: 112
A30: 12 | B30: 3951 | C30: 13 | D30: 3966 | E30: 13 | F30: 3986 | K30: 0 | L30: 111
A31: 12 | B31: 4201 | C31: 13 | D31: 4222 | E31: 13 | F31: 4239 | K31: 0 | L31: 111
A32: 12 | B32: 4458 | C32: 13 | D32: 4472 | E32: 13 | F32: 4571 | K32: 0 | L32: 111
A33: 12 | B33: 4707 | C33: 24 | D33: 4719 | E33: 24 | F33: 4740 | K33: 0 | L33: 122
A34: 12 | B34: 4849 | C34: 13 | D34: 4870 | E34: 13 | F34: 4920 | K34: 0 | L34: 111
A35: 12 | B35: 5197 | C35: 13 | D35: 5247 | E35: 24 | F35: 5267 | K35: 0 | L35: 112
A36: 12 | B36: 5380 | C36: 13 | D36: 5413 | E36: 24 | F36: 5484 | K36: 0 | L36: 112
A37: 12 | B37: 5605 | C37: 13 | D37: 5618 | E37: 13 | F37: 5660 | K37: 0 | L37: 111
A38: 12 | B38: 5961 | C38: 24 | D38: 5980 | E38: 13 | F38: 6002 | K38: 0 | L38: 121
A39: 12 | B39: 6429 | C39: 24 | D39: 6448 | E39: 13 | F39: 6498 | K39: 0 | L39: 121
A40: 12 | B40: 6614 | C40: 13 | D40: 6709 | E40: 13 | F40: 6749 | K40: 0 | L40: 111
A41: 12 | B41: 6885 | C41: 13 | D41: 6965 | E41: 13 | F41: 7002 | K41: 0 | L41: 111
A42: 12 | B42: 7145 | C42: 24 | D42: 7176 | E42: 24 | F42: 7188 | K42: 0 | L42: 122
A43: 12 | B43: 7296 | C43: 13 | D43: 7313 | E43: 13 | F43: 7356 | K43: 0 | L43: 111
A44: 12 | B44: 7481 | C44: 13 | D44: 7495 | E44: 13 | F44: 7550 | K44: 0 | L44: 111
A45: 12 | B45: 7703 | C45: 13 | D45: 7760 | E45: 13 | F45: 7817 | K45: 0 | L45: 111
A46: 12 | B46: 7993 | C46: 13 | D46: 8063 | E46: 24 | F46: 8162 | K46: 0 | L46: 112
A47: 12 | B47: 8289 | C47: 13 | D47: 8349 | E47: 13 | F47: 8404 | K47: 0 | L47: 111
A48: 12 | B48: 8575 | C48: 13 | D48: 8622 | E48: 24 | F48: 8659 | K48: 0 | L48: 112
A49: 12 | B49: 8829 | C49: 13 | D49: 8863 | E49: 24 | F49: 8882 | K49: 0 | L49: 112
A50: 12 | B50: 9142 | C50: 13 | D50: 9215 | E50: 13 | F50: 9250 | K50: 0 | L50: 111
A51: 12 | B51: 9458 | C51: 13 | D51: 9480 | E51: 24 | F51: 9513 | K51: 0 | L51: 112
A52: 12 | B52: 9645 | C52: 13 | D52: 9670 | E52: 13 | F52: 9736 | K52: 0 | L52: 111
A53: 12 | B53: 9872 | C53: 13 | D53: 9884 | E53: 13 | F53: 9944 | K53: 0 | L53: 111
A54: 12 | B54: 10071 | C54: 13 | D54: 10087 | E54: 13 | F54: 10125 | K54: 0 | L54: 111
A55: 12 | B55: 10237 | C55: 13 | D55: 10260 | E55: 13 | F55: 10316 | K55: 0 | L55: 111
A56: 12 | B56: 10474 | C56: 13 | D56: 10543 | E56: 13 | F56: 10559 | K56: 0 | L56: 111
A57: 12 | B57: 10704 | C57: 13 | D57: 10725 | E57: 24 | F57: 10807 | K57: 0 | L57: 112
A58: 12 | B58: 11019 | C58: 13 | D58: 11046 | E58: 13 | F58: 11118 | K58: 0 | L58: 111
A59: 12 | B59: 11296 | C59: 13 | D59: 11310 | E59: 13 | F59: 11375 | K59: 0 | L59: 111
A60: 12 | B60: 11601 | C60: 13 | D60: 11638 | E60: 13 | F60: 11669 | K60: 0 | L60: 111
A61: 12 | B61: 11843 | C61: 13 | D61: 11865 | E61: 13 | F61: 11985 | K61: 0 | L61: 111
A62: 12 | B62: 12202 | C62: 24 | D62: 12224 | E62: 13 | F62: 12406 | K62: 0 | L62: 121
A63: 12 | B63: 12760 | C63: 24 | D63: 12784 | E63: 13 | F63: 12808 | K63: 0 | L63: 121
A64: 12 | B64: 12969 | C64: 13 | D64: 12984 | E64: 24 | F64: 13030 | K64: 0 | L64: 112
A65: 12 | B65: 13443 | C65: 24 | D65: 13474 | E65: 13 | F65: 13487 | K65: 0 | L65: 121
A66: 12 | B66: 13636 | C66: 24 | D66: 13654 | E66: 13 | F66: 13675 | K66: 0 | L66: 121
A67: 12 | B67: 13806 | C67: 13 | D67: 13901 | E67: 13 | F67: 13938 | K67: 0 | L67: 111
A68: 12 | B68: 14118 | C68: 13 | D68: 14136 | E68: 24 | F68: 14169 | K68: 0 | L68: 112
A69: 12 | B69: 14295 | C69: 24 | D69: 14356 | E69: 13 | F69: 14554 | K69: 0 | L69: 121
A70: 12 | B70: 14814 | C70: 13 | D70: 14836 | E70: 13 | F70: 14915 | K70: 0 | L70: 111
A71: 12 | B71: 15024 | C71: 13 | D71: 15042 | E71: 13 | F71: 15299 | K71: 0 | L71: 111
A72: 12 | B72: 16995 | C72: 13 | D72: 17037 | E72: 13 | F72: 17052 | K72: 0 | L72: 111
A73: 12 | B73: 17343 | C73: 13 | D73: 17406 | E73: 13 | F73: 17440 | K73: 0 | L73: 111
A74: 12 | B74: 17554 | C74: 13 | D74: 17604 | E74: 13 | F74: 17656 | K74: 0 | L74: 111
A75: 12 | B75: 17797 | C75: 13 | D75: 17813 | E75: 13 | F75: 17877 | K75: 0 | L75: 111
A76: 12 | B76: 18066 | C76: 13 | D76: 18122 | E76: 13 | F76: 18168 | K76: 0 | L76: 111
A77: 12 | B77: 18496 | C77: 13 | D77: 18901 | E77: 13 | F77: 18937 | K77: 0 | L77: 111
A78: 12 | B78: 19570 | C78: 24 | D78: 19587 | E78: 13 | F78: 19600 | K78: 0 | L78: 121
A79: 12 | B79: 20307 | C79: 13 | D79: 20323 | E79: 13 | F79: 20747 | K79: 0 | L79: 111
A80: 21 | B80: 23077 | C80: 22 | D80: 23898 | L80: 22

Sheet !M425950.183
A1: Report for:!M425950.183
A2: Date: | B2: <date>
A3: Hen: | B3: <hen> | F3: Correct Sequence | G3: =Start!J2 -> 211 | P3: Total Sequences in Data | Q3: =4994-COUNTBLANK(L7:L5000) -> 117 | V3: Total Sequences in Block Data | W3: =COUNTA(L7:L26) -> 20 | AA3: Total Sequences in Block Data | AB3: =COUNTA(L27:L45) -> 19 | AF3: Total Sequences in Block Data | AG3: =COUNTA(L46:L65) -> 20 | AK3: Total Sequences in Block Data | AL3: =COUNTA(L66:L84) -> 19 | AP3: Total Sequences in Block Data | AQ3: =COUNTA(L85:L104) -> 20 | AU3: Total Sequences in Block Data | AV3: =COUNTA(L105:L123) -> 19
P4: Total Sequences in Summary | Q4: =SUM(O7:O14) -> 116 | V4: Total Sequences in Block Summary | W4: =SUM(U7:U14) -> 20 | AA4: Total Sequences in Block Summary | AB4: =SUM(Z7:Z14) -> 19 | AF4: Total Sequences in Block Summary | AG4: =SUM(AE7:AE14) -> 20 | AK4: Total Sequences in Block Summary | AL4: =SUM(AJ7:AJ14) -> 19 | AP4: Total Sequences in Block Summary | AQ4: =SUM(AO7:AO14) -> 20 | AU4: Total Sequences in Block Summary | AV4: =SUM(AT7:AT14) -> 18
T5: Block 1 | Y5: Block 2 | AD5: Block 3 | AI5: Block 4 | AN5: Block 5 | AS5: Block 6
A6: Sequence Component 1 | B6: Time 1 | C6: Sequence Component 2 | D6: Time 2 | E6: Sequence Component 3 | F6: Time 3 | G6: Sequence Component 4 | H6: Time 4 | I6: Sequence Component 5 | J6: Time 5 | K6: Correct? 0=No 1=Yes | L6: Sequence | N6: Frequency | P6: Relative Frequency | Q6: Variability | T6: Frequency | V6: Relative Frequency | W6: Variability | Y6: Frequency | AA6: Relative Frequency | AB6: Variability | AD6: Frequency | AF6: Relative Frequency | AG6: Variability | AI6: Frequency | AK6: Relative Frequency | AL6: Variability | AN6: Frequency | AP6: Relative Frequency | AQ6: Variability | AS6: Frequency | AU6: Relative Frequency | AV6: Variability
A7: 12 | B7: 68 | C7: 13 | D7: 83 | E7: 13 | F7: 101 | K7: 0 | L7: 111 | N7: 111 | O7: =COUNTIF($L$7:$L$500,N7) -> 44 | P7: =O7/$Q$4 -> 0.3793103448 | Q7: =IF(P7=0,0,(P7*((LOG(P7))/LOG(2)))) -> -0.5304842463 | T7: =N7 -> 111 | U7: =COUNTIF(L7:L26,T7) -> 5 | V7: =U7/(W4-U11) -> 0.25 | W7: =IF(V7=0,0,(V7*((LOG(V7))/LOG(2)))) -> -0.5 | Y7: =N7 -> 111 | Z7: =COUNTIF(L27:L45,Y7) -> 4 | AA7: =Z7/(AB4-Z11) -> 0.2105263158 | AB7: =IF(AA7=0,0,(AA7*((LOG(AA7))/LOG(2)))) -> -0.4732478976 | AD7: =N7 -> 111 | AE7: =COUNTIF(L46:L65,AD7) -> 1 | AF7: =AE7/(AG4-AE11) -> 0.05263157895 | AG7: =IF(AF7=0,0,(AF7*((LOG(AF7))/LOG(2)))) -> -0.2235751323 | AI7: =N7 -> 111 | AJ7: =COUNTIF(L66:L84,AI7) -> 8 | AK7: =AJ7/(AL4-AJ11) -> 0.5 | AL7: =IF(AK7=0,0,(AK7*((LOG(AK7))/LOG(2)))) -> -0.5 | AN7: =N7 -> 111 | AO7: =COUNTIF(L85:L104,AN7) -> 15 | AP7: =AO7/(AQ4-AO11) -> 0.7894736842 | AQ7: =IF(AP7=0,0,(AP7*((LOG(AP7))/LOG(2)))) -> -0.269239672 | AS7: =N7 -> 111 | AT7: =COUNTIF(L105:L123,AS7) -> 11 | AU7: =AT7/(AV4-AT11) -> 0.6470588235 | AV7: =IF(AU7=0,0,(AU7*((LOG(AU7))/LOG(2)))) -> -0.406373144
A8: 12 | B8: 230 | C8: 13 | D8: 237 | E8: 13 | F8: 272 | K8: 0 | L8: 111 | N8: 112 | O8: =COUNTIF($L$7:$L$500,N8) -> 38 | P8: =O8/$Q$4 -> 0.3275862069 | Q8: =IF(P8=0,0,(P8*((LOG(P8))/LOG(2)))) -> -0.527431313 | T8: =N8 -> 112 | U8: =COUNTIF(L7:L26,T8) -> 9 | V8: =U8/(W4-U11) -> 0.45 | W8: =IF(V8=0,0,(V8*((LOG(V8))/LOG(2)))) -> -0.5184013921 | Y8: =N8 -> 112 | Z8: =COUNTIF(L27:L45,Y8) -> 7 | AA8: =Z8/(AB4-Z11) -> 0.3684210526 | AB8: =IF(AA8=0,0,(AA8*((LOG(AA8))/LOG(2)))) -> -0.5307372705 | AD8: =N8 -> 112 | AE8: =COUNTIF(L46:L65,AD8) -> 9 | AF8: =AE8/(AG4-AE11) -> 0.4736842105 | AG8: =IF(AF8=0,0,(AF8*((LOG(AF8))/LOG(2)))) -> -0.5106327688 | AI8: =N8 -> 112 | AJ8: =COUNTIF(L66:L84,AI8) -> 5 | AK8: =AJ8/(AL4-AJ11) -> 0.3125 | AL8: =IF(AK8=0,0,(AK8*((LOG(AK8))/LOG(2)))) -> -0.5243974703 | AN8: =N8 -> 112 | AO8: =COUNTIF(L85:L104,AN8) -> 3 | AP8: =AO8/(AQ4-AO11) -> 0.1578947368 | AQ8: =IF(AP8=0,0,(AP8*((LOG(AP8))/LOG(2)))) -> -0.4204681599 | AS8: =N8 -> 112 | AT8: =COUNTIF(L105:L123,AS8) -> 5 | AU8: =AT8/(AV4-AT11) -> 0.2941176471 | AV8: =IF(AU8=0,0,(AU8*((LOG(AU8))/LOG(2)))) -> -0.5192749254
A9: 12 | B9: 385 | C9: 13 | D9: 394 | E9: 24 | F9: 406 | K9: 0 | L9: 112 | N9: 121 | O9: =COUNTIF($L$7:$L$500,N9) -> 8 | P9: =O9/$Q$4 -> 0.06896551724 | Q9: =IF(P9=0,0,(P9*((LOG(P9))/LOG(2)))) -> -0.2660676548 | T9: =N9 -> 121 | U9: =COUNTIF(L7:L26,T9) -> 2 | V9: =U9/(W4-U11) -> 0.1 | W9: =IF(V9=0,0,(V9*((LOG(V9))/LOG(2)))) -> -0.3321928095 | Y9: =N9 -> 121 | Z9: =COUNTIF(L27:L45,Y9) -> 2 | AA9: =Z9/(AB4-Z11) -> 0.1052631579 | AB9: =IF(AA9=0,0,(AA9*((LOG(AA9))/LOG(2)))) -> -0.3418871067 | AD9: =N9 -> 121 | AE9: =COUNTIF(L46:L65,AD9) -> 3 | AF9: =AE9/(AG4-AE11) -> 0.1578947368 | AG9: =IF(AF9=0,0,(AF9*((LOG(AF9))/LOG(2)))) -> -0.4204681599 | AI9: =N9 -> 121 | AJ9: =COUNTIF(L66:L84,AI9) -> 0 | AK9: =AJ9/(AL4-AJ11) -> 0 | AL9: =IF(AK9=0,0,(AK9*((LOG(AK9))/LOG(2)))) -> 0 | AN9: =N9 -> 121 | AO9: =COUNTIF(L85:L104,AN9) -> 1 | AP9: =AO9/(AQ4-AO11) -> 0.05263157895 | AQ9: =IF(AP9=0,0,(AP9*((LOG(AP9))/LOG(2)))) -> -0.2235751323 | AS9: =N9 -> 121 | AT9: =COUNTIF(L105:L123,AS9) -> 0 | AU9: =AT9/(AV4-AT11) -> 0 | AV9: =IF(AU9=0,0,(AU9*((LOG(AU9))/LOG(2)))) -> 0
A10: 12 | B10: 504 | C10: 13 | D10: 509 | E10: 24 | F10: 520 | K10: 0 | L10: 112 | N10: 122 | O10: =COUNTIF($L$7:$L$500,N10) -> 18 | P10: =O10/$Q$4 -> 0.1551724138 | Q10: =IF(P10=0,0,(P10*((LOG(P10))/LOG(2)))) -> -0.417112137 | T10: =N10 -> 122 | U10: =COUNTIF(L7:L26,T10) -> 4 | V10: =U10/(W4-U11) -> 0.2 | W10: =IF(V10=0,0,(V10*((LOG(V10))/LOG(2)))) -> -0.464385619 | Y10: =N10 -> 122 | Z10: =COUNTIF(L27:L45,Y10) -> 6 | AA10: =Z10/(AB4-Z11) -> 0.3157894737 | AB10: =IF(AA10=0,0,(AA10*((LOG(AA10))/LOG(2)))) -> -0.5251468461 | AD10: =N10 -> 122 | AE10: =COUNTIF(L46:L65,AD10) -> 5 | AF10: =AE10/(AG4-AE11) -> 0.2631578947 | AG10: =IF(AF10=0,0,(AF10*((LOG(AF10))/LOG(2)))) -> -0.5068419523 | AI10: =N10 -> 122 | AJ10: =COUNTIF(L66:L84,AI10) -> 2 | AK10: =AJ10/(AL4-AJ11) -> 0.125 | AL10: =IF(AK10=0,0,(AK10*((LOG(AK10))/LOG(2)))) -> -0.375 | AN10: =N10 -> 122 | AO10: =COUNTIF(L85:L104,AN10) -> 0 | AP10: =AO10/(AQ4-AO11) -> 0 | AQ10: =IF(AP10=0,0,(AP10*((LOG(AP10))/LOG(2)))) -> 0 | AS10: =N10 -> 122 | AT10: =COUNTIF(L105:L123,AS10) -> 1 | AU10: =AT10/(AV4-AT11) -> 0.05882352941 | AV10: =IF(AU10=0,0,(AU10*((LOG(AU10))/LOG(2)))) -> -0.2404389907
A11: 12 | B11: 622 | C11: 13 | D11: 630 | E11: 13 | F11: 649 | K11: 0 | L11: 111 | N11: 211 | O11: =COUNTIF($L$7:$L$500,N11) -> 6 | P11: =O11/$Q$4 -> 0.05172413793 | Q11: =IF(P11=0,0,(P11*((LOG(P11))/LOG(2)))) -> -0.221018198 | T11: =N11 -> 211 | U11: =COUNTIF(L7:L26,T11) -> 0 | Y11: =N11 -> 211 | Z11: =COUNTIF(L27:L45,Y11) -> 0 | AD11: =N11 -> 211 | AE11: =COUNTIF(L46:L65,AD11) -> 1 | AI11: =N11 -> 211 | AJ11: =COUNTIF(L66:L84,AI11) -> 3 | AN11: =N11 -> 211 | AO11: =COUNTIF(L85:L104,AN11) -> 1 | AS11: =N11 -> 211 | AT11: =COUNTIF(L105:L123,AS11) -> 1
A12: 12 | B12: 761 | C12: 24 | D12: 772 | E12: 24 | F12: 792 | K12: 0 | L12: 122 | N12: 212 | O12: =COUNTIF($L$7:$L$500,N12) -> 0 | P12: =O12/$Q$4 -> 0 | Q12: =IF(P12=0,0,(P12*((LOG(P12))/LOG(2)))) -> 0 | T12: =N12 -> 212 | U12: =COUNTIF(L7:L26,T12) -> 0 | V12: =U12/(W4-U11) -> 0 | W12: =IF(V12=0,0,(V12*((LOG(V12))/LOG(2)))) -> 0 | Y12: =N12 -> 212 | Z12: =COUNTIF(L27:L45,Y12) -> 0 | AA12: =Z12/(AB4-Z11) -> 0 | AB12: =IF(AA12=0,0,(AA12*((LOG(AA12))/LOG(2)))) -> 0 | AD12: =N12 -> 212 | AE12: =COUNTIF(L46:L65,AD12) -> 0 | AF12: =AE12/(AG4-AE11) -> 0 | AG12: =IF(AF12=0,0,(AF12*((LOG(AF12))/LOG(2)))) -> 0 | AI12: =N12 -> 212 | AJ12: =COUNTIF(L66:L84,AI12) -> 0 | AK12: =AJ12/(AL4-AJ11) -> 0 | AL12: =IF(AK12=0,0,(AK12*((LOG(AK12))/LOG(2)))) -> 0 | AN12: =N12 -> 212 | AO12: =COUNTIF(L85:L104,AN12) -> 0 | AP12: =AO12/(AQ4-AO11) -> 0 | AQ12: =IF(AP12=0,0,(AP12*((LOG(AP12))/LOG(2)))) -> 0 | AS12: =N12 -> 212 | AT12: =COUNTIF(L105:L123,AS12) -> 0 | AU12: =AT12/(AV4-AT11) -> 0 | AV12: =IF(AU12=0,0,(AU12*((LOG(AU12))/LOG(2)))) -> 0
A13: 12 | B13: 894 | C13: 13 | D13: 906 | E13: 24 | F13: 918 | K13: 0 | L13: 112 | N13: 221 | O13: =COUNTIF($L$7:$L$500,N13) -> 2 | P13: =O13/$Q$4 -> 0.01724137931 | Q13: =IF(P13=0,0,(P13*((LOG(P13))/LOG(2)))) -> -0.1009996723 | T13: =N13 -> 221 | U13: =COUNTIF(L7:L26,T13) -> 0 | V13: =U13/(W4-U11) -> 0 | W13: =IF(V13=0,0,(V13*((LOG(V13))/LOG(2)))) -> 0 | Y13: =N13 -> 221 | Z13: =COUNTIF(L27:L45,Y13) -> 0 | AA13: =Z13/(AB4-Z11) -> 0 | AB13: =IF(AA13=0,0,(AA13*((LOG(AA13))/LOG(2)))) -> 0 | AD13: =N13 -> 221 | AE13: =COUNTIF(L46:L65,AD13) -> 1 | AF13: =AE13/(AG4-AE11) -> 0.05263157895 | AG13: =IF(AF13=0,0,(AF13*((LOG(AF13))/LOG(2)))) -> -0.2235751323 | AI13: =N13 -> 221 | AJ13: =COUNTIF(L66:L84,AI13) -> 1 | AK13: =AJ13/(AL4-AJ11) -> 0.0625 | AL13: =IF(AK13=0,0,(AK13*((LOG(AK13))/LOG(2)))) -> -0.25 | AN13: =N13 -> 221 | AO13: =COUNTIF(L85:L104,AN13) -> 0 | AP13: =AO13/(AQ4-AO11) -> 0 | AQ13: =IF(AP13=0,0,(AP13*((LOG(AP13))/LOG(2)))) -> 0 | AS13: =N13 -> 221 | AT13: =COUNTIF(L105:L123,AS13) -> 0 | AU13: =AT13/(AV4-AT11) -> 0 | AV13: =IF(AU13=0,0,(AU13*((LOG(AU13))/LOG(2)))) -> 0
A14: 12 | B14: 1015 | C14: 13 | D14: 1020 | E14: 24 | F14: 1035 | K14: 0 | L14: 112 | N14: 222 | O14: =COUNTIF($L$7:$L$500,N14) -> 0 | P14: =O14/$Q$4 -> 0 | Q14: =IF(P14=0,0,(P14*((LOG(P14))/LOG(2)))) -> 0 | T14: =N14 -> 222 | U14: =COUNTIF(L7:L26,T14) -> 0 | V14: =U14/(W4-U11) -> 0 | W14: =IF(V14=0,0,(V14*((LOG(V14))/LOG(2)))) -> 0 | Y14: =N14 -> 222 | Z14: =COUNTIF(L27:L45,Y14) -> 0 | AA14: =Z14/(AB4-Z11) -> 0 | AB14: =IF(AA14=0,0,(AA14*((LOG(AA14))/LOG(2)))) -> 0 | AD14: =N14 -> 222 | AE14: =COUNTIF(L46:L65,AD14) -> 0 | AF14: =AE14/(AG4-AE11) -> 0 | AG14: =IF(AF14=0,0,(AF14*((LOG(AF14))/LOG(2)))) -> 0 | AI14: =N14 -> 222 | AJ14: =COUNTIF(L66:L84,AI14) -> 0 | AK14: =AJ14/(AL4-AJ11) -> 0 | AL14: =IF(AK14=0,0,(AK14*((LOG(AK14))/LOG(2)))) -> 0 | AN14: =N14 -> 222 | AO14: =COUNTIF(L85:L104,AN14) -> 0 | AP14: =AO14/(AQ4-AO11) -> 0 | AQ14: =IF(AP14=0,0,(AP14*((LOG(AP14))/LOG(2)))) -> 0 | AS14: =N14 -> 222 | AT14: =COUNTIF(L105:L123,AS14) -> 0 | AU14: =AT14/(AV4-AT11) -> 0 | AV14: =IF(AU14=0,0,(AU14*((LOG(AU14))/LOG(2)))) -> 0
A15: 12 | B15: 1162 | C15: 13 | D15: 1183 | E15: 24 | F15: 1201 | K15: 0 | L15: 112 | P15: =SUM(P7:P14) -> 1 | Q15: =-SUM(Q7:Q14) -> 2.063113221 | V15: =SUM(V7:V14) -> 1 | W15: =-SUM(W7:W14) -> 1.814979821 | AA15: =SUM(AA7:AA14) -> 1 | AB15: =-SUM(AB7:AB14) -> 1.871019121 | AF15: =SUM(AF7:AF14) -> 1 | AG15: =-SUM(AG7:AG14) -> 1.885093146 | AK15: =SUM(AK7:AK14) -> 1 | AL15: =-SUM(AL7:AL14) -> 1.64939747 | AP15: =SUM(AP7:AP14) -> 1 | AQ15: =-SUM(AQ7:AQ14) -> 0.9132829642 | AU15: =SUM(AU7:AU14) -> 1 | AV15: =-SUM(AV7:AV14) -> 1.16608706
A16: 12 | B16: 1302 | C16: 13 | D16: 1330 | E16: 24 | F16: 1361 | K16: 0 | L16: 112 | P16: U= | Q16: =Q15/(LOG(Q4)/LOG(2)) -> 0.3008339076 | V16: U1= | W16: =W15/(LOG(W4)/LOG(2)) -> 0.4199467878 | AA16: U2= | AB16: =AB15/(LOG(AB4)/LOG(2)) -> 0.4404545781 | AF16: U3= | AG16: =AG15/(LOG(AG4)/LOG(2)) -> 0.4361694837 | AK16: U4= | AL16: =AL15/(LOG(AL4)/LOG(2)) -> 0.3882828662 | AP16: U5= | AQ16: =AQ15/(LOG(AQ4)/LOG(2)) -> 0.2113137804 | AU16: U6= | AV16: =AV15/(LOG(AV4)/LOG(2)) -> 0.2796422141
A17: 12 | B17: 1459 | C17: 13 | D17: 1473 | E17: 24 | F17: 1484 | K17: 0 | L17: 112
A18: 12 | B18: 1590 | C18: 24 | D18: 1601 | E18: 24 | F18: 1606 | K18: 0 | L18: 122
A19: 12 | B19: 1703 | C19: 13 | D19: 1717 | E19: 24 | F19: 1734 | K19: 0 | L19: 112 | N19: Total Target Seq
A20: 12 | B20: 1838 | C20: 24 | D20: 1851 | E20: 24 | F20: 1855 | K20: 0 | L20: 122 | N20: =COUNTIF(L7:L123,G3) -> 6 | P20: 20 | Q20: 19 | R20: 20 | S20: 19 | T20: 20 | U20: 19
A21: 12 | B21: 1976 | C21: 13 | D21: 1985 | E21: 13 | F21: 2069 | K21: 0 | L21: 111 | P21: % of reinforcement given in 6 equal intervals based on number of trials
A22: 12 | B22: 2244 | C22: 24 | D22: 2267 | E22: 24 | F22: 2328 | K22: 0 | L22: 122 | P22: %_1 | Q22: %_2 | R22: %_3 | S22: %_4 | T22: %_5 | U22: %_6
A23: 12 | B23: 2485 | C23: 13 | D23: 2604 | E23: 13 | F23: 2725 | K23: 0 | L23: 111 | O23: target sequence | P23: =$G$3 -> 211 | Q23: =$G$3 -> 211 | R23: =$G$3 -> 211 | S23: =$G$3 -> 211 | T23: =$G$3 -> 211 | U23: =$G$3 -> 211
A24: 12 | B24: 2852 | C24: 13 | D24: 2853 | E24: 24 | F24: 2915 | K24: 0 | L24: 112 | O24: total reinforcement | P24: =U11 -> 0 | Q24: =Z11 -> 0 | R24: =AE11 -> 1 | S24: =AJ11 -> 3 | T24: =AO11 -> 1 | U24: =AT11 -> 1
A25: 12 | B25: 3016 | C25: 24 | D25: 3031 | E25: 13 | F25: 3065 | K25: 0 | L25: 121 | O25: % target
A26: 12 | B26: 3165 | C26: 24 | D26: 3179 | E26: 13 | F26: 3232 | K26: 0 | L26: 121 | O26: CCRF
A27: 12 | B27: 3347 | C27: 13 | D27: 3367 | E27: 13 | F27: 3428 | K27: 0 | L27: 111 | O27: % CCRf
A28: 12 | B28: 3524 | C28: 24 | D28: 3565 | E28: 13 | F28: 3604 | K28: 0 | L28: 121 | O28: average response rate | P28: =F26/P20 -> 161.6 | Q28: =(F45-F26)/Q20 -> 194.1052632 | R28: =(F65-F45)/R20 -> 231.25 | S28: =(F84-F65)/S20 -> 240 | T28: =(F104-F84)/T20 -> 222.7 | U28: =(F123-F104)/U20 -> -1082.052632
A29: 12 | B29: 3735 | C29: 24 | D29: 3747 | E29: 24 | F29: 3752 | K29: 0 | L29: 122
A30: 12 | B30: 3855 | C30: 24 | D30: 3872 | E30: 24 | F30: 3882 | K30: 0 | L30: 122
A31: 12 | B31: 3986 | C31: 13 | D31: 4009 | E31: 24 | F31: 4092 | K31: 0 | L31: 112
A32: 12 | B32: 4193 | C32: 13 | D32: 4202 | E32: 13 | F32: 4211 | K32: 0 | L32: 111
A33: 12 | B33: 4363 | C33: 13 | D33: 4377 | E33: 13 | F33: 4491 | K33: 0 | L33: 111
A34: 12 | B34: 4598 | C34: 13 | D34: 4606 | E34: 13 | F34: 4618 | K34: 0 | L34: 111
A35: 12 | B35: 4780 | C35: 24 | D35: 4887 | E35: 24 | F35: 4903 | K35: 0 | L35: 122
A36: 12 | B36: 5024 | C36: 13 | D36: 5035 | E36: 24 | F36: 5069 | K36: 0 | L36: 112
A37: 12 | B37: 5177 | C37: 13 | D37: 5193 | E37: 24 | F37: 5210 | K37: 0 | L37: 112
A38: 12 | B38: 5346 | C38: 24 | D38: 5367 | E38: 24 | F38: 5372 | K38: 0 | L38: 122
A39: 12 | B39: 5535 | C39: 24 | D39: 5645 | E39: 13 | F39: 5679 | K39: 0 | L39: 121
A40: 12 | B40: 5814 | C40: 13 | D40: 5826 | E40: 24 | F40: 5872 | K40: 0 | L40: 112
A41: 12 | B41: 6021 | C41: 13 | D41: 6030 | E41: 24 | F41: 6046 | K41: 0 | L41: 112
A42: 12 | B42: 6169 | C42: 13 | D42: 6181 | E42: 24 | F42: 6237 | K42: 0 | L42: 112
A43: 12 | B43: 6352 | C43: 13 | D43: 6354 | E43: 24 | F43: 6401 | K43: 0 | L43: 112
A44: 12 | B44: 6587 | C44: 24 | D44: 6640 | E44: 24 | F44: 6655 | K44: 0 | L44: 122
A45: 12 | B45: 6849 | C45: 24 | D45: 6890 | E45: 24 | F45: 6920 | K45: 0 | L45: 122
A46: 21 | B46: 7265 | C46: 22 | D46: 7296 | E46: 13 | F46: 7416 | K46: 0 | L46: 221
A47: 12 | B47: 7573 | C47: 24 | D47: 7591 | E47: 13 | F47: 7665 | K47: 0 | L47: 121
A48: 12 | B48: 7772 | C48: 13 | D48: 7792 | E48: 24 | F48: 7809 | K48: 0 | L48: 112
A49: 12 | B49: 7927 | C49: 24 | D49: 7946 | E49: 13 | F49: 8047 | K49: 0 | L49: 121
A50: 12 | B50: 8191 | C50: 13 | D50: 8271 | E50: 24 | F50: 8371 | K50: 0 | L50: 112
A51: 12 | B51: 8492 | C51: 13 | D51: 8507 | E51: 24 | F51: 8634 | K51: 0 | L51: 112
A52: 12 | B52: 8763 | C52: 24 | D52: 8782 | E52: 24 | F52: 8815 | K52: 0 | L52: 122
A53: 12 | B53: 9032 | C53: 13 | D53: 9090 | E53: 24 | F53: 9105 | K53: 0 | L53: 112
A54: 12 | B54: 9233 | C54: 13 | D54: 9247 | E54: 24 | F54: 9277 | K54: 0 | L54: 112
A55: 12 | B55: 9463 | C55: 24 | D55: 9505 | E55: 24 | F55: 9529 | K55: 0 | L55: 122
A56: 21 | B56: 9681 | C56: 11 | D56: 9705 | E56: 11 | F56: 9716 | K56: 0 | L56: 211
A57: 12 | B57: 9831 | C57: 13 | D57: 9833 | E57: 13 | F57: 9844 | K57: 0 | L57: 111
A58: 12 | B58: 9975 | C58: 24 | D58: 10058 | E58: 24 | F58: 10065 | K58: 0 | L58: 122
A59: 12 | B59: 10188 | C59: 13 | D59: 10200 | E59: 24 | F59: 10219 | K59: 0 | L59: 112
A60: 12 | B60: 10365 | C60: 24 | D60: 10407 | E60: 24 | F60: 10461 | K60: 0 | L60: 122
A61: 12 | B61: 10624 | C61: 24 | D61: 10661 | E61: 13 | F61: 10731 | K61: 0 | L61: 121
A62: 12 | B62: 10836 | C62: 13 | D62: 10848 | E62: 24 | F62: 10865 | K62: 0 | L62: 112
A63: 12 | B63: 11079 | C63: 24 | D63: 11092 | E63: 24 | F63: 11142 | K63: 0 | L63: 122
A64: 12 | B64: 11271 | C64: 13 | D64: 11294 | E64: 24 | F64: 11307 | K64: 0 | L64: 112
A65: 12 | B65: 11496 | C65: 13 | D65: 11533 | E65: 24 | F65: 11545 | K65: 0 | L65: 112
A66: 21 | B66: 11728 | C66: 22 | D66: 11745 | E66: 13 | F66: 11804 | K66: 0 | L66: 221
A67: 12 | B67: 12054 | C67: 24 | D67: 12084 | E67: 24 | F67: 12104 | K67: 0 | L67: 122
A68: 12 | B68: 12283 | C68: 13 | D68: 12330 | E68: 13 | F68: 12379 | K68: 0 | L68: 111
A69: 12 | B69: 12494 | C69: 13 | D69: 12507 | E69: 13 | F69: 12525 | K69: 0 | L69: 111
A70: 12 | B70: 12665 | C70: 13 | D70: 12681 | E70: 13 | F70: 12715 | K70: 0 | L70: 111
A71: 12 | B71: 12913 | C71: 13 | D71: 12995 | E71: 13 | F71: 13041 | K71: 0 | L71: 111
A72: 12 | B72: 13192 | C72: 13 | D72: 13211 | E72: 24 | F72: 13262 | K72: 0 | L72: 112
A73: 12 | B73: 13418 | C73: 13 | D73: 13439 | E73: 13 | F73: 13454 | K73: 0 | L73: 111
A74: 12 | B74: 13593 | C74: 13 | D74: 13813 | E74: 24 | F74: 13874 | K74: 0 | L74: 112
A75: 21 | B75: 14200 | C75: 11 | D75: 14216 | E75: 11 | F75: 14251 | K75: 0 | L75: 211
A76: 12 | B76: 14394 | C76: 13 | D76: 14415 | E76: 13 | F76: 14470 | K76: 0 | L76: 111
A77: 12 | B77: 14607 | C77: 13 | D77: 14629 | E77: 24 | F77: 14642 | K77: 0 | L77: 112
A78: 12 | B78: 14778 | C78: 13 | D78: 14790 | E78: 24 | F78: 14816 | K78: 0 | L78: 112
A79: 12 | B79: 14952 | C79: 13 | D79: 14962 | E79: 24 | F79: 15065 | K79: 0 | L79: 112
A80: 21 | B80: 15228 | C80: 11 | D80: 15298 | E80: 11 | F80: 15322 | K80: 0 | L80: 211
A81: 12 | B81: 15466 | C81: 13 | D81: 15488 | E81: 13 | F81: 15513 | K81: 0 | L81: 111
A82: 12 | B82: 15629 | C82: 24 | D82: 15646 | E82: 24 | F82: 15688 | K82: 0 | L82: 122
A83: 21 | B83: 15824 | C83: 11 | D83: 15872 | E83: 11 | F83: 15897 | K83: 0 | L83: 211
A84: 12 | B84: 16060 | C84: 13 | D84: 16087 | E84: 13 | F84: 16105 | K84: 0 | L84: 111
A85: 12 | B85: 16222 | C85: 13 | D85: 16250 | E85: 13 | F85: 16281 | K85: 0 | L85: 111
A86: 12 | B86: 16406 | C86: 13 | D86: 16416 | E86: 13 | F86: 16458 | K86: 0 | L86: 111
A87: 12 | B87: 16593 | C87: 13 | D87: 16612 | E87: 13 | F87: 16644 | K87: 0 | L87: 111
A88: 12 | B88: 16770 | C88: 13 | D88: 16789 | E88: 13 | F88: 16804 | K88: 0 | L88: 111
A89: 12 | B89: 16955 | C89: 13 | D89: 16963 | E89: 24 | F89: 16988 | K89: 0 | L89: 112
A90: 12 | B90: 17213 | C90: 24 | D90: 17246 | E90: 13 | F90: 17291 | K90: 0 | L90: 121
A91: 12 | B91: 17437 | C91: 13 | D91: 17447 | E91: 13 | F91: 17485 | K91: 0 | L91: 111
A92: 12 | B92: 17733 | C92: 13 | D92: 17810 | E92: 13 | F92: 17830 | K92: 0 | L92: 111
A93: 12 | B93: 17937 | C93: 13 | D93: 17949 | E93: 13 | F93: 17962 | K93: 0 | L93: 111
A94: 12 | B94: 18107 | C94: 13 | D94: 18129 | E94: 13 | F94: 18190 | K94: 0 | L94: 111
A95: 12 | B95: 18327 | C95: 13 | D95: 18344 | E95: 13 | F95: 18364 | K95: 0 | L95: 111
A96: 12 | B96: 18551 | C96: 13 | D96: 18569 | E96: 13 | F96: 18602 | K96: 0 | L96: 111
A97: 12 | B97: 18752 | C97: 13 | D97: 18769 | E97: 13 | F97: 18780 | K97: 0 | L97: 111
A98: 12 | B98: 18917 | C98: 13 | D98: 18928 | E98: 13 | F98: 18941 | K98: 0 | L98: 111
A99: 21 | B99: 19393 | C99: 11 | D99: 19417 | E99: 11 | F99: 19449 | K99: 0 | L99: 211
A100: 12 | B100: 19619 | C100: 13 | D100: 19683 | E100: 13 | F100: 19739 | K100: 0 | L100: 111
A101: 12 | B101: 19867 | C101: 13 | D101: 19947 | E101: 13 | F101: 19970 | K101: 0 | L101: 111
A102: 12 | B102: 20092 | C102: 13 | D102: 20102 | E102: 13 | F102: 20136 | K102: 0 | L102: 111
A103: 12 | B103: 20290 | C103: 13 | D103: 20368 | E103: 24 | F103: 20381 | K103: 0 | L103: 112
A104: 12 | B104: 20529 | C104: 13 | D104: 20544 | E104: 24 | F104: 20559 | K104: 0 | L104: 112
A105: 12 | B105: 20685 | C105: 13 | D105: 20686 | E105: 13 | F105: 20703 | K105: 0 | L105: 111
A106: 12 | B106: 20836 | C106: 13 | D106: 20845 | E106: 24 | F106: 20905 | K106: 0 | L106: 112
A107: 12 | B107: 21034 | C107: 13 | D107: 21050 | E107: 24 | F107: 21081 | K107: 0 | L107: 112
A108: 12 | B108: 21208 | C108: 13 | D108: 21218 | E108: 13 | F108: 21236 | K108: 0 | L108: 111
A109: 12 | B109: 21362 | C109: 13 | D109: 21380 | E109: 13 | F109: 21437 | K109: 0 | L109: 111
A110: 12 | B110: 21549 | C110: 13 | D110: 21559 | E110: 13 | F110: 21578 | K110: 0 | L110: 111
A111: 12 | B111: 21712 | C111: 13 | D111: 21732 | E111: 24 | F111: 21756 | K111: 0 | L111: 112
A112: 12 | B112: 21890 | C112: 13 | D112: 21907 | E112: 13 | F112: 21919 | K112: 0 | L112: 111
A113: 12 | B113: 22125 | C113: 13 | D113: 22139 | E113: 13 | F113: 22183 | K113: 0 | L113: 111
A114: 21 | B114: 22311 | C114: 11 | D114: 22331 | E114: 11 | F114: 22362 | K114: 0 | L114: 211
A115: 12 | B115: 22532 | C115: 13 | D115: 22565 | E115: 24 | F115: 22616 | K115: 0 | L115: 112
A116: 12 | B116: 22750 | C116: 13 | D116: 22751 | E116: 24 | F116: 22824 | K116: 0 | L116: 112
A117: 12 | B117: 22933 | C117: 13 | D117: 22948 | E117: 13 | F117: 22969 | K117: 0 | L117: 111
A118: 12 | B118: 23123 | C118: 24 | D118: 23144 | E118: 24 | F118: 23163 | K118: 0 | L118: 122
A119: 12 | B119: 23270 | C119: 13 | D119: 23276 | E119: 13 | F119: 23290 | K119: 0 | L119: 111
A120: 12 | B120: 23397 | C120: 13 | D120: 23408 | E120: 13 | F120: 23420 | K120: 0 | L120: 111
A121: 12 | B121: 23543 | C121: 13 | D121: 23560 | E121: 13 | F121: 23579 | K121: 0 | L121: 111
A122: 12 | B122: 23725 | C122: 13 | D122: 23734 | E122: 13 | F122: 23748 | K122: 0 | L122: 111
A123: 12 | B123: 23937 | C123: 13 | D123: 23950 | L123: 11

Sheet !M426900.183
A1: Report for:!M426900.183
A2: Date: | B2: <date>
A3: Hen: | B3: <hen> | F3: Correct Sequence | G3: =Start!J2 -> 211 | P3: Total Sequences in Data | Q3: =4994-COUNTBLANK(L7:L5000) -> 107 | V3: Total Sequences in Block Data | W3: =COUNTA(L7:L24) -> 18 | AA3: Total Sequences in Block Data | AB3: =COUNTA(L25:L42) -> 18 | AF3: Total Sequences in Block Data | AG3: =COUNTA(L43:L59) -> 17 | AK3: Total Sequences in Block Data | AL3: =COUNTA(L60:L77) -> 18 | AP3: Total Sequences in Block Data | AQ3: =COUNTA(L78:L95) -> 18 | AU3: Total Sequences in Block Data | AV3: =COUNTA(L96:L113) -> 18
P4: Total Sequences in Summary | Q4: =SUM(O7:O14) -> 107 | V4: Total Sequences in Block Summary | W4: =SUM(U7:U14) -> 18 | AA4: Total Sequences in Block Summary | AB4: =SUM(Z7:Z14) -> 18 | AF4: Total Sequences in Block Summary | AG4: =SUM(AE7:AE14) -> 17 | AK4: Total Sequences in Block Summary | AL4: =SUM(AJ7:AJ14) -> 18 | AP4: Total Sequences in Block Summary | AQ4: =SUM(AO7:AO14) -> 18 | AU4: Total Sequences in Block Summary | AV4: =SUM(AT7:AT14) -> 18
T5: Block 1 | Y5: Block 2 | AD5: Block 3 | AI5: Block 4 | AN5: Block 5 | AS5: Block 6
A6: Sequence Component 1 | B6: Time 1 | C6: Sequence Component 2 | D6: Time 2 | E6: Sequence Component 3 | F6: Time 3 | G6: Sequence Component 4 | H6: Time 4 | I6: Sequence Component 5 | J6: Time 5 | K6: Correct? 0=No 1=Yes | L6: Sequence | N6: Frequency | P6: Relative Frequency | Q6: Variability | T6: Frequency | V6: Relative Frequency | W6: Variability | Y6: Frequency | AA6: Relative Frequency | AB6: Variability | AD6: Frequency | AF6: Relative Frequency | AG6: Variability | AI6: Frequency | AK6: Relative Frequency | AL6: Variability | AN6: Frequency | AP6: Relative Frequency | AQ6: Variability | AS6: Frequency | AU6: Relative Frequency | AV6: Variability
A7: 12 | B7: 39 | C7: 24 | D7: 54 | E7: 13 | F7: 133 | K7: 0 | L7: 121 | N7: 111 | O7: =COUNTIF($L$7:$L$500,N7) -> 94 | P7: =O7/$Q$4 -> 0.8785046729 | Q7: =IF(P7=0,0,(P7*((LOG(P7))/LOG(2)))) -> -0.1641733146 | T7: =N7 -> 111 | U7: =COUNTIF(L7:L24,T7) -> 14 | V7: =U7/(W4-U11) -> 0.7777777778 | W7: =IF(V7=0,0,(V7*((LOG(V7))/LOG(2)))) -> -0.2819989506 | Y7: =N7 -> 111 | Z7: =COUNTIF(L25:L42,Y7) -> 17 | AA7: =Z7/(AB4-Z11) -> 0.9444444444 | AB7: =IF(AA7=0,0,(AA7*((LOG(AA7))/LOG(2)))) -> -0.07788092907 | AD7: =N7 -> 111 | AE7: =COUNTIF(L43:L59,AD7) -> 14 | AF7: =AE7/(AG4-AE11) -> 0.8235294118 | AG7: =IF(AF7=0,0,(AF7*((LOG(AF7))/LOG(2)))) -> -0.2306771099 | AI7: =N7 -> 111 | AJ7: =COUNTIF(L60:L77,AI7) -> 17 | AK7: =AJ7/(AL4-AJ11) -> 0.9444444444 | AL7: =IF(AK7=0,0,(AK7*((LOG(AK7))/LOG(2)))) -> -0.07788092907 | AN7: =N7 -> 111 | AO7: =COUNTIF(L78:L95,AN7) -> 16 | AP7: =AO7/(AQ4-AO11) -> 0.9411764706 | AQ7: =IF(AP7=0,0,(AP7*((LOG(AP7))/LOG(2)))) -> -0.08231796824 | AS7: =N7 -> 111 | AT7: =COUNTIF(L96:L113,AS7) -> 16 | AU7: =AT7/(AV4-AT11) -> 0.8888888889 | AV7: =IF(AU7=0,0,(AU7*((LOG(AU7))/LOG(2)))) -> -0.1510444457
A8: 12 | B8: 229 | C8: 13 | D8: 260 | E8: 24 | F8: 272 | K8: 0 | L8: 112 | N8: 112 | O8: =COUNTIF($L$7:$L$500,N8) -> 8 | P8: =O8/$Q$4 -> 0.07476635514 | Q8: =IF(P8=0,0,(P8*((LOG(P8))/LOG(2)))) -> -0.2797358495 | T8: =N8 -> 112 | U8: =COUNTIF(L7:L24,T8) -> 1 | V8: =U8/(W4-U11) -> 0.05555555556 | W8: =IF(V8=0,0,(V8*((LOG(V8))/LOG(2)))) -> -0.2316625001 | Y8: =N8 -> 112 | Z8: =COUNTIF(L25:L42,Y8) -> 1 | AA8: =Z8/(AB4-Z11) -> 0.05555555556 | AB8: =IF(AA8=0,0,(AA8*((LOG(AA8))/LOG(2)))) -> -0.2316625001 | AD8: =N8 -> 112 | AE8: =COUNTIF(L43:L59,AD8) -> 3 | AF8: =AE8/(AG4-AE11) -> 0.1764705882 | AG8: =IF(AF8=0,0,(AF8*((LOG(AF8))/LOG(2)))) -> -0.4416177072 | AI8: =N8 -> 112 | AJ8: =COUNTIF(L60:L77,AI8) -> 1 | AK8: =AJ8/(AL4-AJ11) -> 0.05555555556 | AL8: =IF(AK8=0,0,(AK8*((LOG(AK8))/LOG(2)))) -> -0.2316625001 | AN8: =N8 -> 112 | AO8: =COUNTIF(L78:L95,AN8) -> 1 | AP8: =AO8/(AQ4-AO11) -> 0.05882352941 | AQ8: =IF(AP8=0,0,(AP8*((LOG(AP8))/LOG(2)))) -> -0.2404389907 | AS8: =N8 -> 112 | AT8: =COUNTIF(L96:L113,AS8) -> 1 | AU8: =AT8/(AV4-AT11) -> 0.05555555556 | AV8: =IF(AU8=0,0,(AU8*((LOG(AU8))/LOG(2)))) -> -0.2316625001
A9: 12 | B9: 371 | C9: 24 | D9: 384 | E9: 13 | F9: 403 | K9: 0 | L9: 121 | N9: 121 | O9: =COUNTIF($L$7:$L$500,N9) -> 4 | P9: =O9/$Q$4 -> 0.03738317757 | Q9: =IF(P9=0,0,(P9*((LOG(P9))/LOG(2)))) -> -0.1772511023 | T9: =N9 -> 121 | U9: =COUNTIF(L7:L24,T9) -> 3 | V9: =U9/(W4-U11) -> 0.1666666667 | W9: =IF(V9=0,0,(V9*((LOG(V9))/LOG(2)))) -> -0.4308270835 | Y9: =N9 -> 121 | Z9: =COUNTIF(L25:L42,Y9) -> 0 | AA9: =Z9/(AB4-Z11) -> 0 | AB9: =IF(AA9=0,0,(AA9*((LOG(AA9))/LOG(2)))) -> 0 | AD9: =N9 -> 121 | AE9: =COUNTIF(L43:L59,AD9) -> 0 | AF9: =AE9/(AG4-AE11) -> 0 | AG9: =IF(AF9=0,0,(AF9*((LOG(AF9))/LOG(2)))) -> 0 | AI9: =N9 -> 121 | AJ9: =COUNTIF(L60:L77,AI9) -> 0 | AK9: =AJ9/(AL4-AJ11) -> 0 | AL9: =IF(AK9=0,0,(AK9*((LOG(AK9))/LOG(2)))) -> 0 | AN9: =N9 -> 121 | AO9: =COUNTIF(L78:L95,AN9) -> 0 | AP9: =AO9/(AQ4-AO11) -> 0 | AQ9: =IF(AP9=0,0,(AP9*((LOG(AP9))/LOG(2)))) -> 0 | AS9: =N9 -> 121 | AT9: =COUNTIF(L96:L113,AS9) -> 1 | AU9: =AT9/(AV4-AT11) -> 0.05555555556 | AV9: =IF(AU9=0,0,(AU9*((LOG(AU9))/LOG(2)))) -> -0.2316625001
A10: 12 | B10: 501 | C10: 13 | D10: 555 | E10: 13 | F10: 610 | K10: 0 | L10: 111 | N10: 122 | O10: =COUNTIF($L$7:$L$500,N10) -> 0 | P10: =O10/$Q$4 -> 0 | Q10: =IF(P10=0,0,(P10*((LOG(P10))/LOG(2)))) -> 0 | T10: =N10 -> 122 | U10: =COUNTIF(L7:L24,T10) -> 0 | V10: =U10/(W4-U11) -> 0 | W10: =IF(V10=0,0,(V10*((LOG(V10))/LOG(2)))) -> 0 | Y10: =N10 -> 122 | Z10: =COUNTIF(L25:L42,Y10) -> 0 | AA10: =Z10/(AB4-Z11) -> 0 | AB10: =IF(AA10=0,0,(AA10*((LOG(AA10))/LOG(2)))) -> 0 | AD10: =N10 -> 122 | AE10: =COUNTIF(L43:L59,AD10) -> 0 | AF10: =AE10/(AG4-AE11) -> 0 | AG10: =IF(AF10=0,0,(AF10*((LOG(AF10))/LOG(2)))) -> 0 | AI10: =N10 -> 122 | AJ10: =COUNTIF(L60:L77,AI10) -> 0 | AK10: =AJ10/(AL4-AJ11) -> 0 | AL10: =IF(AK10=0,0,(AK10*((LOG(AK10))/LOG(2)))) -> 0 | AN10: =N10 -> 122 | AO10: =COUNTIF(L78:L95,AN10) -> 0 | AP10: =AO10/(AQ4-AO11) -> 0 | AQ10: =IF(AP10=0,0,(AP10*((LOG(AP10))/LOG(2)))) -> 0 | AS10: =N10 -> 122 | AT10: =COUNTIF(L96:L113,AS10) -> 0 | AU10: =AT10/(AV4-AT11) -> 0 | AV10: =IF(AU10=0,0,(AU10*((LOG(AU10))/LOG(2)))) -> 0
A11: 12 | B11: 721 | C11: 13 | D11: 746 | E11: 13 | F11: 761 | K11: 0 | L11: 111 | N11: 211 | O11: =COUNTIF($L$7:$L$500,N11) -> 1 | P11: =O11/$Q$4 -> 0.009345794393 | Q11: =IF(P11=0,0,(P11*((LOG(P11))/LOG(2)))) -> -0.06300436436 | T11: =N11 -> 211 | U11: =COUNTIF(L7:L24,T11) -> 0 | Y11: =N11 -> 211 | Z11: =COUNTIF(L25:L42,Y11) -> 0 | AD11: =N11 -> 211 | AE11: =COUNTIF(L43:L59,AD11) -> 0 | AI11: =N11 -> 211 | AJ11: =COUNTIF(L60:L77,AI11) -> 0 | AN11: =N11 -> 211 | AO11: =COUNTIF(L78:L95,AN11) -> 1 | AS11: =N11 -> 211 | AT11: =COUNTIF(L96:L113,AS11) -> 0
A12: 12 | B12: 858 | C12: 24 | D12: 870 | E12: 13 | F12: 892 | K12: 0 | L12: 121 | N12: 212 | O12: =COUNTIF($L$7:$L$500,N12) -> 0 | P12: =O12/$Q$4 -> 0 | Q12: =IF(P12=0,0,(P12*((LOG(P12))/LOG(2)))) -> 0 | T12: =N12 -> 212 | U12: =COUNTIF(L7:L24,T12) -> 0 | V12: =U12/(W4-U11) -> 0 | W12: =IF(V12=0,0,(V12*((LOG(V12))/LOG(2)))) -> 0 | Y12: =N12 -> 212 | Z12: =COUNTIF(L25:L42,Y12) -> 0 | AA12: =Z12/(AB4-Z11) -> 0 | AB12: =IF(AA12=0,0,(AA12*((LOG(AA12))/LOG(2)))) -> 0 | AD12: =N12 -> 212 | AE12: =COUNTIF(L43:L59,AD12) -> 0 | AF12: =AE12/(AG4-AE11) -> 0 | AG12: =IF(AF12=0,0,(AF12*((LOG(AF12))/LOG(2)))) -> 0 | AI12: =N12 -> 212 | AJ12: =COUNTIF(L60:L77,AI12) -> 0 | AK12: =AJ12/(AL4-AJ11) -> 0 | AL12: =IF(AK12=0,0,(AK12*((LOG(AK12))/LOG(2)))) -> 0 | AN12: =N12 -> 212 | AO12: =COUNTIF(L78:L95,AN12) -> 0 | AP12: =AO12/(AQ4-AO11) -> 0 | AQ12: =IF(AP12=0,0,(AP12*((LOG(AP12))/LOG(2)))) -> 0 | AS12: =N12 -> 212 | AT12: =COUNTIF(L96:L113,AS12) -> 0 | AU12: =AT12/(AV4-AT11) -> 0 | AV12: =IF(AU12=0,0,(AU12*((LOG(AU12))/LOG(2)))) -> 0
A13: 12 | B13: 994 | C13: 13 | D13: 1008 | E13: 13 | F13: 1024 | K13: 0 | L13: 111 | N13: 221 | O13: =COUNTIF($L$7:$L$500,N13) -> 0 | P13: =O13/$Q$4 -> 0 | Q13: =IF(P13=0,0,(P13*((LOG(P13))/LOG(2)))) -> 0 | T13: =N13 -> 221 | U13: =COUNTIF(L7:L24,T13) -> 0 | V13: =U13/(W4-U11) -> 0 | W13: =IF(V13=0,0,(V13*((LOG(V13))/LOG(2)))) -> 0 | Y13: =N13 -> 221 | Z13: =COUNTIF(L25:L42,Y13) -> 0 | AA13: =Z13/(AB4-Z11) -> 0 | AB13: =IF(AA13=0,0,(AA13*((LOG(AA13))/LOG(2)))) -> 0 | AD13: =N13 -> 221 | AE13: =COUNTIF(L43:L59,AD13) -> 0 | AF13: =AE13/(AG4-AE11) -> 0 | AG13: =IF(AF13=0,0,(AF13*((LOG(AF13))/LOG(2)))) -> 0 | AI13: =N13 -> 221 | AJ13: =COUNTIF(L60:L77,AI13) -> 0 | AK13: =AJ13/(AL4-AJ11) -> 0 | AL13: =IF(AK13=0,0,(AK13*((LOG(AK13))/LOG(2)))) -> 0 | AN13: =N13 -> 221 | AO13: =COUNTIF(L78:L95,AN13) -> 0 | AP13: =AO13/(AQ4-AO11) -> 0 | AQ13: =IF(AP13=0,0,(AP13*((LOG(AP13))/LOG(2)))) -> 0 | AS13: =N13 -> 221 | AT13: =COUNTIF(L96:L113,AS13) -> 0 | AU13: =AT13/(AV4-AT11) -> 0 | AV13: =IF(AU13=0,0,(AU13*((LOG(AU13))/LOG(2)))) -> 0
A14: 12 | B14: 1132 | C14: 13 | D14: 1145 | E14: 13 | F14: 1153 | K14: 0 | L14: 111 | N14: 222 | O14: =COUNTIF($L$7:$L$500,N14) -> 0 | P14: =O14/$Q$4 -> 0 | Q14: =IF(P14=0,0,(P14*((LOG(P14))/LOG(2)))) -> 0 | T14: =N14 -> 222 | U14: =COUNTIF(L7:L24,T14) -> 0 | V14: =U14/(W4-U11) -> 0 | W14: =IF(V14=0,0,(V14*((LOG(V14))/LOG(2)))) -> 0 | Y14: =N14 -> 222 | Z14: =COUNTIF(L25:L42,Y14) -> 0 | AA14: =Z14/(AB4-Z11) -> 0 | AB14: =IF(AA14=0,0,(AA14*((LOG(AA14))/LOG(2)))) -> 0 | AD14: =N14 -> 222 | AE14: =COUNTIF(L43:L59,AD14) -> 0 | AF14: =AE14/(AG4-AE11) -> 0 | AG14: =IF(AF14=0,0,(AF14*((LOG(AF14))/LOG(2)))) -> 0 | AI14: =N14 -> 222 | AJ14: =COUNTIF(L60:L77,AI14) -> 0 | AK14: =AJ14/(AL4-AJ11) -> 0 | AL14: =IF(AK14=0,0,(AK14*((LOG(AK14))/LOG(2)))) -> 0 | AN14: =N14 -> 222 | AO14: =COUNTIF(L78:L95,AN14) -> 0 | AP14: =AO14/(AQ4-AO11) -> 0 | AQ14: =IF(AP14=0,0,(AP14*((LOG(AP14))/LOG(2)))) -> 0 | AS14: =N14 -> 222 | AT14: =COUNTIF(L96:L113,AS14) -> 0 | AU14: =AT14/(AV4-AT11) -> 0 | AV14: =IF(AU14=0,0,(AU14*((LOG(AU14))/LOG(2)))) -> 0
A15: 12 | B15: 1259 | C15: 13 | D15: 1288 | E15: 13 | F15: 1325 | K15: 0 | L15: 111 | P15: =SUM(P7:P14) -> 1 | Q15: =-SUM(Q7:Q14) -> 0.6841646307 | V15: =SUM(V7:V14) -> 1 | W15: =-SUM(W7:W14) -> 0.9444885342 | AA15: =SUM(AA7:AA14) -> 1 | AB15: =-SUM(AB7:AB14) -> 0.3095434292 | AF15: =SUM(AF7:AF14) -> 1 | AG15: =-SUM(AG7:AG14) -> 0.6722948171 | AK15: =SUM(AK7:AK14) -> 1 | AL15: =-SUM(AL7:AL14) -> 0.3095434292 | AP15: =SUM(AP7:AP14) -> 1 | AQ15: =-SUM(AQ7:AQ14) -> 0.3227569589 | AU15: =SUM(AU7:AU14) -> 1 | AV15: =-SUM(AV7:AV14) -> 0.6143694459
A16: 12 | B16: 1467 | C16: 13 | D16: 1479 | E16: 13 | F16: 1492 | K16: 0 | L16: 111 | P16: U= | Q16: =Q15/(LOG(Q4)/LOG(2)) -> 0.1014860166 | V16: U1= | W16: =W15/(LOG(W4)/LOG(2)) -> 0.226500125 | AA16: U2= | AB16: =AB15/(LOG(AB4)/LOG(2)) -> 0.07423237325 | AF16: U3= | AG16: =AG15/(LOG(AG4)/LOG(2)) -> 0.1644772915 | AK16: U4= | AL16: =AL15/(LOG(AL4)/LOG(2)) -> 0.07423237325 | AP16: U5= | AQ16: =AQ15/(LOG(AQ4)/LOG(2)) -> 0.07740114242 | AU16: U6= | AV16: =AV15/(LOG(AV4)/LOG(2)) -> 0.1473334522
A17: 12 | B17: 1660 | C17: 13 | D17: 1675 | E17: 13 | F17: 1702 | K17: 0 | L17: 111
A18: 12 | B18: 1805 | C18: 13 | D18: 1822 | E18: 13 | F18: 1835 | K18: 0 | L18: 111
A19: 12 | B19: 1959 | C19: 13 | D19: 1970 | E19: 13 | F19: 1986 | K19: 0 | L19: 111 | N19: Total Target Seq
A20: 12 | B20: 2140 | C20: 13 | D20: 2151 | E20: 13 | F20: 2165 | K20: 0 | L20: 111 | N20: =COUNTIF(L7:L113,G3) -> 1 | P20: 18 | Q20: 18 | R20: 17 | S20: 18 | T20: 18 | U20: 18
A21: 12 | B21: 2315 | C21: 13 | D21: 2331 | E21: 13 | F21: 2348 | K21: 0 | L21: 111 | P21: % of reinforcement given in 6 equal intervals based on number of trials
A22: 12 | B22: 2470 | C22: 13 | D22: 2481 | E22: 13 | F22: 2495 | K22: 0 | L22: 111 | P22: %_1 | Q22: %_2 | R22: %_3 | S22: %_4 | T22: %_5 | U22: %_6
A23: 12 | B23: 2610 | C23: 13 | D23: 2623 | E23: 13 | F23: 2644 | K23: 0 | L23: 111 | O23: target sequence | P23: =$G$3 -> 211 | Q23: =$G$3 -> 211 | R23: =$G$3 -> 211 | S23: =$G$3 -> 211 | T23: =$G$3 -> 211 | U23: =$G$3 -> 211
A24: 12 | B24: 2758 | C24: 13 | D24: 2802 | E24: 13 | F24: 2859 | K24: 0 | L24: 111 | O24: total reinforcement | P24: =U11 -> 0 | Q24: =Z11 -> 0 | R24: =AE11 -> 0 | S24: =AJ11 -> 0 | T24: =AO11 -> 1 | U24: =AT11 -> 0
A25: 12 | B25: 2987 | C25: 13 | D25: 3003 | E25: 13 | F25: 3035 | K25: 0 | L25: 111 | O25: % target
A26: 12 | B26: 3150 | C26: 13 | D26: 3165 | E26: 13 | F26: 3180 | K26: 0 | L26: 111 | O26: CCRF
A27: 12 | B27: 3325 | C27: 13 | D27: 3341 | E27: 13 | F27: 3355 | K27: 0 | L27: 111 | O27: % CCRf
A28: 12 | B28: 3471 | C28: 13 | D28: 3487 | E28: 13 | F28: 3555 | K28: 0 | L28: 111 | O28: average response rate | P28: =F24/P20 -> 158.8333333 | Q28: =(F42-F24)/Q20 -> 187.8888889 | R28: =(F59-F42)/R20 -> 208 | S28: =(F77-F59)/S20 -> 249.0555556 | T28: =(F95-F77)/T20 -> 246.5555556 | U28: =(F113-F95)/U20 -> 287.1666667
A29: 12 | B29: 3666 | C29: 13 | D29: 3679 | E29: 13 | F29: 3734 | K29: 0 | L29: 111
A30: 12 | B30: 3936 | C30: 13 | D30: 3959 | E30: 24 | F30: 4014 | K30: 0 | L30: 112
A31: 12 | B31: 4130 | C31: 13 | D31: 4131 | E31: 13 | F31: 4146 | K31: 0 | L31: 111
A32: 12 | B32: 4320 | C32: 13 | D32: 4332 | E32: 13 | F32: 4348 | K32: 0 | L32: 111
A33: 12 | B33: 4477 | C33: 13 | D33: 4499 | E33: 13 | F33: 4512 | K33: 0 | L33: 111
A34: 12 | B34: 4698 | C34: 13 | D34: 4714 | E34: 13 | F34: 4742 | K34: 0 | L34: 111
A35: 12 | B35: 4851 | C35: 13 | D35: 4864 | E35: 13 | F35: 4878 | K35: 0 | L35: 111
A36: 12 | B36: 4981 | C36: 13 | D36: 4993 | E36: 13 | F36: 5005 | K36: 0 | L36: 111
A37: 12 | B37: 5149 | C37: 13 | D37: 5164 | E37: 13 | F37: 5182 | K37: 0 | L37: 111
A38: 12 | B38: 5360 | C38: 13 | D38: 5375 | E38: 13 | F38: 5403 | K38: 0 | L38: 111
A39: 12 | B39: 5543 | C39: 13 | D39: 5557 | E39: 13 | F39: 5626 | K39: 0 | L39: 111
A40: 12 | B40: 5738 | C40: 13 | D40: 5751 | E40: 13 | F40: 5765 | K40: 0 | L40: 111
A41: 12 | B41: 6012 | C41: 13 | D41: 6032 | E41: 13 | F41: 6080 | K41: 0 | L41: 111
A42: 12 | B42: 6203 | C42: 13 | D42: 6224 | E42: 13 | F42: 6241 | K42: 0 | L42: 111
A43: 12 | B43: 6368 | C43: 13 | D43: 6403 | E43: 13 | F43: 6437 | K43: 0 | L43: 111
A44: 12 | B44: 6633 | C44: 13 | D44: 6679 | E44: 24 | F44: 6693 | K44: 0 | L44: 112
A45: 12 | B45: 6802 | C45: 13 | D45: 6846 | E45: 13 | F45: 6848 | K45: 0 | L45: 111
A46: 12 | B46: 6986 | C46: 13 | D46: 6998 | E46: 13 | F46: 7034 | K46: 0 | L46: 111
A47: 12 | B47: 7175 | C47: 13 | D47: 7195 | E47: 13 | F47: 7208 | K47: 0 | L47: 111
A48: 12 | B48: 7392 | C48: 13 | D48: 7413 | E48: 13 | F48: 7469 | K48: 0 | L48: 111
A49: 12 | B49: 7592 | C49: 13 | D49: 7692 | E49: 13 | F49: 7716 | K49: 0 | L49: 111
A50: 12 | B50: 7832 | C50: 13 | D50: 7878 | E50: 24 | F50: 7915 | K50: 0 | L50: 112
A51: 12 | B51: 8055 | C51: 13 | D51: 8077 | E51: 13 | F51: 8163 | K51: 0 | L51: 111
A52: 12 | B52: 8285 | C52: 13 | D52: 8332 | E52: 13 | F52: 8361 | K52: 0 | L52: 111
A53: 12 | B53: 8513 | C53: 13 | D53: 8529 | E53: 13 | F53: 8564 | K53: 0 | L53: 111
A54: 12 | B54: 8691 | C54: 13 | D54: 8707 | E54: 24 | F54: 8736 | K54: 0 | L54: 112
A55: 12 | B55: 8869 | C55: 13 | D55: 8881 | E55: 13 | F55: 8897 | K55: 0 | L55: 111
A56: 12 | B56: 9028 | C56: 13 | D56: 9043 | E56: 13 | F56: 9059 | K56: 0 | L56: 111
A57: 12 | B57: 9243 | C57: 13 | D57: 9260 | E57: 13 | F57: 9293 | K57: 0 | L57: 111
A58: 12 | B58: 9423 | C58: 13 | D58: 9462 | E58: 13 | F58: 9541 | K58: 0 | L58: 111
A59: 12 | B59: 9717 | C59: 13 | D59: 9744 | E59: 13 | F59: 9777 | K59: 0 | L59: 111
A60: 12 | B60: 9940 | C60: 13 | D60: 9957 | E60: 13 | F60: 10003 | K60: 0 | L60: 111
A61: 12 | B61: 10218 | C61: 13 | D61: 10239 | E61: 13 | F61: 10260 | K61: 0 | L61: 111
A62: 12 | B62: 10406 | C62: 13 | D62: 10422 | E62: 13 | F62: 10436 | K62: 0 | L62: 111
A63: 12 | B63: 10776 | C63: 13 | D63: 10812 | E63: 13 | F63: 10861 | K63: 0 | L63: 111
A64: 12 | B64: 11011 | C64: 13 | D64: 11024 | E64: 13 | F64: 11043 | K64: 0 | L64: 111
A65: 12 | B65: 11314 | C65: 13 | D65: 11353 | E65: 13 | F65: 11372 | K65: 0 | L65: 111
A66: 12 | B66: 11497 | C66: 13 | D66: 11508 | E66: 13 | F66: 11524 | K66: 0 | L66: 111
A67: 12 | B67: 11681 | C67: 13 | D67: 11697 | E67: 13 | F67: 11715 | K67: 0 | L67: 111
A68: 12 | B68: 11856 | C68: 13 | D68: 11887 | E68: 13 | F68: 11950 | K68: 0 | L68: 111
A69: 12 | B69: 12140 | C69: 13 | D69: 12155 | E69: 13 | F69: 12169 | K69: 0 | L69: 111
A70: 12 | B70: 12331 | C70: 13 | D70: 12349 | E70: 13 | F70: 12392 | K70: 0 | L70: 111
A71: 12 | B71: 12590 | C71: 13 | D71: 12624 | E71: 13 | F71: 12676 | K71: 0 | L71: 111
A72: 12 | B72: 12841 | C72: 13 | D72: 12863 | E72: 13 | F72: 12890 | K72: 0 | L72: 111
A73: 12 | B73: 13204 | C73: 13 | D73: 13246 | E73: 13 | F73: 13298 | K73: 0 | L73: 111
A74: 12 | B74: 13558 | C74: 13 | D74: 13593 | E74: 24 | F74: 13620 | K74: 0 | L74: 112
A75: 12 | B75: 13791 | C75: 13 | D75: 13827 | E75: 13 | F75: 13848 | K75: 0 | L75: 111
A76: 12 | B76: 14024 | C76: 13 | D76: 14041 | E76: 13 | F76: 14058 | K76: 0 | L76: 111
A77: 12 | B77: 14218 | C77: 13 | D77: 14233 | E77: 13 | F77: 14260 | K77: 0 | L77: 111
A78: 12 | B78: 14468 | C78: 13 | D78: 14497 | E78: 13 | F78: 14526 | K78: 0 | L78: 111
A79: 12 | B79: 14707 | C79: 13 | D79: 14719 | E79: 13 | F79: 14756 | K79: 0 | L79: 111
A80: 12 | B80: 15050 | C80: 13 | D80: 15092 | E80: 13 | F80: 15134 | K80: 0 | L80: 111
A81: 12 | B81: 15426 | C81: 13 | D81: 15463 | E81: 13 | F81: 15538 | K81: 0 | L81: 111
A82: 12 | B82: 15775 | C82: 13 | D82: 15867 | E82: 13 | F82: 15946 | K82: 0 | L82: 111
A83: 21 | B83: 16153 | C83: 11 | D83: 16176 | E83: 11 | F83: 16209 | K83: 0 | L83: 211
A84: 12 | B84: 16349 | C84: 13 | D84: 16370 | E84: 13 | F84: 16394 | K84: 0 | L84: 111
A85: 12 | B85: 16502 | C85: 13 | D85: 16514 | E85: 13 | F85: 16539 | K85: 0 | L85: 111
A86: 12 | B86: 16648 | C86: 13 | D86: 16705 | E86: 13 | F86: 16748 | K86: 0 | L86: 111
A87: 12 | B87: 16875 | C87: 13 | D87: 16877 | E87: 13 | F87: 16909 | K87: 0 | L87: 111
A88: 12 | B88: 17127 | C88: 13 | D88: 17236 | E88: 13 | F88: 17266 | K88: 0 | L88: 111
A89: 12 | B89: 17440 | C89: 13 | D89: 17486 | E89: 24 | F89: 17498 | K89: 0 | L89: 112
A90: 12 | B90: 17651 | C90: 13 | D90: 17701 | E90: 13 | F90: 17736 | K90: 0 | L90: 111
A91: 12 | B91: 17889 | C91: 13 | D91: 17930 | E91: 13 | F91: 17963 | K91: 0 | L91: 111
A92: 12 | B92: 18112 | C92: 13 | D92: 18145 | E92: 13 | F92: 18155 | K92: 0 | L92: 111
A93: 12 | B93: 18292 | C93: 13 | D93: 18325 | E93: 13 | F93: 18350 | K93: 0 | L93: 111
A94: 12 | B94: 18479 | C94: 13 | D94: 18498 | E94: 13 | F94: 18510 | K94: 0 | L94: 111
A95: 12 | B95: 18630 | C95: 13 | D95: 18644 | E95: 13 | F95: 18698 | K95: 0 | L95: 111
A96: 12 | B96: 18819 | C96: 13 | D96: 18841 | E96: 13 | F96: 18853 | K96: 0 | L96: 111
A97: 12 | B97: 19001 | C97: 13 | D97: 19093 | E97: 13 | F97: 19119 | K97: 0 | L97: 111
A98: 12 | B98: 19325 | C98: 13 | D98: 19402 | E98: 13 | F98: 19419 | K98: 0 | L98: 111
A99: 12 | B99: 19570 | C99: 13 | D99: 19595 | E99: 13 | F99: 19656 | K99: 0 | L99: 111
A100: 12 | B100: 19810 | C100: 13 | D100: 19839 | E100: 13 | F100: 19854 | K100: 0 | L100: 111
A101: 12 | B101: 19988 | C101: 24 | D101: 20023 | E101: 13 | F101: 20048 | K101: 0 | L101: 121
A102: 12 | B102: 20189 | C102: 13 | D102: 20203 | E102: 13 | F102: 20256 | K102: 0 | L102: 111
A103: 12 | B103: 20400 | C103: 13 | D103: 20421 | E103: 13 | F103: 20445 | K103: 0 | L103: 111
A104: 12 | B104: 20620 | C104: 13 | D104: 20740 | E104: 13 | F104: 20771 | K104: 0 | L104: 111
A105: 12 | B105: 21067 | C105: 13 | D105: 21083 | E105: 13 | F105: 21119 | K105: 0 | L105: 111
A106: 12 | B106: 21346 | C106: 13 | D106: 21359 | E106: 13 | F106: 21430 | K106: 0 | L106: 111
A107: 12 | B107: 21549 | C107: 13 | D107: 21610 | E107: 13 | F107: 21618 | K107: 0 | L107: 111
A108: 12 | B108: 21967 | C108: 13 | D108: 21990 | E108: 13 | F108: 22049 | K108: 0 | L108: 111
A109: 12 | B109: 22224 | C109: 13 | D109: 22249 | E109: 13 | F109: 22275 | K109: 0 | L109: 111
A110: 12 | B110: 22473 | C110: 13 | D110: 22490 | E110: 13 | F110: 22503 | K110: 0 | L110: 111
A111: 12 | B111: 22671 | C111: 13 | D111: 22699 | E111: 24 | F111: 22761 | K111: 0 | L111: 112
A112: 12 | B112: 22964 | C112: 13 | D112: 22979 | E112: 13 | F112: 23013 | K112: 0 | L112: 111
A113: 12 | B113: 23786 | C113: 13 | D113: 23831 | E113: 13 | F113: 23867 | K113: 0 | L113: 111

Sheet !M427A00.183
A1: Report for:!M427A00.183
A2: Date: | B2: <date>
A3: Hen: | B3: <hen> | F3: Correct Sequence | G3: =Start!J2 -> 211 | P3: Total Sequences in Data | Q3: =4994-COUNTBLANK(L7:L5000) -> 110 | V3: Total Sequences in Block Data | W3: =COUNTA(L7:L24) -> 18 | AA3: Total Sequences in Block Data | AB3: =COUNTA(L25:L43) -> 19 | AF3: Total Sequences in Block Data | AG3: =COUNTA(L44:L61) -> 18 | AK3: Total Sequences in Block Data | AL3: =COUNTA(L62:L79) -> 18 | AP3: Total Sequences in Block Data | AQ3: =COUNTA(L80:L98) -> 19 | AU3: Total Sequences in Block Data | AV3: =COUNTA(L99:L116) -> 18
P4: Total Sequences in Summary | Q4: =SUM(O7:O14) -> 110 | V4: Total Sequences in Block Summary | W4: =SUM(U7:U14) -> 18 | AA4: Total Sequences in Block Summary | AB4: =SUM(Z7:Z14) -> 19 | AF4: Total Sequences in Block Summary | AG4: =SUM(AE7:AE14) -> 18 | AK4: Total Sequences in Block Summary | AL4: =SUM(AJ7:AJ14) -> 18 | AP4: Total Sequences in Block Summary | AQ4: =SUM(AO7:AO14) -> 19 | AU4: Total Sequences in Block Summary | AV4: =SUM(AT7:AT14) -> 18
T5: Block 1 | Y5: Block 2 | AD5: Block 3 | AI5: Block 4 | AN5: Block 5 | AS5: Block 6
A6: Sequence Component 1 | B6: Time 1 | C6: Sequence Component 2 | D6: Time 2 | E6: Sequence Component 3 | F6: Time 3 | G6: Sequence Component 4 | H6: Time 4 | I6: Sequence Component 5 | J6: Time 5 | K6: Correct? 0=No 1=Yes | L6: Sequence | N6: Frequency | P6: Relative Frequency | Q6: Variability | T6: Frequency | V6: Relative Frequency | W6: Variability | Y6: Frequency | AA6: Relative Frequency | AB6: Variability | AD6: Frequency | AF6: Relative Frequency | AG6: Variability | AI6: Frequency | AK6: Relative Frequency | AL6: Variability | AN6: Frequency | AP6: Relative Frequency | AQ6: Variability | AS6: Frequency | AU6: Relative Frequency | AV6: Variability
A7: 12 | B7: 76 | C7: 13 | D7: 118 | E7: 13 | F7: 139 | K7: 0 | L7: 111 | N7: 111 | O7: =COUNTIF($L$7:$L$500,N7) -> 41 | P7: =O7/$Q$4 -> 0.3727272727 | Q7: =IF(P7=0,0,(P7*((LOG(P7))/LOG(2)))) -> -0.5306919642 | T7: =N7 -> 111 | U7: =COUNTIF(L7:L24,T7) -> 15 | V7: =U7/(W4-U11) -> 0.8823529412 | W7: =IF(V7=0,0,(V7*((LOG(V7))/LOG(2)))) -> -0.159328452 | Y7: =N7 -> 111 | Z7: =COUNTIF(L25:L43,Y7) -> 4 | AA7: =Z7/(AB4-Z11) -> 0.2105263158 | AB7: =IF(AA7=0,0,(AA7*((LOG(AA7))/LOG(2)))) -> -0.4732478976 | AD7: =N7 -> 111 | AE7: =COUNTIF(L44:L61,AD7) -> 7 | AF7: =AE7/(AG4-AE11) -> 0.3888888889 | AG7: =IF(AF7=0,0,(AF7*((LOG(AF7))/LOG(2)))) -> -0.5298883642 | AI7: =N7 -> 111 | AJ7: =COUNTIF(L62:L79,AI7) -> 5 | AK7: =AJ7/(AL4-AJ11) -> 0.3125 | AL7: =IF(AK7=0,0,(AK7*((LOG(AK7))/LOG(2)))) -> -0.5243974703 | AN7: =N7 -> 111 | AO7: =COUNTIF(L80:L98,AN7) -> 5 | AP7: =AO7/(AQ4-AO11) -> 0.2631578947 | AQ7: =IF(AP7=0,0,(AP7*((LOG(AP7))/LOG(2)))) -> -0.5068419523 | AS7: =N7 -> 111 | AT7: =COUNTIF(L99:L116,AS7) -> 5 | AU7: =AT7/(AV4-AT11) -> 0.3125 | AV7: =IF(AU7=0,0,(AU7*((LOG(AU7))/LOG(2)))) -> -0.5243974703
A8: 12 | B8: 283 | C8: 13 | D8: 298 | E8: 13 | F8: 315 | K8: 0 | L8: 111 | N8: 112 | O8: =COUNTIF($L$7:$L$500,N8) -> 29 | P8: =O8/$Q$4 -> 0.2636363636 | Q8: =IF(P8=0,0,(P8*((LOG(P8))/LOG(2)))) -> -0.5070725712 | T8: =N8 -> 112 | U8: =COUNTIF(L7:L24,T8) -> 2 | V8: =U8/(W4-U11) -> 0.1176470588 | W8: =IF(V8=0,0,(V8*((LOG(V8))/LOG(2)))) -> -0.3632309225 | Y8: =N8 -> 112 | Z8: =COUNTIF(L25:L43,Y8) -> 6 | AA8: =Z8/(AB4-Z11) -> 0.3157894737 | AB8: =IF(AA8=0,0,(AA8*((LOG(AA8))/LOG(2)))) -> -0.5251468461 | AD8: =N8 -> 112 | AE8: =COUNTIF(L44:L61,AD8) -> 6 | AF8: =AE8/(AG4-AE11) -> 0.3333333333 | AG8: =IF(AF8=0,0,(AF8*((LOG(AF8))/LOG(2)))) -> -0.5283208336 | AI8: =N8 -> 112 | AJ8: =COUNTIF(L62:L79,AI8) -> 5 | AK8: =AJ8/(AL4-AJ11) -> 0.3125 | AL8: =IF(AK8=0,0,(AK8*((LOG(AK8))/LOG(2)))) -> -0.5243974703 | AN8: =N8 -> 112 | AO8: =COUNTIF(L80:L98,AN8) -> 8 | AP8: =AO8/(AQ4-AO11) -> 0.4210526316 | AQ8: =IF(AP8=0,0,(AP8*((LOG(AP8))/LOG(2)))) -> -0.5254431636 | AS8: =N8 -> 112 | AT8: =COUNTIF(L99:L116,AS8) -> 2 | AU8: =AT8/(AV4-AT11) -> 0.125 | AV8: =IF(AU8=0,0,(AU8*((LOG(AU8))/LOG(2)))) -> -0.375
A9: 12 | B9: 470 | C9: 13 | D9: 490 | E9: 13 | F9: 550 | K9: 0 | L9: 111 | N9: 121 | O9: =COUNTIF($L$7:$L$500,N9) -> 14 | P9: =O9/$Q$4 -> 0.1272727273 | Q9: =IF(P9=0,0,(P9*((LOG(P9))/LOG(2)))) -> -0.3785097007 | T9: =N9 -> 121 | U9: =COUNTIF(L7:L24,T9) -> 0 | V9: =U9/(W4-U11) -> 0 | W9: =IF(V9=0,0,(V9*((LOG(V9))/LOG(2)))) -> 0 | Y9: =N9 -> 121 | Z9: =COUNTIF(L25:L43,Y9) -> 1 | AA9: =Z9/(AB4-Z11) -> 0.05263157895 | AB9: =IF(AA9=0,0,(AA9*((LOG(AA9))/LOG(2)))) -> -0.2235751323 | AD9: =N9 -> 121 | AE9: =COUNTIF(L44:L61,AD9) -> 2 | AF9: =AE9/(AG4-AE11) -> 0.1111111111 | AG9: =IF(AF9=0,0,(AF9*((LOG(AF9))/LOG(2)))) -> -0.352213889 | AI9: =N9 -> 121 | AJ9: =COUNTIF(L62:L79,AI9) -> 2 | AK9: =AJ9/(AL4-AJ11) -> 0.125 | AL9: =IF(AK9=0,0,(AK9*((LOG(AK9))/LOG(2)))) -> -0.375 | AN9: =N9 -> 121 | AO9: =COUNTIF(L80:L98,AN9) -> 5 | AP9: =AO9/(AQ4-AO11) -> 0.2631578947 | AQ9: =IF(AP9=0,0,(AP9*((LOG(AP9))/LOG(2)))) -> -0.5068419523 | AS9: =N9 -> 121 | AT9: =COUNTIF(L99:L116,AS9) -> 4 | AU9: =AT9/(AV4-AT11) -> 0.25 | AV9: =IF(AU9=0,0,(AU9*((LOG(AU9))/LOG(2)))) -> -0.5
A10: 12 | B10: 664 | C10: 13 | D10: 685 | E10: 13 | F10: 709 | K10: 0 | L10: 111 | N10: 122 | O10: =COUNTIF($L$7:$L$500,N10) -> 16 | P10: =O10/$Q$4 -> 0.1454545455 | Q10: =IF(P10=0,0,(P10*((LOG(P10))/LOG(2)))) -> -0.4045614129 | T10: =N10 -> 122 | U10: =COUNTIF(L7:L24,T10) -> 0 | V10: =U10/(W4-U11) -> 0 | W10: =IF(V10=0,0,(V10*((LOG(V10))/LOG(2)))) -> 0 | Y10: =N10 -> 122 | Z10: =COUNTIF(L25:L43,Y10) -> 7 | AA10: =Z10/(AB4-Z11) -> 0.3684210526 | AB10: =IF(AA10=0,0,(AA10*((LOG(AA10))/LOG(2)))) -> -0.5307372705 | AD10: =N10 -> 122 | AE10: =COUNTIF(L44:L61,AD10) -> 2 | AF10: =AE10/(AG4-AE11) -> 0.1111111111 | AG10: =IF(AF10=0,0,(AF10*((LOG(AF10))/LOG(2)))) -> -0.352213889 | AI10: =N10 -> 122 | AJ10: =COUNTIF(L62:L79,AI10) -> 1 | AK10: =AJ10/(AL4-AJ11) -> 0.0625 | AL10: =IF(AK10=0,0,(AK10*((LOG(AK10))/LOG(2)))) -> -0.25 | AN10: =N10 -> 122 | AO10: =COUNTIF(L80:L98,AN10) -> 1 | AP10: =AO10/(AQ4-AO11) -> 0.05263157895 | AQ10: =IF(AP10=0,0,(AP10*((LOG(AP10))/LOG(2)))) -> -0.2235751323 | AS10: =N10 -> 122 | AT10: =COUNTIF(L99:L116,AS10) -> 5 | AU10: =AT10/(AV4-AT11) -> 0.3125 | AV10: =IF(AU10=0,0,(AU10*((LOG(AU10))/LOG(2)))) -> -0.5243974703
A11: 12 | B11: 840 | C11: 13 | D11: 868 | E11: 13 | F11: 904 | K11: 0 | L11: 111 | N11: 211 | O11: =COUNTIF($L$7:$L$500,N11) -> 5 | P11: =O11/$Q$4 -> 0.04545454545 | Q11: =IF(P11=0,0,(P11*((LOG(P11))/LOG(2)))) -> -0.2027014372 | T11: =N11 -> 211 | U11: =COUNTIF(L7:L24,T11) -> 1 | Y11: =N11 -> 211 | Z11: =COUNTIF(L25:L43,Y11) -> 0 | AD11: =N11 -> 211 | AE11: =COUNTIF(L44:L61,AD11) -> 0 | AI11: =N11 -> 211 | AJ11: =COUNTIF(L62:L79,AI11) -> 2 | AN11: =N11 -> 211 | AO11: =COUNTIF(L80:L98,AN11) -> 0 | AS11: =N11 -> 211 | AT11: =COUNTIF(L99:L116,AS11) -> 2
A12: 12 | B12: 1072 | C12: 13 | D12: 1100 | E12: 13 | F12: 1117 | K12: 0 | L12: 111 | N12: 212 | O12: =COUNTIF($L$7:$L$500,N12) -> 4 | P12: =O12/$Q$4 -> 0.03636363636 | Q12: =IF(P12=0,0,(P12*((LOG(P12))/LOG(2)))) -> -0.1738676259 | T12: =N12 -> 212 | U12: =COUNTIF(L7:L24,T12) -> 0 | V12: =U12/(W4-U11) -> 0 | W12: =IF(V12=0,0,(V12*((LOG(V12))/LOG(2)))) -> 0 | Y12: =N12 -> 212 | Z12: =COUNTIF(L25:L43,Y12) -> 1 | AA12: =Z12/(AB4-Z11) -> 0.05263157895 | AB12: =IF(AA12=0,0,(AA12*((LOG(AA12))/LOG(2)))) -> -0.2235751323 | AD12: =N12 -> 212 | AE12: =COUNTIF(L44:L61,AD12) -> 1 | AF12: =AE12/(AG4-AE11) -> 0.05555555556 | AG12: =IF(AF12=0,0,(AF12*((LOG(AF12))/LOG(2)))) -> -0.2316625001 | AI12: =N12 -> 212 | AJ12: =COUNTIF(L62:L79,AI12) -> 2 | AK12: =AJ12/(AL4-AJ11) -> 0.125 | AL12: =IF(AK12=0,0,(AK12*((LOG(AK12))/LOG(2)))) -> -0.375 | AN12: =N12 -> 212 | AO12: =COUNTIF(L80:L98,AN12) -> 0 | AP12: =AO12/(AQ4-AO11) -> 0 | AQ12: =IF(AP12=0,0,(AP12*((LOG(AP12))/LOG(2)))) -> 0 | AS12: =N12 -> 212 | AT12: =COUNTIF(L99:L116,AS12) -> 0 | AU12: =AT12/(AV4-AT11) -> 0 | AV12: =IF(AU12=0,0,(AU12*((LOG(AU12))/LOG(2)))) -> 0
A13: 12 | B13: 1264 | C13: 13 | D13: 1294 | E13: 24 | F13: 1313 | K13: 0 | L13: 112 | N13: 221 | O13: =COUNTIF($L$7:$L$500,N13) -> 1 | P13: =O13/$Q$4 -> 0.009090909091 | Q13: =IF(P13=0,0,(P13*((LOG(P13))/LOG(2)))) -> -0.06164872467 | T13: =N13 -> 221 | U13: =COUNTIF(L7:L24,T13) -> 0 | V13: =U13/(W4-U11) -> 0 | W13: =IF(V13=0,0,(V13*((LOG(V13))/LOG(2)))) -> 0 | Y13: =N13 -> 221 | Z13: =COUNTIF(L25:L43,Y13) -> 0 | AA13: =Z13/(AB4-Z11) -> 0 | AB13: =IF(AA13=0,0,(AA13*((LOG(AA13))/LOG(2)))) -> 0 | AD13: =N13 -> 221 | AE13: =COUNTIF(L44:L61,AD13) -> 0 | AF13: =AE13/(AG4-AE11) -> 0 | AG13: =IF(AF13=0,0,(AF13*((LOG(AF13))/LOG(2)))) -> 0 | AI13: =N13 -> 221 | AJ13: =COUNTIF(L62:L79,AI13) -> 1 | AK13: =AJ13/(AL4-AJ11) -> 0.0625 | AL13: =IF(AK13=0,0,(AK13*((LOG(AK13))/LOG(2)))) -> -0.25 | AN13: =N13 -> 221 | AO13: =COUNTIF(L80:L98,AN13) -> 0 | AP13: =AO13/(AQ4-AO11) -> 0 | AQ13: =IF(AP13=0,0,(AP13*((LOG(AP13))/LOG(2)))) -> 0 | AS13: =N13 -> 221 | AT13: =COUNTIF(L99:L116,AS13) -> 0 | AU13: =AT13/(AV4-AT11) -> 0 | AV13: =IF(AU13=0,0,(AU13*((LOG(AU13))/LOG(2)))) -> 0
A14: 12 | B14: 1455 | C14: 13 | D14: 1471 | E14: 13 | F14: 1487 | K14: 0 | L14: 111 | N14: 222 | O14: =COUNTIF($L$7:$L$500,N14) -> 0 | P14: =O14/$Q$4 -> 0 | Q14: =IF(P14=0,0,(P14*((LOG(P14))/LOG(2)))) -> 0 | T14: =N14 -> 222 | U14: =COUNTIF(L7:L24,T14) -> 0 | V14: =U14/(W4-U11) -> 0 | W14: =IF(V14=0,0,(V14*((LOG(V14))/LOG(2)))) -> 0 | Y14: =N14 -> 222 | Z14: =COUNTIF(L25:L43,Y14) -> 0 | AA14: =Z14/(AB4-Z11) -> 0 | AB14: =IF(AA14=0,0,(AA14*((LOG(AA14))/LOG(2)))) -> 0 | AD14: =N14 -> 222 | AE14: =COUNTIF(L44:L61,AD14) -> 0 | AF14: =AE14/(AG4-AE11) -> 0 | AG14: =IF(AF14=0,0,(AF14*((LOG(AF14))/LOG(2)))) -> 0 | AI14: =N14 -> 222 | AJ14: =COUNTIF(L62:L79,AI14) -> 0 | AK14: =AJ14/(AL4-AJ11) -> 0 | AL14: =IF(AK14=0,0,(AK14*((LOG(AK14))/LOG(2)))) -> 0 | AN14: =N14 -> 222 | AO14: =COUNTIF(L80:L98,AN14) -> 0 | AP14: =AO14/(AQ4-AO11) -> 0 | AQ14: =IF(AP14=0,0,(AP14*((LOG(AP14))/LOG(2)))) -> 0 | AS14: =N14 -> 222 | AT14: =COUNTIF(L99:L116,AS14) -> 0 | AU14: =AT14/(AV4-AT11) -> 0 | AV14: =IF(AU14=0,0,(AU14*((LOG(AU14))/LOG(2)))) -> 0
A15: 12 | B15: 1620 | C15: 13 | D15: 1637 | E15: 13 | F15: 1667 | K15: 0 | L15: 111 | P15: =SUM(P7:P14) -> 1 | Q15: =-SUM(Q7:Q14) -> 2.259053437 | V15: =SUM(V7:V14) -> 1 | W15: =-SUM(W7:W14) -> 0.5225593745 | AA15: =SUM(AA7:AA14) -> 1 | AB15: =-SUM(AB7:AB14) -> 1.976282279 | AF15: =SUM(AF7:AF14) -> 1 | AG15: =-SUM(AG7:AG14) -> 1.994299476 | AK15: =SUM(AK7:AK14) -> 1 | AL15: =-SUM(AL7:AL14) -> 2.298794941 | AP15: =SUM(AP7:AP14) -> 1 | AQ15: =-SUM(AQ7:AQ14) -> 1.7627022 | AU15: =SUM(AU7:AU14) -> 1 | AV15: =-SUM(AV7:AV14) -> 1.923794941
A16: 12 | B16: 1790 | C16: 13 | D16: 1831 | E16: 13 | F16: 1857 | K16: 0 | L16: 111 | P16: U= | Q16: =Q15/(LOG(Q4)/LOG(2)) -> 0.3331269144 | V16: U1= | W16: =W15/(LOG(W4)/LOG(2)) -> 0.1253162525 | AA16: U2= | AB16: =AB15/(LOG(AB4)/LOG(2)) -> 0.4652344638 | AF16: U3= | AG16: =AG15/(LOG(AG4)/LOG(2)) -> 0.4782578764 | AK16: U4= | AL16: =AL15/(LOG(AL4)/LOG(2)) -> 0.5512796849 | AP16: U5= | AQ16: =AQ15/(LOG(AQ4)/LOG(2)) -> 0.4149558096 | AU16: U6= | AV16: =AV15/(LOG(AV4)/LOG(2)) -> 0.4613500099
A17: 12 | B17: 1985 | C17: 13 | D17: 2000 | E17: 13 | F17: 2037 | K17: 0 | L17: 111
A18: 12 | B18: 2237 | C18: 13 | D18: 2270 | E18: 13 | F18: 2286 | K18: 0 | L18: 111
A19: 12 | B19: 2458 | C19: 13 | D19: 2502 | E19: 24 | F19: 2521 | K19: 0 | L19: 112 | N19: Total Target Seq
A20: 12 | B20: 2631 | C20: 13 | D20: 2648 | E20: 13 | F20: 2673 | K20: 0 | L20: 111 | N20: =COUNTIF(L7:L116,G3) -> 5 | P20: 18 | Q20: 19 | R20: 18 | S20: 18 | T20: 19 | U20: 18
A21: 12 | B21: 2814 | C21: 13 | D21: 2832 | E21: 13 | F21: 2856 | K21: 0 | L21: 111 | P21: % of reinforcement given in 6 equal intervals based on number of trials
A22: 21 | B22: 2970 | C22: 11 | D22: 2993 | E22: 11 | F22: 3037 | K22: 0 | L22: 211 | P22: %_1 | Q22: %_2 | R22: %_3 | S22: %_4 | T22: %_5 | U22: %_6
A23: 12 | B23: 3158 | C23: 13 | D23: 3183 | E23: 13 | F23: 3249 | K23: 0 | L23: 111 | O23: target sequence | P23: =$G$3 -> 211 | Q23: =$G$3 -> 211 | R23: =$G$3 -> 211 | S23: =$G$3 -> 211 | T23: =$G$3 -> 211 | U23: =$G$3 -> 211
A24: 12 | B24: 3354 | C24: 13 | D24: 3375 | E24: 13 | F24: 3401 | K24: 0 | L24: 111 | O24: total reinforcement | P24: =U11 -> 1 | Q24: =Z11 -> 0 | R24: =AE11 -> 0 | S24: =AJ11 -> 2 | T24: =AO11 -> 0 | U24: =AT11 -> 2
A25: 12 | B25: 3513 | C25: 13 | D25: 3515 | E25: 24 | F25: 3559 | K25: 0 | L25: 112 | O25: % target
A26: 12 | B26: 3691 | C26: 13 | D26: 3733 | E26: 13 | F26: 3798 | K26: 0 | L26: 111 | O26: CCRF
A27: 12 | B27: 3920 | C27: 13 | D27: 3992 | E27: 24 | F27: 4046 | K27: 0 | L27: 112 | O27: % CCRf
A28: 12 | B28: 4196 | C28: 13 | D28: 4209 | E28: 24 | F28: 4233 | K28: 0 | L28: 112 | O28: average response rate | P28: =F24/P20 -> 188.9444444 | Q28: =(F43-F24)/Q20 -> 177.5789474 | R28: =(F61-F43)/R20 -> 243.9444444 | S28: =(F79-F61)/S20 -> 298.1111111 | T28: =(F98-F79)/T20 -> 196.1578947 | U28: =(F116-F98)/U20 -> 202.2222222
A29: 12 | B29: 4350 | C29: 13 | D29: 4352 | E29: 24 | F29: 4364 | K29: 0 | L29: 112
A30: 12 | B30: 4486 | C30: 13 | D30: 4532 | E30: 24 | F30: 4583 | K30: 0 | L30: 112
A31: 12 | B31: 4702 | C31: 13 | D31: 4732 | E31: 13 | F31: 4745 | K31: 0 | L31: 111
A32: 12 | B32: 4875 | C32: 24 | D32: 4887 | E32: 24 | F32: 4900 | K32: 0 | L32: 122
A33: 12 | B33: 5023 | C33: 13 | D33: 5035 | E33: 24 | F33: 5053 | K33: 0 | L33: 112
A34: 12 | B34: 5151 | C34: 24 | D34: 5164 | E34: 13 | F34: 5208 | K34: 0 | L34: 121
A35: 12 | B35: 5307 | C35: 24 | D35: 5320 | E35: 24 | F35: 5354 | K35: 0 | L35: 122
A36: 12 | B36: 5452 | C36: 24 | D36: 5465 | E36: 24 | F36: 5483 | K36: 0 | L36: 122
A37: 12 | B37: 5591 | C37: 24 | D37: 5604 | E37: 24 | F37: 5626 | K37: 0 | L37: 122
A38: 21 | B38: 5826 | C38: 11 | D38: 5863 | E38: 22 | F38: 5875 | K38: 0 | L38: 212
A39: 12 | B39: 5984 | C39: 24 | D39: 6001 | E39: 24 | F39: 6018 | K39: 0 | L39: 122
A40: 12 | B40: 6127 | C40: 13 | D40: 6147 | E40: 13 | F40: 6173 | K40: 0 | L40: 111
A41: 12 | B41: 6295 | C41: 24 | D41: 6308 | E41: 24 | F41: 6320 | K41: 0 | L41: 122
A42: 12 | B42: 6480 | C42: 24 | D42: 6502 | E42: 24 | F42: 6537 | K42: 0 | L42: 122
A43: 12 | B43: 6695 | C43: 13 | D43: 6714 | E43: 13 | F43: 6775 | K43: 0 | L43: 111
A44: 12 | B44: 6935 | C44: 24 | D44: 6948 | E44: 24 | F44: 6958 | K44: 0 | L44: 122
A45: 12 | B45: 7070 | C45: 24 | D45: 7099 | E45: 13 | F45: 7127 | K45: 0 | L45: 121
A46: 12 | B46: 7303 | C46: 24 | D46: 7362 | E46: 24 | F46: 7386 | K46: 0 | L46: 122
A47: 12 | B47: 7530 | C47: 13 | D47: 7559 | E47: 24 | F47: 7586 | K47: 0 | L47: 112
A48: 21 | B48: 7788 | C48: 11 | D48: 7801 | E48: 22 | F48: 7812 | K48: 0 | L48: 212
A49: 12 | B49: 7980 | C49: 13 | D49: 8002 | E49: 24 | F49: 8016 | K49: 0 | L49: 112
A50: 12 | B50: 8141 | C50: 13 | D50: 8160 | E50: 13 | F50: 8199 | K50: 0 | L50: 111
A51: 12 | B51: 8373 | C51: 13 | D51: 8427 | E51: 24 | F51: 8445 | K51: 0 | L51: 112
A52: 12 | B52: 8556 | C52: 13 | D52: 8569 | E52: 24 | F52: 8603 | K52: 0 | L52: 112
A53: 12 | B53: 8732 | C53: 13 | D53: 8790 | E53: 13 | F53: 8864 | K53: 0 | L53: 111
A54: 12 | B54: 9046 | C54: 13 | D54: 9062 | E54: 13 | F54: 9087 | K54: 0 | L54: 111
A55: 12 | B55: 9351 | C55: 24 | D55: 9365 | E55: 13 | F55: 9391 | K55: 0 | L55: 121
A56: 12 | B56: 9552 | C56: 13 | D56: 9576 | E56: 13 | F56: 9598 | K56: 0 | L56: 111
A57: 12 | B57: 9905 | C57: 13 | D57: 9934 | E57: 24 | F57: 9960 | K57: 0 | L57: 112
A58: 12 | B58: 10145 | C58: 13 | D58: 10165 | E58: 13 | F58: 10181 | K58: 0 | L58: 111
A59: 12 | B59: 10372 | C59: 13 | D59: 10402 | E59: 13 | F59: 10447 | K59: 0 | L59: 111
A60: 12 | B60: 10618 | C60: 13 | D60: 10645 | E60: 24 | F60: 10668 | K60: 0 | L60: 112
A61: 12 | B61: 11047 | C61: 13 | D61: 11133 | E61: 13 | F61: 11166 | K61: 0 | L61: 111
A62: 12 | B62: 11293 | C62: 13 | D62: 11423 | E62: 13 | F62: 11454 | K62: 0 | L62: 111
A63: 12 | B63: 11583 | C63: 13 | D63: 11647 | E63: 24 | F63: 11709 | K63: 0 | L63: 112
A64: 12 | B64: 11890 | C64: 13 | D64: 11914 | E64: 13 | F64: 11939 | K64: 0 | L64: 111
A65: 12 | B65: 12173 | C65: 13 | D65: 12199 | E65: 24 | F65: 12224 | K65: 0 | L65: 112
A66: 12 | B66: 12588 | C66: 13 | D66: 12614 | E66: 13 | F66: 12668 | K66: 0 | L66: 111
A67: 12 | B67: 12889 | C67: 24 | D67: 12903 | E67: 13 | F67: 12927 | K67: 0 | L67: 121
A68: 21 | B68: 13387 | C68: 11 | D68: 13469 | E68: 22 | F68: 13510 | K68: 0 | L68: 212
A69: 12 | B69: 13617 | C69: 13 | D69: 13634 | E69: 13 | F69: 13648 | K69: 0 | L69: 111
A70: 12 | B70: 13811 | C70: 13 | D70: 13834 | E70: 13 | F70: 13865 | K70: 0 | L70: 111
A71: 12 | B71: 14458 | C71: 24 | D71: 14475 | E71: 13 | F71: 14492 | K71: 0 | L71: 121
A72: 12 | B72: 14618 | C72: 13 | D72: 14674 | E72: 24 | F72: 14691 | K72: 0 | L72: 112
A73: 21 | B73: 15369 | C73: 11 | D73: 15389 | E73: 11 | F73: 15408 | K73: 0 | L73: 211
A74: 21 | B74: 15573 | C74: 11 | D74: 15630 | E74: 22 | F74: 15647 | K74: 0 | L74: 212
A75: 21 | B75: 15821 | C75: 11 | D75: 15855 | E75: 11 | F75: 15893 | K75: 0 | L75: 211
A76: 12 | B76: 16004 | C76: 24 | D76: 16034 | E76: 24 | F76: 16043 | K76: 0 | L76: 122
A77: 21 | B77: 16161 | C77: 22 | D77: 16174 | E77: 13 | F77: 16217 | K77: 0 | L77: 221
A78: 12 | B78: 16323 | C78: 13 | D78: 16347 | E78: 24 | F78: 16372 | K78: 0 | L78: 112
A79: 12 | B79: 16490 | C79: 13 | D79: 16519 | E79: 24 | F79: 16532 | K79: 0 | L79: 112
A80: 12 | B80: 16644 | C80: 13 | D80: 16657 | E80: 24 | F80: 16711 | K80: 0 | L80: 112
A81: 12 | B81: 16834 | C81: 13 | D81: 16860 | E81: 13 | F81: 16873 | K81: 0 | L81: 111
A82: 12 | B82: 17016 | C82: 13 | D82: 17032 | E82: 13 | F82: 17045 | K82: 0 | L82: 111
A83: 12 | B83: 17186 | C83: 24 | D83: 17210 | E83: 13 | F83: 17232 | K83: 0 | L83: 121
A84: 12 | B84: 17357 | C84: 13 | D84: 17414 | E84: 13 | F84: 17452 | K84: 0 | L84: 111
A85: 12 | B85: 17587 | C85: 13 | D85: 17609 | E85: 13 | F85: 17647 | K85: 0 | L85: 111
A86: 12 | B86: 17789 | C86: 13 | D86: 17843 | E86: 24 | F86: 17863 | K86: 0 | L86: 112
A87: 12 | B87: 17991 | C87: 13 | D87: 18009 | E87: 24 | F87: 18020 | K87: 0 | L87: 112
A88: 12 | B88: 18245 | C88: 24 | D88: 18265 | E88: 13 | F88: 18286 | K88: 0 | L88: 121
A89: 12 | B89: 18423 | C89: 24 | D89: 18476 | E89: 13 | F89: 18492 | K89: 0 | L89: 121
A90: 12 | B90: 18622 | C90: 13 | D90: 18638 | E90: 24 | F90: 18652 | K90: 0 | L90: 112
A91: 12 | B91: 18774 | C91: 24 | D91: 18830 | E91: 13 | F91: 18863 | K91: 0 | L91: 121
A92: 12 | B92: 19143 | C92: 13 | D92: 19191 | E92: 24 | F92: 19208 | K92: 0 | L92: 112
A93: 12 | B93: 19345 | C93: 13 | D93: 19360 | E93: 24 | F93: 19376 | K93: 0 | L93: 112
A94: 12 | B94: 19503 | C94: 13 | D94: 19519 | E94: 13 | F94: 19582 | K94: 0 | L94: 111
A95: 12 | B95: 19731 | C95: 13 | D95: 19745 | E95: 24 | F95: 19758 | K95: 0 | L95: 112
A96: 12 | B96: 19908 | C96: 13 | D96: 19932 | E96: 24 | F96: 19945 | K96: 0 | L96: 112
A97: 12 | B97: 20052 | C97: 24 | D97: 20067 | E97: 24 | F97: 20075 | K97: 0 | L97: 122
A98: 12 | B98: 20188 | C98: 24 | D98: 20231 | E98: 13 | F98: 20259 | K98: 0 | L98: 121
A99: 12 | B99: 20412 | C99: 24 | D99: 20425 | E99: 24 | F99: 20440 | K99: 0 | L99: 122
A100: 12 | B100: 20657 | C100: 24 | D100: 20672 | E100: 24 | F100: 20680 | K100: 0 | L100: 122
A101: 21 | B101: 20837 | C101: 11 | D101: 20859 | E101: 11 | F101: 20888 | K101: 0 | L101: 211
A102: 12 | B102: 21025 | C102: 24 | D102: 21047 | E102: 13 | F102: 21077 | K102: 0 | L102: 121
A103: 12 | B103: 21270 | C103: 24 | D103: 21287 | E103: 24 | F103: 21311 | K103: 0 | L103: 122
A104: 12 | B104: 21448 | C104: 24 | D104: 21463 | E104: 13 | F104: 21493 | K104: 0 | L104: 121
A105: 12 | B105: 21600 | C105: 13 | D105: 21623 | E105: 13 | F105: 21663 | K105: 0 | L105: 111
A106: 12 | B106: 21777 | C106: 24 | D106: 21837 | E106: 13 | F106: 21872 | K106: 0 | L106: 121
A107: 12 | B107: 22015 | C107: 13 | D107: 22056 | E107: 13 | F107: 22085 | K107: 0 | L107: 111
A108: 12 | B108: 22202 | C108: 24 | D108: 22236 | E108: 24 | F108: 22253 | K108: 0 | L108: 122
A109: 12 | B109: 22375 | C109: 13 | D109: 22386 | E109: 24 | F109: 22400 | K109: 0 | L109: 112
A110: 12 | B110: 22517 | C110: 13 | D110: 22538 | E110: 13 | F110: 22558 | K110: 0 | L110: 111
A111: 12 | B111: 22726 | C111: 13 | D111: 22757 | E111: 13 | F111: 22802 | K111: 0 | L111: 111
A112: 12 | B112: 22951 | C112: 24 | D112: 22978 | E112: 24 | F112: 23008 | K112: 0 | L112: 122
A113: 12 | B113: 23214 | C113: 13 | D113: 23241 | E113: 24 | F113: 23252 | K113: 0 | L113: 112
A114: 12 | B114: 23424 | C114: 13 | D114: 23446 | E114: 13 | F114: 23479 | K114: 0 | L114: 111
A115: 12 | B115: 23691 | C115: 24 | D115: 23709 | E115: 13 | F115: 23725 | K115: 0 | L115: 121
A116: 21 | B116: 23861 | C116: 11 | D116: 23872 | E116: 11 | F116: 23899 | K116: 0 | L116: 211

Sheet !M428850.183
A1: Report for:!M428850.183
A2: Date: | B2: <date>
A3: Hen: | B3: <hen> | F3: Correct Sequence | G3: =Start!J2 -> 211 | P3: Total Sequences in Data | Q3: =4994-COUNTBLANK(L7:L5000) -> 117 | V3: Total Sequences in Block Data | W3: =COUNTA(L7:L26) -> 20 | AA3: Total Sequences in Block Data | AB3: =COUNTA(L27:L45) -> 19 | AF3: Total Sequences in Block Data | AG3: =COUNTA(L46:L65) -> 20 | AK3: Total Sequences in Block Data | AL3: =COUNTA(L66:L84) -> 19 | AP3: Total Sequences in Block Data | AQ3: =COUNTA(L85:L104) -> 20 | AU3: Total Sequences in Block Data | AV3: =COUNTA(L105:L123) -> 19
P4: Total Sequences in Summary | Q4: =SUM(O7:O14) -> 116 | V4: Total Sequences in Block Summary | W4: =SUM(U7:U14) -> 20 | AA4: Total Sequences in Block Summary | AB4: =SUM(Z7:Z14) -> 19 | AF4: Total Sequences in Block Summary | AG4: =SUM(AE7:AE14) -> 20 | AK4: Total Sequences in Block Summary | AL4: =SUM(AJ7:AJ14) -> 19 | AP4: Total Sequences in Block Summary | AQ4: =SUM(AO7:AO14) -> 20 | AU4: Total Sequences in Block Summary | AV4: =SUM(AT7:AT14) -> 18
T5: Block 1 | Y5: Block 2 | AD5: Block 3 | AI5: Block 4 | AN5: Block 5 | AS5: Block 6
A6: Sequence Component 1 | B6: Time 1 | C6: Sequence Component 2 | D6: Time 2 | E6: Sequence Component 3 | F6: Time 3 | G6: Sequence Component 4 | H6: Time 4 | I6: Sequence Component 5 | J6: Time 5 | K6: Correct? 0=No 1=Yes | L6: Sequence | N6: Frequency | P6: Relative Frequency | Q6: Variability | T6: Frequency | V6: Relative Frequency | W6: Variability | Y6: Frequency | AA6: Relative Frequency | AB6: Variability | AD6: Frequency | AF6: Relative Frequency | AG6: Variability | AI6: Frequency | AK6: Relative Frequency | AL6: Variability | AN6: Frequency | AP6: Relative Frequency | AQ6: Variability | AS6: Frequency | AU6: Relative Frequency | AV6: Variability
A7: 12 | B7: 30 | C7: 24 | D7: 46 | E7: 13 | F7: 70 | K7: 0 | L7: 121 | N7: 111 | O7: =COUNTIF($L$7:$L$500,N7) -> 55 | P7: =O7/$Q$4 -> 0.474137931 | Q7: =IF(P7=0,0,(P7*((LOG(P7))/LOG(2)))) -> -0.510466987 | T7: =N7 -> 111 | U7: =COUNTIF(L7:L26,T7) -> 4 | V7: =U7/(W4-U11) -> 0.2 | W7: =IF(V7=0,0,(V7*((LOG(V7))/LOG(2)))) -> -0.464385619 | Y7: =N7 -> 111 | Z7: =COUNTIF(L27:L45,Y7) -> 10 | AA7: =Z7/(AB4-Z11) -> 0.5882352941 | AB7: =IF(AA7=0,0,(AA7*((LOG(AA7))/LOG(2)))) -> -0.4503145567 | AD7: =N7 -> 111 | AE7: =COUNTIF(L46:L65,AD7) -> 10 | AF7: =AE7/(AG4-AE11) -> 0.5 | AG7: =IF(AF7=0,0,(AF7*((LOG(AF7))/LOG(2)))) -> -0.5 | AI7: =N7 -> 111 | AJ7: =COUNTIF(L66:L84,AI7) -> 11 | AK7: =AJ7/(AL4-AJ11) -> 0.5789473684 | AL7: =IF(AK7=0,0,(AK7*((LOG(AK7))/LOG(2)))) -> -0.4564976233 | AN7: =N7 -> 111 | AO7: =COUNTIF(L85:L104,AN7) -> 12 | AP7: =AO7/(AQ4-AO11) -> 0.6666666667 | AQ7: =IF(AP7=0,0,(AP7*((LOG(AP7))/LOG(2)))) -> -0.3899750005 | AS7: =N7 -> 111 | AT7: =COUNTIF(L105:L123,AS7) -> 8 | AU7: =AT7/(AV4-AT11) -> 0.5 | AV7: =IF(AU7=0,0,(AU7*((LOG(AU7))/LOG(2)))) -> -0.5
A8: 12 | B8: 195 | C8: 24 | D8: 207 | E8: 24 | F8: 260 | K8: 0 | L8: 122 | N8: 112 | O8: =COUNTIF($L$7:$L$500,N8) -> 22 | P8: =O8/$Q$4 -> 0.1896551724 | Q8: =IF(P8=0,0,(P8*((LOG(P8))/LOG(2)))) -> -0.4548972955 | T8: =N8 -> 112 | U8: =COUNTIF(L7:L26,T8) -> 3 | V8: =U8/(W4-U11) -> 0.15 | W8: =IF(V8=0,0,(V8*((LOG(V8))/LOG(2)))) -> -0.4105448391 | Y8: =N8 -> 112 | Z8: =COUNTIF(L27:L45,Y8) -> 5 | AA8: =Z8/(AB4-Z11) -> 0.2941176471 | AB8: =IF(AA8=0,0,(AA8*((LOG(AA8))/LOG(2)))) -> -0.5192749254 | AD8: =N8 -> 112 | AE8: =COUNTIF(L46:L65,AD8) -> 5 | AF8: =AE8/(AG4-AE11) -> 0.25 | AG8: =IF(AF8=0,0,(AF8*((LOG(AF8))/LOG(2)))) -> -0.5 | AI8: =N8 -> 112 | AJ8: =COUNTIF(L66:L84,AI8) -> 2 | AK8: =AJ8/(AL4-AJ11) -> 0.1052631579 | AL8: =IF(AK8=0,0,(AK8*((LOG(AK8))/LOG(2)))) -> -0.3418871067 | AN8: =N8 -> 112 | AO8: =COUNTIF(L85:L104,AN8) -> 3 | AP8: =AO8/(AQ4-AO11) -> 0.1666666667 | AQ8: =IF(AP8=0,0,(AP8*((LOG(AP8))/LOG(2)))) -> -0.4308270835 | AS8: =N8 -> 112 | AT8: =COUNTIF(L105:L123,AS8) -> 4 | AU8: =AT8/(AV4-AT11) -> 0.25 | AV8: =IF(AU8=0,0,(AU8*((LOG(AU8))/LOG(2)))) -> -0.5
A9: 12 | B9: 359 | C9: 24 | D9: 372 | E9: 24 | F9: 389 | K9: 0 | L9: 122 | N9: 121 | O9: =COUNTIF($L$7:$L$500,N9) -> 24 | P9: =O9/$Q$4 -> 0.2068965517 | Q9: =IF(P9=0,0,(P9*((LOG(P9))/LOG(2)))) -> -0.4702796885 | T9: =N9 -> 121 | U9: =COUNTIF(L7:L26,T9) -> 6 | V9: =U9/(W4-U11) -> 0.3 | W9: =IF(V9=0,0,(V9*((LOG(V9))/LOG(2)))) -> -0.5210896782 | Y9: =N9 -> 121 | Z9: =COUNTIF(L27:L45,Y9) -> 1 | AA9: =Z9/(AB4-Z11) -> 0.05882352941 | AB9: =IF(AA9=0,0,(AA9*((LOG(AA9))/LOG(2)))) -> -0.2404389907 | AD9: =N9 -> 121 | AE9: =COUNTIF(L46:L65,AD9) -> 5 | AF9: =AE9/(AG4-AE11) -> 0.25 | AG9: =IF(AF9=0,0,(AF9*((LOG(AF9))/LOG(2)))) -> -0.5 | AI9: =N9 -> 121 | AJ9: =COUNTIF(L66:L84,AI9) -> 5 | AK9: =AJ9/(AL4-AJ11) -> 0.2631578947 | AL9: =IF(AK9=0,0,(AK9*((LOG(AK9))/LOG(2)))) -> -0.5068419523 | AN9: =N9 -> 121 | AO9: =COUNTIF(L85:L104,AN9) -> 3 | AP9: =AO9/(AQ4-AO11) -> 0.1666666667 | AQ9: =IF(AP9=0,0,(AP9*((LOG(AP9))/LOG(2)))) -> -0.4308270835 | AS9: =N9 -> 121 | AT9: =COUNTIF(L105:L123,AS9) -> 4 | AU9: =AT9/(AV4-AT11) -> 0.25 | AV9: =IF(AU9=0,0,(AU9*((LOG(AU9))/LOG(2)))) -> -0.5
A10: 21 | B10: 491 | C10: 22 | D10: 504 | E10: 24 | F10: 512 | K10: 0 | L10: 222 | N10: 122 | O10: =COUNTIF($L$7:$L$500,N10) -> 8 | P10: =O10/$Q$4 -> 0.06896551724 | Q10: =IF(P10=0,0,(P10*((LOG(P10))/LOG(2)))) -> -0.2660676548 | T10: =N10 -> 122 | U10: =COUNTIF(L7:L26,T10) -> 6 | V10: =U10/(W4-U11) -> 0.3 | W10: =IF(V10=0,0,(V10*((LOG(V10))/LOG(2)))) -> -0.5210896782 | Y10: =N10 -> 122 | Z10: =COUNTIF(L27:L45,Y10) -> 1 | AA10: =Z10/(AB4-Z11) -> 0.05882352941 | AB10: =IF(AA10=0,0,(AA10*((LOG(AA10))/LOG(2)))) -> -0.2404389907 | AD10: =N10 -> 122 | AE10: =COUNTIF(L46:L65,AD10) -> 0 | AF10: =AE10/(AG4-AE11) -> 0 | AG10: =IF(AF10=0,0,(AF10*((LOG(AF10))/LOG(2)))) -> 0 | AI10: =N10 -> 122 | AJ10: =COUNTIF(L66:L84,AI10) -> 1 | AK10: =AJ10/(AL4-AJ11) -> 0.05263157895 | AL10: =IF(AK10=0,0,(AK10*((LOG(AK10))/LOG(2)))) -> -0.2235751323 | AN10: =N10 -> 122 | AO10: =COUNTIF(L85:L104,AN10) -> 0 | AP10: =AO10/(AQ4-AO11) -> 0 | AQ10: =IF(AP10=0,0,(AP10*((LOG(AP10))/LOG(2)))) -> 0 | AS10: =N10 -> 122 | AT10: =COUNTIF(L105:L123,AS10) -> 0 | AU10: =AT10/(AV4-AT11) -> 0 | AV10: =IF(AU10=0,0,(AU10*((LOG(AU10))/LOG(2)))) -> 0
A11: 12 | B11: 611 | C11: 24 | D11: 624 | E11: 13 | F11: 639 | K11: 0 | L11: 121 | N11: 211 | O11: =COUNTIF($L$7:$L$500,N11) -> 6 | P11: =O11/$Q$4 -> 0.05172413793 | Q11: =IF(P11=0,0,(P11*((LOG(P11))/LOG(2)))) -> -0.221018198 | T11: =N11 -> 211 | U11: =COUNTIF(L7:L26,T11) -> 0 | Y11: =N11 -> 211 | Z11: =COUNTIF(L27:L45,Y11) -> 2 | AD11: =N11 -> 211 | AE11: =COUNTIF(L46:L65,AD11) -> 0 | AI11: =N11 -> 211 | AJ11: =COUNTIF(L66:L84,AI11) -> 0 | AN11: =N11 -> 211 | AO11: =COUNTIF(L85:L104,AN11) -> 2 | AS11: =N11 -> 211 | AT11: =COUNTIF(L105:L123,AS11) -> 2
A12: 12 | B12: 738 | C12: 24 | D12: 749 | E12: 24 | F12: 761 | K12: 0 | L12: 122 | N12: 212 | O12: =COUNTIF($L$7:$L$500,N12) -> 0 | P12: =O12/$Q$4 -> 0 | Q12: =IF(P12=0,0,(P12*((LOG(P12))/LOG(2)))) -> 0 | T12: =N12 -> 212 | U12: =COUNTIF(L7:L26,T12) -> 0 | V12: =U12/(W4-U11) -> 0 | W12: =IF(V12=0,0,(V12*((LOG(V12))/LOG(2)))) -> 0 | Y12: =N12 -> 212 | Z12: =COUNTIF(L27:L45,Y12) -> 0 | AA12: =Z12/(AB4-Z11) -> 0 | AB12: =IF(AA12=0,0,(AA12*((LOG(AA12))/LOG(2)))) -> 0 | AD12: =N12 -> 212 | AE12: =COUNTIF(L46:L65,AD12) -> 0 | AF12: =AE12/(AG4-AE11) -> 0 | AG12: =IF(AF12=0,0,(AF12*((LOG(AF12))/LOG(2)))) -> 0 | AI12: =N12 -> 212 | AJ12: =COUNTIF(L66:L84,AI12) -> 0 | AK12: =AJ12/(AL4-AJ11) -> 0 | AL12: =IF(AK12=0,0,(AK12*((LOG(AK12))/LOG(2)))) -> 0 | AN12: =N12 -> 212 | AO12: =COUNTIF(L85:L104,AN12) -> 0 | AP12: =AO12/(AQ4-AO11) -> 0 | AQ12: =IF(AP12=0,0,(AP12*((LOG(AP12))/LOG(2)))) -> 0 | AS12: =N12 -> 212 | AT12: =COUNTIF(L105:L123,AS12) -> 0 | AU12: =AT12/(AV4-AT11) -> 0 | AV12: =IF(AU12=0,0,(AU12*((LOG(AU12))/LOG(2)))) -> 0
A13: 12 | B13: 863 | C13: 24 | D13: 874 | E13: 24 | F13: 884 | K13: 0 | L13: 122 | N13: 221 | O13: =COUNTIF($L$7:$L$500,N13) -> 0 | P13: =O13/$Q$4 -> 0 | Q13: =IF(P13=0,0,(P13*((LOG(P13))/LOG(2)))) -> 0 | T13: =N13 -> 221 | U13: =COUNTIF(L7:L26,T13) -> 0 | V13: =U13/(W4-U11) -> 0 | W13: =IF(V13=0,0,(V13*((LOG(V13))/LOG(2)))) -> 0 | Y13: =N13 -> 221 | Z13: =COUNTIF(L27:L45,Y13) -> 0 | AA13: =Z13/(AB4-Z11) -> 0 | AB13: =IF(AA13=0,0,(AA13*((LOG(AA13))/LOG(2)))) -> 0 | AD13: =N13 -> 221 | AE13: =COUNTIF(L46:L65,AD13) -> 0 | AF13: =AE13/(AG4-AE11) -> 0 | AG13: =IF(AF13=0,0,(AF13*((LOG(AF13))/LOG(2)))) -> 0 | AI13: =N13 -> 221 | AJ13: =COUNTIF(L66:L84,AI13) -> 0 | AK13: =AJ13/(AL4-AJ11) -> 0 | AL13: =IF(AK13=0,0,(AK13*((LOG(AK13))/LOG(2)))) -> 0 | AN13: =N13 -> 221 | AO13: =COUNTIF(L85:L104,AN13) -> 0 | AP13: =AO13/(AQ4-AO11) -> 0 | AQ13: =IF(AP13=0,0,(AP13*((LOG(AP13))/LOG(2)))) -> 0 | AS13: =N13 -> 221 | AT13: =COUNTIF(L105:L123,AS13) -> 0 | AU13: =AT13/(AV4-AT11) -> 0 | AV13: =IF(AU13=0,0,(AU13*((LOG(AU13))/LOG(2)))) -> 0
A14: 12 | B14: 1088 | C14: 13 | D14: 1136 | E14: 24 | F14: 1182 | K14: 0 | L14: 112 | N14: 222 | O14: =COUNTIF($L$7:$L$500,N14) -> 1 | P14: =O14/$Q$4 -> 0.008620689655 | Q14: =IF(P14=0,0,(P14*((LOG(P14))/LOG(2)))) -> -0.05912052582 | T14: =N14 -> 222 | U14: =COUNTIF(L7:L26,T14) -> 1 | V14: =U14/(W4-U11) -> 0.05 | W14: =IF(V14=0,0,(V14*((LOG(V14))/LOG(2)))) -> -0.2160964047 | Y14: =N14 -> 222 | Z14: =COUNTIF(L27:L45,Y14) -> 0 | AA14: =Z14/(AB4-Z11) -> 0 | AB14: =IF(AA14=0,0,(AA14*((LOG(AA14))/LOG(2)))) -> 0 | AD14: =N14 -> 222 | AE14: =COUNTIF(L46:L65,AD14) -> 0 | AF14: =AE14/(AG4-AE11) -> 0 | AG14: =IF(AF14=0,0,(AF14*((LOG(AF14))/LOG(2)))) -> 0 | AI14: =N14 -> 222 | AJ14: =COUNTIF(L66:L84,AI14) -> 0 | AK14: =AJ14/(AL4-AJ11) -> 0 | AL14: =IF(AK14=0,0,(AK14*((LOG(AK14))/LOG(2)))) -> 0 | AN14: =N14 -> 222 | AO14: =COUNTIF(L85:L104,AN14) -> 0 | AP14: =AO14/(AQ4-AO11) -> 0 | AQ14: =IF(AP14=0,0,(AP14*((LOG(AP14))/LOG(2)))) -> 0 | AS14: =N14 -> 222 | AT14: =COUNTIF(L105:L123,AS14) -> 0 | AU14: =AT14/(AV4-AT11) -> 0 | AV14: =IF(AU14=0,0,(AU14*((LOG(AU14))/LOG(2)))) -> 0
A15: 12 | B15: 1286 | C15: 13 | D15: 1323 | E15: 13 | F15: 1365 | K15: 0 | L15: 111 | P15: =SUM(P7:P14) -> 1 | Q15: =-SUM(Q7:Q14) -> 1.98185035 | V15: =SUM(V7:V14) -> 1 | W15: =-SUM(W7:W14) -> 2.133206219 | AA15: =SUM(AA7:AA14) -> 1 | AB15: =-SUM(AB7:AB14) -> 1.450467463 | AF15: =SUM(AF7:AF14) -> 1 | AG15: =-SUM(AG7:AG14) -> 1.5 | AK15: =SUM(AK7:AK14) -> 1 | AL15: =-SUM(AL7:AL14) -> 1.528801815 | AP15: =SUM(AP7:AP14) -> 1 | AQ15: =-SUM(AQ7:AQ14) -> 1.251629167 | AU15: =SUM(AU7:AU14) -> 1 | AV15: =-SUM(AV7:AV14) -> 1.5
A16: 12 | B16: 1512 | C16: 24 | D16: 1527 | E16: 24 | F16: 1537 | K16: 0 | L16: 122 | P16: U= | Q16: =Q15/(LOG(Q4)/LOG(2)) -> 0.2889845205 | V16: U1= | W16: =W15/(LOG(W4)/LOG(2)) -> 0.4935774433 | AA16: U2= | AB16: =AB15/(LOG(AB4)/LOG(2)) -> 0.3414529694 | AF16: U3= | AG16: =AG15/(LOG(AG4)/LOG(2)) -> 0.3470673197 | AK16: U4= | AL16: =AL15/(LOG(AL4)/LOG(2)) -> 0.3598935739 | AP16: U5= | AQ16: =AQ15/(LOG(AQ4)/LOG(2)) -> 0.2895997203 | AU16: U6= | AV16: =AV15/(LOG(AV4)/LOG(2)) -> 0.3597186999
A17: 12 | B17: 1637 | C17: 13 | D17: 1649 | E17: 13 | F17: 1669 | K17: 0 | L17: 111
A18: 12 | B18: 1769 | C18: 24 | D18: 1785 | E18: 24 | F18: 1796 | K18: 0 | L18: 122
A19: 12 | B19: 1917 | C19: 13 | D19: 1932 | E19: 24 | F19: 1956 | K19: 0 | L19: 112 | N19: Total Target Seq
A20: 12 | B20: 2058 | C20: 13 | D20: 2075 | E20: 24 | F20: 2110 | K20: 0 | L20: 112 | N20: =COUNTIF(L7:L123,G3) -> 6 | P20: 20 | Q20: 19 | R20: 20 | S20: 19 | T20: 20 | U20: 19
A21: 12 | B21: 2209 | C21: 24 | D21: 2240 | E21: 13 | F21: 2255 | K21: 0 | L21: 121 | P21: % of reinforcement given in 6 equal intervals based on number of trials
A22: 12 | B22: 2432 | C22: 13 | D22: 2462 | E22: 13 | F22: 2490 | K22: 0 | L22: 111 | P22: %_1 | Q22: %_2 | R22: %_3 | S22: %_4 | T22: %_5 | U22: %_6
A23: 12 | B23: 2635 | C23: 24 | D23: 2647 | E23: 13 | F23: 2658 | K23: 0 | L23: 121 | O23: target sequence | P23: =$G$3 -> 211 | Q23: =$G$3 -> 211 | R23: =$G$3 -> 211 | S23: =$G$3 -> 211 | T23: =$G$3 -> 211 | U23: =$G$3 -> 211
A24: 12 | B24: 2764 | C24: 24 | D24: 2789 | E24: 13 | F24: 2824 | K24: 0 | L24: 121 | O24: total reinforcement | P24: =U11 -> 0 | Q24: =Z11 -> 2 | R24: =AE11 -> 0 | S24: =AJ11 -> 0 | T24: =AO11 -> 2 | U24: =AT11 -> 2
A25: 12 | B25: 2944 | C25: 13 | D25: 2969 | E25: 13 | F25: 2977 | K25: 0 | L25: 111 | O25: % target
A26: 12 | B26: 3111 | C26: 24 | D26: 3122 | E26: 13 | F26: 3133 | K26: 0 | L26: 121 | O26: CCRF
A27: 12 | B27: 3292 | C27: 13 | D27: 3329 | E27: 13 | F27: 3367 | K27: 0 | L27: 111 | O27: % CCRf
A28: 12 | B28: 3491 | C28: 13 | D28: 3506 | E28: 13 | F28: 3507 | K28: 0 | L28: 111 | O28: average response rate | P28: =F26/P20 -> 156.65 | Q28: =(F45-F26)/Q20 -> 177.0526316 | R28: =(F65-F45)/R20 -> 173.95 | S28: =(F84-F65)/S20 -> 188.2105263 | T28: =(F104-F84)/T20 -> 331 | U28: =(F123-F104)/U20 -> -1061.684211
A29: 21 | B29: 3644 | C29: 11 | D29: 3655 | E29: 11 | F29: 3661 | K29: 0 | L29: 211
A30: 12 | B30: 3829 | C30: 13 | D30: 3882 | E30: 13 | F30: 3913 | K30: 0 | L30: 111
A31: 12 | B31: 4052 | C31: 13 | D31: 4067 | E31: 13 | F31: 4093 | K31: 0 | L31: 111
A32: 12 | B32: 4207 | C32: 13 | D32: 4221 | E32: 13 | F32: 4239 | K32: 0 | L32: 111
A33: 21 | B33: 4347 | C33: 11 | D33: 4358 | E33: 11 | F33: 4386 | K33: 0 | L33: 211
A34: 12 | B34: 4488 | C34: 24 | D34: 4526 | E34: 13 | F34: 4538 | K34: 0 | L34: 121
A35: 12 | B35: 4648 | C35: 13 | D35: 4684 | E35: 13 | F35: 4710 | K35: 0 | L35: 111
A36: 12 | B36: 4813 | C36: 13 | D36: 4840 | E36: 13 | F36: 4878 | K36: 0 | L36: 111
A37: 12 | B37: 4992 | C37: 13 | D37: 5018 | E37: 24 | F37: 5049 | K37: 0 | L37: 112
A38: 12 | B38: 5163 | C38: 13 | D38: 5178 | E38: 13 | F38: 5196 | K38: 0 | L38: 111
A39: 12 | B39: 5302 | C39: 13 | D39: 5344 | E39: 13 | F39: 5372 | K39: 0 | L39: 111
A40: 12 | B40: 5474 | C40: 24 | D40: 5509 | E40: 24 | F40: 5534 | K40: 0 | L40: 122
A41: 12 | B41: 5684 | C41: 13 | D41: 5719 | E41: 24 | F41: 5763 | K41: 0 | L41: 112
A42: 12 | B42: 5929 | C42: 13 | D42: 5950 | E42: 24 | F42: 5964 | K42: 0 | L42: 112
A43: 12 | B43: 6076 | C43: 13 | D43: 6101 | E43: 13 | F43: 6149 | K43: 0 | L43: 111
A44: 12 | B44: 6263 | C44: 13 | D44: 6293 | E44: 24 | F44: 6331 | K44: 0 | L44: 112
A45: 12 | B45: 6457 | C45: 13 | D45: 6485 | E45: 24 | F45: 6497 | K45: 0 | L45: 112
A46: 12 | B46: 6606 | C46: 13 | D46: 6608 | E46: 24 | F46: 6623 | K46: 0 | L46: 112
A47: 12 | B47: 6720 | C47: 13 | D47: 6750 | E47: 13 | F47: 6774 | K47: 0 | L47: 111
A48: 12 | B48: 6874 | C48: 24 | D48: 6888 | E48: 13 | F48: 6905 | K48: 0 | L48: 121
A49: 12 | B49: 7022 | C49: 24 | D49: 7040 | E49: 13 | F49: 7051 | K49: 0 | L49: 121
A50: 12 | B50: 7180 | C50: 13 | D50: 7181 | E50: 13 | F50: 7207 | K50: 0 | L50: 111
A51: 12 | B51: 7373 | C51: 13 | D51: 7398 | E51: 13 | F51: 7407 | K51: 0 | L51: 111
A52: 12 | B52: 7520 | C52: 13 | D52: 7546 | E52: 24 | F52: 7556 | K52: 0 | L52: 112
A53: 12 | B53: 7669 | C53: 13 | D53: 7684 | E53: 13 | F53: 7716 | K53: 0 | L53: 111
A54: 12 | B54: 7821 | C54: 24 | D54: 7833 | E54: 13 | F54: 7844 | K54: 0 | L54: 121
A55: 12 | B55: 7957 | C55: 13 | D55: 7978 | E55: 13 | F55: 8012 | K55: 0 | L55: 111
A56: 12 | B56: 8132 | C56: 13 | D56: 8159 | E56: 24 | F56: 8172 | K56: 0 | L56: 112
A57: 12 | B57: 8341 | C57: 24 | D57: 8353 | E57: 13 | F57: 8365 | K57: 0 | L57: 121
A58: 12 | B58: 8527 | C58: 13 | D58: 8550 | E58: 13 | F58: 8590 | K58: 0 | L58: 111
A59: 12 | B59: 8719 | C59: 13 | D59: 8721 | E59: 24 | F59: 8748 | K59: 0 | L59: 112
A60: 12 | B60: 8882 | C60: 13 | D60: 8893 | E60: 13 | F60: 8922 | K60: 0 | L60: 111
A61: 12 | B61: 9099 | C61: 24 | D61: 9110 | E61: 13 | F61: 9121 | K61: 0 | L61: 121
A62: 12 | B62: 9288 | C62: 13 | D62: 9320 | E62: 24 | F62: 9332 | K62: 0 | L62: 112
A63: 12 | B63: 9489 | C63: 13 | D63: 9508 | E63: 13 | F63: 9540 | K63: 0 | L63: 111
A64: 12 | B64: 9672 | C64: 13 | D64: 9719 | E64: 13 | F64: 9774 | K64: 0 | L64: 111
A65: 12 | B65: 9916 | C65: 13 | D65: 9952 | E65: 13 | F65: 9976 | K65: 0 | L65: 111
A66: 12 | B66: 10099 | C66: 24 | D66: 10174 | E66: 24 | F66: 10189 | K66: 0 | L66: 122
A67: 12 | B67: 10298 | C67: 24 | D67: 10311 | E67: 13 | F67: 10328 | K67: 0 | L67: 121
A68: 12 | B68: 10464 | C68: 24 | D68: 10498 | E68: 13 | F68: 10515 | K68: 0 | L68: 121
A69: 12 | B69: 10645 | C69: 13 | D69: 10674 | E69: 13 | F69: 10697 | K69: 0 | L69: 111
A70: 12 | B70: 10844 | C70: 24 | D70: 10859 | E70: 13 | F70: 10871 | K70: 0 | L70: 121
A71: 12 | B71: 10982 | C71: 24 | D71: 11008 | E71: 13 | F71: 11033 | K71: 0 | L71: 121
A72: 12 | B72: 11148 | C72: 13 | D72: 11163 | E72: 13 | F72: 11190 | K72: 0 | L72: 111
A73: 12 | B73: 11410 | C73: 13 | D73: 11434 | E73: 13 | F73: 11458 | K73: 0 | L73: 111
A74: 12 | B74: 11605 | C74: 13 | D74: 11621 | E74: 13 | F74: 11635 | K74: 0 | L74: 111
A75: 12 | B75: 11868 | C75: 13 | D75: 11886 | E75: 13 | F75: 11915 | K75: 0 | L75: 111
A76: 12 | B76: 12059 | C76: 13 | D76: 12082 | E76: 13 | F76: 12109 | K76: 0 | L76: 111
A77: 12 | B77: 12250 | C77: 13 | D77: 12264 | E77: 13 | F77: 12282 | K77: 0 | L77: 111
A78: 12 | B78: 12427 | C78: 13 | D78: 12472 | E78: 13 | F78: 12497 | K78: 0 | L78: 111
A79: 12 | B79: 12617 | C79: 13 | D79: 12632 | E79: 13 | F79: 12654 | K79: 0 | L79: 111
A80: 12 | B80: 12791 | C80: 24 | D80: 12802 | E80: 13 | F80: 12813 | K80: 0 | L80: 121
A81: 12 | B81: 12935 | C81: 13 | D81: 12955 | E81: 13 | F81: 12970 | K81: 0 | L81: 111
A82: 12 | B82: 13090 | C82: 13 | D82: 13111 | E82: 24 | F82: 13123 | K82: 0 | L82: 112
A83: 12 | B83: 13378 | C83: 13 | D83: 13395 | E83: 24 | F83: 13408 | K83: 0 | L83: 112
A84: 12 | B84: 13520 | C84: 13 | D84: 13534 | E84: 13 | F84: 13552 | K84: 0 | L84: 111
A85: 12 | B85: 13857 | C85: 13 | D85: 13871 | E85: 13 | F85: 13898 | K85: 0 | L85: 111
A86: 12 | B86: 14015 | C86: 13 | D86: 14030 | E86: 13 | F86: 14043 | K86: 0 | L86: 111
A87: 12 | B87: 14202 | C87: 24 | D87: 14213 | E87: 13 | F87: 14224 | K87: 0 | L87: 121
A88: 12 | B88: 14349 | C88: 13 | D88: 14388 | E88: 13 | F88: 14401 | K88: 0 | L88: 111
A89: 12 | B89: 14785 | C89: 13 | D89: 14800 | E89: 13 | F89: 14824 | K89: 0 | L89: 111
A90: 12 | B90: 14943 | C90: 13 | D90: 14976 | E90: 24 | F90: 14992 | K90: 0 | L90: 112
A91: 12 | B91: 15126 | C91: 13 | D91: 15147 | E91: 13 | F91: 15206 | K91: 0 | L91: 111
A92: 12 | B92: 16663 | C92: 24 | D92: 16685 | E92: 13 | F92: 16704 | K92: 0 | L92: 121
A93: 21 | B93: 18147 | C93: 11 | D93: 18165 | E93: 11 | F93: 18212 | K93: 0 | L93: 211
A94: 12 | B94: 18361 | C94: 13 | D94: 18391 | E94: 13 | F94: 18410 | K94: 0 | L94: 111
A95: 21 | B95: 18531 | C95: 11 | D95: 18566 | E95: 11 | F95: 18582 | K95: 0 | L95: 211
A96: 12 | B96: 18764 | C96: 13 | D96: 18793 | E96: 13 | F96: 18817 | K96: 0 | L96: 111
A97: 12 | B97: 18928 | C97: 24 | D97: 18948 | E97: 13 | F97: 18964 | K97: 0 | L97: 121
A98: 12 | B98: 19088 | C98: 13 | D98: 19102 | E98: 13 | F98: 19122 | K98: 0 | L98: 111
A99: 12 | B99: 19253 | C99: 13 | D99: 19277 | E99: 24 | F99: 19292 | K99: 0 | L99: 112
A100: 12 | B100: 19405 | C100: 13 | D100: 19421 | E100: 13 | F100: 19440 | K100: 0 | L100: 111
A101: 12 | B101: 19586 | C101: 13 | D101: 19606 | E101: 13 | F101: 19637 | K101: 0 | L101: 111
A102: 12 | B102: 19753 | C102: 13 | D102: 19779 | E102: 13 | F102: 19804 | K102: 0 | L102: 111
A103: 12 | B103: 19952 | C103: 13 | D103: 19977 | E103: 24 | F103: 19989 | K103: 0 | L103: 112
A104: 12 | B104: 20139 | C104: 13 | D104: 20154 | E104: 13 | F104: 20172 | K104: 0 | L104: 111
A105: 12 | B105: 20305 | C105: 13 | D105: 20345 | E105: 13 | F105: 20401 | K105: 0 | L105: 111
A106: 12 | B106: 20531 | C106: 13 | D106: 20552 | E106: 13 | F106: 20575 | K106: 0 | L106: 111
A107: 12 | B107: 20709 | C107: 13 | D107: 20723 | E107: 13 | F107: 20739 | K107: 0 | L107: 111
A108: 12 | B108: 20865 | C108: 13 | D108: 20901 | E108: 24 | F108: 20914 | K108: 0 | L108: 112
A109: 12 | B109: 21072 | C109: 24 | D109: 21087 | E109: 13 | F109: 21107 | K109: 0 | L109: 121
A110: 12 | B110: 21245 | C110: 13 | D110: 21258 | E110: 13 | F110: 21282 | K110: 0 | L110: 111
A111: 12 | B111: 21431 | C111: 24 | D111: 21441 | E111: 13 | F111: 21454 | K111: 0 | L111: 121
A112: 12 | B112: 21992 | C112: 13 | D112: 22011 | E112: 13 | F112: 22036 | K112: 0 | L112: 111
A113: 21 | B113: 22180 | C113: 11 | D113: 22191 | E113: 11 | F113: 22206 | K113: 0 | L113: 211
A114: 12 | B114: 22351 | C114: 24 | D114: 22369 | E114: 13 | F114: 22392 | K114: 0 | L114: 121
A115: 12 | B115: 22523 | C115: 13 | D115: 22547 | E115: 13 | F115: 22570 | K115: 0 | L115: 111
A116: 12 | B116: 22724 | C116: 13 | D116: 22760 | E116: 13 | F116: 22782 | K116: 0 | L116: 111
A117: 12 | B117: 22902 | C117: 13 | D117: 22925 | E117: 13 | F117: 22944 | K117: 0 | L117: 111
A118: 12 | B118: 23084 | C118: 24 | D118: 23098 | E118: 13 | F118: 23110 | K118: 0 | L118: 121
A119: 12 | B119: 23287 | C119: 13 | D119: 23311 | E119: 24 | F119: 23325 | K119: 0 | L119: 112
A120: 12 | B120: 23457 | C120: 13 | D120: 23478 | E120: 24 | F120: 23504 | K120: 0 | L120: 112
A121: 12 | B121: 23627 | C121: 13 | D121: 23649 | E121: 24 | F121: 23664 | K121: 0 | L121: 112
A122: 21 | B122: 23781 | C122: 11 | D122: 23800 | E122: 11 | F122: 23815 | K122: 0 | L122: 211
A123: 12 | B123: 23953 | C123: 24 | D123: 23990 | L123: 12

Sheet !M429840.183
A1: Report for:!M429840.183
A2: Date: | B2: <date>
A3: Hen: | B3: <hen> | F3: Correct Sequence | G3: =Start!J2 -> 211 | P3: Total Sequences in Data | Q3: =4994-COUNTBLANK(L7:L5000) -> 139 | V3: Total Sequences in Block Data | W3: =COUNTA(L7:L29) -> 23 | AA3: Total Sequences in Block Data | AB3: =COUNTA(L30:L52) -> 23 | AF3: Total Sequences in Block Data | AG3: =COUNTA(L53:L76) -> 24 | AK3: Total Sequences in Block Data | AL3: =COUNTA(L77:L99) -> 23 | AP3: Total Sequences in Block Data | AQ3: =COUNTA(L100:L122) -> 23 | AU3: Total Sequences in Block Data | AV3: =COUNTA(L123:L145) -> 23
P4: Total Sequences in Summary | Q4: =SUM(O7:O14) -> 139 | V4: Total Sequences in Block Summary | W4: =SUM(U7:U14) -> 23 | AA4: Total Sequences in Block Summary | AB4: =SUM(Z7:Z14) -> 23 | AF4: Total Sequences in Block Summary | AG4: =SUM(AE7:AE14) -> 24 | AK4: Total Sequences in Block Summary | AL4: =SUM(AJ7:AJ14) -> 23 | AP4: Total Sequences in Block Summary | AQ4: =SUM(AO7:AO14) -> 23 | AU4: Total Sequences in Block Summary | AV4: =SUM(AT7:AT14) -> 23
T5: Block 1 | Y5: Block 2 | AD5: Block 3 | AI5: Block 4 | AN5: Block 5 | AS5: Block 6
A6: Sequence Component 1 | B6: Time 1 | C6: Sequence Component 2 | D6: Time 2 | E6: Sequence Component 3 | F6: Time 3 | G6: Sequence Component 4 | H6: Time 4 | I6: Sequence Component 5 | J6: Time 5 | K6: Correct? 0=No 1=Yes | L6: Sequence | N6: Frequency | P6: Relative Frequency | Q6: Variability | T6: Frequency | V6: Relative Frequency | W6: Variability | Y6: Frequency | AA6: Relative Frequency | AB6: Variability | AD6: Frequency | AF6: Relative Frequency | AG6: Variability | AI6: Frequency | AK6: Relative Frequency | AL6: Variability | AN6: Frequency | AP6: Relative Frequency | AQ6: Variability | AS6: Frequency | AU6: Relative Frequency | AV6: Variability
A7: 12 | B7: 70 | C7: 13 | D7: 106 | E7: 13 | F7: 129 | K7: 0 | L7: 111 | N7: 111 | O7: =COUNTIF($L$7:$L$500,N7) -> 55 | P7: =O7/$Q$4 -> 0.3956834532 | Q7: =IF(P7=0,0,(P7*((LOG(P7))/LOG(2)))) -> -0.5292588112 | T7: =N7 -> 111 | U7: =COUNTIF(L7:L29,T7) -> 4 | V7: =U7/(W4-U11) -> 0.1818181818 | W7: =IF(V7=0,0,(V7*((LOG(V7))/LOG(2)))) -> -0.4471693852 | Y7: =N7 -> 111 | Z7: =COUNTIF(L30:L52,Y7) -> 6 | AA7: =Z7/(AB4-Z11) -> 0.2727272727 | AB7: =IF(AA7=0,0,(AA7*((LOG(AA7))/LOG(2)))) -> -0.5112188503 | AD7: =N7 -> 111 | AE7: =COUNTIF(L53:L76,AD7) -> 13 | AF7: =AE7/(AG4-AE11) -> 0.5652173913 | AG7: =IF(AF7=0,0,(AF7*((LOG(AF7))/LOG(2)))) -> -0.465243004 | AI7: =N7 -> 111 | AJ7: =COUNTIF(L77:L99,AI7) -> 13 | AK7: =AJ7/(AL4-AJ11) -> 0.6842105263 | AL7: =IF(AK7=0,0,(AK7*((LOG(AK7))/LOG(2)))) -> -0.3745969126 | AN7: =N7 -> 111 | AO7: =COUNTIF(L100:L122,AN7) -> 8 | AP7: =AO7/(AQ4-AO11) -> 0.4210526316 | AQ7: =IF(AP7=0,0,(AP7*((LOG(AP7))/LOG(2)))) -> -0.5254431636 | AS7: =N7 -> 111 | AT7: =COUNTIF(L123:L145,AS7) -> 11 | AU7: =AT7/(AV4-AT11) -> 0.55 | AV7: =IF(AU7=0,0,(AU7*((LOG(AU7))/LOG(2)))) -> -0.4743730619
A8: 21 | B8: 246 | C8: 11 | D8: 257 | E8: 11 | F8: 280 | K8: 0 | L8: 211 | N8: 112 | O8: =COUNTIF($L$7:$L$500,N8) -> 25 | P8: =O8/$Q$4 -> 0.1798561151 | Q8: =IF(P8=0,0,(P8*((LOG(P8))/LOG(2)))) -> -0.4451591516 | T8: =N8 -> 112 | U8: =COUNTIF(L7:L29,T8) -> 6 | V8: =U8/(W4-U11) -> 0.2727272727 | W8: =IF(V8=0,0,(V8*((LOG(V8))/LOG(2)))) -> -0.5112188503 | Y8: =N8 -> 112 | Z8: =COUNTIF(L30:L52,Y8) -> 7 | AA8: =Z8/(AB4-Z11) -> 0.3181818182 | AB8: =IF(AA8=0,0,(AA8*((LOG(AA8))/LOG(2)))) -> -0.5256607671 | AD8: =N8 -> 112 | AE8: =COUNTIF(L53:L76,AD8) -> 4 | AF8: =AE8/(AG4-AE11) -> 0.1739130435 | AG8: =IF(AF8=0,0,(AF8*((LOG(AF8))/LOG(2)))) -> -0.4388803402 | AI8: =N8 -> 112 | AJ8: =COUNTIF(L77:L99,AI8) -> 2 | AK8: =AJ8/(AL4-AJ11) -> 0.1052631579 | AL8: =IF(AK8=0,0,(AK8*((LOG(AK8))/LOG(2)))) -> -0.3418871067 | AN8: =N8 -> 112 | AO8: =COUNTIF(L100:L122,AN8) -> 3 | AP8: =AO8/(AQ4-AO11) -> 0.1578947368 | AQ8: =IF(AP8=0,0,(AP8*((LOG(AP8))/LOG(2)))) -> -0.4204681599 | AS8: =N8 -> 112 | AT8: =COUNTIF(L123:L145,AS8) -> 3 | AU8: =AT8/(AV4-AT11) -> 0.15 | AV8: =IF(AU8=0,0,(AU8*((LOG(AU8))/LOG(2)))) -> -0.4105448391
A9: 12 | B9: 383 | C9: 13 | D9: 440 | E9: 24 | F9: 450 | K9: 0 | L9: 112 | N9: 121 | O9: =COUNTIF($L$7:$L$500,N9) -> 30 | P9: =O9/$Q$4 -> 0.2158273381 | Q9: =IF(P9=0,0,(P9*((LOG(P9))/LOG(2)))) -> -0.4774209663 | T9: =N9 -> 121 | U9: =COUNTIF(L7:L29,T9) -> 9 | V9: =U9/(W4-U11) -> 0.4090909091 | W9: =IF(V9=0,0,(V9*((LOG(V9))/LOG(2)))) -> -0.5275254343 | Y9: =N9 -> 121 | Z9: =COUNTIF(L30:L52,Y9) -> 6 | AA9: =Z9/(AB4-Z11) -> 0.2727272727 | AB9: =IF(AA9=0,0,(AA9*((LOG(AA9))/LOG(2)))) -> -0.5112188503 | AD9: =N9 -> 121 | AE9: =COUNTIF(L53:L76,AD9) -> 3 | AF9: =AE9/(AG4-AE11) -> 0.1304347826 | AG9: =IF(AF9=0,0,(AF9*((LOG(AF9))/LOG(2)))) -> -0.3832955811 | AI9: =N9 -> 121 | AJ9: =COUNTIF(L77:L99,AI9) -> 3 | AK9: =AJ9/(AL4-AJ11) -> 0.1578947368 | AL9: =IF(AK9=0,0,(AK9*((LOG(AK9))/LOG(2)))) -> -0.4204681599 | AN9: =N9 -> 121 | AO9: =COUNTIF(L100:L122,AN9) -> 4 | AP9: =AO9/(AQ4-AO11) -> 0.2105263158 | AQ9: =IF(AP9=0,0,(AP9*((LOG(AP9))/LOG(2)))) -> -0.4732478976 | AS9: =N9 -> 121 | AT9: =COUNTIF(L123:L145,AS9) -> 5 | AU9: =AT9/(AV4-AT11) -> 0.25 | AV9: =IF(AU9=0,0,(AU9*((LOG(AU9))/LOG(2)))) -> -0.5
A10: 12 | B10: 551 | C10: 13 | D10: 579 | E10: 24 | F10: 591 | K10: 0 | L10: 112 | N10: 122 | O10: =COUNTIF($L$7:$L$500,N10) -> 4 | P10: =O10/$Q$4 -> 0.02877697842 | Q10: =IF(P10=0,0,(P10*((LOG(P10))/LOG(2)))) -> -0.1473076568 | T10: =N10 -> 122 | U10: =COUNTIF(L7:L29,T10) -> 3 | V10: =U10/(W4-U11) -> 0.1363636364 | W10: =IF(V10=0,0,(V10*((LOG(V10))/LOG(2)))) -> -0.3919730615 | Y10: =N10 -> 122 | Z10: =COUNTIF(L30:L52,Y10) -> 0 | AA10: =Z10/(AB4-Z11) -> 0 | AB10: =IF(AA10=0,0,(AA10*((LOG(AA10))/LOG(2)))) -> 0 | AD10: =N10 -> 122 | AE10: =COUNTIF(L53:L76,AD10) -> 0 | AF10: =AE10/(AG4-AE11) -> 0 | AG10: =IF(AF10=0,0,(AF10*((LOG(AF10))/LOG(2)))) -> 0 | AI10: =N10 -> 122 | AJ10: =COUNTIF(L77:L99,AI10) -> 0 | AK10: =AJ10/(AL4-AJ11) -> 0 | AL10: =IF(AK10=0,0,(AK10*((LOG(AK10))/LOG(2)))) -> 0 | AN10: =N10 -> 122 | AO10: =COUNTIF(L100:L122,AN10) -> 1 | AP10: =AO10/(AQ4-AO11) -> 0.05263157895 | AQ10: =IF(AP10=0,0,(AP10*((LOG(AP10))/LOG(2)))) -> -0.2235751323 | AS10: =N10 -> 122 | AT10: =COUNTIF(L123:L145,AS10) -> 0 | AU10: =AT10/(AV4-AT11) -> 0 | AV10: =IF(AU10=0,0,(AU10*((LOG(AU10))/LOG(2)))) -> 0
A11: 12 | B11: 722 | C11: 24 | D11: 733 | E11: 13 | F11: 744 | K11: 0 | L11: 121 | N11: 211 | O11: =COUNTIF($L$7:$L$500,N11) -> 14 | P11: =O11/$Q$4 -> 0.1007194245 | Q11: =IF(P11=0,0,(P11*((LOG(P11))/LOG(2)))) -> -0.3335410511 | T11: =N11 -> 211 | U11: =COUNTIF(L7:L29,T11) -> 1 | Y11: =N11 -> 211 | Z11: =COUNTIF(L30:L52,Y11) -> 1 | AD11: =N11 -> 211 | AE11: =COUNTIF(L53:L76,AD11) -> 1 | AI11: =N11 -> 211 | AJ11: =COUNTIF(L77:L99,AI11) -> 4 | AN11: =N11 -> 211 | AO11: =COUNTIF(L100:L122,AN11) -> 4 | AS11: =N11 -> 211 | AT11: =COUNTIF(L123:L145,AS11) -> 3
A12: 12 | B12: 845 | C12: 13 | D12: 865 | E12: 13 | F12: 886 | K12: 0 | L12: 111 | N12: 212 | O12: =COUNTIF($L$7:$L$500,N12) -> 10 | P12: =O12/$Q$4 -> 0.07194244604 | Q12: =IF(P12=0,0,(P12*((LOG(P12))/LOG(2)))) -> -0.2731664013 | T12: =N12 -> 212 | U12: =COUNTIF(L7:L29,T12) -> 0 | V12: =U12/(W4-U11) -> 0 | W12: =IF(V12=0,0,(V12*((LOG(V12))/LOG(2)))) -> 0 | Y12: =N12 -> 212 | Z12: =COUNTIF(L30:L52,Y12) -> 3 | AA12: =Z12/(AB4-Z11) -> 0.1363636364 | AB12: =IF(AA12=0,0,(AA12*((LOG(AA12))/LOG(2)))) -> -0.3919730615 | AD12: =N12 -> 212 | AE12: =COUNTIF(L53:L76,AD12) -> 3 | AF12: =AE12/(AG4-AE11) -> 0.1304347826 | AG12: =IF(AF12=0,0,(AF12*((LOG(AF12))/LOG(2)))) -> -0.3832955811 | AI12: =N12 -> 212 | AJ12: =COUNTIF(L77:L99,AI12) -> 1 | AK12: =AJ12/(AL4-AJ11) -> 0.05263157895 | AL12: =IF(AK12=0,0,(AK12*((LOG(AK12))/LOG(2)))) -> -0.2235751323 | AN12: =N12 -> 212 | AO12: =COUNTIF(L100:L122,AN12) -> 2 | AP12: =AO12/(AQ4-AO11) -> 0.1052631579 | AQ12: =IF(AP12=0,0,(AP12*((LOG(AP12))/LOG(2)))) -> -0.3418871067 | AS12: =N12 -> 212 | AT12: =COUNTIF(L123:L145,AS12) -> 1 | AU12: =AT12/(AV4-AT11) -> 0.05 | AV12: =IF(AU12=0,0,(AU12*((LOG(AU12))/LOG(2)))) -> -0.2160964047
A13: 12 | B13: 986 | C13: 24 | D13: 1005 | E13: 13 | F13: 1014 | K13: 0 | L13: 121 | N13: 221 | O13: =COUNTIF($L$7:$L$500,N13) -> 1 | P13: =O13/$Q$4 -> 0.007194244604 | Q13: =IF(P13=0,0,(P13*((LOG(P13))/LOG(2)))) -> -0.0512154034 | T13: =N13 -> 221 | U13: =COUNTIF(L7:L29,T13) -> 0 | V13: =U13/(W4-U11) -> 0 | W13: =IF(V13=0,0,(V13*((LOG(V13))/LOG(2)))) -> 0 | Y13: =N13 -> 221 | Z13: =COUNTIF(L30:L52,Y13) -> 0 | AA13: =Z13/(AB4-Z11) -> 0 | AB13: =IF(AA13=0,0,(AA13*((LOG(AA13))/LOG(2)))) -> 0 | AD13: =N13 -> 221 | AE13: =COUNTIF(L53:L76,AD13) -> 0 | AF13: =AE13/(AG4-AE11) -> 0 | AG13: =IF(AF13=0,0,(AF13*((LOG(AF13))/LOG(2)))) -> 0 | AI13: =N13 -> 221 | AJ13: =COUNTIF(L77:L99,AI13) -> 0 | AK13: =AJ13/(AL4-AJ11) -> 0 | AL13: =IF(AK13=0,0,(AK13*((LOG(AK13))/LOG(2)))) -> 0 | AN13: =N13 -> 221 | AO13: =COUNTIF(L100:L122,AN13) -> 1 | AP13: =AO13/(AQ4-AO11) -> 0.05263157895 | AQ13: =IF(AP13=0,0,(AP13*((LOG(AP13))/LOG(2)))) -> -0.2235751323 | AS13: =N13 -> 221 | AT13: =COUNTIF(L123:L145,AS13) -> 0 | AU13: =AT13/(AV4-AT11) -> 0 | AV13: =IF(AU13=0,0,(AU13*((LOG(AU13))/LOG(2)))) -> 0
A14: 12 | B14: 1142 | C14: 13 | D14: 1171 | E14: 13 | F14: 1193 | K14: 0 | L14: 111 | N14: 222 | O14: =COUNTIF($L$7:$L$500,N14) -> 0 | P14: =O14/$Q$4 -> 0 | Q14: =IF(P14=0,0,(P14*((LOG(P14))/LOG(2)))) -> 0 | T14: =N14 -> 222 | U14: =COUNTIF(L7:L29,T14) -> 0 | V14: =U14/(W4-U11) -> 0 | W14: =IF(V14=0,0,(V14*((LOG(V14))/LOG(2)))) -> 0 | Y14: =N14 -> 222 | Z14: =COUNTIF(L30:L52,Y14) -> 0 | AA14: =Z14/(AB4-Z11) -> 0 | AB14: =IF(AA14=0,0,(AA14*((LOG(AA14))/LOG(2)))) -> 0 | AD14: =N14 -> 222 | AE14: =COUNTIF(L53:L76,AD14) -> 0 | AF14: =AE14/(AG4-AE11) -> 0 | AG14: =IF(AF14=0,0,(AF14*((LOG(AF14))/LOG(2)))) -> 0 | AI14: =N14 -> 222 | AJ14: =COUNTIF(L77:L99,AI14) -> 0 | AK14: =AJ14/(AL4-AJ11) -> 0 | AL14: =IF(AK14=0,0,(AK14*((LOG(AK14))/LOG(2)))) -> 0 | AN14: =N14 -> 222 | AO14: =COUNTIF(L100:L122,AN14) -> 0 | AP14: =AO14/(AQ4-AO11) -> 0 | AQ14: =IF(AP14=0,0,(AP14*((LOG(AP14))/LOG(2)))) -> 0 | AS14: =N14 -> 222 | AT14: =COUNTIF(L123:L145,AS14) -> 0 | AU14: =AT14/(AV4-AT11) -> 0 | AV14: =IF(AU14=0,0,(AU14*((LOG(AU14))/LOG(2)))) -> 0
A15: 12 | B15: 1297 | C15: 24 | D15: 1312 | E15: 13 | F15: 1322 | K15: 0 | L15: 121 | P15: =SUM(P7:P14) -> 1 | Q15: =-SUM(Q7:Q14) -> 2.257069442 | V15: =SUM(V7:V14) -> 1 | W15: =-SUM(W7:W14) -> 1.877886731 | AA15: =SUM(AA7:AA14) -> 1 | AB15: =-SUM(AB7:AB14) -> 1.940071529 | AF15: =SUM(AF7:AF14) -> 1 | AG15: =-SUM(AG7:AG14) -> 1.670714506 | AK15: =SUM(AK7:AK14) -> 1 | AL15: =-SUM(AL7:AL14) -> 1.360527311 | AP15: =SUM(AP7:AP14) -> 1 | AQ15: =-SUM(AQ7:AQ14) -> 2.208196592 | AU15: =SUM(AU7:AU14) -> 1 | AV15: =-SUM(AV7:AV14) -> 1.601014306
A16: 12 | B16: 1425 | C16: 13 | D16: 1448 | E16: 24 | F16: 1460 | K16: 0 | L16: 112 | P16: U= | Q16: =Q15/(LOG(Q4)/LOG(2)) -> 0.3170512888 | V16: U1= | W16: =W15/(LOG(W4)/LOG(2)) -> 0.4151345222 | AA16: U2= | AB16: =AB15/(LOG(AB4)/LOG(2)) -> 0.4288813878 | AF16: U3= | AG16: =AG15/(LOG(AG4)/LOG(2)) -> 0.3643900045 | AK16: U4= | AL16: =AL15/(LOG(AL4)/LOG(2)) -> 0.300764602 | AP16: U5= | AQ16: =AQ15/(LOG(AQ4)/LOG(2)) -> 0.4881543823 | AU16: U6= | AV16: =AV15/(LOG(AV4)/LOG(2)) -> 0.3539277944
A17: 12 | B17: 1575 | C17: 24 | D17: 1590 | E17: 13 | F17: 1601 | K17: 0 | L17: 121
A18: 12 | B18: 1700 | C18: 24 | D18: 1712 | E18: 24 | F18: 1733 | K18: 0 | L18: 122
A19: 12 | B19: 1846 | C19: 24 | D19: 1858 | E19: 13 | F19: 1870 | K19: 0 | L19: 121 | N19: Total Target Seq
A20: 12 | B20: 1967 | C20: 13 | D20: 1991 | E20: 24 | F20: 2004 | K20: 0 | L20: 112 | N20: =COUNTIF(L7:L145,G3) -> 14 | P20: 23 | Q20: 23 | R20: 24 | S20: 23 | T20: 23 | U20: 23
A21: 12 | B21: 2105 | C21: 13 | D21: 2106 | E21: 13 | F21: 2179 | K21: 0 | L21: 111 | P21: % of reinforcement given in 6 equal intervals based on number of trials
A22: 12 | B22: 2277 | C22: 13 | D22: 2300 | E22: 24 | F22: 2311 | K22: 0 | L22: 112 | P22: %_1 | Q22: %_2 | R22: %_3 | S22: %_4 | T22: %_5 | U22: %_6
A23: 12 | B23: 2412 | C23: 24 | D23: 2424 | E23: 24 | F23: 2431 | K23: 0 | L23: 122 | O23: target sequence | P23: =$G$3 -> 211 | Q23: =$G$3 -> 211 | R23: =$G$3 -> 211 | S23: =$G$3 -> 211 | T23: =$G$3 -> 211 | U23: =$G$3 -> 211
A24: 12 | B24: 2535 | C24: 24 | D24: 2556 | E24: 13 | F24: 2568 | K24: 0 | L24: 121 | O24: total reinforcement | P24: =U11 -> 1 | Q24: =Z11 -> 1 | R24: =AE11 -> 1 | S24: =AJ11 -> 4 | T24: =AO11 -> 4 | U24: =AT11 -> 3
A25: 12 | B25: 2668 | C25: 24 | D25: 2684 | E25: 13 | F25: 2695 | K25: 0 | L25: 121 | O25: % target
A26: 12 | B26: 2804 | C26: 24 | D26: 2815 | E26: 13 | F26: 2826 | K26: 0 | L26: 121 | O26: CCRF
A27: 12 | B27: 2932 | C27: 24 | D27: 2944 | E27: 24 | F27: 2965 | K27: 0 | L27: 122 | O27: % CCRf
A28: 12 | B28: 3090 | C28: 24 | D28: 3103 | E28: 13 | F28: 3114 | K28: 0 | L28: 121 | O28: average response rate | P28: =F29/P20 -> 142 | Q28: =(F52-F29)/Q20 -> 151.173913 | R28: =(F76-F52)/R20 -> 183.7083333 | S28: =(F99-F76)/S20 -> 193.3913043 | T28: =(F122-F99)/T20 -> 188.7391304 | U28: =(F145-F122)/U20 -> 173.7826087
A29: 12 | B29: 3221 | C29: 13 | D29: 3254 | E29: 24 | F29: 3266 | K29: 0 | L29: 112
A30: 12 | B30: 3367 | C30: 24 | D30: 3379 | E30: 13 | F30: 3387 | K30: 0 | L30: 121
A31: 12 | B31: 3488 | C31: 13 | D31: 3515 | E31: 24 | F31: 3527 | K31: 0 | L31: 112
A32: 12 | B32: 3625 | C32: 24 | D32: 3640 | E32: 13 | F32: 3650 | K32: 0 | L32: 121
A33: 12 | B33: 3749 | C33: 24 | D33: 3762 | E33: 13 | F33: 3771 | K33: 0 | L33: 121
A34: 12 | B34: 3877 | C34: 24 | D34: 3889 | E34: 13 | F34: 3897 | K34: 0 | L34: 121
A35: 12 | B35: 4023 | C35: 13 | D35: 4045 | E35: 24 | F35: 4060 | K35: 0 | L35: 112
A36: 12 | B36: 4174 | C36: 13 | D36: 4196 | E36: 24 | F36: 4210 | K36: 0 | L36: 112
A37: 21 | B37: 4357 | C37: 11 | D37: 4369 | E37: 11 | F37: 4387 | K37: 0 | L37: 211
A38: 12 | B38: 4522 | C38: 13 | D38: 4546 | E38: 24 | F38: 4560 | K38: 0 | L38: 112
A39: 12 | B39: 4663 | C39: 13 | D39: 4677 | E39: 13 | F39: 4702 | K39: 0 | L39: 111
A40: 12 | B40: 4809 | C40: 13 | D40: 4854 | E40: 24 | F40: 4867 | K40: 0 | L40: 112
A41: 12 | B41: 4963 | C41: 13 | D41: 5003 | E41: 13 | F41: 5020 | K41: 0 | L41: 111
A42: 12 | B42: 5158 | C42: 13 | D42: 5183 | E42: 13 | F42: 5205 | K42: 0 | L42: 111
A43: 12 | B43: 5301 | C43: 13 | D43: 5322 | E43: 13 | F43: 5338 | K43: 0 | L43: 111
A44: 12 | B44: 5435 | C44: 24 | D44: 5449 | E44: 13 | F44: 5460 | K44: 0 | L44: 121
A45: 21 | B45: 5563 | C45: 11 | D45: 5574 | E45: 22 | F45: 5585 | K45: 0 | L45: 212
A46: 12 | B46: 5700 | C46: 13 | D46: 5736 | E46: 13 | F46: 5759 | K46: 0 | L46: 111
A47: 12 | B47: 5880 | C47: 13 | D47: 5936 | E47: 13 | F47: 5970 | K47: 0 | L47: 111
A48: 12 | B48: 6096 | C48: 24 | D48: 6129 | E48: 13 | F48: 6153 | K48: 0 | L48: 121
A49: 12 | B49: 6279 | C49: 13 | D49: 6292 | E49: 24 | F49: 6306 | K49: 0 | L49: 112
A50: 21 | B50: 6418 | C50: 11 | D50: 6428 | E50: 22 | F50: 6440 | K50: 0 | L50: 212
A51: 21 | B51: 6545 | C51: 11 | D51: 6555 | E51: 22 | F51: 6567 | K51: 0 | L51: 212
A52: 12 | B52: 6706 | C52: 13 | D52: 6731 | E52: 24 | F52: 6743 | K52: 0 | L52: 112
A53: 21 | B53: 6845 | C53: 11 | D53: 6856 | E53: 22 | F53: 6868 | K53: 0 | L53: 212
A54: 12 | B54: 6988 | C54: 13 | D54: 7024 | E54: 24 | F54: 7037 | K54: 0 | L54: 112
A55: 12 | B55: 7164 | C55: 13 | D55: 7179 | E55: 13 | F55: 7202 | K55: 0 | L55: 111
A56: 12 | B56: 7302 | C56: 13 | D56: 7343 | E56: 13 | F56: 7360 | K56: 0 | L56: 111
A57: 12 | B57: 7485 | C57: 13 | D57: 7500 | E57: 24 | F57: 7519 | K57: 0 | L57: 112
A58: 12 | B58: 7638 | C58: 13 | D58: 7658 | E58: 13 | F58: 7673 | K58: 0 | L58: 111
A59: 12 | B59: 7789 | C59: 13 | D59: 7805 | E59: 24 | F59: 7817 | K59: 0 | L59: 112
A60: 12 | B60: 7936 | C60: 13 | D60: 7937 | E60: 13 | F60: 7970 | K60: 0 | L60: 111
A61: 12 | B61: 8105 | C61: 13 | D61: 8133 | E61: 13 | F61: 8156 | K61: 0 | L61: 111
A62: 12 | B62: 8290 | C62: 13 | D62: 8306 | E62: 13 | F62: 8330 | K62: 0 | L62: 111
A63: 12 | B63: 8458 | C63: 13 | D63: 8478 | E63: 24 | F63: 8499 | K63: 0 | L63: 112
A64: 12 | B64: 8667 | C64: 13 | D64: 8725 | E64: 13 | F64: 8748 | K64: 0 | L64: 111
A65: 12 | B65: 8897 | C65: 24 | D65: 8960 | E65: 13 | F65: 8973 | K65: 0 | L65: 121
A66: 12 | B66: 9119 | C66: 13 | D66: 9145 | E66: 13 | F66: 9171 | K66: 0 | L66: 111
A67: 21 | B67: 9325 | C67: 11 | D67: 9338 | E67: 22 | F67: 9351 | K67: 0 | L67: 212
A68: 12 | B68: 9548 | C68: 13 | D68: 9575 | E68: 13 | F68: 9603 | K68: 0 | L68: 111
A69: 12 | B69: 9724 | C69: 13 | D69: 9740 | E69: 13 | F69: 9781 | K69: 0 | L69: 111
A70: 12 | B70: 9965 | C70: 13 | D70: 10005 | E70: 13 | F70: 10028 | K70: 0 | L70: 111
A71: 21 | B71: 10218 | C71: 11 | D71: 10230 | E71: 22 | F71: 10267 | K71: 0 | L71: 212
A72: 12 | B72: 10414 | C72: 24 | D72: 10430 | E72: 13 | F72: 10442 | K72: 0 | L72: 121
A73: 12 | B73: 10592 | C73: 13 | D73: 10611 | E73: 13 | F73: 10632 | K73: 0 | L73: 111
A74: 21 | B74: 10770 | C74: 11 | D74: 10782 | E74: 11 | F74: 10812 | K74: 0 | L74: 211
A75: 12 | B75: 10944 | C75: 13 | D75: 10968 | E75: 13 | F75: 10993 | K75: 0 | L75: 111
A76: 12 | B76: 11121 | C76: 24 | D76: 11138 | E76: 13 | F76: 11152 | K76: 0 | L76: 121
A77: 21 | B77: 11285 | C77: 11 | D77: 11295 | E77: 11 | F77: 11322 | K77: 0 | L77: 211
A78: 12 | B78: 11450 | C78: 24 | D78: 11468 | E78: 13 | F78: 11500 | K78: 0 | L78: 121
A79: 12 | B79: 11602 | C79: 13 | D79: 11629 | E79: 13 | F79: 11656 | K79: 0 | L79: 111
A80: 12 | B80: 11787 | C80: 13 | D80: 11810 | E80: 13 | F80: 11833 | K80: 0 | L80: 111
A81: 12 | B81: 11972 | C81: 24 | D81: 11984 | E81: 13 | F81: 11995 | K81: 0 | L81: 121
A82: 21 | B82: 12122 | C82: 11 | D82: 12134 | E82: 11 | F82: 12156 | K82: 0 | L82: 211
A83: 12 | B83: 12322 | C83: 13 | D83: 12436 | E83: 13 | F83: 12461 | K83: 0 | L83: 111
A84: 12 | B84: 12575 | C84: 13 | D84: 12599 | E84: 13 | F84: 12622 | K84: 0 | L84: 111
A85: 21 | B85: 12784 | C85: 11 | D85: 12796 | E85: 11 | F85: 12839 | K85: 0 | L85: 211
A86: 12 | B86: 13017 | C86: 13 | D86: 13050 | E86: 24 | F86: 13067 | K86: 0 | L86: 112
A87: 12 | B87: 13196 | C87: 13 | D87: 13218 | E87: 13 | F87: 13235 | K87: 0 | L87: 111
A88: 12 | B88: 13394 | C88: 13 | D88: 13416 | E88: 13 | F88: 13439 | K88: 0 | L88: 111
A89: 21 | B89: 13555 | C89: 11 | D89: 13590 | E89: 22 | F89: 13603 | K89: 0 | L89: 212
A90: 21 | B90: 13751 | C90: 11 | D90: 13761 | E90: 11 | F90: 13802 | K90: 0 | L90: 211
A91: 12 | B91: 13991 | C91: 13 | D91: 14015 | E91: 13 | F91: 14042 | K91: 0 | L91: 111
A92: 12 | B92: 14188 | C92: 13 | D92: 14213 | E92: 13 | F92: 14242 | K92: 0 | L92: 111
A93: 12 | B93: 14368 | C93: 13 | D93: 14403 | E93: 13 | F93: 14434 | K93: 0 | L93: 111
A94: 12 | B94: 14559 | C94: 13 | D94: 14580 | E94: 13 | F94: 14608 | K94: 0 | L94: 111
A95: 12 | B95: 14742 | C95: 13 | D95: 14763 | E95: 24 | F95: 14818 | K95: 0 | L95: 112
A96: 12 | B96: 14960 | C96: 13 | D96: 15006 | E96: 13 | F96: 15043 | K96: 0 | L96: 111
A97: 12 | B97: 15191 | C97: 13 | D97: 15204 | E97: 13 | F97: 15231 | K97: 0 | L97: 111
A98: 12 | B98: 15351 | C98: 13 | D98: 15425 | E98: 13 | F98: 15450 | K98: 0 | L98: 111
A99: 12 | B99: 15580 | C99: 24 | D99: 15590 | E99: 13 | F99: 15600 | K99: 0 | L99: 121
A100: 12 | B100: 15734 | C100: 13 | D100: 15758 | E100: 24 | F100: 15771 | K100: 0 | L100: 112
A101: 12 | B101: 15931 | C101: 24 | D101: 15983 | E101: 24 | F101: 16036 | K101: 0 | L101: 122
A102: 12 | B102: 16174 | C102: 13 | D102: 16203 | E102: 13 | F102: 16205 | K102: 0 | L102: 111
A103: 21 | B103: 16355 | C103: 11 | D103: 16367 | E103: 11 | F103: 16381 | K103: 0 | L103: 211
A104: 12 | B104: 16587 | C104: 13 | D104: 16630 | E104: 24 | F104: 16643 | K104: 0 | L104: 112
A105: 12 | B105: 16846 | C105: 13 | D105: 16870 | E105: 13 | F105: 16898 | K105: 0 | L105: 111
A106: 21 | B106: 17061 | C106: 11 | D106: 17071 | E106: 22 | F106: 17087 | K106: 0 | L106: 212
A107: 12 | B107: 17250 | C107: 24 | D107: 17262 | E107: 13 | F107: 17274 | K107: 0 | L107: 121
A108: 21 | B108: 17381 | C108: 11 | D108: 17392 | E108: 11 | F108: 17419 | K108: 0 | L108: 211
A109: 12 | B109: 17600 | C109: 24 | D109: 17611 | E109: 13 | F109: 17624 | K109: 0 | L109: 121
A110: 12 | B110: 17749 | C110: 13 | D110: 17751 | E110: 24 | F110: 17766 | K110: 0 | L110: 112
A111: 21 | B111: 17871 | C111: 11 | D111: 17908 | E111: 11 | F111: 17932 | K111: 0 | L111: 211
A112: 21 | B112: 18094 | C112: 11 | D112: 18108 | E112: 11 | F112: 18161 | K112: 0 | L112: 211
A113: 12 | B113: 18325 | C113: 13 | D113: 18347 | E113: 13 | F113: 18363 | K113: 0 | L113: 111
A114: 12 | B114: 18507 | C114: 13 | D114: 18555 | E114: 13 | F114: 18580 | K114: 0 | L114: 111
A115: 12 | B115: 18715 | C115: 13 | D115: 18734 | E115: 13 | F115: 18762 | K115: 0 | L115: 111
A116: 12 | B116: 18926 | C116: 13 | D116: 18947 | E116: 13 | F116: 18969 | K116: 0 | L116: 111
A117: 12 | B117: 19099 | C117: 13 | D117: 19129 | E117: 13 | F117: 19151 | K117: 0 | L117: 111
A118: 21 | B118: 19267 | C118: 11 | D118: 19278 | E118: 22 | F118: 19290 | K118: 0 | L118: 212
A119: 12 | B119: 19395 | C119: 13 | D119: 19443 | E119: 13 | F119: 19466 | K119: 0 | L119: 111
A120: 12 | B120: 19613 | C120: 24 | D120: 19629 | E120: 13 | F120: 19641 | K120: 0 | L120: 121
A121: 21 | B121: 19762 | C121: 22 | D121: 19789 | E121: 13 | F121: 19805 | K121: 0 | L121: 221
A122: 12 | B122: 19916 | C122: 24 | D122: 19930 | E122: 13 | F122: 19941 | K122: 0 | L122: 121
A123: 12 | B123: 20043 | C123: 13 | D123: 20114 | E123: 24 | F123: 20150 | K123: 0 | L123: 112
A124: 12 | B124: 20251 | C124: 24 | D124: 20270 | E124: 13 | F124: 20282 | K124: 0 | L124: 121
A125: 12 | B125: 20383 | C125: 13 | D125: 20425 | E125: 13 | F125: 20452 | K125: 0 | L125: 111
A126: 12 | B126: 20550 | C126: 13 | D126: 20585 | E126: 13 | F126: 20621 | K126: 0 | L126: 111
A127: 21 | B127: 20760 | C127: 11 | D127: 20768 | E127: 11 | F127: 20791 | K127: 0 | L127: 211
A128: 12 | B128: 20955 | C128: 13 | D128: 21001 | E128: 13 | F128: 21022 | K128: 0 | L128: 111
A129: 12 | B129: 21197 | C129: 13 | D129: 21215 | E129: 13 | F129: 21239 | K129: 0 | L129: 111
A130: 12 | B130: 21364 | C130: 24 | D130: 21376 | E130: 13 | F130: 21391 | K130: 0 | L130: 121
A131: 12 | B131: 21518 | C131: 13 | D131: 21540 | E131: 13 | F131: 21592 | K131: 0 | L131: 111
A132: 21 | B132: 21721 | C132: 11 | D132: 21732 | E132: 11 | F132: 21761 | K132: 0 | L132: 211
A133: 12 | B133: 21974 | C133: 13 | D133: 22004 | E133: 13 | F133: 22020 | K133: 0 | L133: 111
A134: 12 | B134: 22180 | C134: 13 | D134: 22202 | E134: 13 | F134: 22228 | K134: 0 | L134: 111
A135: 21 | B135: 22340 | C135: 11 | D135: 22370 | E135: 22 | F135: 22386 | K135: 0 | L135: 212
A136: 12 | B136: 22495 | C136: 24 | D136: 22506 | E136: 13 | F136: 22518 | K136: 0 | L136: 121
A137: 21 | B137: 22625 | C137: 11 | D137: 22636 | E137: 11 | F137: 22678 | K137: 0 | L137: 211
A138: 12 | B138: 22771 | C138: 13 | D138: 22809 | E138: 13 | F138: 22833 | K138: 0 | L138: 111
A139: 12 | B139: 22930 | C139: 24 | D139: 22941 | E139: 13 | F139: 22952 | K139: 0 | L139: 121
A140: 12 | B140: 23051 | C140: 24 | D140: 23064 | E140: 13 | F140: 23108 | K140: 0 | L140: 121
A141: 12 | B141: 23203 | C141: 13 | D141: 23225 | E141: 13 | F141: 23246 | K141: 0 | L141: 111
A142: 12 | B142: 23400 | C142: 13 | D142: 23453 | E142: 13 | F142: 23476 | K142: 0 | L142: 111
A143: 12 | B143: 23579 | C143: 13 | D143: 23623 | E143: 24 | F143: 23635 | K143: 0 | L143: 112
A144: 12 | B144: 23734 | C144: 13 | D144: 23759 | E144: 24 | F144: 23772 | K144: 0 | L144: 112
A145: 12 | B145: 23875 | C145: 13 | D145: 23914 | E145: 13 | F145: 23938 | L145: 111

Sheet !M430850.183
A1: Report for:!M430850.183
A2: Date: | B2: <date>
A3: Hen: | B3: <hen> | F3: Correct Sequence | G3: =Start!J2 -> 211 | P3: Total Sequences in Data | Q3: =4994-COUNTBLANK(L7:L5000) -> 137 | V3: Total Sequences in Block Data | W3: =COUNTA(L7:L29) -> 23 | AA3: Total Sequences in Block Data | AB3: =COUNTA(L30:L52) -> 23 | AF3: Total Sequences in Block Data | AG3: =COUNTA(L53:L74) -> 22 | AK3: Total Sequences in Block Data | AL3: =COUNTA(L75:L97) -> 23 | AP3: Total Sequences in Block Data | AQ3: =COUNTA(L98:L120) -> 23 | AU3: Total Sequences in Block Data | AV3: =COUNTA(L121:L143) -> 23
P4: Total Sequences in Summary | Q4: =SUM(O7:O14) -> 137 | V4: Total Sequences in Block Summary | W4: =SUM(U7:U14) -> 23 | AA4: Total Sequences in Block Summary | AB4: =SUM(Z7:Z14) -> 23 | AF4: Total Sequences in Block Summary | AG4: =SUM(AE7:AE14) -> 22 | AK4: Total Sequences in Block Summary | AL4: =SUM(AJ7:AJ14) -> 23 | AP4: Total Sequences in Block Summary | AQ4: =SUM(AO7:AO14) -> 23 | AU4: Total Sequences in Block Summary | AV4: =SUM(AT7:AT14) -> 23
T5: Block 1 | Y5: Block 2 | AD5: Block 3 | AI5: Block 4 | AN5: Block 5 | AS5: Block 6
A6: Sequence Component 1 | B6: Time 1 | C6: Sequence Component 2 | D6: Time 2 | E6: Sequence Component 3 | F6: Time 3 | G6: Sequence Component 4 | H6: Time 4 | I6: Sequence Component 5 | J6: Time 5 | K6: Correct? 0=No 1=Yes | L6: Sequence | N6: Frequency | P6: Relative Frequency | Q6: Variability | T6: Frequency | V6: Relative Frequency | W6: Variability | Y6: Frequency | AA6: Relative Frequency | AB6: Variability | AD6: Frequency | AF6: Relative Frequency | AG6: Variability | AI6: Frequency | AK6: Relative Frequency | AL6: Variability | AN6: Frequency | AP6: Relative Frequency | AQ6: Variability | AS6: Frequency | AU6: Relative Frequency | AV6: Variability
A7: 12 | B7: 89 | C7: 24 | D7: 106 | E7: 13 | F7: 121 | K7: 0 | L7: 121 | N7: 111 | O7: =COUNTIF($L$7:$L$500,N7) -> 18 | P7: =O7/$Q$4 -> 0.1313868613 | Q7: =IF(P7=0,0,(P7*((LOG(P7))/LOG(2)))) -> -0.384714799 | T7: =N7 -> 111 | U7: =COUNTIF(L7:L29,T7) -> 1 | V7: =U7/(W4-U11) -> 0.04545454545 | W7: =IF(V7=0,0,(V7*((LOG(V7))/LOG(2)))) -> -0.2027014372 | Y7: =N7 -> 111 | Z7: =COUNTIF(L30:L52,Y7) -> 3 | AA7: =Z7/(AB4-Z11) -> 0.1666666667 | AB7: =IF(AA7=0,0,(AA7*((LOG(AA7))/LOG(2)))) -> -0.4308270835 | AD7: =N7 -> 111 | AE7: =COUNTIF(L53:L74,AD7) -> 5 | AF7: =AE7/(AG4-AE11) -> 0.3333333333 | AG7: =IF(AF7=0,0,(AF7*((LOG(AF7))/LOG(2)))) -> -0.5283208336 | AI7: =N7 -> 111 | AJ7: =COUNTIF(L75:L97,AI7) -> 3 | AK7: =AJ7/(AL4-AJ11) -> 0.15 | AL7: =IF(AK7=0,0,(AK7*((LOG(AK7))/LOG(2)))) -> -0.4105448391 | AN7: =N7 -> 111 | AO7: =COUNTIF(L98:L120,AN7) -> 4 | AP7: =AO7/(AQ4-AO11) -> 0.2105263158 | AQ7: =IF(AP7=0,0,(AP7*((LOG(AP7))/LOG(2)))) -> -0.4732478976 | AS7: =N7 -> 111 | AT7: =COUNTIF(L121:L143,AS7) -> 2 | AU7: =AT7/(AV4-AT11) -> 0.1818181818 | AV7: =IF(AU7=0,0,(AU7*((LOG(AU7))/LOG(2)))) -> -0.4471693852
A8: 21 | B8: 258 | C8: 11 | D8: 269 | E8: 22 | F8: 282 | K8: 0 | L8: 212 | N8: 112 | O8: =COUNTIF($L$7:$L$500,N8) -> 10 | P8: =O8/$Q$4 -> 0.07299270073 | Q8: =IF(P8=0,0,(P8*((LOG(P8))/LOG(2)))) -> -0.2756280283 | T8: =N8 -> 112 | U8: =COUNTIF(L7:L29,T8) -> 3 | V8: =U8/(W4-U11) -> 0.1363636364 | W8: =IF(V8=0,0,(V8*((LOG(V8))/LOG(2)))) -> -0.3919730615 | Y8: =N8 -> 112 | Z8: =COUNTIF(L30:L52,Y8) -> 3 | AA8: =Z8/(AB4-Z11) -> 0.1666666667 | AB8: =IF(AA8=0,0,(AA8*((LOG(AA8))/LOG(2)))) -> -0.4308270835 | AD8: =N8 -> 112 | AE8: =COUNTIF(L53:L74,AD8) -> 1 | AF8: =AE8/(AG4-AE11) -> 0.06666666667 | AG8: =IF(AF8=0,0,(AF8*((LOG(AF8))/LOG(2)))) -> -0.260459373 | AI8: =N8 -> 112 | AJ8: =COUNTIF(L75:L97,AI8) -> 0 | AK8: =AJ8/(AL4-AJ11) -> 0 | AL8: =IF(AK8=0,0,(AK8*((LOG(AK8))/LOG(2)))) -> 0 | AN8: =N8 -> 112 | AO8: =COUNTIF(L98:L120,AN8) -> 3 | AP8: =AO8/(AQ4-AO11) -> 0.1578947368 | AQ8: =IF(AP8=0,0,(AP8*((LOG(AP8))/LOG(2)))) -> -0.4204681599 | AS8: =N8 -> 112 | AT8: =COUNTIF(L121:L143,AS8) -> 0 | AU8: =AT8/(AV4-AT11) -> 0 | AV8: =IF(AU8=0,0,(AU8*((LOG(AU8))/LOG(2)))) -> 0
A9: 12 | B9: 401 | C9: 24 | D9: 415 | E9: 13 | F9: 427 | K9: 0 | L9: 121 | N9: 121 | O9: =COUNTIF($L$7:$L$500,N9) -> 33 | P9: =O9/$Q$4 -> 0.2408759124 | Q9: =IF(P9=0,0,(P9*((LOG(P9))/LOG(2)))) -> -0.4946719182 | T9: =N9 -> 121 | U9: =COUNTIF(L7:L29,T9) -> 10 | V9: =U9/(W4-U11) -> 0.4545454545 | W9: =IF(V9=0,0,(V9*((LOG(V9))/LOG(2)))) -> -0.5170470562 | Y9: =N9 -> 121 | Z9: =COUNTIF(L30:L52,Y9) -> 3 | AA9: =Z9/(AB4-Z11) -> 0.1666666667 | AB9: =IF(AA9=0,0,(AA9*((LOG(AA9))/LOG(2)))) -> -0.4308270835 | AD9: =N9 -> 121 | AE9: =COUNTIF(L53:L74,AD9) -> 2 | AF9: =AE9/(AG4-AE11) -> 0.1333333333 | AG9: =IF(AF9=0,0,(AF9*((LOG(AF9))/LOG(2)))) -> -0.3875854127 | AI9: =N9 -> 121 | AJ9: =COUNTIF(L75:L97,AI9) -> 9 | AK9: =AJ9/(AL4-AJ11) -> 0.45 | AL9: =IF(AK9=0,0,(AK9*((LOG(AK9))/LOG(2)))) -> -0.5184013921 | AN9: =N9 -> 121 | AO9: =COUNTIF(L98:L120,AN9) -> 4 | AP9: =AO9/(AQ4-AO11) -> 0.2105263158 | AQ9: =IF(AP9=0,0,(AP9*((LOG(AP9))/LOG(2)))) -> -0.4732478976 | AS9: =N9 -> 121 | AT9: =COUNTIF(L121:L143,AS9) -> 5 | AU9: =AT9/(AV4-AT11) -> 0.4545454545 | AV9: =IF(AU9=0,0,(AU9*((LOG(AU9))/LOG(2)))) -> -0.5170470562
A10: 12 | B10: 529 | C10: 13 | D10: 553 | E10: 24 | F10: 568 | K10: 0 | L10: 112 | N10: 122 | O10: =COUNTIF($L$7:$L$500,N10) -> 7 | P10: =O10/$Q$4 -> 0.05109489051 | Q10: =IF(P10=0,0,(P10*((LOG(P10))/LOG(2)))) -> -0.2192316798 | T10: =N10 -> 122 | U10: =COUNTIF(L7:L29,T10) -> 4 | V10: =U10/(W4-U11) -> 0.1818181818 | W10: =IF(V10=0,0,(V10*((LOG(V10))/LOG(2)))) -> -0.4471693852 | Y10: =N10 -> 122 | Z10: =COUNTIF(L30:L52,Y10) -> 0 | AA10: =Z10/(AB4-Z11) -> 0 | AB10: =IF(AA10=0,0,(AA10*((LOG(AA10))/LOG(2)))) -> 0 | AD10: =N10 -> 122 | AE10: =COUNTIF(L53:L74,AD10) -> 0 | AF10: =AE10/(AG4-AE11) -> 0 | AG10: =IF(AF10=0,0,(AF10*((LOG(AF10))/LOG(2)))) -> 0 | AI10: =N10 -> 122 | AJ10: =COUNTIF(L75:L97,AI10) -> 2 | AK10: =AJ10/(AL4-AJ11) -> 0.1 | AL10: =IF(AK10=0,0,(AK10*((LOG(AK10))/LOG(2)))) -> -0.3321928095 | AN10: =N10 -> 122 | AO10: =COUNTIF(L98:L120,AN10) -> 0 | AP10: =AO10/(AQ4-AO11) -> 0 | AQ10: =IF(AP10=0,0,(AP10*((LOG(AP10))/LOG(2)))) -> 0 | AS10: =N10 -> 122 | AT10: =COUNTIF(L121:L143,AS10) -> 1 | AU10: =AT10/(AV4-AT11) -> 0.09090909091 | AV10: =IF(AU10=0,0,(AU10*((LOG(AU10))/LOG(2)))) -> -0.3144937835
A11: 12 | B11: 675 | C11: 24 | D11: 689 | E11: 13 | F11: 705 | K11: 0 | L11: 121 | N11: 211 | O11: =COUNTIF($L$7:$L$500,N11) -> 32 | P11: =O11/$Q$4 -> 0.2335766423 | Q11: =IF(P11=0,0,(P11*((LOG(P11))/LOG(2)))) -> -0.4900512895 | T11: =N11 -> 211 | U11: =COUNTIF(L7:L29,T11) -> 1 | Y11: =N11 -> 211 | Z11: =COUNTIF(L30:L52,Y11) -> 5 | AD11: =N11 -> 211 | AE11: =COUNTIF(L53:L74,AD11) -> 7 | AI11: =N11 -> 211 | AJ11: =COUNTIF(L75:L97,AI11) -> 3 | AN11: =N11 -> 211 | AO11: =COUNTIF(L98:L120,AN11) -> 4 | AS11: =N11 -> 211 | AT11: =COUNTIF(L121:L143,AS11) -> 12
A12: 12 | B12: 813 | C12: 24 | D12: 825 | E12: 13 | F12: 836 | K12: 0 | L12: 121 | N12: 212 | O12: =COUNTIF($L$7:$L$500,N12) -> 26 | P12: =O12/$Q$4 -> 0.1897810219 | Q12: =IF(P12=0,0,(P12*((LOG(P12))/LOG(2)))) -> -0.4550175291 | T12: =N12 -> 212 | U12: =COUNTIF(L7:L29,T12) -> 3 | V12: =U12/(W4-U11) -> 0.1363636364 | W12: =IF(V12=0,0,(V12*((LOG(V12))/LOG(2)))) -> -0.3919730615 | Y12: =N12 -> 212 | Z12: =COUNTIF(L30:L52,Y12) -> 9 | AA12: =Z12/(AB4-Z11) -> 0.5 | AB12: =IF(AA12=0,0,(AA12*((LOG(AA12))/LOG(2)))) -> -0.5 | AD12: =N12 -> 212 | AE12: =COUNTIF(L53:L74,AD12) -> 3 | AF12: =AE12/(AG4-AE11) -> 0.2 | AG12: =IF(AF12=0,0,(AF12*((LOG(AF12))/LOG(2)))) -> -0.464385619 | AI12: =N12 -> 212 | AJ12: =COUNTIF(L75:L97,AI12) -> 5 | AK12: =AJ12/(AL4-AJ11) -> 0.25 | AL12: =IF(AK12=0,0,(AK12*((LOG(AK12))/LOG(2)))) -> -0.5 | AN12: =N12 -> 212 | AO12: =COUNTIF(L98:L120,AN12) -> 5 | AP12: =AO12/(AQ4-AO11) -> 0.2631578947 | AQ12: =IF(AP12=0,0,(AP12*((LOG(AP12))/LOG(2)))) -> -0.5068419523 | AS12: =N12 -> 212 | AT12: =COUNTIF(L121:L143,AS12) -> 1 | AU12: =AT12/(AV4-AT11) -> 0.09090909091 | AV12: =IF(AU12=0,0,(AU12*((LOG(AU12))/LOG(2)))) -> -0.3144937835
A13: 12 | B13: 937 | C13: 24 | D13: 947 | E13: 13 | F13: 957 | K13: 0 | L13: 121 | N13: 221 | O13: =COUNTIF($L$7:$L$500,N13) -> 6 | P13: =O13/$Q$4 -> 0.04379562044 | Q13: =IF(P13=0,0,(P13*((LOG(P13))/LOG(2)))) -> -0.1976526824 | T13: =N13 -> 221 | U13: =COUNTIF(L7:L29,T13) -> 0 | V13: =U13/(W4-U11) -> 0 | W13: =IF(V13=0,0,(V13*((LOG(V13))/LOG(2)))) -> 0 | Y13: =N13 -> 221 | Z13: =COUNTIF(L30:L52,Y13) -> 0 | AA13: =Z13/(AB4-Z11) -> 0 | AB13: =IF(AA13=0,0,(AA13*((LOG(AA13))/LOG(2)))) -> 0 | AD13: =N13 -> 221 | AE13: =COUNTIF(L53:L74,AD13) -> 3 | AF13: =AE13/(AG4-AE11) -> 0.2 | AG13: =IF(AF13=0,0,(AF13*((LOG(AF13))/LOG(2)))) -> -0.464385619 | AI13: =N13 -> 221 | AJ13: =COUNTIF(L75:L97,AI13) -> 0 | AK13: =AJ13/(AL4-AJ11) -> 0 | AL13: =IF(AK13=0,0,(AK13*((LOG(AK13))/LOG(2)))) -> 0 | AN13: =N13 -> 221 | AO13: =COUNTIF(L98:L120,AN13) -> 2 | AP13: =AO13/(AQ4-AO11) -> 0.1052631579 | AQ13: =IF(AP13=0,0,(AP13*((LOG(AP13))/LOG(2)))) -> -0.3418871067 | AS13: =N13 -> 221 | AT13: =COUNTIF(L121:L143,AS13) -> 1 | AU13: =AT13/(AV4-AT11) -> 0.09090909091 | AV13: =IF(AU13=0,0,(AU13*((LOG(AU13))/LOG(2)))) -> -0.3144937835
A14: 21 | B14: 1065 | C14: 11 | D14: 1076 | E14: 11 | F14: 1101 | K14: 0 | L14: 211 | N14: 222 | O14: =COUNTIF($L$7:$L$500,N14) -> 5 | P14: =O14/$Q$4 -> 0.03649635036 | Q14: =IF(P14=0,0,(P14*((LOG(P14))/LOG(2)))) -> -0.1743103645 | T14: =N14 -> 222 | U14: =COUNTIF(L7:L29,T14) -> 1 | V14: =U14/(W4-U11) -> 0.04545454545 | W14: =IF(V14=0,0,(V14*((LOG(V14))/LOG(2)))) -> -0.2027014372 | Y14: =N14 -> 222 | Z14: =COUNTIF(L30:L52,Y14) -> 0 | AA14: =Z14/(AB4-Z11) -> 0 | AB14: =IF(AA14=0,0,(AA14*((LOG(AA14))/LOG(2)))) -> 0 | AD14: =N14 -> 222 | AE14: =COUNTIF(L53:L74,AD14) -> 1 | AF14: =AE14/(AG4-AE11) -> 0.06666666667 | AG14: =IF(AF14=0,0,(AF14*((LOG(AF14))/LOG(2)))) -> -0.260459373 | AI14: =N14 -> 222 | AJ14: =COUNTIF(L75:L97,AI14) -> 1 | AK14: =AJ14/(AL4-AJ11) -> 0.05 | AL14: =IF(AK14=0,0,(AK14*((LOG(AK14))/LOG(2)))) -> -0.2160964047 | AN14: =N14 -> 222 | AO14: =COUNTIF(L98:L120,AN14) -> 1 | AP14: =AO14/(AQ4-AO11) -> 0.05263157895 | AQ14: =IF(AP14=0,0,(AP14*((LOG(AP14))/LOG(2)))) -> -0.2235751323 | AS14: =N14 -> 222 | AT14: =COUNTIF(L121:L143,AS14) -> 1 | AU14: =AT14/(AV4-AT11) -> 0.09090909091 | AV14: =IF(AU14=0,0,(AU14*((LOG(AU14))/LOG(2)))) -> -0.3144937835
A15: 12 | B15: 1227 | C15: 13 | D15: 1259 | E15: 24 | F15: 1315 | K15: 0 | L15: 112 | P15: =SUM(P7:P14) -> 1 | Q15: =-SUM(Q7:Q14) -> 2.691278291 | V15: =SUM(V7:V14) -> 1 | W15: =-SUM(W7:W14) -> 2.153565439 | AA15: =SUM(AA7:AA14) -> 1 | AB15: =-SUM(AB7:AB14) -> 1.79248125 | AF15: =SUM(AF7:AF14) -> 1 | AG15: =-SUM(AG7:AG14) -> 2.36559623 | AK15: =SUM(AK7:AK14) -> 1 | AL15: =-SUM(AL7:AL14) -> 1.977235445 | AP15: =SUM(AP7:AP14) -> 1 | AQ15: =-SUM(AQ7:AQ14) -> 2.439268146 | AU15: =SUM(AU7:AU14) -> 1 | AV15: =-SUM(AV7:AV14) -> 2.222191576
A16: 21 | B16: 1450 | C16: 22 | D16: 1474 | E16: 24 | F16: 1488 | K16: 0 | L16: 222 | P16: U= | Q16: =Q15/(LOG(Q4)/LOG(2)) -> 0.3791583723 | V16: U1= | W16: =W15/(LOG(W4)/LOG(2)) -> 0.4760773611 | AA16: U2= | AB16: =AB15/(LOG(AB4)/LOG(2)) -> 0.3962543827 | AF16: U3= | AG16: =AG15/(LOG(AG4)/LOG(2)) -> 0.5304703453 | AK16: U4= | AL16: =AL15/(LOG(AL4)/LOG(2)) -> 0.4370970188 | AP16: U5= | AQ16: =AQ15/(LOG(AQ4)/LOG(2)) -> 0.5392361528 | AU16: U6= | AV16: =AV15/(LOG(AV4)/LOG(2)) -> 0.4912481794
A17: 21 | B17: 1610 | C17: 11 | D17: 1637 | E17: 22 | F17: 1656 | K17: 0 | L17: 212
A18: 12 | B18: 1753 | C18: 24 | D18: 1766 | E18: 13 | F18: 1777 | K18: 0 | L18: 121
A19: 12 | B19: 1875 | C19: 24 | D19: 1891 | E19: 13 | F19: 1902 | K19: 0 | L19: 121 | N19: Total Target Seq
A20: 12 | B20: 2000 | C20: 24 | D20: 2012 | E20: 24 | F20: 2024 | K20: 0 | L20: 122 | N20: =COUNTIF(L7:L143,G3) -> 32 | P20: 23 | Q20: 23 | R20: 22 | S20: 23 | T20: 23 | U20: 23
A21: 12 | B21: 2121 | C21: 24 | D21: 2146 | E21: 13 | F21: 2157 | K21: 0 | L21: 121 | P21: % of reinforcement given in 6 equal intervals based on number of trials
A22: 12 | B22: 2253 | C22: 24 | D22: 2266 | E22: 24 | F22: 2277 | K22: 0 | L22: 122 | P22: %_1 | Q22: %_2 | R22: %_3 | S22: %_4 | T22: %_5 | U22: %_6
A23: 12 | B23: 2412 | C23: 24 | D23: 2445 | E23: 24 | F23: 2469 | K23: 0 | L23: 122 | O23: target sequence | P23: =$G$3 -> 211 | Q23: =$G$3 -> 211 | R23: =$G$3 -> 211 | S23: =$G$3 -> 211 | T23: =$G$3 -> 211 | U23: =$G$3 -> 211
A24: 12 | B24: 2571 | C24: 24 | D24: 2599 | E24: 13 | F24: 2628 | K24: 0 | L24: 121 | O24: total reinforcement | P24: =U11 -> 1 | Q24: =Z11 -> 5 | R24: =AE11 -> 7 | S24: =AJ11 -> 3 | T24: =AO11 -> 4 | U24: =AT11 -> 12
A25: 21 | B25: 2778 | C25: 11 | D25: 2790 | E25: 22 | F25: 2801 | K25: 0 | L25: 212 | O25: % target
A26: 12 | B26: 2916 | C26: 13 | D26: 2948 | E26: 13 | F26: 2971 | K26: 0 | L26: 111 | O26: CCRF
A27: 12 | B27: 3075 | C27: 24 | D27: 3093 | E27: 13 | F27: 3103 | K27: 0 | L27: 121 | O27: % CCRf
A28: 12 | B28: 3203 | C28: 24 | D28: 3215 | E28: 24 | F28: 3228 | K28: 0 | L28: 122 | O28: average response rate | P28: =F29/P20 -> 145.2173913 | Q28: =(F52-F29)/Q20 -> 149.5652174 | R28: =(F74-F52)/R20 -> 177.5454545 | S28: =(F97-F74)/S20 -> 169.3913043 | T28: =(F120-F97)/T20 -> 228.1304348 | U28: =(F143-F120)/U20 -> 177.2608696
A29: 12 | B29: 3325 | C29: 13 | D29: 3327 | E29: 24 | F29: 3340 | K29: 0 | L29: 112
A30: 12 | B30: 3437 | C30: 24 | D30: 3448 | E30: 13 | F30: 3459 | K30: 0 | L30: 121
A31: 21 | B31: 3562 | C31: 11 | D31: 3572 | E31: 22 | F31: 3583 | K31: 0 | L31: 212
A32: 12 | B32: 3782 | C32: 13 | D32: 3812 | E32: 13 | F32: 3838 | K32: 0 | L32: 111
A33: 21 | B33: 3949 | C33: 11 | D33: 3958 | E33: 22 | F33: 3970 | K33: 0 | L33: 212
A34: 12 | B34: 4093 | C34: 13 | D34: 4117 | E34: 13 | F34: 4142 | K34: 0 | L34: 111
A35: 12 | B35: 4280 | C35: 13 | D35: 4303 | E35: 24 | F35: 4317 | K35: 0 | L35: 112
A36: 21 | B36: 4418 | C36: 11 | D36: 4429 | E36: 22 | F36: 4439 | K36: 0 | L36: 212
A37: 21 | B37: 4562 | C37: 11 | D37: 4572 | E37: 11 | F37: 4599 | K37: 0 | L37: 211
A38: 21 | B38: 4708 | C38: 11 | D38: 4719 | E38: 22 | F38: 4732 | K38: 0 | L38: 212
A39: 21 | B39: 4853 | C39: 11 | D39: 4865 | E39: 22 | F39: 4888 | K39: 0 | L39: 212
A40: 21 | B40: 4991 | C40: 11 | D40: 5002 | E40: 11 | F40: 5025 | K40: 0 | L40: 211
A41: 21 | B41: 5141 | C41: 11 | D41: 5150 | E41: 11 | F41: 5166 | K41: 0 | L41: 211
A42: 21 | B42: 5302 | C42: 11 | D42: 5314 | E42: 11 | F42: 5351 | K42: 0 | L42: 211
A43: 21 | B43: 5458 | C43: 11 | D43: 5470 | E43: 22 | F43: 5483 | K43: 0 | L43: 212
A44: 12 | B44: 5613 | C44: 13 | D44: 5639 | E44: 13 | F44: 5664 | K44: 0 | L44: 111
A45: 12 | B45: 5761 | C45: 24 | D45: 5775 | E45: 13 | F45: 5786 | K45: 0 | L45: 121
A46: 21 | B46: 5885 | C46: 11 | D46: 5895 | E46: 22 | F46: 5908 | K46: 0 | L46: 212
A47: 21 | B47: 6010 | C47: 11 | D47: 6021 | E47: 11 | F47: 6042 | K47: 0 | L47: 211
A48: 12 | B48: 6141 | C48: 13 | D48: 6187 | E48: 24 | F48: 6200 | K48: 0 | L48: 112
A49: 12 | B49: 6297 | C49: 24 | D49: 6344 | E49: 13 | F49: 6357 | K49: 0 | L49: 121
A50: 12 | B50: 6455 | C50: 13 | D50: 6477 | E50: 24 | F50: 6489 | K50: 0 | L50: 112
A51: 21 | B51: 6592 | C51: 11 | D51: 6603 | E51: 22 | F51: 6615 | K51: 0 | L51: 212
A52: 21 | B52: 6716 | C52: 11 | D52: 6731 | E52: 22 | F52: 6780 | K52: 0 | L52: 212
A53: 21 | B53: 6885 | C53: 22 | D53: 6902 | E53: 13 | F53: 6938 | K53: 0 | L53: 221
A54: 12 | B54: 7037 | C54: 24 | D54: 7052 | E54: 13 | F54: 7063 | K54: 0 | L54: 121
A55: 12 | B55: 7202 | C55: 13 | D55: 7253 | E55: 13 | F55: 7350 | K55: 0 | L55: 111
A56: 12 | B56: 7519 | C56: 13 | D56: 7543 | E56: 13 | F56: 7567 | K56: 0 | L56: 111
A57: 21 | B57: 7696 | C57: 11 | D57: 7706 | E57: 11 | F57: 7721 | K57: 0 | L57: 211
A58: 12 | B58: 7886 | C58: 13 | D58: 7903 | E58: 13 | F58: 7926 | K58: 0 | L58: 111
A59: 12 | B59: 8046 | C59: 13 | D59: 8092 | E59: 13 | F59: 8129 | K59: 0 | L59: 111
A60: 12 | B60: 8227 | C60: 24 | D60: 8244 | E60: 13 | F60: 8257 | K60: 0 | L60: 121
A61: 21 | B61: 8355 | C61: 11 | D61: 8365 | E61: 11 | F61: 8388 | K61: 0 | L61: 211
A62: 21 | B62: 8510 | C62: 11 | D62: 8521 | E62: 11 | F62: 8545 | K62: 0 | L62: 211
A63: 21 | B63: 8672 | C63: 11 | D63: 8682 | E63: 11 | F63: 8731 | K63: 0 | L63: 211
A64: 21 | B64: 8852 | C64: 11 | D64: 8882 | E64: 11 | F64: 8910 | K64: 0 | L64: 211
A65: 12 | B65: 9123 | C65: 13 | D65: 9182 | E65: 13 | F65: 9275 | K65: 0 | L65: 111
A66: 21 | B66: 9388 | C66: 11 | D66: 9396 | E66: 22 | F66: 9406 | K66: 0 | L66: 212
A67: 21 | B67: 9514 | C67: 22 | D67: 9547 | E67: 13 | F67: 9558 | K67: 0 | L67: 221
A68: 21 | B68: 9662 | C68: 11 | D68: 9673 | E68: 11 | F68: 9729 | K68: 0 | L68: 211
A69: 21 | B69: 9840 | C69: 22 | D69: 9862 | E69: 13 | F69: 9916 | K69: 0 | L69: 221
A70: 21 | B70: 10018 | C70: 11 | D70: 10047 | E70: 22 | F70: 10059 | K70: 0 | L70: 212
A71: 21 | B71: 10170 | C71: 11 | D71: 10180 | E71: 11 | F71: 10203 | K71: 0 | L71: 211
A72: 12 | B72: 10294 | C72: 13 | D72: 10295 | E72: 24 | F72: 10357 | K72: 0 | L72: 112
A73: 21 | B73: 10488 | C73: 11 | D73: 10498 | E73: 22 | F73: 10535 | K73: 0 | L73: 212
A74: 21 | B74: 10636 | C74: 22 | D74: 10643 | E74: 24 | F74: 10686 | K74: 0 | L74: 222
A75: 12 | B75: 10804 | C75: 24 | D75: 10818 | E75: 13 | F75: 10849 | K75: 0 | L75: 121
A76: 12 | B76: 10946 | C76: 13 | D76: 10948 | E76: 13 | F76: 10969 | K76: 0 | L76: 111
A77: 12 | B77: 11093 | C77: 13 | D77: 11129 | E77: 13 | F77: 11172 | K77: 0 | L77: 111
A78: 12 | B78: 11270 | C78: 24 | D78: 11283 | E78: 13 | F78: 11334 | K78: 0 | L78: 121
A79: 12 | B79: 11431 | C79: 24 | D79: 11451 | E79: 13 | F79: 11561 | K79: 0 | L79: 121
A80: 21 | B80: 11666 | C80: 11 | D80: 11688 | E80: 22 | F80: 11700 | K80: 0 | L80: 212
A81: 12 | B81: 11811 | C81: 24 | D81: 11832 | E81: 13 | F81: 11842 | K81: 0 | L81: 121
A82: 12 | B82: 11938 | C82: 24 | D82: 11955 | E82: 13 | F82: 11966 | K82: 0 | L82: 121
A83: 21 | B83: 12080 | C83: 22 | D83: 12093 | E83: 24 | F83: 12124 | K83: 0 | L83: 222
A84: 12 | B84: 12233 | C84: 24 | D84: 12272 | E84: 13 | F84: 12306 | K84: 0 | L84: 121
A85: 12 | B85: 12404 | C85: 24 | D85: 12418 | E85: 24 | F85: 12446 | K85: 0 | L85: 122
A86: 21 | B86: 12566 | C86: 11 | D86: 12575 | E86: 22 | F86: 12602 | K86: 0 | L86: 212
A87: 21 | B87: 12711 | C87: 11 | D87: 12720 | E87: 22 | F87: 12735 | K87: 0 | L87: 212
A88: 12 | B88: 12878 | C88: 24 | D88: 12893 | E88: 13 | F88: 12929 | K88: 0 | L88: 121
A89: 21 | B89: 13110 | C89: 11 | D89: 13119 | E89: 22 | F89: 13134 | K89: 0 | L89: 212
A90: 21 | B90: 13248 | C90: 11 | D90: 13299 | E90: 11 | F90: 13326 | K90: 0 | L90: 211
A91: 12 | B91: 13426 | C91: 24 | D91: 13462 | E91: 24 | F91: 13481 | K91: 0 | L91: 122
A92: 12 | B92: 13581 | C92: 24 | D92: 13622 | E92: 13 | F92: 13635 | K92: 0 | L92: 121
A93: 21 | B93: 13773 | C93: 11 | D93: 13789 | E93: 11 | F93: 13828 | K93: 0 | L93: 211
A94: 12 | B94: 13997 | C94: 24 | D94: 14042 | E94: 13 | F94: 14053 | K94: 0 | L94: 121
A95: 12 | B95: 14186 | C95: 13 | D95: 14210 | E95: 13 | F95: 14237 | K95: 0 | L95: 111
A96: 21 | B96: 14354 | C96: 11 | D96: 14365 | E96: 22 | F96: 14379 | K96: 0 | L96: 212
A97: 21 | B97: 14514 | C97: 11 | D97: 14524 | E97: 11 | F97: 14582 | K97: 0 | L97: 211
A98: 21 | B98: 14757 | C98: 11 | D98: 14781 | E98: 22 | F98: 14848 | K98: 0 | L98: 212
A99: 12 | B99: 14963 | C99: 13 | D99: 15001 | E99: 24 | F99: 15012 | K99: 0 | L99: 112
A100: 21 | B100: 15114 | C100: 11 | D100: 15122 | E100: 11 | F100: 15170 | K100: 0 | L100: 211
A101: 12 | B101: 15290 | C101: 13 | D101: 15292 | E101: 13 | F101: 15333 | K101: 0 | L101: 111
A102: 12 | B102: 15544 | C102: 24 | D102: 15589 | E102: 13 | F102: 15601 | K102: 0 | L102: 121
A103: 12 | B103: 15726 | C103: 13 | D103: 15766 | E103: 13 | F103: 15946 | K103: 0 | L103: 111
A104: 12 | B104: 16053 | C104: 13 | D104: 16055 | E104: 24 | F104: 16073 | K104: 0 | L104: 112
A105: 12 | B105: 16297 | C105: 13 | D105: 16362 | E105: 13 | F105: 16387 | K105: 0 | L105: 111
A106: 21 | B106: 16501 | C106: 11 | D106: 16511 | E106: 22 | F106: 16524 | K106: 0 | L106: 212
A107: 21 | B107: 16627 | C107: 11 | D107: 16638 | E107: 22 | F107: 16652 | K107: 0 | L107: 212
A108: 12 | B108: 16784 | C108: 24 | D108: 16836 | E108: 13 | F108: 16885 | K108: 0 | L108: 121
A109: 21 | B109: 17211 | C109: 11 | D109: 17225 | E109: 22 | F109: 17248 | K109: 0 | L109: 212
A110: 21 | B110: 17398 | C110: 11 | D110: 17483 | E110: 11 | F110: 17569 | K110: 0 | L110: 211
A111: 21 | B111: 17683 | C111: 11 | D111: 17695 | E111: 22 | F111: 17711 | K111: 0 | L111: 212
A112: 12 | B112: 17914 | C112: 24 | D112: 18033 | E112: 13 | F112: 18046 | K112: 0 | L112: 121
A113: 12 | B113: 18172 | C113: 13 | D113: 18222 | E113: 13 | F113: 18311 | K113: 0 | L113: 111
A114: 21 | B114: 18432 | C114: 22 | D114: 18455 | E114: 13 | F114: 18465 | K114: 0 | L114: 221
A115: 21 | B115: 18611 | C115: 11 | D115: 18626 | E115: 11 | F115: 18652 | K115: 0 | L115: 211
A116: 12 | B116: 18911 | C116: 13 | D116: 18986 | E116: 24 | F116: 19008 | K116: 0 | L116: 112
A117: 21 | B117: 19139 | C117: 22 | D117: 19164 | E117: 24 | F117: 19211 | K117: 0 | L117: 222
A118: 21 | B118: 19415 | C118: 22 | D118: 19426 | E118: 13 | F118: 19437 | K118: 0 | L118: 221
A119: 21 | B119: 19540 | C119: 11 | D119: 19589 | E119: 11 | F119: 19614 | K119: 0 | L119: 211
A120: 12 | B120: 19769 | C120: 24 | D120: 19818 | E120: 13 | F120: 19829 | K120: 0 | L120: 121
A121: 21 | B121: 19945 | C121: 11 | D121: 20091 | E121: 11 | F121: 20117 | K121: 0 | L121: 211
A122: 21 | B122: 20293 | C122: 22 | D122: 20331 | E122: 24 | F122: 20361 | K122: 0 | L122: 222
A123: 12 | B123: 20574 | C123: 24 | D123: 20610 | E123: 13 | F123: 20622 | K123: 0 | L123: 121
A124: 21 | B124: 20731 | C124: 11 | D124: 20739 | E124: 11 | F124: 20765 | K124: 0 | L124: 211
A125: 12 | B125: 20913 | C125: 24 | D125: 20926 | E125: 24 | F125: 20972 | K125: 0 | L125: 122
A126: 21 | B126: 21128 | C126: 22 | D126: 21144 | E126: 13 | F126: 21152 | K126: 0 | L126: 221
A127: 21 | B127: 21279 | C127: 11 | D127: 21287 | E127: 11 | F127: 21311 | K127: 0 | L127: 211
A128: 21 | B128: 21443 | C128: 11 | D128: 21453 | E128: 22 | F128: 21468 | K128: 0 | L128: 212
A129: 21 | B129: 21577 | C129: 11 | D129: 21585 | E129: 11 | F129: 21608 | K129: 0 | L129: 211
A130: 12 | B130: 21776 | C130: 13 | D130: 21800 | E130: 13 | F130: 21811 | K130: 0 | L130: 111
A131: 12 | B131: 21921 | C131: 13 | D131: 21941 | E131: 13 | F131: 21964 | K131: 0 | L131: 111
A132: 12 | B132: 22075 | C132: 24 | D132: 22084 | E132: 13 | F132: 22092 | K132: 0 | L132: 121
A133: 21 | B133: 22211 | C133: 11 | D133: 22218 | E133: 11 | F133: 22285 | K133: 0 | L133: 211
A134: 12 | B134: 22435 | C134: 24 | D134: 22482 | E134: 13 | F134: 22512 | K134: 0 | L134: 121
A135: 21 | B135: 22635 | C135: 11 | D135: 22643 | E135: 11 | F135: 22662 | K135: 0 | L135: 211
A136: 12 | B136: 22792 | C136: 24 | D136: 22829 | E136: 13 | F136: 22839 | K136: 0 | L136: 121
A137: 21 | B137: 22944 | C137: 11 | D137: 22954 | E137: 11 | F137: 22976 | K137: 0 | L137: 211
A138: 21 | B138: 23096 | C138: 11 | D138: 23105 | E138: 11 | F138: 23129 | K138: 0 | L138: 211
A139: 21 | B139: 23254 | C139: 11 | D139: 23262 | E139: 11 | F139: 23285 | K139: 0 | L139: 211
A140: 12 | B140: 23446 | C140: 24 | D140: 23460 | E140: 13 | F140: 23469 | K140: 0 | L140: 121
A141: 21 | B141: 23570 | C141: 11 | D141: 23581 | E141: 11 | F141: 23609 | K141: 0 | L141: 211
A142: 21 | B142: 23749 | C142: 11 | D142: 23757 | E142: 11 | F142: 23767 | K142: 0 | L142: 211
A143: 21 | B143: 23876 | C143: 11 | D143: 23887 | E143: 11 | F143: 23906 | K143: 0 | L143: 211

Sheet !M501800.183
A1: Report for:!M501800.183
A2: Date: | B2: <date>
A3: Hen: | B3: <hen> | F3: Correct Sequence | G3: =Start!J2 -> 211 | P3: Total Sequences in Data | Q3: =4994-COUNTBLANK(L7:L5000) -> 119 | V3: Total Sequences in Block Data | W3: =COUNTA(L7:L26) -> 20 | AA3: Total Sequences in Block Data | AB3: =COUNTA(L27:L46) -> 20 | AF3: Total Sequences in Block Data | AG3: =COUNTA(L47:L65) -> 19 | AK3: Total Sequences in Block Data | AL3: =COUNTA(L66:L85) -> 20 | AP3: Total Sequences in Block Data | AQ3: =COUNTA(L86:L105) -> 20 | AU3: Total Sequences in Block Data | AV3: =COUNTA(L106:L125) -> 20
P4: Total Sequences in Summary | Q4: =SUM(O7:O14) -> 119 | V4: Total Sequences in Block Summary | W4: =SUM(U7:U14) -> 20 | AA4: Total Sequences in Block Summary | AB4: =SUM(Z7:Z14) -> 20 | AF4: Total Sequences in Block Summary | AG4: =SUM(AE7:AE14) -> 19 | AK4: Total Sequences in Block Summary | AL4: =SUM(AJ7:AJ14) -> 20 | AP4: Total Sequences in Block Summary | AQ4: =SUM(AO7:AO14) -> 20 | AU4: Total Sequences in Block Summary | AV4: =SUM(AT7:AT14) -> 20
T5: Block 1 | Y5: Block 2 | AD5: Block 3 | AI5: Block 4 | AN5: Block 5 | AS5: Block 6
A6: Sequence Component 1 | B6: Time 1 | C6: Sequence Component 2 | D6: Time 2 | E6: Sequence Component 3 | F6: Time 3 | G6: Sequence Component 4 | H6: Time 4 | I6: Sequence Component 5 | J6: Time 5 | K6: Correct? 0=No 1=Yes | L6: Sequence | N6: Frequency | P6: Relative Frequency | Q6: Variability | T6: Frequency | V6: Relative Frequency | W6: Variability | Y6: Frequency | AA6: Relative Frequency | AB6: Variability | AD6: Frequency | AF6: Relative Frequency | AG6: Variability | AI6: Frequency | AK6: Relative Frequency | AL6: Variability | AN6: Frequency | AP6: Relative Frequency | AQ6: Variability | AS6: Frequency | AU6: Relative Frequency | AV6: Variability
A7: 12 | B7: 44 | C7: 13 | D7: 71 | E7: 13 | F7: 105 | K7: 0 | L7: 111 | N7: 111 | O7: =COUNTIF($L$7:$L$500,N7) -> 34 | P7: =O7/$Q$4 -> 0.2857142857 | Q7: =IF(P7=0,0,(P7*((LOG(P7))/LOG(2)))) -> -0.5163871206 | T7: =N7 -> 111 | U7: =COUNTIF(L7:L26,T7) -> 2 | V7: =U7/(W4-U11) -> 0.1111111111 | W7: =IF(V7=0,0,(V7*((LOG(V7))/LOG(2)))) -> -0.352213889 | Y7: =N7 -> 111 | Z7: =COUNTIF(L27:L46,Y7) -> 6 | AA7: =Z7/(AB4-Z11) -> 0.3333333333 | AB7: =IF(AA7=0,0,(AA7*((LOG(AA7))/LOG(2)))) -> -0.5283208336 | AD7: =N7 -> 111 | AE7: =COUNTIF(L47:L65,AD7) -> 5 | AF7: =AE7/(AG4-AE11) -> 0.3571428571 | AG7: =IF(AF7=0,0,(AF7*((LOG(AF7))/LOG(2)))) -> -0.5305095811 | AI7: =N7 -> 111 | AJ7: =COUNTIF(L66:L85,AI7) -> 9 | AK7: =AJ7/(AL4-AJ11) -> 0.8181818182 | AL7: =IF(AK7=0,0,(AK7*((LOG(AK7))/LOG(2)))) -> -0.2368690504 | AN7: =N7 -> 111 | AO7: =COUNTIF(L86:L105,AN7) -> 9 | AP7: =AO7/(AQ4-AO11) -> 0.75 | AQ7: =IF(AP7=0,0,(AP7*((LOG(AP7))/LOG(2)))) -> -0.3112781245 | AS7: =N7 -> 111 | AT7: =COUNTIF(L106:L125,AS7) -> 3 | AU7: =AT7/(AV4-AT11) -> 0.375 | AV7: =IF(AU7=0,0,(AU7*((LOG(AU7))/LOG(2)))) -> -0.5306390622
A8: 21 | B8: 207 | C8: 11 | D8: 217 | E8: 22 | F8: 231 | K8: 0 | L8: 212 | N8: 112 | O8: =COUNTIF($L$7:$L$500,N8) -> 5 | P8: =O8/$Q$4 -> 0.04201680672 | Q8: =IF(P8=0,0,(P8*((LOG(P8))/LOG(2)))) -> -0.1921382214 | T8: =N8 -> 112 | U8: =COUNTIF(L7:L26,T8) -> 2 | V8: =U8/(W4-U11) -> 0.1111111111 | W8: =IF(V8=0,0,(V8*((LOG(V8))/LOG(2)))) -> -0.352213889 | Y8: =N8 -> 112 | Z8: =COUNTIF(L27:L46,Y8) -> 1 | AA8: =Z8/(AB4-Z11) -> 0.05555555556 | AB8: =IF(AA8=0,0,(AA8*((LOG(AA8))/LOG(2)))) -> -0.2316625001 | AD8: =N8 -> 112 | AE8: =COUNTIF(L47:L65,AD8) -> 2 | AF8: =AE8/(AG4-AE11) -> 0.1428571429 | AG8: =IF(AF8=0,0,(AF8*((LOG(AF8))/LOG(2)))) -> -0.4010507032 | AI8: =N8 -> 112 | AJ8: =COUNTIF(L66:L85,AI8) -> 0 | AK8: =AJ8/(AL4-AJ11) -> 0 | AL8: =IF(AK8=0,0,(AK8*((LOG(AK8))/LOG(2)))) -> 0 | AN8: =N8 -> 112 | AO8: =COUNTIF(L86:L105,AN8) -> 0 | AP8: =AO8/(AQ4-AO11) -> 0 | AQ8: =IF(AP8=0,0,(AP8*((LOG(AP8))/LOG(2)))) -> 0 | AS8: =N8 -> 112 | AT8: =COUNTIF(L106:L125,AS8) -> 0 | AU8: =AT8/(AV4-AT11) -> 0 | AV8: =IF(AU8=0,0,(AU8*((LOG(AU8))/LOG(2)))) -> 0
A9: 21 | B9: 341 | C9: 11 | D9: 352 | E9: 22 | F9: 366 | K9: 0 | L9: 212 | N9: 121 | O9: =COUNTIF($L$7:$L$500,N9) -> 23 | P9: =O9/$Q$4 -> 0.1932773109 | Q9: =IF(P9=0,0,(P9*((LOG(P9))/LOG(2)))) -> -0.4583099459 | T9: =N9 -> 121 | U9: =COUNTIF(L7:L26,T9) -> 7 | V9: =U9/(W4-U11) -> 0.3888888889 | W9: =IF(V9=0,0,(V9*((LOG(V9))/LOG(2)))) -> -0.5298883642 | Y9: =N9 -> 121 | Z9: =COUNTIF(L27:L46,Y9) -> 8 | AA9: =Z9/(AB4-Z11) -> 0.4444444444 | AB9: =IF(AA9=0,0,(AA9*((LOG(AA9))/LOG(2)))) -> -0.5199666673 | AD9: =N9 -> 121 | AE9: =COUNTIF(L47:L65,AD9) -> 5 | AF9: =AE9/(AG4-AE11) -> 0.3571428571 | AG9: =IF(AF9=0,0,(AF9*((LOG(AF9))/LOG(2)))) -> -0.5305095811 | AI9: =N9 -> 121 | AJ9: =COUNTIF(L66:L85,AI9) -> 1 | AK9: =AJ9/(AL4-AJ11) -> 0.09090909091 | AL9: =IF(AK9=0,0,(AK9*((LOG(AK9))/LOG(2)))) -> -0.3144937835 | AN9: =N9 -> 121 | AO9: =COUNTIF(L86:L105,AN9) -> 1 | AP9: =AO9/(AQ4-AO11) -> 0.08333333333 | AQ9: =IF(AP9=0,0,(AP9*((LOG(AP9))/LOG(2)))) -> -0.2987468751 | AS9: =N9 -> 121 | AT9: =COUNTIF(L106:L125,AS9) -> 1 | AU9: =AT9/(AV4-AT11) -> 0.125 | AV9: =IF(AU9=0,0,(AU9*((LOG(AU9))/LOG(2)))) -> -0.375
A10: 21 | B10: 473 | C10: 11 | D10: 483 | E10: 11 | F10: 494 | K10: 0 | L10: 211 | N10: 122 | O10: =COUNTIF($L$7:$L$500,N10) -> 1 | P10: =O10/$Q$4 -> 0.008403361345 | Q10: =IF(P10=0,0,(P10*((LOG(P10))/LOG(2)))) -> -0.05793964507 | T10: =N10 -> 122 | U10: =COUNTIF(L7:L26,T10) -> 1 | V10: =U10/(W4-U11) -> 0.05555555556 | W10: =IF(V10=0,0,(V10*((LOG(V10))/LOG(2)))) -> -0.2316625001 | Y10: =N10 -> 122 | Z10: =COUNTIF(L27:L46,Y10) -> 0 | AA10: =Z10/(AB4-Z11) -> 0 | AB10: =IF(AA10=0,0,(AA10*((LOG(AA10))/LOG(2)))) -> 0 | AD10: =N10 -> 122 | AE10: =COUNTIF(L47:L65,AD10) -> 0 | AF10: =AE10/(AG4-AE11) -> 0 | AG10: =IF(AF10=0,0,(AF10*((LOG(AF10))/LOG(2)))) -> 0 | AI10: =N10 -> 122 | AJ10: =COUNTIF(L66:L85,AI10) -> 0 | AK10: =AJ10/(AL4-AJ11) -> 0 | AL10: =IF(AK10=0,0,(AK10*((LOG(AK10))/LOG(2)))) -> 0 | AN10: =N10 -> 122 | AO10: =COUNTIF(L86:L105,AN10) -> 0 | AP10: =AO10/(AQ4-AO11) -> 0 | AQ10: =IF(AP10=0,0,(AP10*((LOG(AP10))/LOG(2)))) -> 0 | AS10: =N10 -> 122 | AT10: =COUNTIF(L106:L125,AS10) -> 0 | AU10: =AT10/(AV4-AT11) -> 0 | AV10: =IF(AU10=0,0,(AU10*((LOG(AU10))/LOG(2)))) -> 0
A11: 12 | B11: 600 | C11: 13 | D11: 625 | E11: 13 | F11: 649 | K11: 0 | L11: 111 | N11: 211 | O11: =COUNTIF($L$7:$L$500,N11) -> 38 | P11: =O11/$Q$4 -> 0.3193277311 | Q11: =IF(P11=0,0,(P11*((LOG(P11))/LOG(2)))) -> -0.5258977268 | T11: =N11 -> 211 | U11: =COUNTIF(L7:L26,T11) -> 2 | Y11: =N11 -> 211 | Z11: =COUNTIF(L27:L46,Y11) -> 2 | AD11: =N11 -> 211 | AE11: =COUNTIF(L47:L65,AD11) -> 5 | AI11: =N11 -> 211 | AJ11: =COUNTIF(L66:L85,AI11) -> 9 | AN11: =N11 -> 211 | AO11: =COUNTIF(L86:L105,AN11) -> 8 | AS11: =N11 -> 211 | AT11: =COUNTIF(L106:L125,AS11) -> 12
A12: 12 | B12: 747 | C12: 24 | D12: 759 | E12: 13 | F12: 769 | K12: 0 | L12: 121 | N12: 212 | O12: =COUNTIF($L$7:$L$500,N12) -> 13 | P12: =O12/$Q$4 -> 0.1092436975 | Q12: =IF(P12=0,0,(P12*((LOG(P12))/LOG(2)))) -> -0.3489656688 | T12: =N12 -> 212 | U12: =COUNTIF(L7:L26,T12) -> 6 | V12: =U12/(W4-U11) -> 0.3333333333 | W12: =IF(V12=0,0,(V12*((LOG(V12))/LOG(2)))) -> -0.5283208336 | Y12: =N12 -> 212 | Z12: =COUNTIF(L27:L46,Y12) -> 3 | AA12: =Z12/(AB4-Z11) -> 0.1666666667 | AB12: =IF(AA12=0,0,(AA12*((LOG(AA12))/LOG(2)))) -> -0.4308270835 | AD12: =N12 -> 212 | AE12: =COUNTIF(L47:L65,AD12) -> 2 | AF12: =AE12/(AG4-AE11) -> 0.1428571429 | AG12: =IF(AF12=0,0,(AF12*((LOG(AF12))/LOG(2)))) -> -0.4010507032 | AI12: =N12 -> 212 | AJ12: =COUNTIF(L66:L85,AI12) -> 0 | AK12: =AJ12/(AL4-AJ11) -> 0 | AL12: =IF(AK12=0,0,(AK12*((LOG(AK12))/LOG(2)))) -> 0 | AN12: =N12 -> 212 | AO12: =COUNTIF(L86:L105,AN12) -> 1 | AP12: =AO12/(AQ4-AO11) -> 0.08333333333 | AQ12: =IF(AP12=0,0,(AP12*((LOG(AP12))/LOG(2)))) -> -0.2987468751 | AS12: =N12 -> 212 | AT12: =COUNTIF(L106:L125,AS12) -> 1 | AU12: =AT12/(AV4-AT11) -> 0.125 | AV12: =IF(AU12=0,0,(AU12*((LOG(AU12))/LOG(2)))) -> -0.375
A13: 12 | B13: 860 | C13: 24 | D13: 870 | E13: 13 | F13: 881 | K13: 0 | L13: 121 | N13: 221 | O13: =COUNTIF($L$7:$L$500,N13) -> 5 | P13: =O13/$Q$4 -> 0.04201680672 | Q13: =IF(P13=0,0,(P13*((LOG(P13))/LOG(2)))) -> -0.1921382214 | T13: =N13 -> 221 | U13: =COUNTIF(L7:L26,T13) -> 0 | V13: =U13/(W4-U11) -> 0 | W13: =IF(V13=0,0,(V13*((LOG(V13))/LOG(2)))) -> 0 | Y13: =N13 -> 221 | Z13: =COUNTIF(L27:L46,Y13) -> 0 | AA13: =Z13/(AB4-Z11) -> 0 | AB13: =IF(AA13=0,0,(AA13*((LOG(AA13))/LOG(2)))) -> 0 | AD13: =N13 -> 221 | AE13: =COUNTIF(L47:L65,AD13) -> 0 | AF13: =AE13/(AG4-AE11) -> 0 | AG13: =IF(AF13=0,0,(AF13*((LOG(AF13))/LOG(2)))) -> 0 | AI13: =N13 -> 221 | AJ13: =COUNTIF(L66:L85,AI13) -> 1 | AK13: =AJ13/(AL4-AJ11) -> 0.09090909091 | AL13: =IF(AK13=0,0,(AK13*((LOG(AK13))/LOG(2)))) -> -0.3144937835 | AN13: =N13 -> 221 | AO13: =COUNTIF(L86:L105,AN13) -> 1 | AP13: =AO13/(AQ4-AO11) -> 0.08333333333 | AQ13: =IF(AP13=0,0,(AP13*((LOG(AP13))/LOG(2)))) -> -0.2987468751 | AS13: =N13 -> 221 | AT13: =COUNTIF(L106:L125,AS13) -> 3 | AU13: =AT13/(AV4-AT11) -> 0.375 | AV13: =IF(AU13=0,0,(AU13*((LOG(AU13))/LOG(2)))) -> -0.5306390622
A14: 12 | B14: 996 | C14: 24 | D14: 1010 | E14: 13 | F14: 1020 | K14: 0 | L14: 121 | N14: 222 | O14: =COUNTIF($L$7:$L$500,N14) -> 0 | P14: =O14/$Q$4 -> 0 | Q14: =IF(P14=0,0,(P14*((LOG(P14))/LOG(2)))) -> 0 | T14: =N14 -> 222 | U14: =COUNTIF(L7:L26,T14) -> 0 | V14: =U14/(W4-U11) -> 0 | W14: =IF(V14=0,0,(V14*((LOG(V14))/LOG(2)))) -> 0 | Y14: =N14 -> 222 | Z14: =COUNTIF(L27:L46,Y14) -> 0 | AA14: =Z14/(AB4-Z11) -> 0 | AB14: =IF(AA14=0,0,(AA14*((LOG(AA14))/LOG(2)))) -> 0 | AD14: =N14 -> 222 | AE14: =COUNTIF(L47:L65,AD14) -> 0 | AF14: =AE14/(AG4-AE11) -> 0 | AG14: =IF(AF14=0,0,(AF14*((LOG(AF14))/LOG(2)))) -> 0 | AI14: =N14 -> 222 | AJ14: =COUNTIF(L66:L85,AI14) -> 0 | AK14: =AJ14/(AL4-AJ11) -> 0 | AL14: =IF(AK14=0,0,(AK14*((LOG(AK14))/LOG(2)))) -> 0 | AN14: =N14 -> 222 | AO14: =COUNTIF(L86:L105,AN14) -> 0 | AP14: =AO14/(AQ4-AO11) -> 0 | AQ14: =IF(AP14=0,0,(AP14*((LOG(AP14))/LOG(2)))) -> 0 | AS14: =N14 -> 222 | AT14: =COUNTIF(L106:L125,AS14) -> 0 | AU14: =AT14/(AV4-AT11) -> 0 | AV14: =IF(AU14=0,0,(AU14*((LOG(AU14))/LOG(2)))) -> 0
A15: 21 | B15: 1122 | C15: 11 | D15: 1132 | E15: 22 | F15: 1147 | K15: 0 | L15: 212 | P15: =SUM(P7:P14) -> 1 | Q15: =-SUM(Q7:Q14) -> 2.29177655 | V15: =SUM(V7:V14) -> 1 | W15: =-SUM(W7:W14) -> 1.994299476 | AA15: =SUM(AA7:AA14) -> 1 | AB15: =-SUM(AB7:AB14) -> 1.710777084 | AF15: =SUM(AF7:AF14) -> 1 | AG15: =-SUM(AG7:AG14) -> 1.863120569 | AK15: =SUM(AK7:AK14) -> 1 | AL15: =-SUM(AL7:AL14) -> 0.8658566175 | AP15: =SUM(AP7:AP14) -> 1 | AQ15: =-SUM(AQ7:AQ14) -> 1.20751875 | AU15: =SUM(AU7:AU14) -> 1 | AV15: =-SUM(AV7:AV14) -> 1.811278124
A16: 12 | B16: 1245 | C16: 13 | D16: 1260 | E16: 24 | F16: 1274 | K16: 0 | L16: 112 | P16: U= | Q16: =Q15/(LOG(Q4)/LOG(2)) -> 0.332391171 | V16: U1= | W16: =W15/(LOG(W4)/LOG(2)) -> 0.4614374493 | AA16: U2= | AB16: =AB15/(LOG(AB4)/LOG(2)) -> 0.3958365449 | AF16: U3= | AG16: =AG15/(LOG(AG4)/LOG(2)) -> 0.4385951885 | AK16: U4= | AL16: =AL15/(LOG(AL4)/LOG(2)) -> 0.200340357 | AP16: U5= | AQ16: =AQ15/(LOG(AQ4)/LOG(2)) -> 0.2793935306 | AU16: U6= | AV16: =AV15/(LOG(AV4)/LOG(2)) -> 0.419090296
A17: 12 | B17: 1367 | C17: 24 | D17: 1379 | E17: 13 | F17: 1390 | K17: 0 | L17: 121
A18: 21 | B18: 1506 | C18: 11 | D18: 1516 | E18: 22 | F18: 1530 | K18: 0 | L18: 212
A19: 12 | B19: 1626 | C19: 24 | D19: 1637 | E19: 13 | F19: 1647 | K19: 0 | L19: 121 | N19: Total Target Seq
A20: 12 | B20: 1745 | C20: 24 | D20: 1755 | E20: 13 | F20: 1766 | K20: 0 | L20: 121 | N20: =COUNTIF(L7:L125,G3) -> 38 | P20: 20 | Q20: 20 | R20: 19 | S20: 20 | T20: 20 | U20: 20
A21: 12 | B21: 1865 | C21: 24 | D21: 1876 | E21: 24 | F21: 1900 | K21: 0 | L21: 122 | P21: % of reinforcement given in 6 equal intervals based on number of trials
A22: 21 | B22: 2004 | C22: 11 | D22: 2016 | E22: 22 | F22: 2030 | K22: 0 | L22: 212 | P22: %_1 | Q22: %_2 | R22: %_3 | S22: %_4 | T22: %_5 | U22: %_6
A23: 12 | B23: 2228 | C23: 13 | D23: 2257 | E23: 24 | F23: 2273 | K23: 0 | L23: 112 | O23: target sequence | P23: =$G$3 -> 211 | Q23: =$G$3 -> 211 | R23: =$G$3 -> 211 | S23: =$G$3 -> 211 | T23: =$G$3 -> 211 | U23: =$G$3 -> 211
A24: 21 | B24: 2379 | C24: 11 | D24: 2388 | E24: 22 | F24: 2400 | K24: 0 | L24: 212 | O24: total reinforcement | P24: =U11 -> 2 | Q24: =Z11 -> 2 | R24: =AE11 -> 5 | S24: =AJ11 -> 9 | T24: =AO11 -> 8 | U24: =AT11 -> 12
A25: 21 | B25: 2502 | C25: 11 | D25: 2511 | E25: 11 | F25: 2525 | K25: 0 | L25: 211 | O25: % target
A26: 12 | B26: 2617 | C26: 24 | D26: 2629 | E26: 13 | F26: 2639 | K26: 0 | L26: 121 | O26: CCRF
A27: 12 | B27: 2734 | C27: 24 | D27: 2744 | E27: 13 | F27: 2766 | K27: 0 | L27: 121 | O27: % CCRf
A28: 12 | B28: 2864 | C28: 24 | D28: 2874 | E28: 13 | F28: 2883 | K28: 0 | L28: 121 | O28: average response rate | P28: =F26/P20 -> 131.95 | Q28: =(F46-F26)/Q20 -> 136.7 | R28: =(F65-F46)/R20 -> 145.5263158 | S28: =(F85-F65)/S20 -> 154.5 | T28: =(F105-F85)/T20 -> 133 | U28: =(F125-F105)/U20 -> 205.15
A29: 21 | B29: 2996 | C29: 11 | D29: 3019 | E29: 11 | F29: 3049 | K29: 0 | L29: 211
A30: 21 | B30: 3156 | C30: 11 | D30: 3167 | E30: 22 | F30: 3179 | K30: 0 | L30: 212
A31: 12 | B31: 3275 | C31: 24 | D31: 3287 | E31: 13 | F31: 3296 | K31: 0 | L31: 121
A32: 12 | B32: 3399 | C32: 13 | D32: 3413 | E32: 13 | F32: 3443 | K32: 0 | L32: 111
A33: 21 | B33: 3543 | C33: 11 | D33: 3553 | E33: 22 | F33: 3565 | K33: 0 | L33: 212
A34: 12 | B34: 3660 | C34: 24 | D34: 3671 | E34: 13 | F34: 3681 | K34: 0 | L34: 121
A35: 12 | B35: 3777 | C35: 24 | D35: 3787 | E35: 13 | F35: 3795 | K35: 0 | L35: 121
A36: 21 | B36: 3896 | C36: 11 | D36: 3905 | E36: 11 | F36: 3924 | K36: 0 | L36: 211
A37: 12 | B37: 4018 | C37: 24 | D37: 4028 | E37: 13 | F37: 4037 | K37: 0 | L37: 121
A38: 12 | B38: 4141 | C38: 13 | D38: 4157 | E38: 13 | F38: 4192 | K38: 0 | L38: 111
A39: 12 | B39: 4287 | C39: 24 | D39: 4298 | E39: 13 | F39: 4307 | K39: 0 | L39: 121
A40: 12 | B40: 4405 | C40: 13 | D40: 4419 | E40: 13 | F40: 4457 | K40: 0 | L40: 111
A41: 12 | B41: 4568 | C41: 13 | D41: 4595 | E41: 13 | F41: 4607 | K41: 0 | L41: 111
A42: 12 | B42: 4724 | C42: 13 | D42: 4751 | E42: 13 | F42: 4801 | K42: 0 | L42: 111
A43: 12 | B43: 4940 | C43: 13 | D43: 4977 | E43: 13 | F43: 4990 | K43: 0 | L43: 111
A44: 12 | B44: 5102 | C44: 13 | D44: 5120 | E44: 24 | F44: 5133 | K44: 0 | L44: 112
A45: 12 | B45: 5231 | C45: 24 | D45: 5242 | E45: 13 | F45: 5251 | K45: 0 | L45: 121
A46: 21 | B46: 5353 | C46: 11 | D46: 5361 | E46: 22 | F46: 5373 | K46: 0 | L46: 212
A47: 12 | B47: 5476 | C47: 24 | D47: 5488 | E47: 13 | F47: 5496 | K47: 0 | L47: 121
A48: 12 | B48: 5600 | C48: 24 | D48: 5613 | E48: 13 | F48: 5624 | K48: 0 | L48: 121
A49: 21 | B49: 5728 | C49: 11 | D49: 5738 | E49: 22 | F49: 5752 | K49: 0 | L49: 212
A50: 12 | B50: 5848 | C50: 13 | D50: 5874 | E50: 13 | F50: 5894 | K50: 0 | L50: 111
A51: 21 | B51: 6000 | C51: 11 | D51: 6032 | E51: 11 | F51: 6048 | K51: 0 | L51: 211
A52: 12 | B52: 6158 | C52: 13 | D52: 6174 | E52: 24 | F52: 6211 | K52: 0 | L52: 112
A53: 12 | B53: 6323 | C53: 13 | D53: 6351 | E53: 13 | F53: 6373 | K53: 0 | L53: 111
A54: 12 | B54: 6516 | C54: 13 | D54: 6544 | E54: 13 | F54: 6558 | K54: 0 | L54: 111
A55: 21 | B55: 6658 | C55: 11 | D55: 6668 | E55: 22 | F55: 6683 | K55: 0 | L55: 212
A56: 12 | B56: 6786 | C56: 24 | D56: 6802 | E56: 13 | F56: 6813 | K56: 0 | L56: 121
A57: 21 | B57: 6917 | C57: 11 | D57: 6925 | E57: 11 | F57: 6946 | K57: 0 | L57: 211
A58: 12 | B58: 7038 | C58: 24 | D58: 7119 | E58: 13 | F58: 7128 | K58: 0 | L58: 121
A59: 21 | B59: 7242 | C59: 11 | D59: 7253 | E59: 11 | F59: 7267 | K59: 0 | L59: 211
A60: 12 | B60: 7386 | C60: 13 | D60: 7409 | E60: 13 | F60: 7440 | K60: 0 | L60: 111
A61: 12 | B61: 7558 | C61: 13 | D61: 7589 | E61: 24 | F61: 7604 | K61: 0 | L61: 112
A62: 21 | B62: 7705 | C62: 11 | D62: 7713 | E62: 11 | F62: 7735 | K62: 0 | L62: 211
A63: 12 | B63: 7851 | C63: 13 | D63: 7864 | E63: 13 | F63: 7875 | K63: 0 | L63: 111
A64: 12 | B64: 7981 | C64: 24 | D64: 7993 | E64: 13 | F64: 8002 | K64: 0 | L64: 121
A65: 21 | B65: 8113 | C65: 11 | D65: 8122 | E65: 11 | F65: 8138 | K65: 0 | L65: 211
A66: 12 | B66: 8315 | C66: 13 | D66: 8337 | E66: 13 | F66: 8381 | K66: 0 | L66: 111
A67: 21 | B67: 8481 | C67: 11 | D67: 8511 | E67: 11 | F67: 8523 | K67: 0 | L67: 211
A68: 12 | B68: 8656 | C68: 13 | D68: 8674 | E68: 13 | F68: 8685 | K68: 0 | L68: 111
A69: 21 | B69: 8794 | C69: 11 | D69: 8804 | E69: 11 | F69: 8820 | K69: 0 | L69: 211
A70: 12 | B70: 9034 | C70: 13 | D70: 9061 | E70: 13 | F70: 9079 | K70: 0 | L70: 111
A71: 12 | B71: 9197 | C71: 13 | D71: 9225 | E71: 13 | F71: 9273 | K71: 0 | L71: 111
A72: 21 | B72: 9377 | C72: 11 | D72: 9386 | E72: 11 | F72: 9401 | K72: 0 | L72: 211
A73: 12 | B73: 9516 | C73: 13 | D73: 9531 | E73: 13 | F73: 9547 | K73: 0 | L73: 111
A74: 12 | B74: 9659 | C74: 13 | D74: 9683 | E74: 13 | F74: 9691 | K74: 0 | L74: 111
A75: 21 | B75: 9795 | C75: 11 | D75: 9803 | E75: 11 | F75: 9837 | K75: 0 | L75: 211
A76: 12 | B76: 9966 | C76: 13 | D76: 9988 | E76: 13 | F76: 10023 | K76: 0 | L76: 111
A77: 12 | B77: 10137 | C77: 13 | D77: 10151 | E77: 13 | F77: 10175 | K77: 0 | L77: 111
A78: 21 | B78: 10302 | C78: 11 | D78: 10310 | E78: 11 | F78: 10324 | K78: 0 | L78: 211
A79: 12 | B79: 10472 | C79: 13 | D79: 10474 | E79: 13 | F79: 10486 | K79: 0 | L79: 111
A80: 21 | B80: 10587 | C80: 22 | D80: 10597 | E80: 13 | F80: 10605 | K80: 0 | L80: 221
A81: 12 | B81: 10701 | C81: 24 | D81: 10712 | E81: 13 | F81: 10720 | K81: 0 | L81: 121
A82: 21 | B82: 10831 | C82: 11 | D82: 10839 | E82: 11 | F82: 10850 | K82: 0 | L82: 211
A83: 21 | B83: 10949 | C83: 11 | D83: 10956 | E83: 11 | F83: 10972 | K83: 0 | L83: 211
A84: 21 | B84: 11076 | C84: 11 | D84: 11084 | E84: 11 | F84: 11105 | K84: 0 | L84: 211
A85: 21 | B85: 11204 | C85: 11 | D85: 11212 | E85: 11 | F85: 11228 | K85: 0 | L85: 211
A86: 12 | B86: 11351 | C86: 13 | D86: 11374 | E86: 13 | F86: 11387 | K86: 0 | L86: 111
A87: 21 | B87: 11489 | C87: 11 | D87: 11497 | E87: 11 | F87: 11509 | K87: 0 | L87: 211
A88: 21 | B88: 11606 | C88: 11 | D88: 11614 | E88: 11 | F88: 11626 | K88: 0 | L88: 211
A89: 12 | B89: 11736 | C89: 13 | D89: 11748 | E89: 13 | F89: 11759 | K89: 0 | L89: 111
A90: 12 | B90: 11870 | C90: 24 | D90: 11881 | E90: 13 | F90: 11889 | K90: 0 | L90: 121
A91: 21 | B91: 11990 | C91: 11 | D91: 11998 | E91: 11 | F91: 12010 | K91: 0 | L91: 211
A92: 12 | B92: 12117 | C92: 13 | D92: 12129 | E92: 13 | F92: 12139 | K92: 0 | L92: 111
A93: 21 | B93: 12240 | C93: 11 | D93: 12248 | E93: 11 | F93: 12268 | K93: 0 | L93: 211
A94: 12 | B94: 12378 | C94: 13 | D94: 12401 | E94: 13 | F94: 12413 | K94: 0 | L94: 111
A95: 21 | B95: 12516 | C95: 11 | D95: 12524 | E95: 11 | F95: 12535 | K95: 0 | L95: 211
A96: 12 | B96: 12639 | C96: 13 | D96: 12662 | E96: 13 | F96: 12675 | K96: 0 | L96: 111
A97: 21 | B97: 12774 | C97: 11 | D97: 12782 | E97: 11 | F97: 12794 | K97: 0 | L97: 211
A98: 12 | B98: 12902 | C98: 13 | D98: 12914 | E98: 13 | F98: 12925 | K98: 0 | L98: 111
A99: 21 | B99: 13025 | C99: 11 | D99: 13035 | E99: 22 | F99: 13049 | K99: 0 | L99: 212
A100: 12 | B100: 13161 | C100: 13 | D100: 13173 | E100: 13 | F100: 13187 | K100: 0 | L100: 111
A101: 21 | B101: 13289 | C101: 11 | D101: 13316 | E101: 11 | F101: 13325 | K101: 0 | L101: 211
A102: 12 | B102: 13443 | C102: 13 | D102: 13456 | E102: 13 | F102: 13466 | K102: 0 | L102: 111
A103: 12 | B103: 13591 | C103: 13 | D103: 13603 | E103: 13 | F103: 13614 | K103: 0 | L103: 111
A104: 21 | B104: 13727 | C104: 22 | D104: 13748 | E104: 13 | F104: 13756 | K104: 0 | L104: 221
A105: 21 | B105: 13856 | C105: 11 | D105: 13879 | E105: 11 | F105: 13888 | K105: 0 | L105: 211
A106: 12 | B106: 14007 | C106: 13 | D106: 14021 | E106: 13 | F106: 14032 | K106: 0 | L106: 111
A107: 21 | B107: 14132 | C107: 11 | D107: 14144 | E107: 11 | F107: 14166 | K107: 0 | L107: 211
A108: 21 | B108: 14276 | C108: 11 | D108: 14285 | E108: 11 | F108: 14300 | K108: 0 | L108: 211
A109: 21 | B109: 14401 | C109: 11 | D109: 14410 | E109: 11 | F109: 14432 | K109: 0 | L109: 211
A110: 21 | B110: 14527 | C110: 22 | D110: 14537 | E110: 13 | F110: 14546 | K110: 0 | L110: 221
A111: 21 | B111: 14646 | C111: 11 | D111: 14654 | E111: 22 | F111: 14668 | K111: 0 | L111: 212
A112: 21 | B112: 14769 | C112: 11 | D112: 14778 | E112: 11 | F112: 14790 | K112: 0 | L112: 211
A113: 12 | B113: 14914 | C113: 13 | D113: 14926 | E113: 13 | F113: 14938 | K113: 0 | L113: 111
A114: 21 | B114: 15039 | C114: 22 | D114: 15067 | E114: 13 | F114: 15077 | K114: 0 | L114: 221
A115: 21 | B115: 15178 | C115: 11 | D115: 15186 | E115: 11 | F115: 15197 | K115: 0 | L115: 211
A116: 21 | B116: 15298 | C116: 11 | D116: 15306 | E116: 11 | F116: 15318 | K116: 0 | L116: 211
A117: 21 | B117: 15441 | C117: 22 | D117: 15462 | E117: 13 | F117: 15470 | K117: 0 | L117: 221
A118: 12 | B118: 15580 | C118: 13 | D118: 15591 | E118: 13 | F118: 15612 | K118: 0 | L118: 111
A119: 12 | B119: 15708 | C119: 24 | D119: 15720 | E119: 13 | F119: 15730 | K119: 0 | L119: 121
A120: 21 | B120: 15838 | C120: 11 | D120: 15848 | E120: 11 | F120: 15859 | K120: 0 | L120: 211
A121: 21 | B121: 15961 | C121: 11 | D121: 15979 | E121: 11 | F121: 15990 | K121: 0 | L121: 211
A122: 21 | B122: 17529 | C122: 11 | D122: 17560 | E122: 11 | F122: 17591 | K122: 0 | L122: 211
A123: 21 | B123: 17729 | C123: 11 | D123: 17742 | E123: 11 | F123: 17755 | K123: 0 | L123: 211
A124: 21 | B124: 17855 | C124: 11 | D124: 17864 | E124: 11 | F124: 17875 | K124: 0 | L124: 211
A125: 21 | B125: 17972 | C125: 11 | D125: 17981 | E125: 11 | F125: 17991 | K125: 1 | L125: 211

Sheet !M502C40.183
A1: Report for:!M502C40.183
A2: Date: | B2: <date>
A3: Hen: | B3: <hen> | F3: Correct Sequence | G3: =Start!J2 -> 211 | P3: Total Sequences in Data | Q3: =4994-COUNTBLANK(L7:L5000) -> 58 | V3: Total Sequences in Block Data | W3: =COUNTA(L7:L16) -> 10 | AA3: Total Sequences in Block Data | AB3: =COUNTA(L17:L25) -> 9 | AF3: Total Sequences in Block Data | AG3: =COUNTA(L26:L35) -> 10 | AK3: Total Sequences in Block Data | AL3: =COUNTA(L36:L45) -> 10 | AP3: Total Sequences in Block Data | AQ3: =COUNTA(L46:L54) -> 9 | AU3: Total Sequences in Block Data | AV3: =COUNTA(L55:L64) -> 10
P4: Total Sequences in Summary | Q4: =SUM(O7:O14) -> 58 | V4: Total Sequences in Block Summary | W4: =SUM(U7:U14) -> 10 | AA4: Total Sequences in Block Summary | AB4: =SUM(Z7:Z14) -> 9 | AF4: Total Sequences in Block Summary | AG4: =SUM(AE7:AE14) -> 10 | AK4: Total Sequences in Block Summary | AL4: =SUM(AJ7:AJ14) -> 10 | AP4: Total Sequences in Block Summary | AQ4: =SUM(AO7:AO14) -> 9 | AU4: Total Sequences in Block Summary | AV4: =SUM(AT7:AT14) -> 10
T5: Block 1 | Y5: Block 2 | AD5: Block 3 | AI5: Block 4 | AN5: Block 5 | AS5: Block 6
A6: Sequence Component 1 | B6: Time 1 | C6: Sequence Component 2 | D6: Time 2 | E6: Sequence Component 3 | F6: Time 3 | G6: Sequence Component 4 | H6: Time 4 | I6: Sequence Component 5 | J6: Time 5 | K6: Correct? 0=No 1=Yes | L6: Sequence | N6: Frequency | P6: Relative Frequency | Q6: Variability | T6: Frequency | V6: Relative Frequency | W6: Variability | Y6: Frequency | AA6: Relative Frequency | AB6: Variability | AD6: Frequency | AF6: Relative Frequency | AG6: Variability | AI6: Frequency | AK6: Relative Frequency | AL6: Variability | AN6: Frequency | AP6: Relative Frequency | AQ6: Variability | AS6: Frequency | AU6: Relative Frequency | AV6: Variability
A7: 12 | B7: 18 | C7: 13 | D7: 39 | E7: 13 | F7: 60 | K7: 0 | L7: 111 | N7: 111 | O7: =COUNTIF($L$7:$L$500,N7) -> 13 | P7: =O7/$Q$4 -> 0.224137931 | Q7: =IF(P7=0,0,(P7*((LOG(P7))/LOG(2)))) -> -0.4835868379 | T7: =N7 -> 111 | U7: =COUNTIF(L7:L16,T7) -> 3 | V7: =U7/(W4-U11) -> 0.375 | W7: =IF(V7=0,0,(V7*((LOG(V7))/LOG(2)))) -> -0.5306390622 | Y7: =N7 -> 111 | Z7: =COUNTIF(L17:L25,Y7) -> 1 | AA7: =Z7/(AB4-Z11) -> 1 | AB7: =IF(AA7=0,0,(AA7*((LOG(AA7))/LOG(2)))) -> 0 | AD7: =N7 -> 111 | AE7: =COUNTIF(L26:L35,AD7) -> 4 | AF7: =AE7/(AG4-AE11) -> 1 | AG7: =IF(AF7=0,0,(AF7*((LOG(AF7))/LOG(2)))) -> 0 | AI7: =N7 -> 111 | AJ7: =COUNTIF(L36:L45,AI7) -> 2 | AK7: =AJ7/(AL4-AJ11) -> 0.5 | AL7: =IF(AK7=0,0,(AK7*((LOG(AK7))/LOG(2)))) -> -0.5 | AN7: =N7 -> 111 | AO7: =COUNTIF(L46:L54,AN7) -> 3 | AP7: =AO7/(AQ4-AO11) -> 1 | AQ7: =IF(AP7=0,0,(AP7*((LOG(AP7))/LOG(2)))) -> 0 | AS7: =N7 -> 111 | AT7: =COUNTIF(L55:L64,AS7) -> 0 | AU7: =AT7/(AV4-AT11) ->  | AV7: =IF(AU7=0,0,(AU7*((LOG(AU7))/LOG(2)))) -> 
A8: 12 | B8: 164 | C8: 24 | D8: 175 | E8: 13 | F8: 184 | K8: 0 | L8: 121 | N8: 112 | O8: =COUNTIF($L$7:$L$500,N8) -> 0 | P8: =O8/$Q$4 -> 0 | Q8: =IF(P8=0,0,(P8*((LOG(P8))/LOG(2)))) -> 0 | T8: =N8 -> 112 | U8: =COUNTIF(L7:L16,T8) -> 0 | V8: =U8/(W4-U11) -> 0 | W8: =IF(V8=0,0,(V8*((LOG(V8))/LOG(2)))) -> 0 | Y8: =N8 -> 112 | Z8: =COUNTIF(L17:L25,Y8) -> 0 | AA8: =Z8/(AB4-Z11) -> 0 | AB8: =IF(AA8=0,0,(AA8*((LOG(AA8))/LOG(2)))) -> 0 | AD8: =N8 -> 112 | AE8: =COUNTIF(L26:L35,AD8) -> 0 | AF8: =AE8/(AG4-AE11) -> 0 | AG8: =IF(AF8=0,0,(AF8*((LOG(AF8))/LOG(2)))) -> 0 | AI8: =N8 -> 112 | AJ8: =COUNTIF(L36:L45,AI8) -> 0 | AK8: =AJ8/(AL4-AJ11) -> 0 | AL8: =IF(AK8=0,0,(AK8*((LOG(AK8))/LOG(2)))) -> 0 | AN8: =N8 -> 112 | AO8: =COUNTIF(L46:L54,AN8) -> 0 | AP8: =AO8/(AQ4-AO11) -> 0 | AQ8: =IF(AP8=0,0,(AP8*((LOG(AP8))/LOG(2)))) -> 0 | AS8: =N8 -> 112 | AT8: =COUNTIF(L55:L64,AS8) -> 0 | AU8: =AT8/(AV4-AT11) ->  | AV8: =IF(AU8=0,0,(AU8*((LOG(AU8))/LOG(2)))) -> 
A9: 12 | B9: 291 | C9: 24 | D9: 303 | E9: 13 | F9: 311 | K9: 0 | L9: 121 | N9: 121 | O9: =COUNTIF($L$7:$L$500,N9) -> 3 | P9: =O9/$Q$4 -> 0.05172413793 | Q9: =IF(P9=0,0,(P9*((LOG(P9))/LOG(2)))) -> -0.221018198 | T9: =N9 -> 121 | U9: =COUNTIF(L7:L16,T9) -> 3 | V9: =U9/(W4-U11) -> 0.375 | W9: =IF(V9=0,0,(V9*((LOG(V9))/LOG(2)))) -> -0.5306390622 | Y9: =N9 -> 121 | Z9: =COUNTIF(L17:L25,Y9) -> 0 | AA9: =Z9/(AB4-Z11) -> 0 | AB9: =IF(AA9=0,0,(AA9*((LOG(AA9))/LOG(2)))) -> 0 | AD9: =N9 -> 121 | AE9: =COUNTIF(L26:L35,AD9) -> 0 | AF9: =AE9/(AG4-AE11) -> 0 | AG9: =IF(AF9=0,0,(AF9*((LOG(AF9))/LOG(2)))) -> 0 | AI9: =N9 -> 121 | AJ9: =COUNTIF(L36:L45,AI9) -> 0 | AK9: =AJ9/(AL4-AJ11) -> 0 | AL9: =IF(AK9=0,0,(AK9*((LOG(AK9))/LOG(2)))) -> 0 | AN9: =N9 -> 121 | AO9: =COUNTIF(L46:L54,AN9) -> 0 | AP9: =AO9/(AQ4-AO11) -> 0 | AQ9: =IF(AP9=0,0,(AP9*((LOG(AP9))/LOG(2)))) -> 0 | AS9: =N9 -> 121 | AT9: =COUNTIF(L55:L64,AS9) -> 0 | AU9: =AT9/(AV4-AT11) ->  | AV9: =IF(AU9=0,0,(AU9*((LOG(AU9))/LOG(2)))) -> 
A10: 12 | B10: 411 | C10: 24 | D10: 421 | E10: 13 | F10: 430 | K10: 0 | L10: 121 | N10: 122 | O10: =COUNTIF($L$7:$L$500,N10) -> 0 | P10: =O10/$Q$4 -> 0 | Q10: =IF(P10=0,0,(P10*((LOG(P10))/LOG(2)))) -> 0 | T10: =N10 -> 122 | U10: =COUNTIF(L7:L16,T10) -> 0 | V10: =U10/(W4-U11) -> 0 | W10: =IF(V10=0,0,(V10*((LOG(V10))/LOG(2)))) -> 0 | Y10: =N10 -> 122 | Z10: =COUNTIF(L17:L25,Y10) -> 0 | AA10: =Z10/(AB4-Z11) -> 0 | AB10: =IF(AA10=0,0,(AA10*((LOG(AA10))/LOG(2)))) -> 0 | AD10: =N10 -> 122 | AE10: =COUNTIF(L26:L35,AD10) -> 0 | AF10: =AE10/(AG4-AE11) -> 0 | AG10: =IF(AF10=0,0,(AF10*((LOG(AF10))/LOG(2)))) -> 0 | AI10: =N10 -> 122 | AJ10: =COUNTIF(L36:L45,AI10) -> 0 | AK10: =AJ10/(AL4-AJ11) -> 0 | AL10: =IF(AK10=0,0,(AK10*((LOG(AK10))/LOG(2)))) -> 0 | AN10: =N10 -> 122 | AO10: =COUNTIF(L46:L54,AN10) -> 0 | AP10: =AO10/(AQ4-AO11) -> 0 | AQ10: =IF(AP10=0,0,(AP10*((LOG(AP10))/LOG(2)))) -> 0 | AS10: =N10 -> 122 | AT10: =COUNTIF(L55:L64,AS10) -> 0 | AU10: =AT10/(AV4-AT11) ->  | AV10: =IF(AU10=0,0,(AU10*((LOG(AU10))/LOG(2)))) -> 
A11: 21 | B11: 528 | C11: 11 | D11: 537 | E11: 22 | F11: 549 | K11: 0 | L11: 212 | N11: 211 | O11: =COUNTIF($L$7:$L$500,N11) -> 38 | P11: =O11/$Q$4 -> 0.6551724138 | Q11: =IF(P11=0,0,(P11*((LOG(P11))/LOG(2)))) -> -0.3996902121 | T11: =N11 -> 211 | U11: =COUNTIF(L7:L16,T11) -> 2 | Y11: =N11 -> 211 | Z11: =COUNTIF(L17:L25,Y11) -> 8 | AD11: =N11 -> 211 | AE11: =COUNTIF(L26:L35,AD11) -> 6 | AI11: =N11 -> 211 | AJ11: =COUNTIF(L36:L45,AI11) -> 6 | AN11: =N11 -> 211 | AO11: =COUNTIF(L46:L54,AN11) -> 6 | AS11: =N11 -> 211 | AT11: =COUNTIF(L55:L64,AS11) -> 10
A12: 21 | B12: 677 | C12: 11 | D12: 689 | E12: 22 | F12: 701 | K12: 0 | L12: 212 | N12: 212 | O12: =COUNTIF($L$7:$L$500,N12) -> 3 | P12: =O12/$Q$4 -> 0.05172413793 | Q12: =IF(P12=0,0,(P12*((LOG(P12))/LOG(2)))) -> -0.221018198 | T12: =N12 -> 212 | U12: =COUNTIF(L7:L16,T12) -> 2 | V12: =U12/(W4-U11) -> 0.25 | W12: =IF(V12=0,0,(V12*((LOG(V12))/LOG(2)))) -> -0.5 | Y12: =N12 -> 212 | Z12: =COUNTIF(L17:L25,Y12) -> 0 | AA12: =Z12/(AB4-Z11) -> 0 | AB12: =IF(AA12=0,0,(AA12*((LOG(AA12))/LOG(2)))) -> 0 | AD12: =N12 -> 212 | AE12: =COUNTIF(L26:L35,AD12) -> 0 | AF12: =AE12/(AG4-AE11) -> 0 | AG12: =IF(AF12=0,0,(AF12*((LOG(AF12))/LOG(2)))) -> 0 | AI12: =N12 -> 212 | AJ12: =COUNTIF(L36:L45,AI12) -> 1 | AK12: =AJ12/(AL4-AJ11) -> 0.25 | AL12: =IF(AK12=0,0,(AK12*((LOG(AK12))/LOG(2)))) -> -0.5 | AN12: =N12 -> 212 | AO12: =COUNTIF(L46:L54,AN12) -> 0 | AP12: =AO12/(AQ4-AO11) -> 0 | AQ12: =IF(AP12=0,0,(AP12*((LOG(AP12))/LOG(2)))) -> 0 | AS12: =N12 -> 212 | AT12: =COUNTIF(L55:L64,AS12) -> 0 | AU12: =AT12/(AV4-AT11) ->  | AV12: =IF(AU12=0,0,(AU12*((LOG(AU12))/LOG(2)))) -> 
A13: 21 | B13: 804 | C13: 11 | D13: 812 | E13: 11 | F13: 824 | K13: 0 | L13: 211 | N13: 221 | O13: =COUNTIF($L$7:$L$500,N13) -> 1 | P13: =O13/$Q$4 -> 0.01724137931 | Q13: =IF(P13=0,0,(P13*((LOG(P13))/LOG(2)))) -> -0.1009996723 | T13: =N13 -> 221 | U13: =COUNTIF(L7:L16,T13) -> 0 | V13: =U13/(W4-U11) -> 0 | W13: =IF(V13=0,0,(V13*((LOG(V13))/LOG(2)))) -> 0 | Y13: =N13 -> 221 | Z13: =COUNTIF(L17:L25,Y13) -> 0 | AA13: =Z13/(AB4-Z11) -> 0 | AB13: =IF(AA13=0,0,(AA13*((LOG(AA13))/LOG(2)))) -> 0 | AD13: =N13 -> 221 | AE13: =COUNTIF(L26:L35,AD13) -> 0 | AF13: =AE13/(AG4-AE11) -> 0 | AG13: =IF(AF13=0,0,(AF13*((LOG(AF13))/LOG(2)))) -> 0 | AI13: =N13 -> 221 | AJ13: =COUNTIF(L36:L45,AI13) -> 1 | AK13: =AJ13/(AL4-AJ11) -> 0.25 | AL13: =IF(AK13=0,0,(AK13*((LOG(AK13))/LOG(2)))) -> -0.5 | AN13: =N13 -> 221 | AO13: =COUNTIF(L46:L54,AN13) -> 0 | AP13: =AO13/(AQ4-AO11) -> 0 | AQ13: =IF(AP13=0,0,(AP13*((LOG(AP13))/LOG(2)))) -> 0 | AS13: =N13 -> 221 | AT13: =COUNTIF(L55:L64,AS13) -> 0 | AU13: =AT13/(AV4-AT11) ->  | AV13: =IF(AU13=0,0,(AU13*((LOG(AU13))/LOG(2)))) -> 
A14: 12 | B14: 937 | C14: 13 | D14: 957 | E14: 13 | F14: 970 | K14: 0 | L14: 111 | N14: 222 | O14: =COUNTIF($L$7:$L$500,N14) -> 0 | P14: =O14/$Q$4 -> 0 | Q14: =IF(P14=0,0,(P14*((LOG(P14))/LOG(2)))) -> 0 | T14: =N14 -> 222 | U14: =COUNTIF(L7:L16,T14) -> 0 | V14: =U14/(W4-U11) -> 0 | W14: =IF(V14=0,0,(V14*((LOG(V14))/LOG(2)))) -> 0 | Y14: =N14 -> 222 | Z14: =COUNTIF(L17:L25,Y14) -> 0 | AA14: =Z14/(AB4-Z11) -> 0 | AB14: =IF(AA14=0,0,(AA14*((LOG(AA14))/LOG(2)))) -> 0 | AD14: =N14 -> 222 | AE14: =COUNTIF(L26:L35,AD14) -> 0 | AF14: =AE14/(AG4-AE11) -> 0 | AG14: =IF(AF14=0,0,(AF14*((LOG(AF14))/LOG(2)))) -> 0 | AI14: =N14 -> 222 | AJ14: =COUNTIF(L36:L45,AI14) -> 0 | AK14: =AJ14/(AL4-AJ11) -> 0 | AL14: =IF(AK14=0,0,(AK14*((LOG(AK14))/LOG(2)))) -> 0 | AN14: =N14 -> 222 | AO14: =COUNTIF(L46:L54,AN14) -> 0 | AP14: =AO14/(AQ4-AO11) -> 0 | AQ14: =IF(AP14=0,0,(AP14*((LOG(AP14))/LOG(2)))) -> 0 | AS14: =N14 -> 222 | AT14: =COUNTIF(L55:L64,AS14) -> 0 | AU14: =AT14/(AV4-AT11) ->  | AV14: =IF(AU14=0,0,(AU14*((LOG(AU14))/LOG(2)))) -> 
A15: 12 | B15: 1077 | C15: 13 | D15: 1090 | E15: 13 | F15: 1101 | K15: 0 | L15: 111 | P15: =SUM(P7:P14) -> 1 | Q15: =-SUM(Q7:Q14) -> 1.426313118 | V15: =SUM(V7:V14) -> 1 | W15: =-SUM(W7:W14) -> 1.561278124 | AA15: =SUM(AA7:AA14) -> 1 | AB15: =-SUM(AB7:AB14) -> 0 | AF15: =SUM(AF7:AF14) -> 1 | AG15: =-SUM(AG7:AG14) -> 0 | AK15: =SUM(AK7:AK14) -> 1 | AL15: =-SUM(AL7:AL14) -> 1.5 | AP15: =SUM(AP7:AP14) -> 1 | AQ15: =-SUM(AQ7:AQ14) -> 0 | AU15: =SUM(AU7:AU14) ->  | AV15: =-SUM(AV7:AV14) -> 
A16: 21 | B16: 1198 | C16: 11 | D16: 1205 | E16: 11 | F16: 1218 | K16: 0 | L16: 211 | P16: U= | Q16: =Q15/(LOG(Q4)/LOG(2)) -> 0.2434820324 | V16: U1= | W16: =W15/(LOG(W4)/LOG(2)) -> 0.469991547 | AA16: U2= | AB16: =AB15/(LOG(AB4)/LOG(2)) -> 0 | AF16: U3= | AG16: =AG15/(LOG(AG4)/LOG(2)) -> 0 | AK16: U4= | AL16: =AL15/(LOG(AL4)/LOG(2)) -> 0.4515449935 | AP16: U5= | AQ16: =AQ15/(LOG(AQ4)/LOG(2)) -> 0 | AU16: U6= | AV16: =AV15/(LOG(AV4)/LOG(2)) -> 
A17: 21 | B17: 1317 | C17: 11 | D17: 1327 | E17: 11 | F17: 1338 | K17: 0 | L17: 211
A18: 12 | B18: 1439 | C18: 13 | D18: 1450 | E18: 13 | F18: 1462 | K18: 0 | L18: 111
A19: 21 | B19: 1559 | C19: 11 | D19: 1569 | E19: 11 | F19: 1579 | K19: 0 | L19: 211 | N19: Total Target Seq
A20: 21 | B20: 1678 | C20: 11 | D20: 1686 | E20: 11 | F20: 1696 | K20: 0 | L20: 211 | N20: =COUNTIF(L7:L64,G3) -> 38 | P20: 10 | Q20: 9 | R20: 10 | S20: 10 | T20: 9 | U20: 10
A21: 21 | B21: 1796 | C21: 11 | D21: 1804 | E21: 11 | F21: 1813 | K21: 0 | L21: 211 | P21: % of reinforcement given in 6 equal intervals based on number of trials
A22: 21 | B22: 1904 | C22: 11 | D22: 1914 | E22: 11 | F22: 1924 | K22: 0 | L22: 211 | P22: %_1 | Q22: %_2 | R22: %_3 | S22: %_4 | T22: %_5 | U22: %_6
A23: 21 | B23: 2017 | C23: 11 | D23: 2028 | E23: 11 | F23: 2039 | K23: 0 | L23: 211 | O23: target sequence | P23: =$G$3 -> 211 | Q23: =$G$3 -> 211 | R23: =$G$3 -> 211 | S23: =$G$3 -> 211 | T23: =$G$3 -> 211 | U23: =$G$3 -> 211
A24: 21 | B24: 2131 | C24: 11 | D24: 2141 | E24: 11 | F24: 2151 | K24: 0 | L24: 211 | O24: total reinforcement | P24: =U11 -> 2 | Q24: =Z11 -> 8 | R24: =AE11 -> 6 | S24: =AJ11 -> 6 | T24: =AO11 -> 6 | U24: =AT11 -> 10
A25: 21 | B25: 2243 | C25: 11 | D25: 2252 | E25: 11 | F25: 2262 | K25: 0 | L25: 211 | O25: % target
A26: 21 | B26: 2355 | C26: 11 | D26: 2363 | E26: 11 | F26: 2373 | K26: 0 | L26: 211 | O26: CCRF
A27: 12 | B27: 2467 | C27: 13 | D27: 2477 | E27: 13 | F27: 2487 | K27: 0 | L27: 111 | O27: % CCRf
A28: 12 | B28: 2594 | C28: 13 | D28: 2603 | E28: 13 | F28: 2610 | K28: 0 | L28: 111 | O28: average response rate | P28: =F16/P20 -> 121.8 | Q28: =(F25-F16)/Q20 -> 116 | R28: =(F35-F25)/R20 -> 116.2 | S28: =(F45-F35)/S20 -> 117.1 | T28: =(F54-F45)/T20 -> 112.5555556 | U28: =(F64-F54)/U20 -> 112.5
A29: 21 | B29: 2713 | C29: 11 | D29: 2721 | E29: 11 | F29: 2730 | K29: 0 | L29: 211
A30: 21 | B30: 2822 | C30: 11 | D30: 2831 | E30: 11 | F30: 2840 | K30: 0 | L30: 211
A31: 21 | B31: 2929 | C31: 11 | D31: 2939 | E31: 11 | F31: 2948 | K31: 0 | L31: 211
A32: 21 | B32: 3048 | C32: 11 | D32: 3056 | E32: 11 | F32: 3064 | K32: 0 | L32: 211
A33: 12 | B33: 3170 | C33: 13 | D33: 3179 | E33: 13 | F33: 3186 | K33: 0 | L33: 111
A34: 21 | B34: 3283 | C34: 11 | D34: 3291 | E34: 11 | F34: 3299 | K34: 0 | L34: 211
A35: 12 | B35: 3411 | C35: 13 | D35: 3418 | E35: 13 | F35: 3424 | K35: 0 | L35: 111
A36: 21 | B36: 3526 | C36: 11 | D36: 3536 | E36: 11 | F36: 3544 | K36: 0 | L36: 211
A37: 21 | B37: 3636 | C37: 11 | D37: 3646 | E37: 11 | F37: 3656 | K37: 0 | L37: 211
A38: 21 | B38: 3745 | C38: 11 | D38: 3754 | E38: 22 | F38: 3773 | K38: 0 | L38: 212
A39: 21 | B39: 3869 | C39: 22 | D39: 3887 | E39: 13 | F39: 3896 | K39: 0 | L39: 221
A40: 21 | B40: 3992 | C40: 11 | D40: 4000 | E40: 11 | F40: 4008 | K40: 0 | L40: 211
A41: 21 | B41: 4104 | C41: 11 | D41: 4115 | E41: 11 | F41: 4124 | K41: 0 | L41: 211
A42: 12 | B42: 4229 | C42: 13 | D42: 4237 | E42: 13 | F42: 4243 | K42: 0 | L42: 111
A43: 12 | B43: 4349 | C43: 13 | D43: 4357 | E43: 13 | F43: 4364 | K43: 0 | L43: 111
A44: 21 | B44: 4465 | C44: 11 | D44: 4479 | E44: 11 | F44: 4485 | K44: 0 | L44: 211
A45: 21 | B45: 4582 | C45: 11 | D45: 4589 | E45: 11 | F45: 4595 | K45: 0 | L45: 211
A46: 12 | B46: 4700 | C46: 13 | D46: 4708 | E46: 13 | F46: 4714 | K46: 0 | L46: 111
A47: 21 | B47: 4818 | C47: 11 | D47: 4825 | E47: 11 | F47: 4831 | K47: 0 | L47: 211
A48: 21 | B48: 4925 | C48: 11 | D48: 4935 | E48: 11 | F48: 4941 | K48: 0 | L48: 211
A49: 21 | B49: 5033 | C49: 11 | D49: 5043 | E49: 11 | F49: 5049 | K49: 0 | L49: 211
A50: 12 | B50: 5149 | C50: 13 | D50: 5155 | E50: 13 | F50: 5162 | K50: 0 | L50: 111
A51: 21 | B51: 5264 | C51: 11 | D51: 5273 | E51: 11 | F51: 5280 | K51: 0 | L51: 211
A52: 21 | B52: 5374 | C52: 11 | D52: 5382 | E52: 11 | F52: 5387 | K52: 0 | L52: 211
A53: 21 | B53: 5483 | C53: 11 | D53: 5492 | E53: 11 | F53: 5498 | K53: 0 | L53: 211
A54: 12 | B54: 5591 | C54: 13 | D54: 5602 | E54: 13 | F54: 5608 | K54: 0 | L54: 111
A55: 21 | B55: 5707 | C55: 11 | D55: 5716 | E55: 11 | F55: 5722 | K55: 0 | L55: 211
A56: 21 | B56: 5814 | C56: 11 | D56: 5828 | E56: 11 | F56: 5834 | K56: 0 | L56: 211
A57: 21 | B57: 5931 | C57: 11 | D57: 5941 | E57: 11 | F57: 5947 | K57: 0 | L57: 211
A58: 21 | B58: 6038 | C58: 11 | D58: 6046 | E58: 11 | F58: 6051 | K58: 0 | L58: 211
A59: 21 | B59: 6144 | C59: 11 | D59: 6158 | E59: 11 | F59: 6165 | K59: 0 | L59: 211
A60: 21 | B60: 6253 | C60: 11 | D60: 6275 | E60: 11 | F60: 6286 | K60: 0 | L60: 211
A61: 21 | B61: 6376 | C61: 11 | D61: 6384 | E61: 11 | F61: 6390 | K61: 0 | L61: 211
A62: 21 | B62: 6483 | C62: 11 | D62: 6507 | E62: 11 | F62: 6513 | K62: 0 | L62: 211
A63: 21 | B63: 6606 | C63: 11 | D63: 6613 | E63: 11 | F63: 6623 | K63: 0 | L63: 211
A64: 21 | B64: 6717 | C64: 11 | D64: 6726 | E64: 11 | F64: 6733 | K64: 1 | L64: 211

Sheet !M503900.183
A1: Report for:!M503900.183
A2: Date: | B2: <date>
A3: Hen: | B3: <hen> | F3: Correct Sequence | G3: =Start!J2 -> 211 | P3: Total Sequences in Data | Q3: =4994-COUNTBLANK(L7:L5000) -> 62 | V3: Total Sequences in Block Data | W3: =COUNTA(L7:L16) -> 10 | AA3: Total Sequences in Block Data | AB3: =COUNTA(L17:L27) -> 11 | AF3: Total Sequences in Block Data | AG3: =COUNTA(L28:L37) -> 10 | AK3: Total Sequences in Block Data | AL3: =COUNTA(L38:L47) -> 10 | AP3: Total Sequences in Block Data | AQ3: =COUNTA(L48:L58) -> 11 | AU3: Total Sequences in Block Data | AV3: =COUNTA(L59:L68) -> 10
P4: Total Sequences in Summary | Q4: =SUM(O7:O14) -> 62 | V4: Total Sequences in Block Summary | W4: =SUM(U7:U14) -> 10 | AA4: Total Sequences in Block Summary | AB4: =SUM(Z7:Z14) -> 11 | AF4: Total Sequences in Block Summary | AG4: =SUM(AE7:AE14) -> 10 | AK4: Total Sequences in Block Summary | AL4: =SUM(AJ7:AJ14) -> 10 | AP4: Total Sequences in Block Summary | AQ4: =SUM(AO7:AO14) -> 11 | AU4: Total Sequences in Block Summary | AV4: =SUM(AT7:AT14) -> 10
T5: Block 1 | Y5: Block 2 | AD5: Block 3 | AI5: Block 4 | AN5: Block 5 | AS5: Block 6
A6: Sequence Component 1 | B6: Time 1 | C6: Sequence Component 2 | D6: Time 2 | E6: Sequence Component 3 | F6: Time 3 | G6: Sequence Component 4 | H6: Time 4 | I6: Sequence Component 5 | J6: Time 5 | K6: Correct? 0=No 1=Yes | L6: Sequence | N6: Frequency | P6: Relative Frequency | Q6: Variability | T6: Frequency | V6: Relative Frequency | W6: Variability | Y6: Frequency | AA6: Relative Frequency | AB6: Variability | AD6: Frequency | AF6: Relative Frequency | AG6: Variability | AI6: Frequency | AK6: Relative Frequency | AL6: Variability | AN6: Frequency | AP6: Relative Frequency | AQ6: Variability | AS6: Frequency | AU6: Relative Frequency | AV6: Variability
A7: 21 | B7: 16 | C7: 11 | D7: 26 | E7: 22 | F7: 40 | K7: 0 | L7: 212 | N7: 111 | O7: =COUNTIF($L$7:$L$500,N7) -> 9 | P7: =O7/$Q$4 -> 0.1451612903 | Q7: =IF(P7=0,0,(P7*((LOG(P7))/LOG(2)))) -> -0.4041684158 | T7: =N7 -> 111 | U7: =COUNTIF(L7:L16,T7) -> 2 | V7: =U7/(W4-U11) -> 0.25 | W7: =IF(V7=0,0,(V7*((LOG(V7))/LOG(2)))) -> -0.5 | Y7: =N7 -> 111 | Z7: =COUNTIF(L17:L27,Y7) -> 0 | AA7: =Z7/(AB4-Z11) -> 0 | AB7: =IF(AA7=0,0,(AA7*((LOG(AA7))/LOG(2)))) -> 0 | AD7: =N7 -> 111 | AE7: =COUNTIF(L28:L37,AD7) -> 0 | AF7: =AE7/(AG4-AE11) -> 0 | AG7: =IF(AF7=0,0,(AF7*((LOG(AF7))/LOG(2)))) -> 0 | AI7: =N7 -> 111 | AJ7: =COUNTIF(L38:L47,AI7) -> 4 | AK7: =AJ7/(AL4-AJ11) -> 1 | AL7: =IF(AK7=0,0,(AK7*((LOG(AK7))/LOG(2)))) -> 0 | AN7: =N7 -> 111 | AO7: =COUNTIF(L48:L58,AN7) -> 0 | AP7: =AO7/(AQ4-AO11) -> 0 | AQ7: =IF(AP7=0,0,(AP7*((LOG(AP7))/LOG(2)))) -> 0 | AS7: =N7 -> 111 | AT7: =COUNTIF(L59:L68,AS7) -> 3 | AU7: =AT7/(AV4-AT11) -> 0.6 | AV7: =IF(AU7=0,0,(AU7*((LOG(AU7))/LOG(2)))) -> -0.4421793565
A8: 12 | B8: 137 | C8: 24 | D8: 150 | E8: 13 | F8: 161 | K8: 0 | L8: 121 | N8: 112 | O8: =COUNTIF($L$7:$L$500,N8) -> 2 | P8: =O8/$Q$4 -> 0.03225806452 | Q8: =IF(P8=0,0,(P8*((LOG(P8))/LOG(2)))) -> -0.1598127842 | T8: =N8 -> 112 | U8: =COUNTIF(L7:L16,T8) -> 1 | V8: =U8/(W4-U11) -> 0.125 | W8: =IF(V8=0,0,(V8*((LOG(V8))/LOG(2)))) -> -0.375 | Y8: =N8 -> 112 | Z8: =COUNTIF(L17:L27,Y8) -> 0 | AA8: =Z8/(AB4-Z11) -> 0 | AB8: =IF(AA8=0,0,(AA8*((LOG(AA8))/LOG(2)))) -> 0 | AD8: =N8 -> 112 | AE8: =COUNTIF(L28:L37,AD8) -> 1 | AF8: =AE8/(AG4-AE11) -> 0.3333333333 | AG8: =IF(AF8=0,0,(AF8*((LOG(AF8))/LOG(2)))) -> -0.5283208336 | AI8: =N8 -> 112 | AJ8: =COUNTIF(L38:L47,AI8) -> 0 | AK8: =AJ8/(AL4-AJ11) -> 0 | AL8: =IF(AK8=0,0,(AK8*((LOG(AK8))/LOG(2)))) -> 0 | AN8: =N8 -> 112 | AO8: =COUNTIF(L48:L58,AN8) -> 0 | AP8: =AO8/(AQ4-AO11) -> 0 | AQ8: =IF(AP8=0,0,(AP8*((LOG(AP8))/LOG(2)))) -> 0 | AS8: =N8 -> 112 | AT8: =COUNTIF(L59:L68,AS8) -> 0 | AU8: =AT8/(AV4-AT11) -> 0 | AV8: =IF(AU8=0,0,(AU8*((LOG(AU8))/LOG(2)))) -> 0
A9: 12 | B9: 259 | C9: 13 | D9: 261 | E9: 24 | F9: 271 | K9: 0 | L9: 112 | N9: 121 | O9: =COUNTIF($L$7:$L$500,N9) -> 9 | P9: =O9/$Q$4 -> 0.1451612903 | Q9: =IF(P9=0,0,(P9*((LOG(P9))/LOG(2)))) -> -0.4041684158 | T9: =N9 -> 121 | U9: =COUNTIF(L7:L16,T9) -> 4 | V9: =U9/(W4-U11) -> 0.5 | W9: =IF(V9=0,0,(V9*((LOG(V9))/LOG(2)))) -> -0.5 | Y9: =N9 -> 121 | Z9: =COUNTIF(L17:L27,Y9) -> 2 | AA9: =Z9/(AB4-Z11) -> 1 | AB9: =IF(AA9=0,0,(AA9*((LOG(AA9))/LOG(2)))) -> 0 | AD9: =N9 -> 121 | AE9: =COUNTIF(L28:L37,AD9) -> 2 | AF9: =AE9/(AG4-AE11) -> 0.6666666667 | AG9: =IF(AF9=0,0,(AF9*((LOG(AF9))/LOG(2)))) -> -0.3899750005 | AI9: =N9 -> 121 | AJ9: =COUNTIF(L38:L47,AI9) -> 0 | AK9: =AJ9/(AL4-AJ11) -> 0 | AL9: =IF(AK9=0,0,(AK9*((LOG(AK9))/LOG(2)))) -> 0 | AN9: =N9 -> 121 | AO9: =COUNTIF(L48:L58,AN9) -> 0 | AP9: =AO9/(AQ4-AO11) -> 0 | AQ9: =IF(AP9=0,0,(AP9*((LOG(AP9))/LOG(2)))) -> 0 | AS9: =N9 -> 121 | AT9: =COUNTIF(L59:L68,AS9) -> 1 | AU9: =AT9/(AV4-AT11) -> 0.2 | AV9: =IF(AU9=0,0,(AU9*((LOG(AU9))/LOG(2)))) -> -0.464385619
A10: 12 | B10: 370 | C10: 24 | D10: 380 | E10: 13 | F10: 387 | K10: 0 | L10: 121 | N10: 122 | O10: =COUNTIF($L$7:$L$500,N10) -> 0 | P10: =O10/$Q$4 -> 0 | Q10: =IF(P10=0,0,(P10*((LOG(P10))/LOG(2)))) -> 0 | T10: =N10 -> 122 | U10: =COUNTIF(L7:L16,T10) -> 0 | V10: =U10/(W4-U11) -> 0 | W10: =IF(V10=0,0,(V10*((LOG(V10))/LOG(2)))) -> 0 | Y10: =N10 -> 122 | Z10: =COUNTIF(L17:L27,Y10) -> 0 | AA10: =Z10/(AB4-Z11) -> 0 | AB10: =IF(AA10=0,0,(AA10*((LOG(AA10))/LOG(2)))) -> 0 | AD10: =N10 -> 122 | AE10: =COUNTIF(L28:L37,AD10) -> 0 | AF10: =AE10/(AG4-AE11) -> 0 | AG10: =IF(AF10=0,0,(AF10*((LOG(AF10))/LOG(2)))) -> 0 | AI10: =N10 -> 122 | AJ10: =COUNTIF(L38:L47,AI10) -> 0 | AK10: =AJ10/(AL4-AJ11) -> 0 | AL10: =IF(AK10=0,0,(AK10*((LOG(AK10))/LOG(2)))) -> 0 | AN10: =N10 -> 122 | AO10: =COUNTIF(L48:L58,AN10) -> 0 | AP10: =AO10/(AQ4-AO11) -> 0 | AQ10: =IF(AP10=0,0,(AP10*((LOG(AP10))/LOG(2)))) -> 0 | AS10: =N10 -> 122 | AT10: =COUNTIF(L59:L68,AS10) -> 0 | AU10: =AT10/(AV4-AT11) -> 0 | AV10: =IF(AU10=0,0,(AU10*((LOG(AU10))/LOG(2)))) -> 0
A11: 12 | B11: 492 | C11: 24 | D11: 503 | E11: 13 | F11: 511 | K11: 0 | L11: 121 | N11: 211 | O11: =COUNTIF($L$7:$L$500,N11) -> 39 | P11: =O11/$Q$4 -> 0.6290322581 | Q11: =IF(P11=0,0,(P11*((LOG(P11))/LOG(2)))) -> -0.4206930576 | T11: =N11 -> 211 | U11: =COUNTIF(L7:L16,T11) -> 2 | Y11: =N11 -> 211 | Z11: =COUNTIF(L17:L27,Y11) -> 9 | AD11: =N11 -> 211 | AE11: =COUNTIF(L28:L37,AD11) -> 7 | AI11: =N11 -> 211 | AJ11: =COUNTIF(L38:L47,AI11) -> 6 | AN11: =N11 -> 211 | AO11: =COUNTIF(L48:L58,AN11) -> 10 | AS11: =N11 -> 211 | AT11: =COUNTIF(L59:L68,AS11) -> 5
A12: 21 | B12: 612 | C12: 11 | D12: 621 | E12: 11 | F12: 630 | K12: 0 | L12: 211 | N12: 212 | O12: =COUNTIF($L$7:$L$500,N12) -> 1 | P12: =O12/$Q$4 -> 0.01612903226 | Q12: =IF(P12=0,0,(P12*((LOG(P12))/LOG(2)))) -> -0.09603542436 | T12: =N12 -> 212 | U12: =COUNTIF(L7:L16,T12) -> 1 | V12: =U12/(W4-U11) -> 0.125 | W12: =IF(V12=0,0,(V12*((LOG(V12))/LOG(2)))) -> -0.375 | Y12: =N12 -> 212 | Z12: =COUNTIF(L17:L27,Y12) -> 0 | AA12: =Z12/(AB4-Z11) -> 0 | AB12: =IF(AA12=0,0,(AA12*((LOG(AA12))/LOG(2)))) -> 0 | AD12: =N12 -> 212 | AE12: =COUNTIF(L28:L37,AD12) -> 0 | AF12: =AE12/(AG4-AE11) -> 0 | AG12: =IF(AF12=0,0,(AF12*((LOG(AF12))/LOG(2)))) -> 0 | AI12: =N12 -> 212 | AJ12: =COUNTIF(L38:L47,AI12) -> 0 | AK12: =AJ12/(AL4-AJ11) -> 0 | AL12: =IF(AK12=0,0,(AK12*((LOG(AK12))/LOG(2)))) -> 0 | AN12: =N12 -> 212 | AO12: =COUNTIF(L48:L58,AN12) -> 0 | AP12: =AO12/(AQ4-AO11) -> 0 | AQ12: =IF(AP12=0,0,(AP12*((LOG(AP12))/LOG(2)))) -> 0 | AS12: =N12 -> 212 | AT12: =COUNTIF(L59:L68,AS12) -> 0 | AU12: =AT12/(AV4-AT11) -> 0 | AV12: =IF(AU12=0,0,(AU12*((LOG(AU12))/LOG(2)))) -> 0
A13: 12 | B13: 720 | C13: 24 | D13: 732 | E13: 13 | F13: 744 | K13: 0 | L13: 121 | N13: 221 | O13: =COUNTIF($L$7:$L$500,N13) -> 2 | P13: =O13/$Q$4 -> 0.03225806452 | Q13: =IF(P13=0,0,(P13*((LOG(P13))/LOG(2)))) -> -0.1598127842 | T13: =N13 -> 221 | U13: =COUNTIF(L7:L16,T13) -> 0 | V13: =U13/(W4-U11) -> 0 | W13: =IF(V13=0,0,(V13*((LOG(V13))/LOG(2)))) -> 0 | Y13: =N13 -> 221 | Z13: =COUNTIF(L17:L27,Y13) -> 0 | AA13: =Z13/(AB4-Z11) -> 0 | AB13: =IF(AA13=0,0,(AA13*((LOG(AA13))/LOG(2)))) -> 0 | AD13: =N13 -> 221 | AE13: =COUNTIF(L28:L37,AD13) -> 0 | AF13: =AE13/(AG4-AE11) -> 0 | AG13: =IF(AF13=0,0,(AF13*((LOG(AF13))/LOG(2)))) -> 0 | AI13: =N13 -> 221 | AJ13: =COUNTIF(L38:L47,AI13) -> 0 | AK13: =AJ13/(AL4-AJ11) -> 0 | AL13: =IF(AK13=0,0,(AK13*((LOG(AK13))/LOG(2)))) -> 0 | AN13: =N13 -> 221 | AO13: =COUNTIF(L48:L58,AN13) -> 1 | AP13: =AO13/(AQ4-AO11) -> 1 | AQ13: =IF(AP13=0,0,(AP13*((LOG(AP13))/LOG(2)))) -> 0 | AS13: =N13 -> 221 | AT13: =COUNTIF(L59:L68,AS13) -> 1 | AU13: =AT13/(AV4-AT11) -> 0.2 | AV13: =IF(AU13=0,0,(AU13*((LOG(AU13))/LOG(2)))) -> -0.464385619
A14: 21 | B14: 845 | C14: 11 | D14: 854 | E14: 11 | F14: 860 | K14: 0 | L14: 211 | N14: 222 | O14: =COUNTIF($L$7:$L$500,N14) -> 0 | P14: =O14/$Q$4 -> 0 | Q14: =IF(P14=0,0,(P14*((LOG(P14))/LOG(2)))) -> 0 | T14: =N14 -> 222 | U14: =COUNTIF(L7:L16,T14) -> 0 | V14: =U14/(W4-U11) -> 0 | W14: =IF(V14=0,0,(V14*((LOG(V14))/LOG(2)))) -> 0 | Y14: =N14 -> 222 | Z14: =COUNTIF(L17:L27,Y14) -> 0 | AA14: =Z14/(AB4-Z11) -> 0 | AB14: =IF(AA14=0,0,(AA14*((LOG(AA14))/LOG(2)))) -> 0 | AD14: =N14 -> 222 | AE14: =COUNTIF(L28:L37,AD14) -> 0 | AF14: =AE14/(AG4-AE11) -> 0 | AG14: =IF(AF14=0,0,(AF14*((LOG(AF14))/LOG(2)))) -> 0 | AI14: =N14 -> 222 | AJ14: =COUNTIF(L38:L47,AI14) -> 0 | AK14: =AJ14/(AL4-AJ11) -> 0 | AL14: =IF(AK14=0,0,(AK14*((LOG(AK14))/LOG(2)))) -> 0 | AN14: =N14 -> 222 | AO14: =COUNTIF(L48:L58,AN14) -> 0 | AP14: =AO14/(AQ4-AO11) -> 0 | AQ14: =IF(AP14=0,0,(AP14*((LOG(AP14))/LOG(2)))) -> 0 | AS14: =N14 -> 222 | AT14: =COUNTIF(L59:L68,AS14) -> 0 | AU14: =AT14/(AV4-AT11) -> 0 | AV14: =IF(AU14=0,0,(AU14*((LOG(AU14))/LOG(2)))) -> 0
A15: 12 | B15: 954 | C15: 13 | D15: 969 | E15: 13 | F15: 974 | K15: 0 | L15: 111 | P15: =SUM(P7:P14) -> 1 | Q15: =-SUM(Q7:Q14) -> 1.644690882 | V15: =SUM(V7:V14) -> 1 | W15: =-SUM(W7:W14) -> 1.75 | AA15: =SUM(AA7:AA14) -> 1 | AB15: =-SUM(AB7:AB14) -> 0 | AF15: =SUM(AF7:AF14) -> 1 | AG15: =-SUM(AG7:AG14) -> 0.9182958341 | AK15: =SUM(AK7:AK14) -> 1 | AL15: =-SUM(AL7:AL14) -> 0 | AP15: =SUM(AP7:AP14) -> 1 | AQ15: =-SUM(AQ7:AQ14) -> 0 | AU15: =SUM(AU7:AU14) -> 1 | AV15: =-SUM(AV7:AV14) -> 1.370950594
A16: 12 | B16: 1077 | C16: 13 | D16: 1083 | E16: 13 | F16: 1095 | K16: 0 | L16: 111 | P16: U= | Q16: =Q15/(LOG(Q4)/LOG(2)) -> 0.2762238254 | V16: U1= | W16: =W15/(LOG(W4)/LOG(2)) -> 0.5268024924 | AA16: U2= | AB16: =AB15/(LOG(AB4)/LOG(2)) -> 0 | AF16: U3= | AG16: =AG15/(LOG(AG4)/LOG(2)) -> 0.2764345909 | AK16: U4= | AL16: =AL15/(LOG(AL4)/LOG(2)) -> 0 | AP16: U5= | AQ16: =AQ15/(LOG(AQ4)/LOG(2)) -> 0 | AU16: U6= | AV16: =AV15/(LOG(AV4)/LOG(2)) -> 0.4126972515
A17: 21 | B17: 1197 | C17: 11 | D17: 1207 | E17: 11 | F17: 1213 | K17: 0 | L17: 211
A18: 21 | B18: 1307 | C18: 11 | D18: 1315 | E18: 11 | F18: 1321 | K18: 0 | L18: 211
A19: 21 | B19: 1420 | C19: 11 | D19: 1431 | E19: 11 | F19: 1440 | K19: 0 | L19: 211 | N19: Total Target Seq
A20: 21 | B20: 1536 | C20: 11 | D20: 1547 | E20: 11 | F20: 1553 | K20: 0 | L20: 211 | N20: =COUNTIF(L7:L68,G3) -> 39 | P20: 10 | Q20: 11 | R20: 10 | S20: 10 | T20: 11 | U20: 10
A21: 12 | B21: 1644 | C21: 24 | D21: 1657 | E21: 13 | F21: 1666 | K21: 0 | L21: 121 | P21: % of reinforcement given in 6 equal intervals based on number of trials
A22: 21 | B22: 1767 | C22: 11 | D22: 1778 | E22: 11 | F22: 1784 | K22: 0 | L22: 211 | P22: %_1 | Q22: %_2 | R22: %_3 | S22: %_4 | T22: %_5 | U22: %_6
A23: 21 | B23: 1879 | C23: 11 | D23: 1887 | E23: 11 | F23: 1894 | K23: 0 | L23: 211 | O23: target sequence | P23: =$G$3 -> 211 | Q23: =$G$3 -> 211 | R23: =$G$3 -> 211 | S23: =$G$3 -> 211 | T23: =$G$3 -> 211 | U23: =$G$3 -> 211
A24: 12 | B24: 1985 | C24: 24 | D24: 1998 | E24: 13 | F24: 2011 | K24: 0 | L24: 121 | O24: total reinforcement | P24: =U11 -> 2 | Q24: =Z11 -> 9 | R24: =AE11 -> 7 | S24: =AJ11 -> 6 | T24: =AO11 -> 10 | U24: =AT11 -> 5
A25: 21 | B25: 2110 | C25: 11 | D25: 2122 | E25: 11 | F25: 2128 | K25: 0 | L25: 211 | O25: % target
A26: 21 | B26: 2225 | C26: 11 | D26: 2236 | E26: 11 | F26: 2242 | K26: 0 | L26: 211 | O26: CCRF
A27: 21 | B27: 2336 | C27: 11 | D27: 2347 | E27: 11 | F27: 2353 | K27: 0 | L27: 211 | O27: % CCRf
A28: 21 | B28: 2447 | C28: 11 | D28: 2461 | E28: 11 | F28: 2468 | K28: 0 | L28: 211 | O28: average response rate | P28: =F16/P20 -> 109.5 | Q28: =(F27-F16)/Q20 -> 114.3636364 | R28: =(F37-F27)/R20 -> 115.6 | S28: =(F47-F37)/S20 -> 113.6 | T28: =(F58-F47)/T20 -> 109.4545455 | U28: =(F68-F58)/U20 -> 132.9
A29: 12 | B29: 2556 | C29: 24 | D29: 2567 | E29: 13 | F29: 2585 | K29: 0 | L29: 121
A30: 21 | B30: 2683 | C30: 11 | D30: 2694 | E30: 11 | F30: 2701 | K30: 0 | L30: 211
A31: 21 | B31: 2791 | C31: 11 | D31: 2806 | E31: 11 | F31: 2812 | K31: 0 | L31: 211
A32: 21 | B32: 2905 | C32: 11 | D32: 2918 | E32: 11 | F32: 2924 | K32: 0 | L32: 211
A33: 21 | B33: 3014 | C33: 11 | D33: 3029 | E33: 11 | F33: 3035 | K33: 0 | L33: 211
A34: 12 | B34: 3153 | C34: 13 | D34: 3157 | E34: 24 | F34: 3169 | K34: 0 | L34: 112
A35: 21 | B35: 3269 | C35: 11 | D35: 3285 | E35: 11 | F35: 3292 | K35: 0 | L35: 211
A36: 21 | B36: 3384 | C36: 11 | D36: 3395 | E36: 11 | F36: 3402 | K36: 0 | L36: 211
A37: 12 | B37: 3491 | C37: 24 | D37: 3500 | E37: 13 | F37: 3509 | K37: 0 | L37: 121
A38: 12 | B38: 3609 | C38: 13 | D38: 3615 | E38: 13 | F38: 3620 | K38: 0 | L38: 111
A39: 21 | B39: 3718 | C39: 11 | D39: 3726 | E39: 11 | F39: 3732 | K39: 0 | L39: 211
A40: 21 | B40: 3824 | C40: 11 | D40: 3832 | E40: 11 | F40: 3838 | K40: 0 | L40: 211
A41: 12 | B41: 3951 | C41: 13 | D41: 3957 | E41: 13 | F41: 3967 | K41: 0 | L41: 111
A42: 21 | B42: 4066 | C42: 11 | D42: 4074 | E42: 11 | F42: 4080 | K42: 0 | L42: 211
A43: 12 | B43: 4171 | C43: 13 | D43: 4182 | E43: 13 | F43: 4187 | K43: 0 | L43: 111
A44: 21 | B44: 4287 | C44: 11 | D44: 4296 | E44: 11 | F44: 4302 | K44: 0 | L44: 211
A45: 12 | B45: 4401 | C45: 13 | D45: 4407 | E45: 13 | F45: 4413 | K45: 0 | L45: 111
A46: 21 | B46: 4509 | C46: 11 | D46: 4520 | E46: 11 | F46: 4526 | K46: 0 | L46: 211
A47: 21 | B47: 4633 | C47: 11 | D47: 4639 | E47: 11 | F47: 4645 | K47: 0 | L47: 211
A48: 21 | B48: 4737 | C48: 11 | D48: 4747 | E48: 11 | F48: 4752 | K48: 0 | L48: 211
A49: 21 | B49: 4842 | C49: 11 | D49: 4861 | E49: 11 | F49: 4866 | K49: 0 | L49: 211
A50: 21 | B50: 4957 | C50: 11 | D50: 4964 | E50: 11 | F50: 4970 | K50: 0 | L50: 211
A51: 21 | B51: 5062 | C51: 11 | D51: 5069 | E51: 11 | F51: 5075 | K51: 0 | L51: 211
A52: 21 | B52: 5167 | C52: 11 | D52: 5177 | E52: 11 | F52: 5183 | K52: 0 | L52: 211
A53: 21 | B53: 5275 | C53: 11 | D53: 5297 | E53: 11 | F53: 5303 | K53: 0 | L53: 211
A54: 21 | B54: 5394 | C54: 11 | D54: 5401 | E54: 11 | F54: 5407 | K54: 0 | L54: 211
A55: 21 | B55: 5498 | C55: 11 | D55: 5505 | E55: 11 | F55: 5511 | K55: 0 | L55: 211
A56: 21 | B56: 5602 | C56: 11 | D56: 5619 | E56: 11 | F56: 5624 | K56: 0 | L56: 211
A57: 21 | B57: 5714 | C57: 22 | D57: 5731 | E57: 13 | F57: 5738 | K57: 0 | L57: 221
A58: 21 | B58: 5836 | C58: 11 | D58: 5843 | E58: 11 | F58: 5849 | K58: 0 | L58: 211
A59: 21 | B59: 5940 | C59: 11 | D59: 5961 | E59: 11 | F59: 5967 | K59: 0 | L59: 211
A60: 21 | B60: 6060 | C60: 11 | D60: 6073 | E60: 11 | F60: 6079 | K60: 0 | L60: 211
A61: 21 | B61: 6172 | C61: 11 | D61: 6202 | E61: 11 | F61: 6208 | K61: 0 | L61: 211
A62: 21 | B62: 6297 | C62: 22 | D62: 6314 | E62: 13 | F62: 6328 | K62: 0 | L62: 221
A63: 12 | B63: 6427 | C63: 24 | D63: 6436 | E63: 13 | F63: 6443 | K63: 0 | L63: 121
A64: 12 | B64: 6584 | C64: 13 | D64: 6590 | E64: 13 | F64: 6595 | K64: 0 | L64: 111
A65: 12 | B65: 6742 | C65: 13 | D65: 6752 | E65: 13 | F65: 6759 | K65: 0 | L65: 111
A66: 12 | B66: 6898 | C66: 13 | D66: 6904 | E66: 13 | F66: 6914 | K66: 0 | L66: 111
A67: 21 | B67: 7059 | C67: 11 | D67: 7066 | E67: 11 | F67: 7072 | K67: 0 | L67: 211
A68: 21 | B68: 7165 | C68: 11 | D68: 7173 | E68: 11 | F68: 7178 | K68: 1 | L68: 211

Sheet !M504630.183
A1: Report for:!M504630.183
A2: Date: | B2: <date>
A3: Hen: | B3: <hen> | F3: Correct Sequence | G3: =Start!J2 -> 211 | P3: Total Sequences in Data | Q3: =4994-COUNTBLANK(L7:L5000) -> 48 | V3: Total Sequences in Block Data | W3: =COUNTA(L7:L14) -> 8 | AA3: Total Sequences in Block Data | AB3: =COUNTA(L15:L22) -> 8 | AF3: Total Sequences in Block Data | AG3: =COUNTA(L23:L30) -> 8 | AK3: Total Sequences in Block Data | AL3: =COUNTA(L31:L38) -> 8 | AP3: Total Sequences in Block Data | AQ3: =COUNTA(L39:L46) -> 8 | AU3: Total Sequences in Block Data | AV3: =COUNTA(L47:L54) -> 8
P4: Total Sequences in Summary | Q4: =SUM(O7:O14) -> 48 | V4: Total Sequences in Block Summary | W4: =SUM(U7:U14) -> 8 | AA4: Total Sequences in Block Summary | AB4: =SUM(Z7:Z14) -> 8 | AF4: Total Sequences in Block Summary | AG4: =SUM(AE7:AE14) -> 8 | AK4: Total Sequences in Block Summary | AL4: =SUM(AJ7:AJ14) -> 8 | AP4: Total Sequences in Block Summary | AQ4: =SUM(AO7:AO14) -> 8 | AU4: Total Sequences in Block Summary | AV4: =SUM(AT7:AT14) -> 8
T5: Block 1 | Y5: Block 2 | AD5: Block 3 | AI5: Block 4 | AN5: Block 5 | AS5: Block 6
A6: Sequence Component 1 | B6: Time 1 | C6: Sequence Component 2 | D6: Time 2 | E6: Sequence Component 3 | F6: Time 3 | G6: Sequence Component 4 | H6: Time 4 | I6: Sequence Component 5 | J6: Time 5 | K6: Correct? 0=No 1=Yes | L6: Sequence | N6: Frequency | P6: Relative Frequency | Q6: Variability | T6: Frequency | V6: Relative Frequency | W6: Variability | Y6: Frequency | AA6: Relative Frequency | AB6: Variability | AD6: Frequency | AF6: Relative Frequency | AG6: Variability | AI6: Frequency | AK6: Relative Frequency | AL6: Variability | AN6: Frequency | AP6: Relative Frequency | AQ6: Variability | AS6: Frequency | AU6: Relative Frequency | AV6: Variability
A7: 12 | B7: 23 | C7: 13 | D7: 32 | E7: 13 | F7: 39 | K7: 0 | L7: 111 | N7: 111 | O7: =COUNTIF($L$7:$L$500,N7) -> 7 | P7: =O7/$Q$4 -> 0.1458333333 | Q7: =IF(P7=0,0,(P7*((LOG(P7))/LOG(2)))) -> -0.4050677719 | T7: =N7 -> 111 | U7: =COUNTIF(L7:L14,T7) -> 6 | V7: =U7/(W4-U11) -> 1 | W7: =IF(V7=0,0,(V7*((LOG(V7))/LOG(2)))) -> 0 | Y7: =N7 -> 111 | Z7: =COUNTIF(L15:L22,Y7) -> 0 | AA7: =Z7/(AB4-Z11) -> 0 | AB7: =IF(AA7=0,0,(AA7*((LOG(AA7))/LOG(2)))) -> 0 | AD7: =N7 -> 111 | AE7: =COUNTIF(L23:L30,AD7) -> 0 | AF7: =AE7/(AG4-AE11) ->  | AG7: =IF(AF7=0,0,(AF7*((LOG(AF7))/LOG(2)))) ->  | AI7: =N7 -> 111 | AJ7: =COUNTIF(L31:L38,AI7) -> 1 | AK7: =AJ7/(AL4-AJ11) -> 0.5 | AL7: =IF(AK7=0,0,(AK7*((LOG(AK7))/LOG(2)))) -> -0.5 | AN7: =N7 -> 111 | AO7: =COUNTIF(L39:L46,AN7) -> 0 | AP7: =AO7/(AQ4-AO11) ->  | AQ7: =IF(AP7=0,0,(AP7*((LOG(AP7))/LOG(2)))) ->  | AS7: =N7 -> 111 | AT7: =COUNTIF(L47:L54,AS7) -> 0 | AU7: =AT7/(AV4-AT11) ->  | AV7: =IF(AU7=0,0,(AU7*((LOG(AU7))/LOG(2)))) -> 
A8: 12 | B8: 135 | C8: 13 | D8: 143 | E8: 13 | F8: 150 | K8: 0 | L8: 111 | N8: 112 | O8: =COUNTIF($L$7:$L$500,N8) -> 0 | P8: =O8/$Q$4 -> 0 | Q8: =IF(P8=0,0,(P8*((LOG(P8))/LOG(2)))) -> 0 | T8: =N8 -> 112 | U8: =COUNTIF(L7:L14,T8) -> 0 | V8: =U8/(W4-U11) -> 0 | W8: =IF(V8=0,0,(V8*((LOG(V8))/LOG(2)))) -> 0 | Y8: =N8 -> 112 | Z8: =COUNTIF(L15:L22,Y8) -> 0 | AA8: =Z8/(AB4-Z11) -> 0 | AB8: =IF(AA8=0,0,(AA8*((LOG(AA8))/LOG(2)))) -> 0 | AD8: =N8 -> 112 | AE8: =COUNTIF(L23:L30,AD8) -> 0 | AF8: =AE8/(AG4-AE11) ->  | AG8: =IF(AF8=0,0,(AF8*((LOG(AF8))/LOG(2)))) ->  | AI8: =N8 -> 112 | AJ8: =COUNTIF(L31:L38,AI8) -> 0 | AK8: =AJ8/(AL4-AJ11) -> 0 | AL8: =IF(AK8=0,0,(AK8*((LOG(AK8))/LOG(2)))) -> 0 | AN8: =N8 -> 112 | AO8: =COUNTIF(L39:L46,AN8) -> 0 | AP8: =AO8/(AQ4-AO11) ->  | AQ8: =IF(AP8=0,0,(AP8*((LOG(AP8))/LOG(2)))) ->  | AS8: =N8 -> 112 | AT8: =COUNTIF(L47:L54,AS8) -> 0 | AU8: =AT8/(AV4-AT11) ->  | AV8: =IF(AU8=0,0,(AU8*((LOG(AU8))/LOG(2)))) -> 
A9: 12 | B9: 250 | C9: 13 | D9: 257 | E9: 13 | F9: 264 | K9: 0 | L9: 111 | N9: 121 | O9: =COUNTIF($L$7:$L$500,N9) -> 1 | P9: =O9/$Q$4 -> 0.02083333333 | Q9: =IF(P9=0,0,(P9*((LOG(P9))/LOG(2)))) -> -0.1163533854 | T9: =N9 -> 121 | U9: =COUNTIF(L7:L14,T9) -> 0 | V9: =U9/(W4-U11) -> 0 | W9: =IF(V9=0,0,(V9*((LOG(V9))/LOG(2)))) -> 0 | Y9: =N9 -> 121 | Z9: =COUNTIF(L15:L22,Y9) -> 1 | AA9: =Z9/(AB4-Z11) -> 1 | AB9: =IF(AA9=0,0,(AA9*((LOG(AA9))/LOG(2)))) -> 0 | AD9: =N9 -> 121 | AE9: =COUNTIF(L23:L30,AD9) -> 0 | AF9: =AE9/(AG4-AE11) ->  | AG9: =IF(AF9=0,0,(AF9*((LOG(AF9))/LOG(2)))) ->  | AI9: =N9 -> 121 | AJ9: =COUNTIF(L31:L38,AI9) -> 0 | AK9: =AJ9/(AL4-AJ11) -> 0 | AL9: =IF(AK9=0,0,(AK9*((LOG(AK9))/LOG(2)))) -> 0 | AN9: =N9 -> 121 | AO9: =COUNTIF(L39:L46,AN9) -> 0 | AP9: =AO9/(AQ4-AO11) ->  | AQ9: =IF(AP9=0,0,(AP9*((LOG(AP9))/LOG(2)))) ->  | AS9: =N9 -> 121 | AT9: =COUNTIF(L47:L54,AS9) -> 0 | AU9: =AT9/(AV4-AT11) ->  | AV9: =IF(AU9=0,0,(AU9*((LOG(AU9))/LOG(2)))) -> 
A10: 21 | B10: 366 | C10: 11 | D10: 374 | E10: 11 | F10: 380 | K10: 0 | L10: 211 | N10: 122 | O10: =COUNTIF($L$7:$L$500,N10) -> 0 | P10: =O10/$Q$4 -> 0 | Q10: =IF(P10=0,0,(P10*((LOG(P10))/LOG(2)))) -> 0 | T10: =N10 -> 122 | U10: =COUNTIF(L7:L14,T10) -> 0 | V10: =U10/(W4-U11) -> 0 | W10: =IF(V10=0,0,(V10*((LOG(V10))/LOG(2)))) -> 0 | Y10: =N10 -> 122 | Z10: =COUNTIF(L15:L22,Y10) -> 0 | AA10: =Z10/(AB4-Z11) -> 0 | AB10: =IF(AA10=0,0,(AA10*((LOG(AA10))/LOG(2)))) -> 0 | AD10: =N10 -> 122 | AE10: =COUNTIF(L23:L30,AD10) -> 0 | AF10: =AE10/(AG4-AE11) ->  | AG10: =IF(AF10=0,0,(AF10*((LOG(AF10))/LOG(2)))) ->  | AI10: =N10 -> 122 | AJ10: =COUNTIF(L31:L38,AI10) -> 0 | AK10: =AJ10/(AL4-AJ11) -> 0 | AL10: =IF(AK10=0,0,(AK10*((LOG(AK10))/LOG(2)))) -> 0 | AN10: =N10 -> 122 | AO10: =COUNTIF(L39:L46,AN10) -> 0 | AP10: =AO10/(AQ4-AO11) ->  | AQ10: =IF(AP10=0,0,(AP10*((LOG(AP10))/LOG(2)))) ->  | AS10: =N10 -> 122 | AT10: =COUNTIF(L47:L54,AS10) -> 0 | AU10: =AT10/(AV4-AT11) ->  | AV10: =IF(AU10=0,0,(AU10*((LOG(AU10))/LOG(2)))) -> 
A11: 21 | B11: 470 | C11: 11 | D11: 487 | E11: 11 | F11: 498 | K11: 0 | L11: 211 | N11: 211 | O11: =COUNTIF($L$7:$L$500,N11) -> 39 | P11: =O11/$Q$4 -> 0.8125 | Q11: =IF(P11=0,0,(P11*((LOG(P11))/LOG(2)))) -> -0.243392729 | T11: =N11 -> 211 | U11: =COUNTIF(L7:L14,T11) -> 2 | Y11: =N11 -> 211 | Z11: =COUNTIF(L15:L22,Y11) -> 7 | AD11: =N11 -> 211 | AE11: =COUNTIF(L23:L30,AD11) -> 8 | AI11: =N11 -> 211 | AJ11: =COUNTIF(L31:L38,AI11) -> 6 | AN11: =N11 -> 211 | AO11: =COUNTIF(L39:L46,AN11) -> 8 | AS11: =N11 -> 211 | AT11: =COUNTIF(L47:L54,AS11) -> 8
A12: 12 | B12: 618 | C12: 13 | D12: 627 | E12: 13 | F12: 636 | K12: 0 | L12: 111 | N12: 212 | O12: =COUNTIF($L$7:$L$500,N12) -> 0 | P12: =O12/$Q$4 -> 0 | Q12: =IF(P12=0,0,(P12*((LOG(P12))/LOG(2)))) -> 0 | T12: =N12 -> 212 | U12: =COUNTIF(L7:L14,T12) -> 0 | V12: =U12/(W4-U11) -> 0 | W12: =IF(V12=0,0,(V12*((LOG(V12))/LOG(2)))) -> 0 | Y12: =N12 -> 212 | Z12: =COUNTIF(L15:L22,Y12) -> 0 | AA12: =Z12/(AB4-Z11) -> 0 | AB12: =IF(AA12=0,0,(AA12*((LOG(AA12))/LOG(2)))) -> 0 | AD12: =N12 -> 212 | AE12: =COUNTIF(L23:L30,AD12) -> 0 | AF12: =AE12/(AG4-AE11) ->  | AG12: =IF(AF12=0,0,(AF12*((LOG(AF12))/LOG(2)))) ->  | AI12: =N12 -> 212 | AJ12: =COUNTIF(L31:L38,AI12) -> 0 | AK12: =AJ12/(AL4-AJ11) -> 0 | AL12: =IF(AK12=0,0,(AK12*((LOG(AK12))/LOG(2)))) -> 0 | AN12: =N12 -> 212 | AO12: =COUNTIF(L39:L46,AN12) -> 0 | AP12: =AO12/(AQ4-AO11) ->  | AQ12: =IF(AP12=0,0,(AP12*((LOG(AP12))/LOG(2)))) ->  | AS12: =N12 -> 212 | AT12: =COUNTIF(L47:L54,AS12) -> 0 | AU12: =AT12/(AV4-AT11) ->  | AV12: =IF(AU12=0,0,(AU12*((LOG(AU12))/LOG(2)))) -> 
A13: 12 | B13: 734 | C13: 13 | D13: 741 | E13: 13 | F13: 747 | K13: 0 | L13: 111 | N13: 221 | O13: =COUNTIF($L$7:$L$500,N13) -> 1 | P13: =O13/$Q$4 -> 0.02083333333 | Q13: =IF(P13=0,0,(P13*((LOG(P13))/LOG(2)))) -> -0.1163533854 | T13: =N13 -> 221 | U13: =COUNTIF(L7:L14,T13) -> 0 | V13: =U13/(W4-U11) -> 0 | W13: =IF(V13=0,0,(V13*((LOG(V13))/LOG(2)))) -> 0 | Y13: =N13 -> 221 | Z13: =COUNTIF(L15:L22,Y13) -> 0 | AA13: =Z13/(AB4-Z11) -> 0 | AB13: =IF(AA13=0,0,(AA13*((LOG(AA13))/LOG(2)))) -> 0 | AD13: =N13 -> 221 | AE13: =COUNTIF(L23:L30,AD13) -> 0 | AF13: =AE13/(AG4-AE11) ->  | AG13: =IF(AF13=0,0,(AF13*((LOG(AF13))/LOG(2)))) ->  | AI13: =N13 -> 221 | AJ13: =COUNTIF(L31:L38,AI13) -> 1 | AK13: =AJ13/(AL4-AJ11) -> 0.5 | AL13: =IF(AK13=0,0,(AK13*((LOG(AK13))/LOG(2)))) -> -0.5 | AN13: =N13 -> 221 | AO13: =COUNTIF(L39:L46,AN13) -> 0 | AP13: =AO13/(AQ4-AO11) ->  | AQ13: =IF(AP13=0,0,(AP13*((LOG(AP13))/LOG(2)))) ->  | AS13: =N13 -> 221 | AT13: =COUNTIF(L47:L54,AS13) -> 0 | AU13: =AT13/(AV4-AT11) ->  | AV13: =IF(AU13=0,0,(AU13*((LOG(AU13))/LOG(2)))) -> 
A14: 12 | B14: 848 | C14: 13 | D14: 854 | E14: 13 | F14: 860 | K14: 0 | L14: 111 | N14: 222 | O14: =COUNTIF($L$7:$L$500,N14) -> 0 | P14: =O14/$Q$4 -> 0 | Q14: =IF(P14=0,0,(P14*((LOG(P14))/LOG(2)))) -> 0 | T14: =N14 -> 222 | U14: =COUNTIF(L7:L14,T14) -> 0 | V14: =U14/(W4-U11) -> 0 | W14: =IF(V14=0,0,(V14*((LOG(V14))/LOG(2)))) -> 0 | Y14: =N14 -> 222 | Z14: =COUNTIF(L15:L22,Y14) -> 0 | AA14: =Z14/(AB4-Z11) -> 0 | AB14: =IF(AA14=0,0,(AA14*((LOG(AA14))/LOG(2)))) -> 0 | AD14: =N14 -> 222 | AE14: =COUNTIF(L23:L30,AD14) -> 0 | AF14: =AE14/(AG4-AE11) ->  | AG14: =IF(AF14=0,0,(AF14*((LOG(AF14))/LOG(2)))) ->  | AI14: =N14 -> 222 | AJ14: =COUNTIF(L31:L38,AI14) -> 0 | AK14: =AJ14/(AL4-AJ11) -> 0 | AL14: =IF(AK14=0,0,(AK14*((LOG(AK14))/LOG(2)))) -> 0 | AN14: =N14 -> 222 | AO14: =COUNTIF(L39:L46,AN14) -> 0 | AP14: =AO14/(AQ4-AO11) ->  | AQ14: =IF(AP14=0,0,(AP14*((LOG(AP14))/LOG(2)))) ->  | AS14: =N14 -> 222 | AT14: =COUNTIF(L47:L54,AS14) -> 0 | AU14: =AT14/(AV4-AT11) ->  | AV14: =IF(AU14=0,0,(AU14*((LOG(AU14))/LOG(2)))) -> 
A15: 21 | B15: 961 | C15: 11 | D15: 974 | E15: 11 | F15: 980 | K15: 0 | L15: 211 | P15: =SUM(P7:P14) -> 1 | Q15: =-SUM(Q7:Q14) -> 0.8811672718 | V15: =SUM(V7:V14) -> 1 | W15: =-SUM(W7:W14) -> 0 | AA15: =SUM(AA7:AA14) -> 1 | AB15: =-SUM(AB7:AB14) -> 0 | AF15: =SUM(AF7:AF14) ->  | AG15: =-SUM(AG7:AG14) ->  | AK15: =SUM(AK7:AK14) -> 1 | AL15: =-SUM(AL7:AL14) -> 1 | AP15: =SUM(AP7:AP14) ->  | AQ15: =-SUM(AQ7:AQ14) ->  | AU15: =SUM(AU7:AU14) ->  | AV15: =-SUM(AV7:AV14) -> 
A16: 21 | B16: 1081 | C16: 11 | D16: 1092 | E16: 11 | F16: 1097 | K16: 0 | L16: 211 | P16: U= | Q16: =Q15/(LOG(Q4)/LOG(2)) -> 0.1577749666 | V16: U1= | W16: =W15/(LOG(W4)/LOG(2)) -> 0 | AA16: U2= | AB16: =AB15/(LOG(AB4)/LOG(2)) -> 0 | AF16: U3= | AG16: =AG15/(LOG(AG4)/LOG(2)) ->  | AK16: U4= | AL16: =AL15/(LOG(AL4)/LOG(2)) -> 0.3333333333 | AP16: U5= | AQ16: =AQ15/(LOG(AQ4)/LOG(2)) ->  | AU16: U6= | AV16: =AV15/(LOG(AV4)/LOG(2)) -> 
A17: 21 | B17: 1188 | C17: 11 | D17: 1199 | E17: 11 | F17: 1205 | K17: 0 | L17: 211
A18: 12 | B18: 1296 | C18: 24 | D18: 1307 | E18: 13 | F18: 1316 | K18: 0 | L18: 121
A19: 21 | B19: 1410 | C19: 11 | D19: 1435 | E19: 11 | F19: 1442 | K19: 0 | L19: 211 | N19: Total Target Seq
A20: 21 | B20: 1540 | C20: 11 | D20: 1551 | E20: 11 | F20: 1557 | K20: 0 | L20: 211 | N20: =COUNTIF(L7:L54,G3) -> 39 | P20: 8 | Q20: 8 | R20: 8 | S20: 8 | T20: 8 | U20: 8
A21: 21 | B21: 1651 | C21: 11 | D21: 1658 | E21: 11 | F21: 1664 | K21: 0 | L21: 211 | P21: % of reinforcement given in 6 equal intervals based on number of trials
A22: 21 | B22: 1754 | C22: 11 | D22: 1775 | E22: 11 | F22: 1781 | K22: 0 | L22: 211 | P22: %_1 | Q22: %_2 | R22: %_3 | S22: %_4 | T22: %_5 | U22: %_6
A23: 21 | B23: 1873 | C23: 11 | D23: 1881 | E23: 11 | F23: 1887 | K23: 0 | L23: 211 | O23: target sequence | P23: =$G$3 -> 211 | Q23: =$G$3 -> 211 | R23: =$G$3 -> 211 | S23: =$G$3 -> 211 | T23: =$G$3 -> 211 | U23: =$G$3 -> 211
A24: 21 | B24: 1986 | C24: 11 | D24: 1999 | E24: 11 | F24: 2005 | K24: 0 | L24: 211 | O24: total reinforcement | P24: =U11 -> 2 | Q24: =Z11 -> 7 | R24: =AE11 -> 8 | S24: =AJ11 -> 6 | T24: =AO11 -> 8 | U24: =AT11 -> 8
A25: 21 | B25: 2100 | C25: 11 | D25: 2108 | E25: 11 | F25: 2113 | K25: 0 | L25: 211 | O25: % target
A26: 21 | B26: 2205 | C26: 11 | D26: 2212 | E26: 11 | F26: 2218 | K26: 0 | L26: 211 | O26: CCRF
A27: 21 | B27: 2309 | C27: 11 | D27: 2319 | E27: 11 | F27: 2326 | K27: 0 | L27: 211 | O27: % CCRf
A28: 21 | B28: 2418 | C28: 11 | D28: 2425 | E28: 11 | F28: 2431 | K28: 0 | L28: 211 | O28: average response rate | P28: =F14/P20 -> 107.5 | Q28: =(F22-F14)/Q20 -> 115.125 | R28: =(F30-F22)/R20 -> 108.25 | S28: =(F38-F30)/S20 -> 115.375 | T28: =(F46-F38)/T20 -> 112.875 | U28: =(F54-F46)/U20 -> 107.625
A29: 21 | B29: 2525 | C29: 11 | D29: 2538 | E29: 11 | F29: 2545 | K29: 0 | L29: 211
A30: 21 | B30: 2635 | C30: 11 | D30: 2643 | E30: 11 | F30: 2647 | K30: 0 | L30: 211
A31: 21 | B31: 2744 | C31: 11 | D31: 2769 | E31: 11 | F31: 2775 | K31: 0 | L31: 211
A32: 12 | B32: 2862 | C32: 13 | D32: 2867 | E32: 13 | F32: 2874 | K32: 0 | L32: 111
A33: 21 | B33: 2972 | C33: 11 | D33: 2991 | E33: 11 | F33: 2997 | K33: 0 | L33: 211
A34: 21 | B34: 3090 | C34: 11 | D34: 3112 | E34: 11 | F34: 3119 | K34: 0 | L34: 211
A35: 21 | B35: 3211 | C35: 11 | D35: 3233 | E35: 11 | F35: 3239 | K35: 0 | L35: 211
A36: 21 | B36: 3329 | C36: 11 | D36: 3341 | E36: 11 | F36: 3347 | K36: 0 | L36: 211
A37: 21 | B37: 3440 | C37: 22 | D37: 3448 | E37: 13 | F37: 3456 | K37: 0 | L37: 221
A38: 21 | B38: 3553 | C38: 11 | D38: 3561 | E38: 11 | F38: 3570 | K38: 0 | L38: 211
A39: 21 | B39: 3661 | C39: 11 | D39: 3671 | E39: 11 | F39: 3677 | K39: 0 | L39: 211
A40: 21 | B40: 3774 | C40: 11 | D40: 3785 | E40: 11 | F40: 3791 | K40: 0 | L40: 211
A41: 21 | B41: 3888 | C41: 11 | D41: 3911 | E41: 11 | F41: 3917 | K41: 0 | L41: 211
A42: 21 | B42: 4010 | C42: 11 | D42: 4018 | E42: 11 | F42: 4024 | K42: 0 | L42: 211
A43: 21 | B43: 4120 | C43: 11 | D43: 4127 | E43: 11 | F43: 4133 | K43: 0 | L43: 211
A44: 21 | B44: 4224 | C44: 11 | D44: 4231 | E44: 11 | F44: 4250 | K44: 0 | L44: 211
A45: 21 | B45: 4343 | C45: 11 | D45: 4355 | E45: 11 | F45: 4361 | K45: 0 | L45: 211
A46: 21 | B46: 4455 | C46: 11 | D46: 4462 | E46: 11 | F46: 4473 | K46: 0 | L46: 211
A47: 21 | B47: 4567 | C47: 11 | D47: 4575 | E47: 11 | F47: 4580 | K47: 0 | L47: 211
A48: 21 | B48: 4672 | C48: 11 | D48: 4679 | E48: 11 | F48: 4684 | K48: 0 | L48: 211
A49: 21 | B49: 4774 | C49: 11 | D49: 4781 | E49: 11 | F49: 4787 | K49: 0 | L49: 211
A50: 21 | B50: 4879 | C50: 11 | D50: 4890 | E50: 11 | F50: 4896 | K50: 0 | L50: 211
A51: 21 | B51: 4991 | C51: 11 | D51: 4999 | E51: 11 | F51: 5005 | K51: 0 | L51: 211
A52: 21 | B52: 5093 | C52: 11 | D52: 5100 | E52: 11 | F52: 5106 | K52: 0 | L52: 211
A53: 21 | B53: 5200 | C53: 11 | D53: 5213 | E53: 11 | F53: 5220 | K53: 0 | L53: 211
A54: 21 | B54: 5311 | C54: 11 | D54: 5322 | E54: 11 | F54: 5334 | K54: 1 | L54: 211

Sheet !M505940.183
A1: Report for:!M505940.183
A2: Date: | B2: <date>
A3: Hen: | B3: <hen> | F3: Correct Sequence | G3: =Start!J2 -> 211 | P3: Total Sequences in Data | Q3: =4994-COUNTBLANK(L7:L5000) -> 53 | V3: Total Sequences in Block Data | W3: =COUNTA(L7:L15) -> 9 | AA3: Total Sequences in Block Data | AB3: =COUNTA(L16:L24) -> 9 | AF3: Total Sequences in Block Data | AG3: =COUNTA(L25:L32) -> 8 | AK3: Total Sequences in Block Data | AL3: =COUNTA(L33:L41) -> 9 | AP3: Total Sequences in Block Data | AQ3: =COUNTA(L42:L50) -> 9 | AU3: Total Sequences in Block Data | AV3: =COUNTA(L51:L59) -> 9
P4: Total Sequences in Summary | Q4: =SUM(O7:O14) -> 53 | V4: Total Sequences in Block Summary | W4: =SUM(U7:U14) -> 9 | AA4: Total Sequences in Block Summary | AB4: =SUM(Z7:Z14) -> 9 | AF4: Total Sequences in Block Summary | AG4: =SUM(AE7:AE14) -> 8 | AK4: Total Sequences in Block Summary | AL4: =SUM(AJ7:AJ14) -> 9 | AP4: Total Sequences in Block Summary | AQ4: =SUM(AO7:AO14) -> 9 | AU4: Total Sequences in Block Summary | AV4: =SUM(AT7:AT14) -> 9
T5: Block 1 | Y5: Block 2 | AD5: Block 3 | AI5: Block 4 | AN5: Block 5 | AS5: Block 6
A6: Sequence Component 1 | B6: Time 1 | C6: Sequence Component 2 | D6: Time 2 | E6: Sequence Component 3 | F6: Time 3 | G6: Sequence Component 4 | H6: Time 4 | I6: Sequence Component 5 | J6: Time 5 | K6: Correct? 0=No 1=Yes | L6: Sequence | N6: Frequency | P6: Relative Frequency | Q6: Variability | T6: Frequency | V6: Relative Frequency | W6: Variability | Y6: Frequency | AA6: Relative Frequency | AB6: Variability | AD6: Frequency | AF6: Relative Frequency | AG6: Variability | AI6: Frequency | AK6: Relative Frequency | AL6: Variability | AN6: Frequency | AP6: Relative Frequency | AQ6: Variability | AS6: Frequency | AU6: Relative Frequency | AV6: Variability
A7: 12 | B7: 9 | C7: 13 | D7: 16 | E7: 13 | F7: 24 | K7: 0 | L7: 111 | N7: 111 | O7: =COUNTIF($L$7:$L$500,N7) -> 13 | P7: =O7/$Q$4 -> 0.2452830189 | Q7: =IF(P7=0,0,(P7*((LOG(P7))/LOG(2)))) -> -0.4973065957 | T7: =N7 -> 111 | U7: =COUNTIF(L7:L15,T7) -> 2 | V7: =U7/(W4-U11) -> 1 | W7: =IF(V7=0,0,(V7*((LOG(V7))/LOG(2)))) -> 0 | Y7: =N7 -> 111 | Z7: =COUNTIF(L16:L24,Y7) -> 1 | AA7: =Z7/(AB4-Z11) -> 1 | AB7: =IF(AA7=0,0,(AA7*((LOG(AA7))/LOG(2)))) -> 0 | AD7: =N7 -> 111 | AE7: =COUNTIF(L25:L32,AD7) -> 5 | AF7: =AE7/(AG4-AE11) -> 1 | AG7: =IF(AF7=0,0,(AF7*((LOG(AF7))/LOG(2)))) -> 0 | AI7: =N7 -> 111 | AJ7: =COUNTIF(L33:L41,AI7) -> 1 | AK7: =AJ7/(AL4-AJ11) -> 1 | AL7: =IF(AK7=0,0,(AK7*((LOG(AK7))/LOG(2)))) -> 0 | AN7: =N7 -> 111 | AO7: =COUNTIF(L42:L50,AN7) -> 3 | AP7: =AO7/(AQ4-AO11) -> 1 | AQ7: =IF(AP7=0,0,(AP7*((LOG(AP7))/LOG(2)))) -> 0 | AS7: =N7 -> 111 | AT7: =COUNTIF(L51:L59,AS7) -> 1 | AU7: =AT7/(AV4-AT11) -> 1 | AV7: =IF(AU7=0,0,(AU7*((LOG(AU7))/LOG(2)))) -> 0
A8: 21 | B8: 122 | C8: 11 | D8: 134 | E8: 11 | F8: 142 | K8: 0 | L8: 211 | N8: 112 | O8: =COUNTIF($L$7:$L$500,N8) -> 0 | P8: =O8/$Q$4 -> 0 | Q8: =IF(P8=0,0,(P8*((LOG(P8))/LOG(2)))) -> 0 | T8: =N8 -> 112 | U8: =COUNTIF(L7:L15,T8) -> 0 | V8: =U8/(W4-U11) -> 0 | W8: =IF(V8=0,0,(V8*((LOG(V8))/LOG(2)))) -> 0 | Y8: =N8 -> 112 | Z8: =COUNTIF(L16:L24,Y8) -> 0 | AA8: =Z8/(AB4-Z11) -> 0 | AB8: =IF(AA8=0,0,(AA8*((LOG(AA8))/LOG(2)))) -> 0 | AD8: =N8 -> 112 | AE8: =COUNTIF(L25:L32,AD8) -> 0 | AF8: =AE8/(AG4-AE11) -> 0 | AG8: =IF(AF8=0,0,(AF8*((LOG(AF8))/LOG(2)))) -> 0 | AI8: =N8 -> 112 | AJ8: =COUNTIF(L33:L41,AI8) -> 0 | AK8: =AJ8/(AL4-AJ11) -> 0 | AL8: =IF(AK8=0,0,(AK8*((LOG(AK8))/LOG(2)))) -> 0 | AN8: =N8 -> 112 | AO8: =COUNTIF(L42:L50,AN8) -> 0 | AP8: =AO8/(AQ4-AO11) -> 0 | AQ8: =IF(AP8=0,0,(AP8*((LOG(AP8))/LOG(2)))) -> 0 | AS8: =N8 -> 112 | AT8: =COUNTIF(L51:L59,AS8) -> 0 | AU8: =AT8/(AV4-AT11) -> 0 | AV8: =IF(AU8=0,0,(AU8*((LOG(AU8))/LOG(2)))) -> 0
A9: 21 | B9: 235 | C9: 11 | D9: 246 | E9: 11 | F9: 253 | K9: 0 | L9: 211 | N9: 121 | O9: =COUNTIF($L$7:$L$500,N9) -> 0 | P9: =O9/$Q$4 -> 0 | Q9: =IF(P9=0,0,(P9*((LOG(P9))/LOG(2)))) -> 0 | T9: =N9 -> 121 | U9: =COUNTIF(L7:L15,T9) -> 0 | V9: =U9/(W4-U11) -> 0 | W9: =IF(V9=0,0,(V9*((LOG(V9))/LOG(2)))) -> 0 | Y9: =N9 -> 121 | Z9: =COUNTIF(L16:L24,Y9) -> 0 | AA9: =Z9/(AB4-Z11) -> 0 | AB9: =IF(AA9=0,0,(AA9*((LOG(AA9))/LOG(2)))) -> 0 | AD9: =N9 -> 121 | AE9: =COUNTIF(L25:L32,AD9) -> 0 | AF9: =AE9/(AG4-AE11) -> 0 | AG9: =IF(AF9=0,0,(AF9*((LOG(AF9))/LOG(2)))) -> 0 | AI9: =N9 -> 121 | AJ9: =COUNTIF(L33:L41,AI9) -> 0 | AK9: =AJ9/(AL4-AJ11) -> 0 | AL9: =IF(AK9=0,0,(AK9*((LOG(AK9))/LOG(2)))) -> 0 | AN9: =N9 -> 121 | AO9: =COUNTIF(L42:L50,AN9) -> 0 | AP9: =AO9/(AQ4-AO11) -> 0 | AQ9: =IF(AP9=0,0,(AP9*((LOG(AP9))/LOG(2)))) -> 0 | AS9: =N9 -> 121 | AT9: =COUNTIF(L51:L59,AS9) -> 0 | AU9: =AT9/(AV4-AT11) -> 0 | AV9: =IF(AU9=0,0,(AU9*((LOG(AU9))/LOG(2)))) -> 0
A10: 21 | B10: 344 | C10: 11 | D10: 352 | E10: 11 | F10: 357 | K10: 0 | L10: 211 | N10: 122 | O10: =COUNTIF($L$7:$L$500,N10) -> 0 | P10: =O10/$Q$4 -> 0 | Q10: =IF(P10=0,0,(P10*((LOG(P10))/LOG(2)))) -> 0 | T10: =N10 -> 122 | U10: =COUNTIF(L7:L15,T10) -> 0 | V10: =U10/(W4-U11) -> 0 | W10: =IF(V10=0,0,(V10*((LOG(V10))/LOG(2)))) -> 0 | Y10: =N10 -> 122 | Z10: =COUNTIF(L16:L24,Y10) -> 0 | AA10: =Z10/(AB4-Z11) -> 0 | AB10: =IF(AA10=0,0,(AA10*((LOG(AA10))/LOG(2)))) -> 0 | AD10: =N10 -> 122 | AE10: =COUNTIF(L25:L32,AD10) -> 0 | AF10: =AE10/(AG4-AE11) -> 0 | AG10: =IF(AF10=0,0,(AF10*((LOG(AF10))/LOG(2)))) -> 0 | AI10: =N10 -> 122 | AJ10: =COUNTIF(L33:L41,AI10) -> 0 | AK10: =AJ10/(AL4-AJ11) -> 0 | AL10: =IF(AK10=0,0,(AK10*((LOG(AK10))/LOG(2)))) -> 0 | AN10: =N10 -> 122 | AO10: =COUNTIF(L42:L50,AN10) -> 0 | AP10: =AO10/(AQ4-AO11) -> 0 | AQ10: =IF(AP10=0,0,(AP10*((LOG(AP10))/LOG(2)))) -> 0 | AS10: =N10 -> 122 | AT10: =COUNTIF(L51:L59,AS10) -> 0 | AU10: =AT10/(AV4-AT11) -> 0 | AV10: =IF(AU10=0,0,(AU10*((LOG(AU10))/LOG(2)))) -> 0
A11: 21 | B11: 450 | C11: 11 | D11: 458 | E11: 11 | F11: 463 | K11: 0 | L11: 211 | N11: 211 | O11: =COUNTIF($L$7:$L$500,N11) -> 40 | P11: =O11/$Q$4 -> 0.7547169811 | Q11: =IF(P11=0,0,(P11*((LOG(P11))/LOG(2)))) -> -0.3064093281 | T11: =N11 -> 211 | U11: =COUNTIF(L7:L15,T11) -> 7 | Y11: =N11 -> 211 | Z11: =COUNTIF(L16:L24,Y11) -> 8 | AD11: =N11 -> 211 | AE11: =COUNTIF(L25:L32,AD11) -> 3 | AI11: =N11 -> 211 | AJ11: =COUNTIF(L33:L41,AI11) -> 8 | AN11: =N11 -> 211 | AO11: =COUNTIF(L42:L50,AN11) -> 6 | AS11: =N11 -> 211 | AT11: =COUNTIF(L51:L59,AS11) -> 8
A12: 21 | B12: 555 | C12: 11 | D12: 566 | E12: 11 | F12: 571 | K12: 0 | L12: 211 | N12: 212 | O12: =COUNTIF($L$7:$L$500,N12) -> 0 | P12: =O12/$Q$4 -> 0 | Q12: =IF(P12=0,0,(P12*((LOG(P12))/LOG(2)))) -> 0 | T12: =N12 -> 212 | U12: =COUNTIF(L7:L15,T12) -> 0 | V12: =U12/(W4-U11) -> 0 | W12: =IF(V12=0,0,(V12*((LOG(V12))/LOG(2)))) -> 0 | Y12: =N12 -> 212 | Z12: =COUNTIF(L16:L24,Y12) -> 0 | AA12: =Z12/(AB4-Z11) -> 0 | AB12: =IF(AA12=0,0,(AA12*((LOG(AA12))/LOG(2)))) -> 0 | AD12: =N12 -> 212 | AE12: =COUNTIF(L25:L32,AD12) -> 0 | AF12: =AE12/(AG4-AE11) -> 0 | AG12: =IF(AF12=0,0,(AF12*((LOG(AF12))/LOG(2)))) -> 0 | AI12: =N12 -> 212 | AJ12: =COUNTIF(L33:L41,AI12) -> 0 | AK12: =AJ12/(AL4-AJ11) -> 0 | AL12: =IF(AK12=0,0,(AK12*((LOG(AK12))/LOG(2)))) -> 0 | AN12: =N12 -> 212 | AO12: =COUNTIF(L42:L50,AN12) -> 0 | AP12: =AO12/(AQ4-AO11) -> 0 | AQ12: =IF(AP12=0,0,(AP12*((LOG(AP12))/LOG(2)))) -> 0 | AS12: =N12 -> 212 | AT12: =COUNTIF(L51:L59,AS12) -> 0 | AU12: =AT12/(AV4-AT11) -> 0 | AV12: =IF(AU12=0,0,(AU12*((LOG(AU12))/LOG(2)))) -> 0
A13: 12 | B13: 668 | C13: 13 | D13: 675 | E13: 13 | F13: 681 | K13: 0 | L13: 111 | N13: 221 | O13: =COUNTIF($L$7:$L$500,N13) -> 0 | P13: =O13/$Q$4 -> 0 | Q13: =IF(P13=0,0,(P13*((LOG(P13))/LOG(2)))) -> 0 | T13: =N13 -> 221 | U13: =COUNTIF(L7:L15,T13) -> 0 | V13: =U13/(W4-U11) -> 0 | W13: =IF(V13=0,0,(V13*((LOG(V13))/LOG(2)))) -> 0 | Y13: =N13 -> 221 | Z13: =COUNTIF(L16:L24,Y13) -> 0 | AA13: =Z13/(AB4-Z11) -> 0 | AB13: =IF(AA13=0,0,(AA13*((LOG(AA13))/LOG(2)))) -> 0 | AD13: =N13 -> 221 | AE13: =COUNTIF(L25:L32,AD13) -> 0 | AF13: =AE13/(AG4-AE11) -> 0 | AG13: =IF(AF13=0,0,(AF13*((LOG(AF13))/LOG(2)))) -> 0 | AI13: =N13 -> 221 | AJ13: =COUNTIF(L33:L41,AI13) -> 0 | AK13: =AJ13/(AL4-AJ11) -> 0 | AL13: =IF(AK13=0,0,(AK13*((LOG(AK13))/LOG(2)))) -> 0 | AN13: =N13 -> 221 | AO13: =COUNTIF(L42:L50,AN13) -> 0 | AP13: =AO13/(AQ4-AO11) -> 0 | AQ13: =IF(AP13=0,0,(AP13*((LOG(AP13))/LOG(2)))) -> 0 | AS13: =N13 -> 221 | AT13: =COUNTIF(L51:L59,AS13) -> 0 | AU13: =AT13/(AV4-AT11) -> 0 | AV13: =IF(AU13=0,0,(AU13*((LOG(AU13))/LOG(2)))) -> 0
A14: 21 | B14: 781 | C14: 11 | D14: 792 | E14: 11 | F14: 801 | K14: 0 | L14: 211 | N14: 222 | O14: =COUNTIF($L$7:$L$500,N14) -> 0 | P14: =O14/$Q$4 -> 0 | Q14: =IF(P14=0,0,(P14*((LOG(P14))/LOG(2)))) -> 0 | T14: =N14 -> 222 | U14: =COUNTIF(L7:L15,T14) -> 0 | V14: =U14/(W4-U11) -> 0 | W14: =IF(V14=0,0,(V14*((LOG(V14))/LOG(2)))) -> 0 | Y14: =N14 -> 222 | Z14: =COUNTIF(L16:L24,Y14) -> 0 | AA14: =Z14/(AB4-Z11) -> 0 | AB14: =IF(AA14=0,0,(AA14*((LOG(AA14))/LOG(2)))) -> 0 | AD14: =N14 -> 222 | AE14: =COUNTIF(L25:L32,AD14) -> 0 | AF14: =AE14/(AG4-AE11) -> 0 | AG14: =IF(AF14=0,0,(AF14*((LOG(AF14))/LOG(2)))) -> 0 | AI14: =N14 -> 222 | AJ14: =COUNTIF(L33:L41,AI14) -> 0 | AK14: =AJ14/(AL4-AJ11) -> 0 | AL14: =IF(AK14=0,0,(AK14*((LOG(AK14))/LOG(2)))) -> 0 | AN14: =N14 -> 222 | AO14: =COUNTIF(L42:L50,AN14) -> 0 | AP14: =AO14/(AQ4-AO11) -> 0 | AQ14: =IF(AP14=0,0,(AP14*((LOG(AP14))/LOG(2)))) -> 0 | AS14: =N14 -> 222 | AT14: =COUNTIF(L51:L59,AS14) -> 0 | AU14: =AT14/(AV4-AT11) -> 0 | AV14: =IF(AU14=0,0,(AU14*((LOG(AU14))/LOG(2)))) -> 0
A15: 21 | B15: 892 | C15: 11 | D15: 903 | E15: 11 | F15: 910 | K15: 0 | L15: 211 | P15: =SUM(P7:P14) -> 1 | Q15: =-SUM(Q7:Q14) -> 0.8037159238 | V15: =SUM(V7:V14) -> 1 | W15: =-SUM(W7:W14) -> 0 | AA15: =SUM(AA7:AA14) -> 1 | AB15: =-SUM(AB7:AB14) -> 0 | AF15: =SUM(AF7:AF14) -> 1 | AG15: =-SUM(AG7:AG14) -> 0 | AK15: =SUM(AK7:AK14) -> 1 | AL15: =-SUM(AL7:AL14) -> 0 | AP15: =SUM(AP7:AP14) -> 1 | AQ15: =-SUM(AQ7:AQ14) -> 0 | AU15: =SUM(AU7:AU14) -> 1 | AV15: =-SUM(AV7:AV14) -> 0
A16: 21 | B16: 1002 | C16: 11 | D16: 1013 | E16: 11 | F16: 1017 | K16: 0 | L16: 211 | P16: U= | Q16: =Q15/(LOG(Q4)/LOG(2)) -> 0.1403154828 | V16: U1= | W16: =W15/(LOG(W4)/LOG(2)) -> 0 | AA16: U2= | AB16: =AB15/(LOG(AB4)/LOG(2)) -> 0 | AF16: U3= | AG16: =AG15/(LOG(AG4)/LOG(2)) -> 0 | AK16: U4= | AL16: =AL15/(LOG(AL4)/LOG(2)) -> 0 | AP16: U5= | AQ16: =AQ15/(LOG(AQ4)/LOG(2)) -> 0 | AU16: U6= | AV16: =AV15/(LOG(AV4)/LOG(2)) -> 0
A17: 21 | B17: 1111 | C17: 11 | D17: 1122 | E17: 11 | F17: 1127 | K17: 0 | L17: 211
A18: 21 | B18: 1219 | C18: 11 | D18: 1238 | E18: 11 | F18: 1245 | K18: 0 | L18: 211
A19: 21 | B19: 1345 | C19: 11 | D19: 1357 | E19: 11 | F19: 1363 | K19: 0 | L19: 211 | N19: Total Target Seq
A20: 21 | B20: 1457 | C20: 11 | D20: 1464 | E20: 11 | F20: 1470 | K20: 0 | L20: 211 | N20: =COUNTIF(L7:L59,G3) -> 40 | P20: 9 | Q20: 9 | R20: 8 | S20: 9 | T20: 9 | U20: 9
A21: 21 | B21: 1561 | C21: 11 | D21: 1572 | E21: 11 | F21: 1577 | K21: 0 | L21: 211 | P21: % of reinforcement given in 6 equal intervals based on number of trials
A22: 12 | B22: 1674 | C22: 13 | D22: 1680 | E22: 13 | F22: 1686 | K22: 0 | L22: 111 | P22: %_1 | Q22: %_2 | R22: %_3 | S22: %_4 | T22: %_5 | U22: %_6
A23: 21 | B23: 1787 | C23: 11 | D23: 1798 | E23: 11 | F23: 1805 | K23: 0 | L23: 211 | O23: target sequence | P23: =$G$3 -> 211 | Q23: =$G$3 -> 211 | R23: =$G$3 -> 211 | S23: =$G$3 -> 211 | T23: =$G$3 -> 211 | U23: =$G$3 -> 211
A24: 21 | B24: 1896 | C24: 11 | D24: 1907 | E24: 11 | F24: 1920 | K24: 0 | L24: 211 | O24: total reinforcement | P24: =U11 -> 7 | Q24: =Z11 -> 8 | R24: =AE11 -> 3 | S24: =AJ11 -> 8 | T24: =AO11 -> 6 | U24: =AT11 -> 8
A25: 12 | B25: 2036 | C25: 13 | D25: 2042 | E25: 13 | F25: 2048 | K25: 0 | L25: 111 | O25: % target
A26: 21 | B26: 2149 | C26: 11 | D26: 2157 | E26: 11 | F26: 2161 | K26: 0 | L26: 211 | O26: CCRF
A27: 12 | B27: 2251 | C27: 13 | D27: 2257 | E27: 13 | F27: 2263 | K27: 0 | L27: 111 | O27: % CCRf
A28: 12 | B28: 2367 | C28: 13 | D28: 2371 | E28: 13 | F28: 2377 | K28: 0 | L28: 111 | O28: average response rate | P28: =F15/P20 -> 101.1111111 | Q28: =(F24-F15)/Q20 -> 112.2222222 | R28: =(F32-F24)/R20 -> 117.75 | S28: =(F41-F32)/S20 -> 111.8888889 | T28: =(F50-F41)/T20 -> 110.8888889 | U28: =(F59-F50)/U20 -> 111.2222222
A29: 21 | B29: 2477 | C29: 11 | D29: 2485 | E29: 11 | F29: 2519 | K29: 0 | L29: 211
A30: 12 | B30: 2620 | C30: 13 | D30: 2632 | E30: 13 | F30: 2638 | K30: 0 | L30: 111
A31: 21 | B31: 2738 | C31: 11 | D31: 2746 | E31: 11 | F31: 2750 | K31: 0 | L31: 211
A32: 12 | B32: 2850 | C32: 13 | D32: 2856 | E32: 13 | F32: 2862 | K32: 0 | L32: 111
A33: 12 | B33: 2965 | C33: 13 | D33: 2980 | E33: 13 | F33: 2986 | K33: 0 | L33: 111
A34: 21 | B34: 3084 | C34: 11 | D34: 3097 | E34: 11 | F34: 3103 | K34: 0 | L34: 211
A35: 21 | B35: 3200 | C35: 11 | D35: 3208 | E35: 11 | F35: 3212 | K35: 0 | L35: 211
A36: 21 | B36: 3312 | C36: 11 | D36: 3324 | E36: 11 | F36: 3330 | K36: 0 | L36: 211
A37: 21 | B37: 3422 | C37: 11 | D37: 3429 | E37: 11 | F37: 3433 | K37: 0 | L37: 211
A38: 21 | B38: 3524 | C38: 11 | D38: 3531 | E38: 11 | F38: 3537 | K38: 0 | L38: 211
A39: 21 | B39: 3629 | C39: 11 | D39: 3636 | E39: 11 | F39: 3641 | K39: 0 | L39: 211
A40: 21 | B40: 3732 | C40: 11 | D40: 3751 | E40: 11 | F40: 3758 | K40: 0 | L40: 211
A41: 21 | B41: 3853 | C41: 11 | D41: 3864 | E41: 11 | F41: 3869 | K41: 0 | L41: 211
A42: 21 | B42: 3961 | C42: 11 | D42: 3969 | E42: 11 | F42: 3972 | K42: 0 | L42: 211
A43: 21 | B43: 4069 | C43: 11 | D43: 4080 | E43: 11 | F43: 4085 | K43: 0 | L43: 211
A44: 21 | B44: 4176 | C44: 11 | D44: 4186 | E44: 11 | F44: 4189 | K44: 0 | L44: 211
A45: 12 | B45: 4284 | C45: 13 | D45: 4296 | E45: 13 | F45: 4307 | K45: 0 | L45: 111
A46: 21 | B46: 4405 | C46: 11 | D46: 4415 | E46: 11 | F46: 4419 | K46: 0 | L46: 211
A47: 12 | B47: 4527 | C47: 13 | D47: 4533 | E47: 13 | F47: 4539 | K47: 0 | L47: 111
A48: 21 | B48: 4637 | C48: 11 | D48: 4645 | E48: 11 | F48: 4649 | K48: 0 | L48: 211
A49: 12 | B49: 4743 | C49: 13 | D49: 4748 | E49: 13 | F49: 4754 | K49: 0 | L49: 111
A50: 21 | B50: 4853 | C50: 11 | D50: 4861 | E50: 11 | F50: 4867 | K50: 0 | L50: 211
A51: 21 | B51: 4958 | C51: 11 | D51: 4966 | E51: 11 | F51: 4969 | K51: 0 | L51: 211
A52: 21 | B52: 5059 | C52: 11 | D52: 5067 | E52: 11 | F52: 5070 | K52: 0 | L52: 211
A53: 21 | B53: 5162 | C53: 11 | D53: 5171 | E53: 11 | F53: 5177 | K53: 0 | L53: 211
A54: 21 | B54: 5268 | C54: 11 | D54: 5279 | E54: 11 | F54: 5285 | K54: 0 | L54: 211
A55: 21 | B55: 5372 | C55: 11 | D55: 5380 | E55: 11 | F55: 5388 | K55: 0 | L55: 211
A56: 21 | B56: 5478 | C56: 11 | D56: 5488 | E56: 11 | F56: 5494 | K56: 0 | L56: 211
A57: 21 | B57: 5583 | C57: 11 | D57: 5591 | E57: 11 | F57: 5594 | K57: 0 | L57: 211
A58: 12 | B58: 5690 | C58: 13 | D58: 5696 | E58: 13 | F58: 5701 | K58: 0 | L58: 111
A59: 21 | B59: 5835 | C59: 11 | D59: 5862 | E59: 11 | F59: 5868 | K59: 1 | L59: 211

Sheet !M506810.183
A1: Report for:!M506810.183
A2: Date: | B2: <date>
A3: Hen: | B3: <hen> | F3: Correct Sequence | G3: =Start!J2 -> 211 | P3: Total Sequences in Data | Q3: =4994-COUNTBLANK(L7:L5000) -> 49 | V3: Total Sequences in Block Data | W3: =COUNTA(L7:L14) -> 8 | AA3: Total Sequences in Block Data | AB3: =COUNTA(L15:L22) -> 8 | AF3: Total Sequences in Block Data | AG3: =COUNTA(L23:L31) -> 9 | AK3: Total Sequences in Block Data | AL3: =COUNTA(L32:L39) -> 8 | AP3: Total Sequences in Block Data | AQ3: =COUNTA(L40:L47) -> 8 | AU3: Total Sequences in Block Data | AV3: =COUNTA(L48:L55) -> 8
P4: Total Sequences in Summary | Q4: =SUM(O7:O14) -> 49 | V4: Total Sequences in Block Summary | W4: =SUM(U7:U14) -> 8 | AA4: Total Sequences in Block Summary | AB4: =SUM(Z7:Z14) -> 8 | AF4: Total Sequences in Block Summary | AG4: =SUM(AE7:AE14) -> 9 | AK4: Total Sequences in Block Summary | AL4: =SUM(AJ7:AJ14) -> 8 | AP4: Total Sequences in Block Summary | AQ4: =SUM(AO7:AO14) -> 8 | AU4: Total Sequences in Block Summary | AV4: =SUM(AT7:AT14) -> 8
T5: Block 1 | Y5: Block 2 | AD5: Block 3 | AI5: Block 4 | AN5: Block 5 | AS5: Block 6
A6: Sequence Component 1 | B6: Time 1 | C6: Sequence Component 2 | D6: Time 2 | E6: Sequence Component 3 | F6: Time 3 | G6: Sequence Component 4 | H6: Time 4 | I6: Sequence Component 5 | J6: Time 5 | K6: Correct? 0=No 1=Yes | L6: Sequence | N6: Frequency | P6: Relative Frequency | Q6: Variability | T6: Frequency | V6: Relative Frequency | W6: Variability | Y6: Frequency | AA6: Relative Frequency | AB6: Variability | AD6: Frequency | AF6: Relative Frequency | AG6: Variability | AI6: Frequency | AK6: Relative Frequency | AL6: Variability | AN6: Frequency | AP6: Relative Frequency | AQ6: Variability | AS6: Frequency | AU6: Relative Frequency | AV6: Variability
A7: 21 | B7: 12 | C7: 11 | D7: 29 | E7: 11 | F7: 38 | K7: 0 | L7: 211 | N7: 111 | O7: =COUNTIF($L$7:$L$500,N7) -> 10 | P7: =O7/$Q$4 -> 0.2040816327 | Q7: =IF(P7=0,0,(P7*((LOG(P7))/LOG(2)))) -> -0.4679146427 | T7: =N7 -> 111 | U7: =COUNTIF(L7:L14,T7) -> 0 | V7: =U7/(W4-U11) ->  | W7: =IF(V7=0,0,(V7*((LOG(V7))/LOG(2)))) ->  | Y7: =N7 -> 111 | Z7: =COUNTIF(L15:L22,Y7) -> 0 | AA7: =Z7/(AB4-Z11) ->  | AB7: =IF(AA7=0,0,(AA7*((LOG(AA7))/LOG(2)))) ->  | AD7: =N7 -> 111 | AE7: =COUNTIF(L23:L31,AD7) -> 3 | AF7: =AE7/(AG4-AE11) -> 1 | AG7: =IF(AF7=0,0,(AF7*((LOG(AF7))/LOG(2)))) -> 0 | AI7: =N7 -> 111 | AJ7: =COUNTIF(L32:L39,AI7) -> 3 | AK7: =AJ7/(AL4-AJ11) -> 1 | AL7: =IF(AK7=0,0,(AK7*((LOG(AK7))/LOG(2)))) -> 0 | AN7: =N7 -> 111 | AO7: =COUNTIF(L40:L47,AN7) -> 2 | AP7: =AO7/(AQ4-AO11) -> 1 | AQ7: =IF(AP7=0,0,(AP7*((LOG(AP7))/LOG(2)))) -> 0 | AS7: =N7 -> 111 | AT7: =COUNTIF(L48:L55,AS7) -> 2 | AU7: =AT7/(AV4-AT11) -> 1 | AV7: =IF(AU7=0,0,(AU7*((LOG(AU7))/LOG(2)))) -> 0
A8: 21 | B8: 140 | C8: 11 | D8: 149 | E8: 11 | F8: 153 | K8: 0 | L8: 211 | N8: 112 | O8: =COUNTIF($L$7:$L$500,N8) -> 0 | P8: =O8/$Q$4 -> 0 | Q8: =IF(P8=0,0,(P8*((LOG(P8))/LOG(2)))) -> 0 | T8: =N8 -> 112 | U8: =COUNTIF(L7:L14,T8) -> 0 | V8: =U8/(W4-U11) ->  | W8: =IF(V8=0,0,(V8*((LOG(V8))/LOG(2)))) ->  | Y8: =N8 -> 112 | Z8: =COUNTIF(L15:L22,Y8) -> 0 | AA8: =Z8/(AB4-Z11) ->  | AB8: =IF(AA8=0,0,(AA8*((LOG(AA8))/LOG(2)))) ->  | AD8: =N8 -> 112 | AE8: =COUNTIF(L23:L31,AD8) -> 0 | AF8: =AE8/(AG4-AE11) -> 0 | AG8: =IF(AF8=0,0,(AF8*((LOG(AF8))/LOG(2)))) -> 0 | AI8: =N8 -> 112 | AJ8: =COUNTIF(L32:L39,AI8) -> 0 | AK8: =AJ8/(AL4-AJ11) -> 0 | AL8: =IF(AK8=0,0,(AK8*((LOG(AK8))/LOG(2)))) -> 0 | AN8: =N8 -> 112 | AO8: =COUNTIF(L40:L47,AN8) -> 0 | AP8: =AO8/(AQ4-AO11) -> 0 | AQ8: =IF(AP8=0,0,(AP8*((LOG(AP8))/LOG(2)))) -> 0 | AS8: =N8 -> 112 | AT8: =COUNTIF(L48:L55,AS8) -> 0 | AU8: =AT8/(AV4-AT11) -> 0 | AV8: =IF(AU8=0,0,(AU8*((LOG(AU8))/LOG(2)))) -> 0
A9: 21 | B9: 253 | C9: 11 | D9: 266 | E9: 11 | F9: 274 | K9: 0 | L9: 211 | N9: 121 | O9: =COUNTIF($L$7:$L$500,N9) -> 0 | P9: =O9/$Q$4 -> 0 | Q9: =IF(P9=0,0,(P9*((LOG(P9))/LOG(2)))) -> 0 | T9: =N9 -> 121 | U9: =COUNTIF(L7:L14,T9) -> 0 | V9: =U9/(W4-U11) ->  | W9: =IF(V9=0,0,(V9*((LOG(V9))/LOG(2)))) ->  | Y9: =N9 -> 121 | Z9: =COUNTIF(L15:L22,Y9) -> 0 | AA9: =Z9/(AB4-Z11) ->  | AB9: =IF(AA9=0,0,(AA9*((LOG(AA9))/LOG(2)))) ->  | AD9: =N9 -> 121 | AE9: =COUNTIF(L23:L31,AD9) -> 0 | AF9: =AE9/(AG4-AE11) -> 0 | AG9: =IF(AF9=0,0,(AF9*((LOG(AF9))/LOG(2)))) -> 0 | AI9: =N9 -> 121 | AJ9: =COUNTIF(L32:L39,AI9) -> 0 | AK9: =AJ9/(AL4-AJ11) -> 0 | AL9: =IF(AK9=0,0,(AK9*((LOG(AK9))/LOG(2)))) -> 0 | AN9: =N9 -> 121 | AO9: =COUNTIF(L40:L47,AN9) -> 0 | AP9: =AO9/(AQ4-AO11) -> 0 | AQ9: =IF(AP9=0,0,(AP9*((LOG(AP9))/LOG(2)))) -> 0 | AS9: =N9 -> 121 | AT9: =COUNTIF(L48:L55,AS9) -> 0 | AU9: =AT9/(AV4-AT11) -> 0 | AV9: =IF(AU9=0,0,(AU9*((LOG(AU9))/LOG(2)))) -> 0
A10: 21 | B10: 366 | C10: 11 | D10: 374 | E10: 11 | F10: 378 | K10: 0 | L10: 211 | N10: 122 | O10: =COUNTIF($L$7:$L$500,N10) -> 0 | P10: =O10/$Q$4 -> 0 | Q10: =IF(P10=0,0,(P10*((LOG(P10))/LOG(2)))) -> 0 | T10: =N10 -> 122 | U10: =COUNTIF(L7:L14,T10) -> 0 | V10: =U10/(W4-U11) ->  | W10: =IF(V10=0,0,(V10*((LOG(V10))/LOG(2)))) ->  | Y10: =N10 -> 122 | Z10: =COUNTIF(L15:L22,Y10) -> 0 | AA10: =Z10/(AB4-Z11) ->  | AB10: =IF(AA10=0,0,(AA10*((LOG(AA10))/LOG(2)))) ->  | AD10: =N10 -> 122 | AE10: =COUNTIF(L23:L31,AD10) -> 0 | AF10: =AE10/(AG4-AE11) -> 0 | AG10: =IF(AF10=0,0,(AF10*((LOG(AF10))/LOG(2)))) -> 0 | AI10: =N10 -> 122 | AJ10: =COUNTIF(L32:L39,AI10) -> 0 | AK10: =AJ10/(AL4-AJ11) -> 0 | AL10: =IF(AK10=0,0,(AK10*((LOG(AK10))/LOG(2)))) -> 0 | AN10: =N10 -> 122 | AO10: =COUNTIF(L40:L47,AN10) -> 0 | AP10: =AO10/(AQ4-AO11) -> 0 | AQ10: =IF(AP10=0,0,(AP10*((LOG(AP10))/LOG(2)))) -> 0 | AS10: =N10 -> 122 | AT10: =COUNTIF(L48:L55,AS10) -> 0 | AU10: =AT10/(AV4-AT11) -> 0 | AV10: =IF(AU10=0,0,(AU10*((LOG(AU10))/LOG(2)))) -> 0
A11: 21 | B11: 470 | C11: 11 | D11: 481 | E11: 11 | F11: 487 | K11: 0 | L11: 211 | N11: 211 | O11: =COUNTIF($L$7:$L$500,N11) -> 39 | P11: =O11/$Q$4 -> 0.7959183673 | Q11: =IF(P11=0,0,(P11*((LOG(P11))/LOG(2)))) -> -0.2621019874 | T11: =N11 -> 211 | U11: =COUNTIF(L7:L14,T11) -> 8 | Y11: =N11 -> 211 | Z11: =COUNTIF(L15:L22,Y11) -> 8 | AD11: =N11 -> 211 | AE11: =COUNTIF(L23:L31,AD11) -> 6 | AI11: =N11 -> 211 | AJ11: =COUNTIF(L32:L39,AI11) -> 5 | AN11: =N11 -> 211 | AO11: =COUNTIF(L40:L47,AN11) -> 6 | AS11: =N11 -> 211 | AT11: =COUNTIF(L48:L55,AS11) -> 6
A12: 21 | B12: 578 | C12: 11 | D12: 594 | E12: 11 | F12: 605 | K12: 0 | L12: 211 | N12: 212 | O12: =COUNTIF($L$7:$L$500,N12) -> 0 | P12: =O12/$Q$4 -> 0 | Q12: =IF(P12=0,0,(P12*((LOG(P12))/LOG(2)))) -> 0 | T12: =N12 -> 212 | U12: =COUNTIF(L7:L14,T12) -> 0 | V12: =U12/(W4-U11) ->  | W12: =IF(V12=0,0,(V12*((LOG(V12))/LOG(2)))) ->  | Y12: =N12 -> 212 | Z12: =COUNTIF(L15:L22,Y12) -> 0 | AA12: =Z12/(AB4-Z11) ->  | AB12: =IF(AA12=0,0,(AA12*((LOG(AA12))/LOG(2)))) ->  | AD12: =N12 -> 212 | AE12: =COUNTIF(L23:L31,AD12) -> 0 | AF12: =AE12/(AG4-AE11) -> 0 | AG12: =IF(AF12=0,0,(AF12*((LOG(AF12))/LOG(2)))) -> 0 | AI12: =N12 -> 212 | AJ12: =COUNTIF(L32:L39,AI12) -> 0 | AK12: =AJ12/(AL4-AJ11) -> 0 | AL12: =IF(AK12=0,0,(AK12*((LOG(AK12))/LOG(2)))) -> 0 | AN12: =N12 -> 212 | AO12: =COUNTIF(L40:L47,AN12) -> 0 | AP12: =AO12/(AQ4-AO11) -> 0 | AQ12: =IF(AP12=0,0,(AP12*((LOG(AP12))/LOG(2)))) -> 0 | AS12: =N12 -> 212 | AT12: =COUNTIF(L48:L55,AS12) -> 0 | AU12: =AT12/(AV4-AT11) -> 0 | AV12: =IF(AU12=0,0,(AU12*((LOG(AU12))/LOG(2)))) -> 0
A13: 21 | B13: 702 | C13: 11 | D13: 713 | E13: 11 | F13: 723 | K13: 0 | L13: 211 | N13: 221 | O13: =COUNTIF($L$7:$L$500,N13) -> 0 | P13: =O13/$Q$4 -> 0 | Q13: =IF(P13=0,0,(P13*((LOG(P13))/LOG(2)))) -> 0 | T13: =N13 -> 221 | U13: =COUNTIF(L7:L14,T13) -> 0 | V13: =U13/(W4-U11) ->  | W13: =IF(V13=0,0,(V13*((LOG(V13))/LOG(2)))) ->  | Y13: =N13 -> 221 | Z13: =COUNTIF(L15:L22,Y13) -> 0 | AA13: =Z13/(AB4-Z11) ->  | AB13: =IF(AA13=0,0,(AA13*((LOG(AA13))/LOG(2)))) ->  | AD13: =N13 -> 221 | AE13: =COUNTIF(L23:L31,AD13) -> 0 | AF13: =AE13/(AG4-AE11) -> 0 | AG13: =IF(AF13=0,0,(AF13*((LOG(AF13))/LOG(2)))) -> 0 | AI13: =N13 -> 221 | AJ13: =COUNTIF(L32:L39,AI13) -> 0 | AK13: =AJ13/(AL4-AJ11) -> 0 | AL13: =IF(AK13=0,0,(AK13*((LOG(AK13))/LOG(2)))) -> 0 | AN13: =N13 -> 221 | AO13: =COUNTIF(L40:L47,AN13) -> 0 | AP13: =AO13/(AQ4-AO11) -> 0 | AQ13: =IF(AP13=0,0,(AP13*((LOG(AP13))/LOG(2)))) -> 0 | AS13: =N13 -> 221 | AT13: =COUNTIF(L48:L55,AS13) -> 0 | AU13: =AT13/(AV4-AT11) -> 0 | AV13: =IF(AU13=0,0,(AU13*((LOG(AU13))/LOG(2)))) -> 0
A14: 21 | B14: 810 | C14: 11 | D14: 819 | E14: 11 | F14: 830 | K14: 0 | L14: 211 | N14: 222 | O14: =COUNTIF($L$7:$L$500,N14) -> 0 | P14: =O14/$Q$4 -> 0 | Q14: =IF(P14=0,0,(P14*((LOG(P14))/LOG(2)))) -> 0 | T14: =N14 -> 222 | U14: =COUNTIF(L7:L14,T14) -> 0 | V14: =U14/(W4-U11) ->  | W14: =IF(V14=0,0,(V14*((LOG(V14))/LOG(2)))) ->  | Y14: =N14 -> 222 | Z14: =COUNTIF(L15:L22,Y14) -> 0 | AA14: =Z14/(AB4-Z11) ->  | AB14: =IF(AA14=0,0,(AA14*((LOG(AA14))/LOG(2)))) ->  | AD14: =N14 -> 222 | AE14: =COUNTIF(L23:L31,AD14) -> 0 | AF14: =AE14/(AG4-AE11) -> 0 | AG14: =IF(AF14=0,0,(AF14*((LOG(AF14))/LOG(2)))) -> 0 | AI14: =N14 -> 222 | AJ14: =COUNTIF(L32:L39,AI14) -> 0 | AK14: =AJ14/(AL4-AJ11) -> 0 | AL14: =IF(AK14=0,0,(AK14*((LOG(AK14))/LOG(2)))) -> 0 | AN14: =N14 -> 222 | AO14: =COUNTIF(L40:L47,AN14) -> 0 | AP14: =AO14/(AQ4-AO11) -> 0 | AQ14: =IF(AP14=0,0,(AP14*((LOG(AP14))/LOG(2)))) -> 0 | AS14: =N14 -> 222 | AT14: =COUNTIF(L48:L55,AS14) -> 0 | AU14: =AT14/(AV4-AT11) -> 0 | AV14: =IF(AU14=0,0,(AU14*((LOG(AU14))/LOG(2)))) -> 0
A15: 21 | B15: 930 | C15: 11 | D15: 941 | E15: 11 | F15: 948 | K15: 0 | L15: 211 | P15: =SUM(P7:P14) -> 1 | Q15: =-SUM(Q7:Q14) -> 0.7300166301 | V15: =SUM(V7:V14) ->  | W15: =-SUM(W7:W14) ->  | AA15: =SUM(AA7:AA14) ->  | AB15: =-SUM(AB7:AB14) ->  | AF15: =SUM(AF7:AF14) -> 1 | AG15: =-SUM(AG7:AG14) -> 0 | AK15: =SUM(AK7:AK14) -> 1 | AL15: =-SUM(AL7:AL14) -> 0 | AP15: =SUM(AP7:AP14) -> 1 | AQ15: =-SUM(AQ7:AQ14) -> 0 | AU15: =SUM(AU7:AU14) -> 1 | AV15: =-SUM(AV7:AV14) -> 0
A16: 21 | B16: 1049 | C16: 11 | D16: 1071 | E16: 11 | F16: 1078 | K16: 0 | L16: 211 | P16: U= | Q16: =Q15/(LOG(Q4)/LOG(2)) -> 0.1300185852 | V16: U1= | W16: =W15/(LOG(W4)/LOG(2)) ->  | AA16: U2= | AB16: =AB15/(LOG(AB4)/LOG(2)) ->  | AF16: U3= | AG16: =AG15/(LOG(AG4)/LOG(2)) -> 0 | AK16: U4= | AL16: =AL15/(LOG(AL4)/LOG(2)) -> 0 | AP16: U5= | AQ16: =AQ15/(LOG(AQ4)/LOG(2)) -> 0 | AU16: U6= | AV16: =AV15/(LOG(AV4)/LOG(2)) -> 0
A17: 21 | B17: 1177 | C17: 11 | D17: 1189 | E17: 11 | F17: 1199 | K17: 0 | L17: 211
A18: 21 | B18: 1290 | C18: 11 | D18: 1299 | E18: 11 | F18: 1303 | K18: 0 | L18: 211
A19: 21 | B19: 1398 | C19: 11 | D19: 1408 | E19: 11 | F19: 1415 | K19: 0 | L19: 211 | N19: Total Target Seq
A20: 21 | B20: 1506 | C20: 11 | D20: 1518 | E20: 11 | F20: 1525 | K20: 0 | L20: 211 | N20: =COUNTIF(L7:L55,G3) -> 39 | P20: 8 | Q20: 8 | R20: 9 | S20: 8 | T20: 8 | U20: 8
A21: 21 | B21: 1616 | C21: 11 | D21: 1627 | E21: 11 | F21: 1645 | K21: 0 | L21: 211 | P21: % of reinforcement given in 6 equal intervals based on number of trials
A22: 21 | B22: 1744 | C22: 11 | D22: 1755 | E22: 11 | F22: 1762 | K22: 0 | L22: 211 | P22: %_1 | Q22: %_2 | R22: %_3 | S22: %_4 | T22: %_5 | U22: %_6
A23: 12 | B23: 1867 | C23: 13 | D23: 1873 | E23: 13 | F23: 1880 | K23: 0 | L23: 111 | O23: target sequence | P23: =$G$3 -> 211 | Q23: =$G$3 -> 211 | R23: =$G$3 -> 211 | S23: =$G$3 -> 211 | T23: =$G$3 -> 211 | U23: =$G$3 -> 211
A24: 12 | B24: 2014 | C24: 13 | D24: 2020 | E24: 13 | F24: 2030 | K24: 0 | L24: 111 | O24: total reinforcement | P24: =U11 -> 8 | Q24: =Z11 -> 8 | R24: =AE11 -> 6 | S24: =AJ11 -> 5 | T24: =AO11 -> 6 | U24: =AT11 -> 6
A25: 12 | B25: 2133 | C25: 13 | D25: 2142 | E25: 13 | F25: 2153 | K25: 0 | L25: 111 | O25: % target
A26: 21 | B26: 2252 | C26: 11 | D26: 2260 | E26: 11 | F26: 2265 | K26: 0 | L26: 211 | O26: CCRF
A27: 21 | B27: 2357 | C27: 11 | D27: 2369 | E27: 11 | F27: 2380 | K27: 0 | L27: 211 | O27: % CCRf
A28: 21 | B28: 2483 | C28: 11 | D28: 2494 | E28: 11 | F28: 2498 | K28: 0 | L28: 211 | O28: average response rate | P28: =F14/P20 -> 103.75 | Q28: =(F22-F14)/Q20 -> 116.5 | R28: =(F31-F22)/R20 -> 117.5555556 | S28: =(F39-F31)/S20 -> 119 | T28: =(F47-F39)/T20 -> 112.5 | U28: =(F55-F47)/U20 -> 121.25
A29: 21 | B29: 2595 | C29: 11 | D29: 2606 | E29: 11 | F29: 2614 | K29: 0 | L29: 211
A30: 21 | B30: 2705 | C30: 11 | D30: 2713 | E30: 11 | F30: 2717 | K30: 0 | L30: 211
A31: 21 | B31: 2809 | C31: 11 | D31: 2817 | E31: 11 | F31: 2820 | K31: 0 | L31: 211
A32: 21 | B32: 2916 | C32: 11 | D32: 2925 | E32: 11 | F32: 2932 | K32: 0 | L32: 211
A33: 12 | B33: 3036 | C33: 13 | D33: 3040 | E33: 13 | F33: 3067 | K33: 0 | L33: 111
A34: 21 | B34: 3165 | C34: 11 | D34: 3176 | E34: 11 | F34: 3194 | K34: 0 | L34: 211
A35: 12 | B35: 3295 | C35: 13 | D35: 3309 | E35: 13 | F35: 3316 | K35: 0 | L35: 111
A36: 12 | B36: 3426 | C36: 13 | D36: 3436 | E36: 13 | F36: 3444 | K36: 0 | L36: 111
A37: 21 | B37: 3542 | C37: 11 | D37: 3550 | E37: 11 | F37: 3555 | K37: 0 | L37: 211
A38: 21 | B38: 3647 | C38: 11 | D38: 3663 | E38: 11 | F38: 3670 | K38: 0 | L38: 211
A39: 21 | B39: 3761 | C39: 11 | D39: 3769 | E39: 11 | F39: 3772 | K39: 0 | L39: 211
A40: 21 | B40: 3864 | C40: 11 | D40: 3874 | E40: 11 | F40: 3878 | K40: 0 | L40: 211
A41: 21 | B41: 3973 | C41: 11 | D41: 3984 | E41: 11 | F41: 3988 | K41: 0 | L41: 211
A42: 21 | B42: 4081 | C42: 11 | D42: 4090 | E42: 11 | F42: 4094 | K42: 0 | L42: 211
A43: 21 | B43: 4191 | C43: 11 | D43: 4205 | E43: 11 | F43: 4211 | K43: 0 | L43: 211
A44: 21 | B44: 4303 | C44: 11 | D44: 4311 | E44: 11 | F44: 4315 | K44: 0 | L44: 211
A45: 12 | B45: 4419 | C45: 13 | D45: 4429 | E45: 13 | F45: 4437 | K45: 0 | L45: 111
A46: 12 | B46: 4542 | C46: 13 | D46: 4549 | E46: 13 | F46: 4560 | K46: 0 | L46: 111
A47: 21 | B47: 4661 | C47: 11 | D47: 4668 | E47: 11 | F47: 4672 | K47: 0 | L47: 211
A48: 12 | B48: 4775 | C48: 13 | D48: 4794 | E48: 13 | F48: 4804 | K48: 0 | L48: 111
A49: 12 | B49: 4915 | C49: 13 | D49: 4921 | E49: 13 | F49: 4941 | K49: 0 | L49: 111
A50: 21 | B50: 5055 | C50: 11 | D50: 5063 | E50: 11 | F50: 5069 | K50: 0 | L50: 211
A51: 21 | B51: 5160 | C51: 11 | D51: 5173 | E51: 11 | F51: 5183 | K51: 0 | L51: 211
A52: 21 | B52: 5277 | C52: 11 | D52: 5287 | E52: 11 | F52: 5291 | K52: 0 | L52: 211
A53: 21 | B53: 5393 | C53: 11 | D53: 5404 | E53: 11 | F53: 5414 | K53: 0 | L53: 211
A54: 21 | B54: 5512 | C54: 11 | D54: 5522 | E54: 11 | F54: 5529 | K54: 0 | L54: 211
A55: 21 | B55: 5621 | C55: 11 | D55: 5636 | E55: 11 | F55: 5642 | K55: 1 | L55: 211

Sheet !M507930.183
A1: Report for:!M507930.183
A2: Date: | B2: <date>
A3: Hen: | B3: <hen> | F3: Correct Sequence | G3: =Start!J2 -> 211 | P3: Total Sequences in Data | Q3: =4994-COUNTBLANK(L7:L5000) -> 48 | V3: Total Sequences in Block Data | W3: =COUNTA(L7:L14) -> 8 | AA3: Total Sequences in Block Data | AB3: =COUNTA(L15:L22) -> 8 | AF3: Total Sequences in Block Data | AG3: =COUNTA(L23:L30) -> 8 | AK3: Total Sequences in Block Data | AL3: =COUNTA(L31:L38) -> 8 | AP3: Total Sequences in Block Data | AQ3: =COUNTA(L39:L46) -> 8 | AU3: Total Sequences in Block Data | AV3: =COUNTA(L47:L54) -> 8
P4: Total Sequences in Summary | Q4: =SUM(O7:O14) -> 48 | V4: Total Sequences in Block Summary | W4: =SUM(U7:U14) -> 8 | AA4: Total Sequences in Block Summary | AB4: =SUM(Z7:Z14) -> 8 | AF4: Total Sequences in Block Summary | AG4: =SUM(AE7:AE14) -> 8 | AK4: Total Sequences in Block Summary | AL4: =SUM(AJ7:AJ14) -> 8 | AP4: Total Sequences in Block Summary | AQ4: =SUM(AO7:AO14) -> 8 | AU4: Total Sequences in Block Summary | AV4: =SUM(AT7:AT14) -> 8
T5: Block 1 | Y5: Block 2 | AD5: Block 3 | AI5: Block 4 | AN5: Block 5 | AS5: Block 6
A6: Sequence Component 1 | B6: Time 1 | C6: Sequence Component 2 | D6: Time 2 | E6: Sequence Component 3 | F6: Time 3 | G6: Sequence Component 4 | H6: Time 4 | I6: Sequence Component 5 | J6: Time 5 | K6: Correct? 0=No 1=Yes | L6: Sequence | N6: Frequency | P6: Relative Frequency | Q6: Variability | T6: Frequency | V6: Relative Frequency | W6: Variability | Y6: Frequency | AA6: Relative Frequency | AB6: Variability | AD6: Frequency | AF6: Relative Frequency | AG6: Variability | AI6: Frequency | AK6: Relative Frequency | AL6: Variability | AN6: Frequency | AP6: Relative Frequency | AQ6: Variability | AS6: Frequency | AU6: Relative Frequency | AV6: Variability
A7: 12 | B7: 10 | C7: 13 | D7: 15 | E7: 13 | F7: 26 | K7: 0 | L7: 111 | N7: 111 | O7: =COUNTIF($L$7:$L$500,N7) -> 7 | P7: =O7/$Q$4 -> 0.1458333333 | Q7: =IF(P7=0,0,(P7*((LOG(P7))/LOG(2)))) -> -0.4050677719 | T7: =N7 -> 111 | U7: =COUNTIF(L7:L14,T7) -> 1 | V7: =U7/(W4-U11) -> 1 | W7: =IF(V7=0,0,(V7*((LOG(V7))/LOG(2)))) -> 0 | Y7: =N7 -> 111 | Z7: =COUNTIF(L15:L22,Y7) -> 1 | AA7: =Z7/(AB4-Z11) -> 1 | AB7: =IF(AA7=0,0,(AA7*((LOG(AA7))/LOG(2)))) -> 0 | AD7: =N7 -> 111 | AE7: =COUNTIF(L23:L30,AD7) -> 1 | AF7: =AE7/(AG4-AE11) -> 0.5 | AG7: =IF(AF7=0,0,(AF7*((LOG(AF7))/LOG(2)))) -> -0.5 | AI7: =N7 -> 111 | AJ7: =COUNTIF(L31:L38,AI7) -> 1 | AK7: =AJ7/(AL4-AJ11) -> 1 | AL7: =IF(AK7=0,0,(AK7*((LOG(AK7))/LOG(2)))) -> 0 | AN7: =N7 -> 111 | AO7: =COUNTIF(L39:L46,AN7) -> 2 | AP7: =AO7/(AQ4-AO11) -> 1 | AQ7: =IF(AP7=0,0,(AP7*((LOG(AP7))/LOG(2)))) -> 0 | AS7: =N7 -> 111 | AT7: =COUNTIF(L47:L54,AS7) -> 1 | AU7: =AT7/(AV4-AT11) -> 1 | AV7: =IF(AU7=0,0,(AU7*((LOG(AU7))/LOG(2)))) -> 0
A8: 21 | B8: 126 | C8: 11 | D8: 138 | E8: 11 | F8: 149 | K8: 0 | L8: 211 | N8: 112 | O8: =COUNTIF($L$7:$L$500,N8) -> 0 | P8: =O8/$Q$4 -> 0 | Q8: =IF(P8=0,0,(P8*((LOG(P8))/LOG(2)))) -> 0 | T8: =N8 -> 112 | U8: =COUNTIF(L7:L14,T8) -> 0 | V8: =U8/(W4-U11) -> 0 | W8: =IF(V8=0,0,(V8*((LOG(V8))/LOG(2)))) -> 0 | Y8: =N8 -> 112 | Z8: =COUNTIF(L15:L22,Y8) -> 0 | AA8: =Z8/(AB4-Z11) -> 0 | AB8: =IF(AA8=0,0,(AA8*((LOG(AA8))/LOG(2)))) -> 0 | AD8: =N8 -> 112 | AE8: =COUNTIF(L23:L30,AD8) -> 0 | AF8: =AE8/(AG4-AE11) -> 0 | AG8: =IF(AF8=0,0,(AF8*((LOG(AF8))/LOG(2)))) -> 0 | AI8: =N8 -> 112 | AJ8: =COUNTIF(L31:L38,AI8) -> 0 | AK8: =AJ8/(AL4-AJ11) -> 0 | AL8: =IF(AK8=0,0,(AK8*((LOG(AK8))/LOG(2)))) -> 0 | AN8: =N8 -> 112 | AO8: =COUNTIF(L39:L46,AN8) -> 0 | AP8: =AO8/(AQ4-AO11) -> 0 | AQ8: =IF(AP8=0,0,(AP8*((LOG(AP8))/LOG(2)))) -> 0 | AS8: =N8 -> 112 | AT8: =COUNTIF(L47:L54,AS8) -> 0 | AU8: =AT8/(AV4-AT11) -> 0 | AV8: =IF(AU8=0,0,(AU8*((LOG(AU8))/LOG(2)))) -> 0
A9: 21 | B9: 239 | C9: 11 | D9: 247 | E9: 11 | F9: 254 | K9: 0 | L9: 211 | N9: 121 | O9: =COUNTIF($L$7:$L$500,N9) -> 0 | P9: =O9/$Q$4 -> 0 | Q9: =IF(P9=0,0,(P9*((LOG(P9))/LOG(2)))) -> 0 | T9: =N9 -> 121 | U9: =COUNTIF(L7:L14,T9) -> 0 | V9: =U9/(W4-U11) -> 0 | W9: =IF(V9=0,0,(V9*((LOG(V9))/LOG(2)))) -> 0 | Y9: =N9 -> 121 | Z9: =COUNTIF(L15:L22,Y9) -> 0 | AA9: =Z9/(AB4-Z11) -> 0 | AB9: =IF(AA9=0,0,(AA9*((LOG(AA9))/LOG(2)))) -> 0 | AD9: =N9 -> 121 | AE9: =COUNTIF(L23:L30,AD9) -> 0 | AF9: =AE9/(AG4-AE11) -> 0 | AG9: =IF(AF9=0,0,(AF9*((LOG(AF9))/LOG(2)))) -> 0 | AI9: =N9 -> 121 | AJ9: =COUNTIF(L31:L38,AI9) -> 0 | AK9: =AJ9/(AL4-AJ11) -> 0 | AL9: =IF(AK9=0,0,(AK9*((LOG(AK9))/LOG(2)))) -> 0 | AN9: =N9 -> 121 | AO9: =COUNTIF(L39:L46,AN9) -> 0 | AP9: =AO9/(AQ4-AO11) -> 0 | AQ9: =IF(AP9=0,0,(AP9*((LOG(AP9))/LOG(2)))) -> 0 | AS9: =N9 -> 121 | AT9: =COUNTIF(L47:L54,AS9) -> 0 | AU9: =AT9/(AV4-AT11) -> 0 | AV9: =IF(AU9=0,0,(AU9*((LOG(AU9))/LOG(2)))) -> 0
A10: 21 | B10: 345 | C10: 11 | D10: 355 | E10: 11 | F10: 362 | K10: 0 | L10: 211 | N10: 122 | O10: =COUNTIF($L$7:$L$500,N10) -> 0 | P10: =O10/$Q$4 -> 0 | Q10: =IF(P10=0,0,(P10*((LOG(P10))/LOG(2)))) -> 0 | T10: =N10 -> 122 | U10: =COUNTIF(L7:L14,T10) -> 0 | V10: =U10/(W4-U11) -> 0 | W10: =IF(V10=0,0,(V10*((LOG(V10))/LOG(2)))) -> 0 | Y10: =N10 -> 122 | Z10: =COUNTIF(L15:L22,Y10) -> 0 | AA10: =Z10/(AB4-Z11) -> 0 | AB10: =IF(AA10=0,0,(AA10*((LOG(AA10))/LOG(2)))) -> 0 | AD10: =N10 -> 122 | AE10: =COUNTIF(L23:L30,AD10) -> 0 | AF10: =AE10/(AG4-AE11) -> 0 | AG10: =IF(AF10=0,0,(AF10*((LOG(AF10))/LOG(2)))) -> 0 | AI10: =N10 -> 122 | AJ10: =COUNTIF(L31:L38,AI10) -> 0 | AK10: =AJ10/(AL4-AJ11) -> 0 | AL10: =IF(AK10=0,0,(AK10*((LOG(AK10))/LOG(2)))) -> 0 | AN10: =N10 -> 122 | AO10: =COUNTIF(L39:L46,AN10) -> 0 | AP10: =AO10/(AQ4-AO11) -> 0 | AQ10: =IF(AP10=0,0,(AP10*((LOG(AP10))/LOG(2)))) -> 0 | AS10: =N10 -> 122 | AT10: =COUNTIF(L47:L54,AS10) -> 0 | AU10: =AT10/(AV4-AT11) -> 0 | AV10: =IF(AU10=0,0,(AU10*((LOG(AU10))/LOG(2)))) -> 0
A11: 21 | B11: 453 | C11: 11 | D11: 465 | E11: 11 | F11: 471 | K11: 0 | L11: 211 | N11: 211 | O11: =COUNTIF($L$7:$L$500,N11) -> 40 | P11: =O11/$Q$4 -> 0.8333333333 | Q11: =IF(P11=0,0,(P11*((LOG(P11))/LOG(2)))) -> -0.2191953382 | T11: =N11 -> 211 | U11: =COUNTIF(L7:L14,T11) -> 7 | Y11: =N11 -> 211 | Z11: =COUNTIF(L15:L22,Y11) -> 7 | AD11: =N11 -> 211 | AE11: =COUNTIF(L23:L30,AD11) -> 6 | AI11: =N11 -> 211 | AJ11: =COUNTIF(L31:L38,AI11) -> 7 | AN11: =N11 -> 211 | AO11: =COUNTIF(L39:L46,AN11) -> 6 | AS11: =N11 -> 211 | AT11: =COUNTIF(L47:L54,AS11) -> 7
A12: 21 | B12: 559 | C12: 11 | D12: 569 | E12: 11 | F12: 575 | K12: 0 | L12: 211 | N12: 212 | O12: =COUNTIF($L$7:$L$500,N12) -> 0 | P12: =O12/$Q$4 -> 0 | Q12: =IF(P12=0,0,(P12*((LOG(P12))/LOG(2)))) -> 0 | T12: =N12 -> 212 | U12: =COUNTIF(L7:L14,T12) -> 0 | V12: =U12/(W4-U11) -> 0 | W12: =IF(V12=0,0,(V12*((LOG(V12))/LOG(2)))) -> 0 | Y12: =N12 -> 212 | Z12: =COUNTIF(L15:L22,Y12) -> 0 | AA12: =Z12/(AB4-Z11) -> 0 | AB12: =IF(AA12=0,0,(AA12*((LOG(AA12))/LOG(2)))) -> 0 | AD12: =N12 -> 212 | AE12: =COUNTIF(L23:L30,AD12) -> 0 | AF12: =AE12/(AG4-AE11) -> 0 | AG12: =IF(AF12=0,0,(AF12*((LOG(AF12))/LOG(2)))) -> 0 | AI12: =N12 -> 212 | AJ12: =COUNTIF(L31:L38,AI12) -> 0 | AK12: =AJ12/(AL4-AJ11) -> 0 | AL12: =IF(AK12=0,0,(AK12*((LOG(AK12))/LOG(2)))) -> 0 | AN12: =N12 -> 212 | AO12: =COUNTIF(L39:L46,AN12) -> 0 | AP12: =AO12/(AQ4-AO11) -> 0 | AQ12: =IF(AP12=0,0,(AP12*((LOG(AP12))/LOG(2)))) -> 0 | AS12: =N12 -> 212 | AT12: =COUNTIF(L47:L54,AS12) -> 0 | AU12: =AT12/(AV4-AT11) -> 0 | AV12: =IF(AU12=0,0,(AU12*((LOG(AU12))/LOG(2)))) -> 0
A13: 21 | B13: 666 | C13: 11 | D13: 676 | E13: 11 | F13: 686 | K13: 0 | L13: 211 | N13: 221 | O13: =COUNTIF($L$7:$L$500,N13) -> 1 | P13: =O13/$Q$4 -> 0.02083333333 | Q13: =IF(P13=0,0,(P13*((LOG(P13))/LOG(2)))) -> -0.1163533854 | T13: =N13 -> 221 | U13: =COUNTIF(L7:L14,T13) -> 0 | V13: =U13/(W4-U11) -> 0 | W13: =IF(V13=0,0,(V13*((LOG(V13))/LOG(2)))) -> 0 | Y13: =N13 -> 221 | Z13: =COUNTIF(L15:L22,Y13) -> 0 | AA13: =Z13/(AB4-Z11) -> 0 | AB13: =IF(AA13=0,0,(AA13*((LOG(AA13))/LOG(2)))) -> 0 | AD13: =N13 -> 221 | AE13: =COUNTIF(L23:L30,AD13) -> 1 | AF13: =AE13/(AG4-AE11) -> 0.5 | AG13: =IF(AF13=0,0,(AF13*((LOG(AF13))/LOG(2)))) -> -0.5 | AI13: =N13 -> 221 | AJ13: =COUNTIF(L31:L38,AI13) -> 0 | AK13: =AJ13/(AL4-AJ11) -> 0 | AL13: =IF(AK13=0,0,(AK13*((LOG(AK13))/LOG(2)))) -> 0 | AN13: =N13 -> 221 | AO13: =COUNTIF(L39:L46,AN13) -> 0 | AP13: =AO13/(AQ4-AO11) -> 0 | AQ13: =IF(AP13=0,0,(AP13*((LOG(AP13))/LOG(2)))) -> 0 | AS13: =N13 -> 221 | AT13: =COUNTIF(L47:L54,AS13) -> 0 | AU13: =AT13/(AV4-AT11) -> 0 | AV13: =IF(AU13=0,0,(AU13*((LOG(AU13))/LOG(2)))) -> 0
A14: 21 | B14: 774 | C14: 11 | D14: 784 | E14: 11 | F14: 792 | K14: 0 | L14: 211 | N14: 222 | O14: =COUNTIF($L$7:$L$500,N14) -> 0 | P14: =O14/$Q$4 -> 0 | Q14: =IF(P14=0,0,(P14*((LOG(P14))/LOG(2)))) -> 0 | T14: =N14 -> 222 | U14: =COUNTIF(L7:L14,T14) -> 0 | V14: =U14/(W4-U11) -> 0 | W14: =IF(V14=0,0,(V14*((LOG(V14))/LOG(2)))) -> 0 | Y14: =N14 -> 222 | Z14: =COUNTIF(L15:L22,Y14) -> 0 | AA14: =Z14/(AB4-Z11) -> 0 | AB14: =IF(AA14=0,0,(AA14*((LOG(AA14))/LOG(2)))) -> 0 | AD14: =N14 -> 222 | AE14: =COUNTIF(L23:L30,AD14) -> 0 | AF14: =AE14/(AG4-AE11) -> 0 | AG14: =IF(AF14=0,0,(AF14*((LOG(AF14))/LOG(2)))) -> 0 | AI14: =N14 -> 222 | AJ14: =COUNTIF(L31:L38,AI14) -> 0 | AK14: =AJ14/(AL4-AJ11) -> 0 | AL14: =IF(AK14=0,0,(AK14*((LOG(AK14))/LOG(2)))) -> 0 | AN14: =N14 -> 222 | AO14: =COUNTIF(L39:L46,AN14) -> 0 | AP14: =AO14/(AQ4-AO11) -> 0 | AQ14: =IF(AP14=0,0,(AP14*((LOG(AP14))/LOG(2)))) -> 0 | AS14: =N14 -> 222 | AT14: =COUNTIF(L47:L54,AS14) -> 0 | AU14: =AT14/(AV4-AT11) -> 0 | AV14: =IF(AU14=0,0,(AU14*((LOG(AU14))/LOG(2)))) -> 0
A15: 21 | B15: 883 | C15: 11 | D15: 902 | E15: 11 | F15: 911 | K15: 0 | L15: 211 | P15: =SUM(P7:P14) -> 1 | Q15: =-SUM(Q7:Q14) -> 0.7406164955 | V15: =SUM(V7:V14) -> 1 | W15: =-SUM(W7:W14) -> 0 | AA15: =SUM(AA7:AA14) -> 1 | AB15: =-SUM(AB7:AB14) -> 0 | AF15: =SUM(AF7:AF14) -> 1 | AG15: =-SUM(AG7:AG14) -> 1 | AK15: =SUM(AK7:AK14) -> 1 | AL15: =-SUM(AL7:AL14) -> 0 | AP15: =SUM(AP7:AP14) -> 1 | AQ15: =-SUM(AQ7:AQ14) -> 0 | AU15: =SUM(AU7:AU14) -> 1 | AV15: =-SUM(AV7:AV14) -> 0
A16: 21 | B16: 1005 | C16: 11 | D16: 1012 | E16: 11 | F16: 1018 | K16: 0 | L16: 211 | P16: U= | Q16: =Q15/(LOG(Q4)/LOG(2)) -> 0.1326090364 | V16: U1= | W16: =W15/(LOG(W4)/LOG(2)) -> 0 | AA16: U2= | AB16: =AB15/(LOG(AB4)/LOG(2)) -> 0 | AF16: U3= | AG16: =AG15/(LOG(AG4)/LOG(2)) -> 0.3333333333 | AK16: U4= | AL16: =AL15/(LOG(AL4)/LOG(2)) -> 0 | AP16: U5= | AQ16: =AQ15/(LOG(AQ4)/LOG(2)) -> 0 | AU16: U6= | AV16: =AV15/(LOG(AV4)/LOG(2)) -> 0
A17: 21 | B17: 1108 | C17: 11 | D17: 1120 | E17: 11 | F17: 1127 | K17: 0 | L17: 211
A18: 21 | B18: 1216 | C18: 11 | D18: 1229 | E18: 11 | F18: 1238 | K18: 0 | L18: 211
A19: 12 | B19: 1341 | C19: 13 | D19: 1349 | E19: 13 | F19: 1356 | K19: 0 | L19: 111 | N19: Total Target Seq
A20: 21 | B20: 1454 | C20: 11 | D20: 1462 | E20: 11 | F20: 1468 | K20: 0 | L20: 211 | N20: =COUNTIF(L7:L54,G3) -> 40 | P20: 8 | Q20: 8 | R20: 8 | S20: 8 | T20: 8 | U20: 8
A21: 21 | B21: 1559 | C21: 11 | D21: 1575 | E21: 11 | F21: 1582 | K21: 0 | L21: 211 | P21: % of reinforcement given in 6 equal intervals based on number of trials
A22: 21 | B22: 1672 | C22: 11 | D22: 1683 | E22: 11 | F22: 1689 | K22: 0 | L22: 211 | P22: %_1 | Q22: %_2 | R22: %_3 | S22: %_4 | T22: %_5 | U22: %_6
A23: 12 | B23: 1801 | C23: 13 | D23: 1806 | E23: 13 | F23: 1812 | K23: 0 | L23: 111 | O23: target sequence | P23: =$G$3 -> 211 | Q23: =$G$3 -> 211 | R23: =$G$3 -> 211 | S23: =$G$3 -> 211 | T23: =$G$3 -> 211 | U23: =$G$3 -> 211
A24: 21 | B24: 1913 | C24: 11 | D24: 1921 | E24: 11 | F24: 1926 | K24: 0 | L24: 211 | O24: total reinforcement | P24: =U11 -> 7 | Q24: =Z11 -> 7 | R24: =AE11 -> 6 | S24: =AJ11 -> 7 | T24: =AO11 -> 6 | U24: =AT11 -> 7
A25: 21 | B25: 2018 | C25: 11 | D25: 2026 | E25: 11 | F25: 2032 | K25: 0 | L25: 211 | O25: % target
A26: 21 | B26: 2122 | C26: 11 | D26: 2133 | E26: 11 | F26: 2145 | K26: 0 | L26: 211 | O26: CCRF
A27: 21 | B27: 2234 | C27: 11 | D27: 2242 | E27: 11 | F27: 2247 | K27: 0 | L27: 211 | O27: % CCRf
A28: 21 | B28: 2337 | C28: 22 | D28: 2344 | E28: 13 | F28: 2355 | K28: 0 | L28: 221 | O28: average response rate | P28: =F14/P20 -> 99 | Q28: =(F22-F14)/Q20 -> 112.125 | R28: =(F30-F22)/R20 -> 110.5 | S28: =(F38-F30)/S20 -> 107.75 | T28: =(F46-F38)/T20 -> 110.5 | U28: =(F54-F46)/U20 -> 110.75
A29: 21 | B29: 2451 | C29: 11 | D29: 2460 | E29: 11 | F29: 2468 | K29: 0 | L29: 211
A30: 21 | B30: 2560 | C30: 11 | D30: 2568 | E30: 11 | F30: 2573 | K30: 0 | L30: 211
A31: 21 | B31: 2663 | C31: 11 | D31: 2671 | E31: 11 | F31: 2677 | K31: 0 | L31: 211
A32: 21 | B32: 2767 | C32: 11 | D32: 2775 | E32: 11 | F32: 2784 | K32: 0 | L32: 211
A33: 21 | B33: 2880 | C33: 11 | D33: 2890 | E33: 11 | F33: 2896 | K33: 0 | L33: 211
A34: 21 | B34: 2984 | C34: 11 | D34: 2996 | E34: 11 | F34: 3002 | K34: 0 | L34: 211
A35: 21 | B35: 3090 | C35: 11 | D35: 3098 | E35: 11 | F35: 3104 | K35: 0 | L35: 211
A36: 21 | B36: 3194 | C36: 11 | D36: 3204 | E36: 11 | F36: 3208 | K36: 0 | L36: 211
A37: 12 | B37: 3310 | C37: 13 | D37: 3317 | E37: 13 | F37: 3323 | K37: 0 | L37: 111
A38: 21 | B38: 3419 | C38: 11 | D38: 3427 | E38: 11 | F38: 3435 | K38: 0 | L38: 211
A39: 21 | B39: 3531 | C39: 11 | D39: 3539 | E39: 11 | F39: 3543 | K39: 0 | L39: 211
A40: 21 | B40: 3633 | C40: 11 | D40: 3644 | E40: 11 | F40: 3650 | K40: 0 | L40: 211
A41: 21 | B41: 3739 | C41: 11 | D41: 3752 | E41: 11 | F41: 3758 | K41: 0 | L41: 211
A42: 21 | B42: 3845 | C42: 11 | D42: 3856 | E42: 11 | F42: 3866 | K42: 0 | L42: 211
A43: 12 | B43: 3963 | C43: 13 | D43: 3970 | E43: 13 | F43: 3977 | K43: 0 | L43: 111
A44: 12 | B44: 4083 | C44: 13 | D44: 4089 | E44: 13 | F44: 4095 | K44: 0 | L44: 111
A45: 21 | B45: 4192 | C45: 11 | D45: 4206 | E45: 11 | F45: 4212 | K45: 0 | L45: 211
A46: 21 | B46: 4306 | C46: 11 | D46: 4314 | E46: 11 | F46: 4319 | K46: 0 | L46: 211
A47: 12 | B47: 4419 | C47: 13 | D47: 4428 | E47: 13 | F47: 4432 | K47: 0 | L47: 111
A48: 21 | B48: 4548 | C48: 11 | D48: 4556 | E48: 11 | F48: 4559 | K48: 0 | L48: 211
A49: 21 | B49: 4651 | C49: 11 | D49: 4664 | E49: 11 | F49: 4670 | K49: 0 | L49: 211
A50: 21 | B50: 4763 | C50: 11 | D50: 4775 | E50: 11 | F50: 4781 | K50: 0 | L50: 211
A51: 21 | B51: 4871 | C51: 11 | D51: 4879 | E51: 11 | F51: 4883 | K51: 0 | L51: 211
A52: 21 | B52: 4972 | C52: 11 | D52: 4980 | E52: 11 | F52: 4986 | K52: 0 | L52: 211
A53: 21 | B53: 5079 | C53: 11 | D53: 5091 | E53: 11 | F53: 5097 | K53: 0 | L53: 211
A54: 21 | B54: 5187 | C54: 11 | D54: 5199 | E54: 11 | F54: 5205 | K54: 1 | L54: 211

Sheet !M508800.183
A1: Report for:!M508800.183
A2: Date: | B2: <date>
A3: Hen: | B3: <hen> | F3: Correct Sequence | G3: =Start!J2 -> 211 | P3: Total Sequences in Data | Q3: =4994-COUNTBLANK(L7:L5000) -> 48 | V3: Total Sequences in Block Data | W3: =COUNTA(L7:L14) -> 8 | AA3: Total Sequences in Block Data | AB3: =COUNTA(L15:L22) -> 8 | AF3: Total Sequences in Block Data | AG3: =COUNTA(L23:L30) -> 8 | AK3: Total Sequences in Block Data | AL3: =COUNTA(L31:L38) -> 8 | AP3: Total Sequences in Block Data | AQ3: =COUNTA(L39:L46) -> 8 | AU3: Total Sequences in Block Data | AV3: =COUNTA(L47:L54) -> 8
P4: Total Sequences in Summary | Q4: =SUM(O7:O14) -> 48 | V4: Total Sequences in Block Summary | W4: =SUM(U7:U14) -> 8 | AA4: Total Sequences in Block Summary | AB4: =SUM(Z7:Z14) -> 8 | AF4: Total Sequences in Block Summary | AG4: =SUM(AE7:AE14) -> 8 | AK4: Total Sequences in Block Summary | AL4: =SUM(AJ7:AJ14) -> 8 | AP4: Total Sequences in Block Summary | AQ4: =SUM(AO7:AO14) -> 8 | AU4: Total Sequences in Block Summary | AV4: =SUM(AT7:AT14) -> 8
T5: Block 1 | Y5: Block 2 | AD5: Block 3 | AI5: Block 4 | AN5: Block 5 | AS5: Block 6
A6: Sequence Component 1 | B6: Time 1 | C6: Sequence Component 2 | D6: Time 2 | E6: Sequence Component 3 | F6: Time 3 | G6: Sequence Component 4 | H6: Time 4 | I6: Sequence Component 5 | J6: Time 5 | K6: Correct? 0=No 1=Yes | L6: Sequence | N6: Frequency | P6: Relative Frequency | Q6: Variability | T6: Frequency | V6: Relative Frequency | W6: Variability | Y6: Frequency | AA6: Relative Frequency | AB6: Variability | AD6: Frequency | AF6: Relative Frequency | AG6: Variability | AI6: Frequency | AK6: Relative Frequency | AL6: Variability | AN6: Frequency | AP6: Relative Frequency | AQ6: Variability | AS6: Frequency | AU6: Relative Frequency | AV6: Variability
A7: 12 | B7: 12 | C7: 24 | D7: 32 | E7: 24 | F7: 53 | K7: 0 | L7: 122 | N7: 111 | O7: =COUNTIF($L$7:$L$500,N7) -> 6 | P7: =O7/$Q$4 -> 0.125 | Q7: =IF(P7=0,0,(P7*((LOG(P7))/LOG(2)))) -> -0.375 | T7: =N7 -> 111 | U7: =COUNTIF(L7:L14,T7) -> 0 | V7: =U7/(W4-U11) -> 0 | W7: =IF(V7=0,0,(V7*((LOG(V7))/LOG(2)))) -> 0 | Y7: =N7 -> 111 | Z7: =COUNTIF(L15:L22,Y7) -> 2 | AA7: =Z7/(AB4-Z11) -> 0.6666666667 | AB7: =IF(AA7=0,0,(AA7*((LOG(AA7))/LOG(2)))) -> -0.3899750005 | AD7: =N7 -> 111 | AE7: =COUNTIF(L23:L30,AD7) -> 2 | AF7: =AE7/(AG4-AE11) -> 1 | AG7: =IF(AF7=0,0,(AF7*((LOG(AF7))/LOG(2)))) -> 0 | AI7: =N7 -> 111 | AJ7: =COUNTIF(L31:L38,AI7) -> 0 | AK7: =AJ7/(AL4-AJ11) ->  | AL7: =IF(AK7=0,0,(AK7*((LOG(AK7))/LOG(2)))) ->  | AN7: =N7 -> 111 | AO7: =COUNTIF(L39:L46,AN7) -> 1 | AP7: =AO7/(AQ4-AO11) -> 1 | AQ7: =IF(AP7=0,0,(AP7*((LOG(AP7))/LOG(2)))) -> 0 | AS7: =N7 -> 111 | AT7: =COUNTIF(L47:L54,AS7) -> 1 | AU7: =AT7/(AV4-AT11) -> 0.5 | AV7: =IF(AU7=0,0,(AU7*((LOG(AU7))/LOG(2)))) -> -0.5
A8: 21 | B8: 153 | C8: 11 | D8: 165 | E8: 11 | F8: 176 | K8: 0 | L8: 211 | N8: 112 | O8: =COUNTIF($L$7:$L$500,N8) -> 0 | P8: =O8/$Q$4 -> 0 | Q8: =IF(P8=0,0,(P8*((LOG(P8))/LOG(2)))) -> 0 | T8: =N8 -> 112 | U8: =COUNTIF(L7:L14,T8) -> 0 | V8: =U8/(W4-U11) -> 0 | W8: =IF(V8=0,0,(V8*((LOG(V8))/LOG(2)))) -> 0 | Y8: =N8 -> 112 | Z8: =COUNTIF(L15:L22,Y8) -> 0 | AA8: =Z8/(AB4-Z11) -> 0 | AB8: =IF(AA8=0,0,(AA8*((LOG(AA8))/LOG(2)))) -> 0 | AD8: =N8 -> 112 | AE8: =COUNTIF(L23:L30,AD8) -> 0 | AF8: =AE8/(AG4-AE11) -> 0 | AG8: =IF(AF8=0,0,(AF8*((LOG(AF8))/LOG(2)))) -> 0 | AI8: =N8 -> 112 | AJ8: =COUNTIF(L31:L38,AI8) -> 0 | AK8: =AJ8/(AL4-AJ11) ->  | AL8: =IF(AK8=0,0,(AK8*((LOG(AK8))/LOG(2)))) ->  | AN8: =N8 -> 112 | AO8: =COUNTIF(L39:L46,AN8) -> 0 | AP8: =AO8/(AQ4-AO11) -> 0 | AQ8: =IF(AP8=0,0,(AP8*((LOG(AP8))/LOG(2)))) -> 0 | AS8: =N8 -> 112 | AT8: =COUNTIF(L47:L54,AS8) -> 0 | AU8: =AT8/(AV4-AT11) -> 0 | AV8: =IF(AU8=0,0,(AU8*((LOG(AU8))/LOG(2)))) -> 0
A9: 21 | B9: 265 | C9: 11 | D9: 286 | E9: 11 | F9: 292 | K9: 0 | L9: 211 | N9: 121 | O9: =COUNTIF($L$7:$L$500,N9) -> 0 | P9: =O9/$Q$4 -> 0 | Q9: =IF(P9=0,0,(P9*((LOG(P9))/LOG(2)))) -> 0 | T9: =N9 -> 121 | U9: =COUNTIF(L7:L14,T9) -> 0 | V9: =U9/(W4-U11) -> 0 | W9: =IF(V9=0,0,(V9*((LOG(V9))/LOG(2)))) -> 0 | Y9: =N9 -> 121 | Z9: =COUNTIF(L15:L22,Y9) -> 0 | AA9: =Z9/(AB4-Z11) -> 0 | AB9: =IF(AA9=0,0,(AA9*((LOG(AA9))/LOG(2)))) -> 0 | AD9: =N9 -> 121 | AE9: =COUNTIF(L23:L30,AD9) -> 0 | AF9: =AE9/(AG4-AE11) -> 0 | AG9: =IF(AF9=0,0,(AF9*((LOG(AF9))/LOG(2)))) -> 0 | AI9: =N9 -> 121 | AJ9: =COUNTIF(L31:L38,AI9) -> 0 | AK9: =AJ9/(AL4-AJ11) ->  | AL9: =IF(AK9=0,0,(AK9*((LOG(AK9))/LOG(2)))) ->  | AN9: =N9 -> 121 | AO9: =COUNTIF(L39:L46,AN9) -> 0 | AP9: =AO9/(AQ4-AO11) -> 0 | AQ9: =IF(AP9=0,0,(AP9*((LOG(AP9))/LOG(2)))) -> 0 | AS9: =N9 -> 121 | AT9: =COUNTIF(L47:L54,AS9) -> 0 | AU9: =AT9/(AV4-AT11) -> 0 | AV9: =IF(AU9=0,0,(AU9*((LOG(AU9))/LOG(2)))) -> 0
